Workbook

Sheet dbf-e-data
A1: Дбф файли для порталу е-дата! | H1: 1000 | K1: =IF(ЗАПОЛНИТЬ!$B$18="1 квітня",1,IF(ЗАПОЛНИТЬ!$B$18="1 липня",2,IF(ЗАПОЛНИТЬ!$B$18="1 жовтня",3,4))) -> 4 | L1: =RIGHT(LEFT(ЗАПОЛНИТЬ!$C$18,4),2) -> 18 | M1: =IF(K1=4,L1-1,L1) -> 17
A9: В тому ж місці де у вас відкритий цей файл, з'являться дбф файли:
A16: Форма 2 - Fxxxppk.dbf
A17: Форма 4-1 - RKxxxppк.dbf,
A18: Форма 4-2 - DKxxxppк.dbf,
A19: Форма 4-3 - SKxxxppк.dbf,
A20: де:
A21: xxx – код відомчої класифікаціїї;
A22: рр – дві останні цифри звітного року;
A23: k - звітний квартал
A26: Тема где обсуждается этот файл:
A27: http://budget.factor.ua/viewtopic.php?f=125&t=5712
A29: Для того чтоб создать ДБФ файл необходимо разрешить выполнение МАКРОСОВ
A30: в 2003 офисе заходим СЕРВИС-ПАРАМЕТРЫ-БЕЗОПАСНОТЬ-БЕЗОПАСНОСТЬ МАКРОСОВ и установите уровень безопасности либо низкий либо средний
A31: в 2007 офисе ФАЙЛ (слева в углу) -ПАРАМЕТРЫ - ЦЕНТР УПРАВЛЕНИЯ БЕЗОПАСНОТЬЮ - ПАРАМЕТРЫ ЦЕНТРА - БЕЗОПАСНОСТЬ МАКРОСОВ и разрешить выполнение макросов

Sheet DBF
C1: Для того чтоб создать ДБФ файл необходимо разрешить выполнение МАКРОСОВ
C2: в 2003 офисе заходим СЕРВИС-ПАРАМЕТРЫ-БЕЗОПАСНОТЬ-БЕЗОПАСНОСТЬ МАКРОСОВ и установите уровень безопасности либо низкий либо средний
C3: в 2007 офисе ФАЙЛ (слева в углу) -ПАРАМЕТРЫ - ЦЕНТР УПРАВЛЕНИЯ БЕЗОПАСНОТЬЮ - ПАРАМЕТРЫ ЦЕНТРА - БЕЗОПАСНОСТЬ МАКРОСОВ и разрешить выполнение макросов
C4: Файл будет сохранён там же открыт этот ексель, в той же папке
D21: Це дбф тільки для казначейства, не для е-дата!

Sheet ЗАПОЛНИТЬ
B1: Жовтим кольором виділені поля для обов'язкового заповнення
A3: Установа | B3: Рафалівський НВК "ЗОШ Іст.-ДНЗ"
A4: Назва казначейства де обслуговуєтесь | D4: Управління Державної казначейської служби України у Володимирецькому районі Рівненської області | O4: змінити на ваше УДК
A5: Територія | B5: смт. Рафалівка | G5: наприклад -смт.Слов'яносербськ (Згідно довідника КОАТУУ)
A7: Вид бюджету | F7: 2 | L7: Державний
L8: Місцевий
A9: Код відомчої класифікації видатків та кредитування державного бюджету | I9: сюда ставят распорядители госбюджетных средств к примеру - 670,280,350
A10: Код типової відомчої класифікації видатків місцевих бюджетів | H10: 10 | I10: Орган з питань освіти і науки | Q10: вписати назву КВК
A11: тип ліній в таблицях--->>>
A12: КОДИ
A13: за ЄДРПОУ | B13: 25894582
A14: за КОАТУУ | B14: 5620855400
A15: за КОПФГ | B15: 430 | D15: =VLOOKUP(B15,КОПФГ!A:B,2,FALSE) -> Комунальна організація (установа, заклад)
A16: Звіт за
A17: Звіт за | C17: 2017 р.
A18: Звіт на | B18: 1 січня | C18: 2018 р. | D18: =IF(B18="1 квітня",1,IF(B18="1 липня",2,IF(B18="1 жовтня",3,0))) -> 0 | E18: 01.01.2018 р. | F18: 18
A19: Дата подання звіту | C19: "12"січня 2018 року
A20: КПОЛ | B20: 040222 | C20: для ДБФ
A21: Код ГУДКСУ | B21: 17 | C21: двухзначный код вашей области для ДБФ
A22: Код УДКСУ | B22: 02 | C22: двухзначный код вашего района для ДБФ
A23: Тип бюджета | B23: 4 | C23: 1- обласний, 2 - міський , 3 - район у місті , 4 - районий, 5 - міста у районах, 6 - селищний, 7 - сільський (нужен для дбф файла)
A24: Код бюджета | B24: 298 | C24: трёхзначный код бюджета из которого вы финансируетесь, его знают ваши казначеи, обычно это последние три цифры доходных счетов
A26: Ініціали та прізвище КЕРІВНИКА | F26: Т.П. Петрук
A28: Ініціали та прізвище ГОЛОВНОГО БУХГАЛТЕРА | F28: В.В. Петрук
A30: Посада першого підпису | F30: Керівник
A31: Посада другого підпису | F31: Головний бухгалтер
A35: Для відкриття скритих листів треба зайти ФОРМАТ -ЛИСТ - ОТОБРАЗИТЬ
A36: ДЛЯ НОРМАЛЬНОЇ РОБОТИ ФОРМУЛ ЛИСТИ НЕОБХІДНО СКРИВАТИ А НЕ ВИДАЛЯТИ!!!!!
A37: БАЛАНС ЗАПОВНЮЄТЬСЯ В ОСТАННЮ ЧЕРГУ, СПОЧАТКУ ЗАПОВНІТЬ ВСІ ФОРМИ ПОТІМ БАЛАНС!!
A38: Ці та інші корисні бланки можно завантажити на https://buhgalter.com.ua
A39: автор розробки: Токарев Євген Васильович

Sheet 1дс_баланс
D1: Додаток 1 до Національного положення (стандарту) бухгалтерського обліку в державному секторі 101 «Подання фінансової звітності»
D5: КОДИ
B6: Дата (2018, 01, 12) | F6: 01
A7: Установа/бюджет | B7: =ЗАПОЛНИТЬ!B3 -> Рафалівський НВК "ЗОШ Іст.-ДНЗ" | C7: за ЄДРПОУ | D7: =ЗАПОЛНИТЬ!B13 -> 25894582
A8: Територія | B8: =ЗАПОЛНИТЬ!B5 -> смт. Рафалівка | C8: за КОАТУУ | D8: =ЗАПОЛНИТЬ!B14 -> 5620855400
A9: Організаційно-правова форма господарювання | B9: =ЗАПОЛНИТЬ!D15 -> Комунальна організація (установа, заклад) | C9: за КОПФГ | D9: =ЗАПОЛНИТЬ!B15 -> 430
A10: Орган державного управління | C10: за КОДУ
A11: Вид економічної діяльності | C11: за КВЕД
A12: Одиниця виміру: грн.
A13: Періодичність: квартальна, річна
A14: БАЛАНС
A15: =CONCATENATE("на ",ЗАПОЛНИТЬ!$B$18," ",LEFT(ЗАПОЛНИТЬ!$C$18,4)," року") -> на 1 січня 2018 року
E16: Форма № 1-дс
A17: АКТИВ | D17: Код рядка | E17: На початок звітного періоду | F17: На кінець звітного періоду
A18: 1 | D18: 2 | E18: 3 | F18: 4
A19: І. НЕФІНАНСОВІ АКТИВИ
A20: Основні засоби: | D20: 1000 | E20: 177087 | F20: =F21-F22 -> 117771
A21: первісна вартість | D21: 1001 | E21: 390264 | F21: 371078
A22: знос | D22: 1002 | E22: 213177 | F22: 253307
A23: Інвестиційна нерухомість | D23: 1010 | E23: =E24-E25 -> 0 | F23: =F24-F25 -> 0
A24: первісна вартість | D24: 1011 | E24: 0 | F24: 0
A25: знос | D25: 1012 | E25: 0 | F25: 0
A26: Нематеріальні активи: | D26: 1020 | E26: =E27-E28 -> 0 | F26: =F27-F28 -> 0
A27: первісна вартість | D27: 1021 | E27: 0 | F27: 0
A28: накопичена амортизація | D28: 1022 | E28: 0 | F28: 0
A29: Незавершені капітальні інвестиції | D29: 1030 | E29: 0 | F29: 0
A30: Довгострокові біологічні активи | D30: 1040 | E30: =E31-E32 -> 0 | F30: =F31-F32 -> 0
A31: первісна вартість | D31: 1041 | E31: 0 | F31: 0
A32: накопичена амортизація | D32: 1042 | E32: 0 | F32: 0
A33: Запаси | D33: 1050 | E33: 39388 | F33: 62657
A34: Виробництво | D34: 1060 | E34: 0 | F34: 0
A35: Поточні біологічні активи | D35: 1090 | E35: 0 | F35: 0
A36: Усього за розділом І | D36: 1095 | E36: =E35+E34+E33+E30+E29+E26+E23+E20 -> 216475 | F36: =F35+F34+F33+F30+F29+F26+F23+F20 -> 180428
A37: ІІ ФІНАНСОВІ АКТИВИ
A38: Довгострокова дебіторська заборгованість | D38: 1100 | E38: 0 | F38: 0
A39: Довгострокові фінансові інвестиції, у тому числі: | D39: 1110 | E39: =SUM(E40:E41) -> 0 | F39: =SUM(F40:F41) -> 0
A40: цінні папери, крім акцій | D40: 1111
A41: акції та інші форми участі в капіталі | D41: 1112
A43: Поточна дебіторська заборгованість
A44: за розрахунками з бюджетом | D44: 1120 | E44: 6256 | F44: 0
A45: за розрахунками за товари, роботи, послуги | D45: 1125 | E45: 16413 | F45: 15611
A46: за наданими кредитами | D46: 1130 | E46: 0 | F46: 0
A47: за виданими авансами | D47: 1135 | E47: 0 | F47: 0
A48: за розрахунками із соціального страхування | D48: 1140 | E48: 0 | F48: 0
A49: за внутрішніми розрахунками | D49: 1145 | E49: 0 | F49: 0
A50: інша поточна дебіторська заборгованість | D50: 1150 | E50: 0 | F50: 0
A51: Поточні фінансові інвестиції | D51: 1155 | E51: 0 | F51: 0
A52: Грошові кошти та їх еквіваленти розпорядників бюджетних коштів та державних цільових фондів у:
A53: національній валюті, у тому числі в: | D53: 1160 | E53: =SUM(E54:E56) -> 90 | F53: =SUM(F54:F56) -> 19008
A54: касі | D54: 1161 | E54: 0 | F54: 0
A55: казначействі | D55: 1162 | E55: =ROUND(Ф.2.ЗВЕД!F23+Ф.4.1.ЗВЕД!E23-Ф.4.1.ЗВЕД!F23+Ф.4.2.ЗВЕД!E22-Ф.4.2.ЗВЕД!F22+Ф.4.3.ЗВЕД!F22-Ф.4.3.ЗВЕД!G22+Ф.4.4.ЗВЕД!E20+Ф.4.3.1.ЗВЕД!G22,0) -> 90 | F55: =ROUND(Ф.2.ЗВЕД!J23+Ф.4.1.ЗВЕД!Q23-Ф.4.1.ЗВЕД!R23+Ф.4.2.ЗВЕД!M22-Ф.4.2.ЗВЕД!N22+Ф.4.3.ЗВЕД!M22-Ф.4.3.ЗВЕД!N22+Ф.4.4.ЗВЕД!J20+Ф.4.3.1.ЗВЕД!R22,0) -> 19008
A56: установах банків | D56: 1163 | E56: =ROUND(Ф.4.1.ЗВЕД!F23+Ф.4.2.ЗВЕД!F22+Ф.4.3.ЗВЕД!G22,0) -> 0 | F56: =ROUND(Ф.4.1.ЗВЕД!R23+Ф.4.2.ЗВЕД!N22+Ф.4.3.ЗВЕД!N22,0) -> 0
A57: іноземній валюті | D57: 1165 | E57: 0 | F57: 0
A58: Кошти бюджетів та інших клієнтів на:
A59: єдиному казначейському рахунку | D59: 1170 | E59: 0 | F59: 0
A60: рахунках в установах банків у тому числі: | D60: 1175 | E60: =SUM(E61:E62) -> 0 | F60: =SUM(F61:F62) -> 0
A61: в національній валюті | D61: 1176 | E61: 0 | F61: 0
A62: в іноземній валюті | D62: 1177 | E62: 0 | F62: 0
A63: Інші фінансові активи | D63: 1180 | E63: 0 | F63: 0
A64: Усього за розділом ІІ | D64: 1195 | E64: =E63+E60+E59+E57+E53+E51+SUM(E44:E50)+E39+E38 -> 22759 | F64: =F63+F60+F59+F57+F53+F51+SUM(F44:F50)+F39+F38 -> 34619
A65: ІІІ ВИТРАТИ МАЙБУТНІХ ПЕРІОДІВ | D65: 1200 | E65: 0 | F65: 0
A66: БАЛАНС | D66: 1300 | E66: =E65+E64+E36 -> 239234 | F66: =F65+F64+F36 -> 215047 | H66: =IF(E66=E96,"","Актив не дорівнює пасиву на початок звітного періоду") -> 
A67: ПАСИВ | D67: Код рядка | E67: На початок звітного періоду | F67: На кінець звітного періоду | H67: =IF(F66=F96,"","Актив не дорівнює пасиву на кінець звітного періоду") -> 
A68: 1 | D68: 2 | E68: 3 | F68: 4
A69: І. ВЛАСНИЙ КАПІТАЛ ТА ФІНАНСОВИЙ РЕЗУЛЬТАТ
A70: Внесений капітал | D70: 1400 | E70: 177087 | F70: 371078
A71: Капітал у дооцінках | D71: 1410 | E71: 0 | F71: 0
A72: Фінансовий результат | D72: 1420 | E72: 62147 | F72: -156031
A73: Капітал у підприємствах | D73: 1430 | E73: 0 | F73: 0
A74: Резерви | D74: 1440 | E74: 0 | F74: 0
A75: Цільове фінансування | D75: 1450 | E75: 0 | F75: 0
A76: Усього за розділом І | D76: 1495 | E76: =SUM(E70:E75) -> 239234 | F76: =SUM(F70:F75) -> 215047
A77: II. ЗОБОВ'ЯЗАННЯ
A78: Довгострокові зобов’язання:
A79: за цінними паперами | D79: 1500 | E79: 0 | F79: 0
A80: за кредитами | D80: 1510 | E80: 0 | F80: 0
A81: інші довгострокові зобов’язання | D81: 1520 | E81: 0 | F81: 0
A82: Поточна заборгованість за довгостроковими зобов’язаннями | D82: 1530 | E82: 0 | F82: 0
A83: Поточні зобов’язання:
A84: за платежами до бюджету | D84: 1540 | E84: 0 | F84: 0
A85: за розрахунками за товари, роботи, послуги | D85: 1545 | E85: 0 | F85: 0
A86: за кредитами | D86: 1550 | E86: 0 | F86: 0
A87: за одержаними авансами | D87: 1555 | E87: 0 | F87: 0
A88: за розрахунками з оплати праці | D88: 1560 | E88: 0 | F88: 0
A89: за розрахунками із соціального страхування | D89: 1565 | E89: 0 | F89: 0
A90: за внутрішніми розрахунками | D90: 1570 | E90: 0 | F90: 0
A91: інші поточні зобов’язання, з них: | D91: 1575 | E91: 0 | F91: 0
A92: за цінними паперами | D92: 1585 | E92: 0 | F92: 0
A93: Усього за розділом ІІ | D93: 1595 | E93: =SUM(E84:E91)+SUM(E79:E81)+E82 -> 0 | F93: =SUM(F84:F91)+SUM(F79:F81)+F82 -> 0
A94: ІІІ. ЗАБЕЗПЕЧЕННЯ | D94: 1600 | E94: 0 | F94: 0
A95: ІV. ДОХОДИ МАЙБУТНІХ ПЕРІОДІВ | D95: 1700 | E95: 0 | F95: 0
A96: БАЛАНС | D96: 1800 | E96: =E95+E94+E93+E76 -> 239234 | F96: =F95+F94+F93+F76 -> 215047
A99: Керівник (посадова особа) | D99: =ЗАПОЛНИТЬ!F26 -> Т.П. Петрук
B100: (підпис) | D100: (ініціали та прізвище)
A101: Головний бухгалтер (спеціаліст,
A102: на якого покладено виконання
A103: обов’язків бухгалтерської служби) | D103: =ЗАПОЛНИТЬ!F28 -> В.В. Петрук
B104: (підпис) | D104: (ініціали та прізвище)

Sheet 2дс
G1: Додаток 2 до Національного положення (стандарту) бухгалтерського обліку в державному секторі 101 «Подання фінансової звітності»
I2: КОДИ
C3: Дата (2018, 01, 12) | K3: 01
A4: Установа/бюджет | B4: =ЗАПОЛНИТЬ!B3 -> Рафалівський НВК "ЗОШ Іст.-ДНЗ" | G4: за ЄДРПОУ | I4: =ЗАПОЛНИТЬ!B13 -> 25894582
A5: Територія | B5: =ЗАПОЛНИТЬ!B5 -> смт. Рафалівка | G5: за КОАТУУ | I5: =ЗАПОЛНИТЬ!B14 -> 5620855400
A6: Організаційно-правова форма господарювання | B6: =ЗАПОЛНИТЬ!D15 -> Комунальна організація (установа, заклад) | G6: за КОПФГ | I6: =ЗАПОЛНИТЬ!B15 -> 430
A7: Орган державного управління | G7: за КОДУ
A8: Вид економічної діяльності | G8: за КВЕД
A9: Одиниця виміру: грн.
A10: Періодичність: квартальна, річна
A11: ЗВІТ ПРО ФІНАНСОВІ РЕЗУЛЬТАТИ
A12: =CONCATENATE("за ",ЗАПОЛНИТЬ!$B$17," ",LEFT(ЗАПОЛНИТЬ!$C$17,5),"рік") -> за 2017 рік
A13: І. ФІНАНСОВИЙ РЕЗУЛЬТАТ ДІЯЛЬНОСТІ
J14: Форма № 2-дс
A15: Стаття | C15: Код рядка | D15: За звітний період | H15: За аналогічний період попереднього року
A16: 1 | C16: 2 | D16: 3 | H16: 4
A17: ДОХОДИ
A18: Доходи від обмінних операцій
A19: Бюджетні асигнування | C19: 2010 | D19: =Ф.2.ЗВЕД!G23 -> 2596003.34 | H19: 0
A20: Доходи від надання послуг (виконання робіт) | C20: 2020 | D20: 129859 | H20: 0
A21: Доходи від продажу активів | C21: 2030 | D21: =Ф.4.1.ЗВЕД!J27 -> 0 | H21: 0
A22: Фінансові доходи | C22: 2040 | D22: 0 | H22: 0
A23: Інші доходи від обмінних операцій | C23: 2050 | D23: 0 | H23: 0
A24: Усього доходів від обмінних операцій | C24: 2080 | D24: =SUM(D19:G23) -> 2725862.34 | H24: =SUM(H19:K23) -> 0
A25: Доходи від необмінних операцій
A26: Податкові надходження | C26: 2090 | D26: 0 | H26: 0
A27: Неподаткові надходження | C27: 2100 | D27: 0 | H27: 0
A28: Трансферти | C28: 2110 | D28: 0 | H28: 0
A29: Надходження до державних цільових фондів | C29: 2120 | D29: 0 | H29: 0
A30: Інші доходи від необмінних операцій | C30: 2130 | D30: 0 | H30: 0
A31: Усього доходів від необмінних операцій | C31: 2170 | D31: =SUM(D26:G30) -> 0 | H31: =SUM(H26:K30) -> 0
A32: Усього доходів | C32: 2200 | D32: =D31+D24 -> 2725862.34 | H32: =H31+H24 -> 0
A33: ВИТРАТИ
A34: Витрати за обмінними операціями
A35: Витрати на виконання бюджетних програм | C35: 2210 | D35: =2570521+40396+267-1064+798 -> 2610918 | H35: 0
A36: Витрати на виготовлення продукції (надання послуг, виконання робіт) | C36: 2220 | D36: 117470 | H36: 0
A37: Витрати з продажу активів | C37: 2230 | D37: 0 | H37: 0
A38: Фінансові витрати | C38: 2240 | D38: 0 | H38: 0
A39: Інші витрати за обмінними операціями | C39: 2250 | D39: 2742 | H39: 0
A40: Усього витрат за обмінними операціями | C40: 2290 | D40: =SUM(D35:G39) -> 2731130 | H40: =SUM(H35:K39) -> 0
A41: Витрати за необмінними операціями
A42: Трансферти | C42: 2300 | D42: 0 | H42: 0
A43: Інші витрати за необмінними операціями | C43: 2310 | D43: 0 | H43: 0
A44: Усього витрати за необмінними операціями | C44: 2340 | D44: =SUM(D42:G43) -> 0 | H44: =SUM(H42:K43) -> 0
A45: Усього витрат | C45: 2380 | D45: =D44+D40 -> 2731130 | H45: =H44+H40 -> 0
A46: Профіцит/дефіцит за звітний період | C46: 2390 | D46: =D32-D45 -> -5267.66 | H46: =H32-H45 -> 0
A49: ІІ. ВИДАТКИ БЮДЖЕТУ (КОШТОРИСУ) ЗА ФУНКЦІОНАЛЬНОЮ КЛАСИФІКАЦІЄЮ ВИДАТКІВ ТА КРЕДИТУВАННЯ БЮДЖЕТУ
A51: Найменування показника | C51: Код рядка | D51: За звітний період | H51: За аналогічний період попереднього року
A52: 1 | C52: 2 | D52: 3 | H52: 4
A53: Загальнодержавні функції | C53: 2420 | D53: 0 | H53: 0
A54: Оборона | C54: 2430 | D54: 0 | H54: 0
A55: Громадський порядок, безпека та судова влада | C55: 2440 | D55: 0 | H55: 0
A56: Економічна діяльність | C56: 2450 | D56: 0 | H56: 0
A57: Охорона навколишнього природного середовища | C57: 2460 | D57: 0 | H57: 0
A58: Житлово-комунальне господарство | C58: 2470 | D58: 0 | H58: 0
A59: Охорона здоров’я | C59: 2480 | D59: 0 | H59: 0
A60: Духовний та фізичний розвиток | C60: 2490 | D60: 0 | H60: 0
A61: Освіта | C61: 2500 | D61: =D45 -> 2731130 | H61: 0
A62: Соціальний захист та соціальне забезпечення | C62: 2510 | D62: 0 | H62: 0
A63: УСЬОГО: | C63: 2520 | D63: =SUM(D53:G62) -> 2731130 | H63: =SUM(H53:K62) -> 0
A64: ІІІ. ВИКОНАННЯ БЮДЖЕТУ (КОШТОРИСУ)
A66: Стаття | C66: Код рядка | D66: Загальний фонд | H66: Спеціальний фонд
D67: план на рік | E67: план на звітний період з урахуванням змін | F67: фактична сума виконання за звітний період | G67: різниця (графа 5 мінус графа 4) | H67: план на рік | I67: план на звітний період з урахуванням змін | J67: фактична сума виконання за звітний період | K67: різниця (графа 9 мінус графа 8)
A68: 1 | C68: 2 | D68: 3 | E68: 4 | F68: 5 | G68: 6 | H68: 7 | I68: 8 | J68: 9 | K68: 10
A69: ДОХОДИ
A70: Податкові надходження | C70: 2530 | D70: 0 | E70: 0 | F70: 0 | G70: =F70-E70 -> 0 | H70: 0 | I70: 0 | J70: 0 | K70: =J70-I70 -> 0
A71: Неподаткові надходження | C71: 2540 | D71: =SUM(D72:D75) -> 0 | E71: =SUM(E72:E75) -> 0 | F71: =SUM(F72:F75) -> 0 | G71: =F71-E71 -> 0 | H71: =SUM(H72:H75) -> 0 | I71: =SUM(I72:I75) -> 0 | J71: =SUM(J72:J75) -> 0 | K71: =J71-I71 -> 0
A72: Доходи від власності та підприємницької діяльності | C72: 2541 | D72: 0 | E72: 0 | F72: 0 | G72: =F72-E72 -> 0 | H72: 0 | I72: 0 | J72: 0 | K72: =J72-I72 -> 0
A73: Адміністративні збори та платежі, доходи від некомерційної господарської діяльності | C73: 2542 | D73: 0 | E73: 0 | F73: 0 | G73: 0 | H73: 0 | I73: 0 | J73: 0 | K73: 0
A74: Інші неподаткові надходження | C74: 2543 | D74: 0 | E74: 0 | F74: 0 | G74: =F74-E74 -> 0 | H74: 0 | I74: 0 | J74: 0 | K74: 0
A75: Власні надходження бюджетних установ | C75: 2544 | D75: 0 | E75: 0 | F75: 0 | G75: 0 | H75: 0 | I75: 0 | J75: 0 | K75: 0
A77: Доходи від операцій з капіталом | C77: 2550 | D77: 0 | E77: 0 | F77: 0 | G77: 0 | H77: 0 | I77: 0 | J77: 0 | K77: 0
A78: Офіційні трансферти, з них: | C78: 2560 | D78: 0 | E78: 0 | F78: 0 | G78: 0 | H78: 0 | I78: 0 | J78: 0 | K78: 0
A79: від органів державного управління | C79: 2561 | D79: 0 | E79: 0 | F79: 0 | G79: 0 | H79: 0 | I79: 0 | J79: 0 | K79: 0
A80: Цільові фонди | C80: 2570 | D80: 0 | E80: 0 | F80: 0 | G80: 0 | H80: 0 | I80: 0 | J80: 0 | K80: 0
A81: Надходження державних цільових фондів | C81: 2580 | D81: =SUM(D82:D86) -> 0 | E81: =SUM(E82:E86) -> 0 | F81: 0 | G81: 0 | H81: 0 | I81: 0 | J81: 0 | K81: 0
A82: Надходження Пенсійного фонду України | C82: 2581 | D82: 0 | E82: 0 | F82: 0 | G82: 0 | H82: 0 | I82: 0 | J82: 0 | K82: 0
A83: Надходження Фонду загальнообов'язкового державного соціального страхування України на випадок безробіття | C83: 2582 | D83: 0 | E83: 0 | F83: 0 | G83: 0 | H83: 0 | I83: 0 | J83: 0 | K83: 0
A84: Надходження Фонду соціального страхування України | C84: 2583 | D84: 0 | E84: 0 | F84: 0 | G84: 0 | H84: 0 | I84: 0 | J84: 0 | K84: 0
A86: Інші надходження | C86: 2590 | D86: 0 | E86: 0 | F86: 0 | G86: 0 | H86: 0 | I86: 0 | J86: 0 | K86: 0
A87: Усього доходів | C87: 2600 | D87: =D81+D78+D77+D71+D70+D76 -> 0 | E87: =E81+E78+E77+E71+E70+E76 -> 0 | F87: =F81+F78+F77+F71+F70+F76 -> 0 | G87: 0 | H87: =H81+H78+H77+H71+H70+H76 -> 0 | I87: =I81+I78+I77+I71+I70+I76 -> 0 | J87: =J81+J78+J77+J71+J70+J76 -> 0 | K87: 0
A88: ВИТРАТИ
A89: Оплата праці і нарахування на заробітну плату | C89: 2610 | D89: 0 | E89: 0 | F89: 0 | G89: =F89-E89 -> 0 | H89: 0 | I89: 0 | J89: 0 | K89: =J89-I89 -> 0
A90: Використання товарів і послуг | C90: 2620 | D90: 0 | E90: 0 | F90: 0 | G90: =F90-E90 -> 0 | H90: 0 | I90: 0 | J90: 0 | K90: =J90-I90 -> 0
A91: Обслуговування боргових зобов’язань | C91: 2630 | D91: 0 | E91: 0 | F91: 0 | G91: 0 | H91: 0 | I91: 0 | J91: 0 | K91: 0
A92: Поточні трансферти, з них: | C92: 2640 | D92: 0 | E92: 0 | F92: 0 | G92: 0 | H92: 0 | I92: 0 | J92: 0 | K92: =J92-I92 -> 0
A93: органам державного управління інших рівнів | C93: 2641 | D93: 0 | E93: 0 | F93: 0 | G93: 0 | H93: 0 | I93: 0 | J93: 0 | K93: 0
A94: Соціальне забезпечення | C94: 2650 | D94: 0 | E94: 0 | F94: 0 | G94: 0 | H94: 0 | I94: 0 | J94: 0 | K94: 0
A95: Інші поточні видатки | C95: 2660 | D95: 0 | E95: 0 | F95: 0 | G95: 0 | H95: 0 | I95: 0 | J95: 0 | K95: 0
A96: Нерозподілені видатки | C96: 2670 | D96: 0 | E96: 0 | F96: 0 | G96: 0 | H96: 0 | I96: 0 | J96: 0 | K96: 0
A97: Придбання основного капіталу | C97: 2680 | D97: 0 | E97: 0 | F97: 0 | G97: 0 | H97: 0 | I97: 0 | J97: 0 | K97: 0
A98: Капітальні трансферти, з них: | C98: 2690 | D98: 0 | E98: 0 | F98: 0 | G98: 0 | H98: 0 | I98: 0 | J98: 0 | K98: 0
A99: органам державного управління інших рівнів | C99: 2691 | D99: 0 | E99: 0 | F99: 0 | G99: 0 | H99: 0 | I99: 0 | J99: 0 | K99: 0
A100: Внутрішнє кредитування | C100: 2700 | D100: 0 | E100: 0 | F100: 0 | G100: 0 | H100: 0 | I100: 0 | J100: 0 | K100: 0
A101: Зовнішнє кредитування | C101: 2710 | D101: 0 | E101: 0 | F101: 0 | G101: 0 | H101: 0 | I101: 0 | J101: 0 | K101: 0
A102: Усього витрат | C102: 2780 | D102: =SUM(D89:D101)-D93-D99 -> 0 | E102: =SUM(E89:E101)-E93-E99 -> 0 | F102: =SUM(F89:F101)-F93-F99 -> 0 | G102: 0 | H102: =SUM(H89:H101)-H93-H99 -> 0 | I102: =H102 -> 0 | J102: =SUM(J89:J101)-J93-J99 -> 0 | K102: 0
A103: Профіцит/дефіцит за звітний період | C103: 2790 | D103: =E87-D102 -> 0 | E103: =F87-E102 -> 0 | F103: =F87-F102 -> 0 | G103: 0 | H103: =I87-H102 -> 0 | I103: =H103 -> 0 | J103: =J87-J102 -> 0 | K103: 0
A105: IV. ЕЛЕМЕНТИ ВИТРАТ ЗА ОБМІННИМИ ОПЕРАЦІЯМИ
A107: Стаття | C107: Код рядка | D107: За звітний період | H107: За аналогічний період попереднього року
A108: 1 | C108: 2 | D108: 3 | H108: 4
A109: Витрати на оплату праці | C109: 2820 | D109: =Ф.2.ЗВЕД!H27 -> 1842396.24 | H109: 0
A110: Відрахування на соціальні заходи | C110: 2830 | D110: =Ф.2.ЗВЕД!H29 -> 423653.52 | H110: 0
A111: Матеріальні витрати | C111: 2840 | D111: =424587+96-40396+40396+267-1064+798 -> 424684 | H111: 0
A112: Амортизація | C112: 2850 | D112: 40396 | H112: 0
A113: Інші витрати | C113: 2860 | D113: 0 | H113: 0
A114: Усього | C114: 2890 | D114: =SUM(D109:G113) -> 2731129.76 | H114: =SUM(H109:K113) -> 0
A116: Керівник (посадова особа) | F116: =ЗАПОЛНИТЬ!F26 -> Т.П. Петрук
B117: (підпис) | F117: (ініціали та прізвище)
A118: Головний бухгалтер (спеціаліст,
A119: на якого покладено виконання
A120: обов’язків бухгалтерської служби) | F120: =ЗАПОЛНИТЬ!F28 -> В.В. Петрук
B121: (підпис) | F121: (ініціали та прізвище)

Sheet 3дс
D1: Додаток 3 до Національного положення (стандарту) бухгалтерського обліку в державному секторі 101 «Подання фінансової звітності»
D5: КОДИ
B6: Дата (2017, 01, 12) | F6: 01
A7: Установа/бюджет | B7: =ЗАПОЛНИТЬ!B3 -> Рафалівський НВК "ЗОШ Іст.-ДНЗ" | C7: за ЄДРПОУ | D7: =ЗАПОЛНИТЬ!B13 -> 25894582
A8: Територія | B8: =ЗАПОЛНИТЬ!B5 -> смт. Рафалівка | C8: за КОАТУУ | D8: =ЗАПОЛНИТЬ!B14 -> 5620855400
A9: Організаційно-правова форма господарювання | B9: =ЗАПОЛНИТЬ!D15 -> Комунальна організація (установа, заклад) | C9: за КОПФГ | D9: =ЗАПОЛНИТЬ!B15 -> 430
A10: Орган державного управління | C10: за КОДУ
A11: Вид економічної діяльності | C11: за КВЕД
A12: Одиниця виміру: грн.
A13: Періодичність: річна
A14: ЗВІТ ПРО РУХ ГРОШОВИХ КОШТІВ
A15: =CONCATENATE("за",ЗАПОЛНИТЬ!$B$17," ",LEFT(ЗАПОЛНИТЬ!$C$17,5),"рік") -> за 2017 рік
E16: Форма № 3-дс
A17: Стаття | C17: Код рядка | D17: За звітний період | F17: За аналогічний період попереднього року
A18: 1 | C18: 2 | D18: 3 | F18: 4
A19: I. Рух коштів у результаті операційної діяльності
A20: Надходження від обмінних операцій:
A21: бюджетні асигнування | C21: 3000 | D21: =SUM('2дс'!D19:G19) -> 2596003.34 | F21: 0
A22: надходження від надання послуг (виконання робіт) | C22: 3005 | D22: =Ф.4.1.ЗВЕД!J23 -> 130661.93 | F22: 0
A23: надходження від продажу активів | C23: 3010 | D23: =SUM('2дс'!D21:G21) -> 0 | F23: 0
A24: інші надходження від обмінних операцій | C24: 3015 | D24: =SUM('2дс'!D23:G23) -> 0 | F24: 0
A25: Надходження від необмінних операцій:
A26: податкові надходження | C26: 3020 | D26: =SUM('2дс'!D26:G26) -> 0 | F26: 0
A27: неподаткові надходження | C27: 3025 | D27: =SUM('2дс'!D27:G27) -> 0 | F27: 0
A28: трансферти, з них: | C28: 3030 | D28: =SUM('2дс'!D28:G28) -> 0 | F28: 0
A29: кошти трансфертів, отримані від органів державного управління | C29: 3031 | D29: 0 | F29: 0
A30: надходження до державних цільових фондів | C30: 3040 | D30: =SUM('2дс'!D29:G29) -> 0 | F30: 0
A31: інші надходження від необмінних операцій | C31: 3045 | D31: =SUM('2дс'!D30:G30) -> 0 | F31: 0
A32: Інші надходження | C32: 3090 | D32: 0 | F32: 0
A33: Усього надходженнь від операційної діяльності | C33: 3095 | D33: =SUM(D32)+SUM(D30:E31)+SUM(D28)+SUM(D26:E27)+SUM(D21:E24) -> 2726665.27 | F33: 0
A34: Витрати за обмінними операціями:
A35: витрати на виконання бюджетних програм | C35: 3100 | D35: =Ф.2.ЗВЕД!H23+Ф.4.1.ЗВЕД!K29-129096-2743 -> 2575908.95 | F35: 0
A36: витрати на виготовлення продукції (надання послуг, виконання робіт) | C36: 3110 | D36: ='2дс'!D36:G36+11626 -> 129096 | F36: 0
A37: витрати з продажу активів | C37: 3115 | D37: ='2дс'!D37:G37 -> 0 | F37: 0
A38: інші витрати за обмінними операціями | C38: 3120 | D38: ='2дс'!D39:G39 -> 2742 | F38: 0
A39: Витрати за необмінними операціями:
A40: трансферти, з них: | C40: 3125 | D40: ='2дс'!D42:G42 -> 0 | F40: 0
A41: кошти трансфертів органам державного управління інших рівнів | C41: 3126 | D41: 0 | F41: 0
A42: інші витрати за необмінними операціями | C42: 3130 | D42: ='2дс'!D43:G43 -> 0 | F42: 0
A43: Інші витрати | C43: 3180 | D43: 0 | F43: 0
A44: Усього витрат від операційної діяльності | C44: 3190 | D44: =D43+D42+D40+SUM(D35:E38) -> 2707746.95 | F44: 0
A45: Чистий рух коштів від операційної діяльності | C45: 3195 | D45: =D33-D44 -> 18918.32 | F45: 0
A46: II. Рух коштів у результаті інвестиційної діяльності
A47: Надходження від продажу:
A48: фінансових інвестицій | C48: 3200 | D48: 0 | F48: 0
A49: основних засобів | C49: 3205 | D49: 0 | F49: 0
A50: інвестиційної нерухомості | C50: 3210 | D50: 0 | F50: 0
A51: нематеріальних активів | C51: 3215 | D51: 0 | F51: 0
A52: незавершених капітальних інвестицій | C52: 3220 | D52: 0 | F52: 0
A53: довгострокових біологічних активів | C53: 3225 | D53: 0 | F53: 0
A54: Надходження цільового фінансування | C54: 3230 | D54: 0 | F54: 0
A55: Інші надходження | C55: 3235 | D55: 0 | F55: 0
A56: Усього надходжень від інвестиційної діяльності | C56: 3240 | D56: =SUM(D48:E55) -> 0 | F56: 0
A57: Витрати на придбання:
A58: фінансових інвестицій | C58: 3245 | D58: 0 | F58: 0
A59: основних засобів | C59: 3250 | D59: 0 | F59: 0
A60: інвестиційної нерухомості | C60: 3255 | D60: 0 | F60: 0
A61: нематеріальних активів | C61: 3260 | D61: 0 | F61: 0
A62: незавершених капітальних інвестицій | C62: 3265 | D62: 0 | F62: 0
A63: довгострокових біологічних активів | C63: 3270 | D63: 0 | F63: 0
A64: Інші витрати | C64: 3285 | D64: 0 | F64: 0
A65: Усього витрат від інвестиційної діяльності | C65: 3290 | D65: =SUM(D58:E64) -> 0 | F65: 0
A66: Чистий рух коштів від інвестиційної діяльності | C66: 3295 | D66: =D56-D65 -> 0 | F66: 0
A67: III. Рух коштів у результаті фінансової діяльності
A68: Надходження від:
A69: повернення кредитів | C69: 3300 | D69: 0 | F69: 0
A70: отримання позик | C70: 3305 | D70: 0 | F70: 0
A71: отримання відсотків (роялті) | C71: 3310 | D71: 0 | F71: 0
A72: Інші надходження | C72: 3340 | D72: 0 | F72: 0
A73: Усього надходжень від фінансової діяльності | C73: 3345 | D73: =SUM(D69:E72) -> 0 | F73: 0
A74: Витрати на:
A75: надання кредитів | C75: 3350 | D75: 0 | F75: 0
A76: погашення позик | C76: 3355 | D76: 0 | F76: 0
A77: сплату відсотків | C77: 3360 | D77: 0 | F77: 0
A78: Інші витрати | C78: 3380 | D78: 0 | F78: 0
A79: Коригування | C79: 3385 | D79: 0 | F79: 0
A80: Усього витрат від фінансової діяльності | C80: 3390 | D80: =SUM(D75:E79) -> 0 | F80: 0
A81: Чистий рух коштів від фінансової діяльності | C81: 3395 | D81: =D73-D80 -> 0 | F81: 0
A82: Чистий рух коштів за звітний період | C82: 3400 | D82: =D81+D66+D45 -> 18918.32 | F82: =F81+F66+F45 -> 0
A83: Залишок коштів на початок року | C83: 3405 | D83: 90 | F83: 0
A84: Залишок коштів отриманий | C84: 3410 | D84: 0 | F84: 0
A85: Залишок коштів перерахований | C85: 3415 | D85: 0 | F85: 0
A86: Вплив зміни валютних курсів на залишок коштів | C86: 3420 | D86: 0 | F86: 0
A87: Залишок коштів на кінець року | C87: 3425 | D87: =D82+D83+D84+D85+D86 -> 19008.32 | F87: 0
A89: * Надходження в натуральній формі
A90: * Витрати в натуральній формі
A91: Керівник (посадова особа) | E91: =ЗАПОЛНИТЬ!F26 -> Т.П. Петрук
B92: (підпис) | E92: (ініціали та прізвище)
A93: Головний бухгалтер (спеціаліст, на якого покладено виконання обов’язків бухгалтерської служби) | E93: =ЗАПОЛНИТЬ!F28 -> В.В. Петрук
B94: (підпис) | E94: (ініціали та прізвище)

Sheet 4дс
G1: Додаток 4 до Національного положення (стандарту) бухгалтерського обліку в державному секторі 101 «Подання фінансової звітності»
H4: КОДИ
G5: Дата (2018, 01, 12) | J5: 01
A6: Установа/бюджет | B6: =ЗАПОЛНИТЬ!B3 -> Рафалівський НВК "ЗОШ Іст.-ДНЗ" | G6: за ЄДРПОУ | H6: =ЗАПОЛНИТЬ!B13 -> 25894582
A7: Територія | B7: =ЗАПОЛНИТЬ!B5 -> смт. Рафалівка | G7: за КОАТУУ | H7: =ЗАПОЛНИТЬ!B14 -> 5620855400
A8: Організаційно-правова форма господарювання | B8: =ЗАПОЛНИТЬ!D15 -> Комунальна організація (установа, заклад) | G8: за КОПФГ | H8: =ЗАПОЛНИТЬ!B15 -> 430
A9: Орган державного управління | G9: за КОДУ
A10: Вид економічної діяльності | G10: за КВЕД
A11: Одиниця виміру: грн.
A12: Періодичність: річна
A13: ЗВІТ ПРО ВЛАСНИЙ КАПІТАЛ
A14: =CONCATENATE("за",ЗАПОЛНИТЬ!$B$17," ",LEFT(ЗАПОЛНИТЬ!$C$17,5),"рік") -> за 2017 рік
I15: Форма N 4-дс
A16: Стаття | C16: Код рядка | D16: Внесений капітал | E16: Капітал у дооцінках | F16: Фінансовий результат | G16: Капітал у підприємствах | H16: Резерви | I16: Цільове фінансування | J16: Разом
A17: 1 | C17: 2 | D17: 3 | E17: 4 | F17: 5 | G17: 6 | H17: 7 | I17: 8 | J17: 9
A18: Залишок на початок року | C18: 4000 | D18: ='1дс_баланс'!E70 -> 177087 | E18: ='1дс_баланс'!E71 -> 0 | F18: ='1дс_баланс'!E72 -> 62147 | G18: ='1дс_баланс'!E73 -> 0 | H18: ='1дс_баланс'!E74 -> 0 | I18: ='1дс_баланс'!E75 -> 0 | J18: =SUM(D18:I18) -> 239234
A19: Коригування:
A20: Зміна облікової політики | C20: 4010 | D20: 0 | E20: 0 | F20: 0 | G20: 0 | H20: 0 | I20: 0 | J20: =SUM(D20:I20) -> 0
A21: Виправлення помилок | C21: 4020 | D21: 0 | E21: 0 | F21: 0 | G21: 0 | H21: 0 | I21: 0 | J21: 0
A22: Інші зміни | C22: 4030 | D22: =-18854+213177+200 -> 194523 | E22: 0 | F22: =-212911+1 -> -212910 | G22: 0 | H22: 0 | I22: 0 | J22: -18387
A23: Скоригований залишок на початок року | C23: 4090 | D23: =D22+D21+D20+D18 -> 371610 | E23: =E22+E21+E20+E18 -> 0 | F23: =F22+F21+F20+F18 -> -150763 | G23: 0 | H23: 0 | I23: 0 | J23: 220847
A24: Переоцінка активів:
A25: Дооцінка (уцінка) основних засобів | C25: 4100 | E25: 0 | G25: 0 | H25: 0 | I25: 0 | J25: 0
A26: Дооцінка (уцінка) незавершених капітальних інвестицій | C26: 4110 | D26: 0 | E26: 0 | F26: 0 | G26: 0 | H26: 0 | I26: 0 | J26: 0
A27: Дооцінка (уцінка) нематеріальних активів | C27: 4120 | D27: 0 | E27: 0 | F27: 0 | G27: 0 | H27: 0 | I27: 0 | J27: 0
A28: Дооцінка (уцінка) довгострокових біологічних активів | C28: 4130 | D28: 0 | E28: 0 | F28: 0 | G28: 0 | H28: 0 | I28: 0 | J28: 0
A29: Профіцит/дефіцит за звітний період | C29: 4200 | D29: 0 | E29: 0 | F29: -5268 | G29: 0 | H29: 0 | I29: 0 | J29: -5268
A30: Збільшення капіталу в підприємствах | C30: 4210 | D30: 0 | E30: 0 | F30: 0 | G30: 0 | H30: 0 | I30: 0 | J30: 0
A31: Зменшення капіталу в підприємствах | C31: 4220 | D31: 0 | E31: 0 | F31: 0 | G31: 0 | H31: 0 | I31: 0 | J31: 0
A32: Інші зміни в капіталі | C32: 4290 | D32: -532 | E32: 0 | F32: 0 | G32: 0 | H32: 0 | I32: 0 | J32: -532
A33: Разом змін в капіталі | C33: 4300 | D33: =SUM(D25:D32) -> -532 | E33: =SUM(E25:E32) -> 0 | F33: -5268 | G33: 0 | H33: 0 | I33: 0 | J33: -5800
A34: Залишок на кінець року | C34: 4310 | D34: =D23+D33 -> 371078 | E34: =E23+E33 -> 0 | F34: =F23+F33 -> -156031 | G34: 0 | H34: 0 | I34: 0 | J34: 215047
A36: Керівник (посадова особа) | H36: =ЗАПОЛНИТЬ!F26 -> Т.П. Петрук
E37: (підпис) | H37: (ініціали та прізвище)
A39: Головний бухгалтер (спеціаліст, на якого покладено виконання обов’язків бухгалтерської служби) | H39: =ЗАПОЛНИТЬ!F28 -> В.В. Петрук
E40: (підпис) | H40: (ініціали та прізвище)

Sheet 5дс_I_III
M1: Додаток 5 до Національного положення (стандарту) бухгалтерського обліку в державному секторі 101 «Подання фінансової звітності»
P4: КОДИ
O5: Дата (2018, 01, 12) | R5: 01
A6: Суб’єкт бухгалтерського обліку в державному секторі/бюджет | B6: =ЗАПОЛНИТЬ!B3 -> Рафалівський НВК "ЗОШ Іст.-ДНЗ" | N6: за ЄДРПОУ | P6: =ЗАПОЛНИТЬ!B13 -> 25894582
A7: Територія | B7: =ЗАПОЛНИТЬ!B5 -> смт. Рафалівка | N7: за КОАТУУ | P7: =ЗАПОЛНИТЬ!B14 -> 5620855400
A8: Організаційно-правова форма господарювання | B8: =ЗАПОЛНИТЬ!D15 -> Комунальна організація (установа, заклад) | N8: за КОПФГ | P8: =ЗАПОЛНИТЬ!B15 -> 430
A9: Орган державного управління | N9: за КОДУ
A10: Вид економічної діяльності | N10: за КВЕД
A11: Одиниця виміру: грн.
A12: Періодичність: річна
A13: ПРИМІТКИ ДО РІЧНОЇ ФІНАНСОВОЇ ЗВІТНОСТІ
A14: =CONCATENATE("за",ЗАПОЛНИТЬ!$B$17," ",LEFT(ЗАПОЛНИТЬ!$C$17,5),"рік") -> за 2017 рік
P15: Форма № 5-дс
A16: І. Основні засоби
A17: Групи основних засобів | B17: Код рядка | C17: Залишок на початок року | E17: Переоцінка (дооцінка +, уцінка -) | G17: Вибуття за звітний рік | I17: Надійшло за рік | K17: Зменшення/відновлення корисності | L17: Нарахована амортизація за звітний рік | M17: Інші зміни за рік | O17: Залишок на кінець року | Q17: Діапазон корисного використання
C18: первісна (переоцінена) вартість | D18: знос | E18: первісної (переоціненої) вартості | F18: зносу | G18: первісна (переоцінена) вартість | H18: накопичена амортизація | I18: первісна (переоцінена) вартість | J18: знос | M18: первісної (переоціненої) вартості | N18: зносу | O18: первісна (переоцінена) вартість | P18: знос | Q18: від | R18: до
A19: 1 | B19: 2 | C19: 3 | D19: 4 | E19: 5 | F19: 6 | G19: 7 | H19: 8 | I19: 9 | J19: 10 | K19: 11 | L19: 12 | M19: 13 | N19: 14 | O19: 15 | P19: 16 | Q19: 17 | R19: 18
A20: Інвестиційна нерухомість | B20: 010 | C20: 0 | D20: 0 | E20: 0 | F20: 0 | G20: 0 | H20: 0 | I20: 0 | J20: 0 | K20: 0 | L20: 0 | M20: 0 | N20: 0 | O20: =C20+E20-G20+I20+K20+M20 -> 0 | P20: =D20+F20-H20+J20+L20+N20 -> 0 | Q20: 0 | R20: 0
A21: Земельні ділянки | B21: 020 | C21: 0 | D21: 0 | E21: 0 | F21: 0 | G21: 0 | H21: 0 | I21: 0 | J21: 0 | K21: 0 | L21: 0 | M21: 0 | N21: 0 | O21: =C21+E21-G21+I21+K21+M21 -> 0 | P21: =D21+F21-H21+J21+L21+N21 -> 0 | Q21: 0 | R21: 0
A22: Капітальні витрати на поліпшення земель | B22: 030 | C22: 0 | D22: 0 | E22: 0 | F22: 0 | G22: 0 | H22: 0 | I22: 0 | J22: 0 | K22: 0 | L22: 0 | M22: 0 | N22: 0 | O22: 0 | P22: 0 | Q22: 0 | R22: 0
A23: Будівлі, споруди та передавальні пристрої | B23: 040 | C23: 13483 | D23: 7271 | E23: 0 | F23: 0 | G23: 0 | H23: 0 | I23: 0 | J23: 0 | K23: 0 | L23: 731 | M23: 0 | N23: 0 | O23: =C23+E23-G23+I23+K23+M23 -> 13483 | P23: =D23+F23-H23+J23+L23+N23 -> 8002 | Q23: 10 | R23: 20
A24: Машини та обладнання | B24: 050 | C24: 157886 | D24: =100023+122-200 -> 99945 | E24: 0 | F24: 0 | G24: 0 | H24: 0 | I24: 0 | J24: 0 | K24: 0 | L24: =38334 -> 38334 | M24: 0 | N24: 0 | O24: 157886 | P24: 138279 | Q24: 2 | R24: 10
A25: Транспортні засоби | B25: 060 | C25: 0 | D25: 0 | E25: 0 | F25: 0 | G25: 0 | H25: 0 | I25: 0 | J25: 0 | K25: 0 | L25: 0 | M25: 0 | N25: 0 | O25: 0 | P25: 0 | Q25: 0 | R25: 0
A26: Інструменти, прилади, інвентар | B26: 070 | C26: 21106 | D26: 16393 | E26: 0 | F26: 0 | G26: 0 | H26: 0 | I26: 0 | J26: 0 | K26: 0 | L26: 1331 | M26: 0 | N26: 0 | O26: 21106 | P26: 17724 | Q26: 10 | R26: 10
A27: Тварини та багаторічні насадження | B27: 080 | C27: 0 | D27: 0 | E27: 0 | F27: 0 | G27: 0 | H27: 0 | I27: 0 | J27: 0 | K27: 0 | L27: 0 | M27: 0 | N27: 0 | O27: 0 | P27: 0 | Q27: 0 | R27: 0
A28: Інші основні засоби | B28: 090 | C28: 0 | D28: 0 | E28: 0 | F28: 0 | G28: 0 | H28: 0 | I28: 0 | J28: 0 | K28: 0 | L28: 0 | M28: 0 | N28: 0 | O28: 0 | P28: 0 | Q28: 0 | R28: 0
A29: Музейні фонди | B29: 100 | C29: 0 | D29: 0 | E29: 0 | F29: 0 | G29: 0 | H29: 0 | I29: 0 | J29: 0 | K29: 0 | L29: 0 | M29: 0 | N29: 0 | O29: 0 | P29: 0 | Q29: 0 | R29: 0
A30: Бібліотечні фонди | B30: 110 | C30: 0 | D30: 0 | E30: 0 | F30: 0 | G30: 0 | H30: 0 | I30: 0 | J30: 0 | K30: 0 | L30: 0 | M30: 0 | N30: 0 | O30: 0 | P30: 0 | Q30: 0 | R30: 0
A31: Малоцінні необоротні матеріальні активи | B31: 120 | C31: 0 | D31: 0 | E31: 0 | F31: 0 | G31: 0 | H31: 0 | I31: 0 | J31: 0 | K31: 0 | L31: 0 | M31: 0 | N31: 0 | O31: 0 | P31: 0 | Q31: 0 | R31: 0
A32: Білизна, постільні речі, одяг та взуття | B32: 130 | C32: 0 | D32: 0 | E32: 0 | F32: 0 | G32: 0 | H32: 0 | I32: 0 | J32: 0 | K32: 0 | L32: 0 | M32: 0 | N32: 0 | O32: 0 | P32: 0 | Q32: 0 | R32: 0
A33: Інвентарна тара | B33: 140 | C33: 0 | D33: 0 | E33: 0 | F33: 0 | G33: 0 | H33: 0 | I33: 0 | J33: 0 | K33: 0 | L33: 0 | M33: 0 | N33: 0 | O33: 0 | P33: 0 | Q33: 0 | R33: 0
A34: Необоротні матеріальні активи спеціального призначення | B34: 150 | C34: 0 | D34: 0 | E34: 0 | F34: 0 | G34: 0 | H34: 0 | I34: 0 | J34: 0 | K34: 0 | L34: 0 | M34: 0 | N34: 0 | O34: 0 | P34: 0 | Q34: 0 | R34: 0
A35: Природні ресурси | B35: 160 | C35: 0 | D35: 0 | E35: 0 | F35: 0 | G35: 0 | H35: 0 | I35: 0 | J35: 0 | K35: 0 | L35: 0 | M35: 0 | N35: 0 | O35: 0 | P35: 0 | Q35: 0 | R35: 0
A36: Інші необоротні матеріальні активи | B36: 170 | C36: 197789 | D36: 89568 | E36: 0 | F36: 0 | G36: =400+132 -> 532 | H36: =200+66 -> 266 | I36: 0 | J36: 0 | K36: 0 | L36: 0 | M36: -18654 | N36: 0 | O36: =C36+E36-G36+I36+K36+M36 -> 178603 | P36: =D36+F36-H36+J36+L36+N36 -> 89302 | Q36: 0 | R36: 0
A37: Разом | B37: 180 | C37: =SUM(C20:C36) -> 390264 | D37: 213177 | E37: 0 | F37: 0 | G37: 532 | H37: 266 | I37: 0 | J37: 0 | K37: 0 | L37: 40396 | M37: -18654 | N37: 0 | O37: 371078 | P37: =SUM(P20:P36) -> 253307 | Q37: 2 | R37: 20
A39: З рядка 180 графа 7 | C39: Вартість основних засобів, які вибули внаслідок :
C40: - безоплатної передачі (внутрівідомча передача) | O40: (181) | P40: 0
C41: - продажу | O41: (182) | P41: 0
C42: - крадіжки, нестачі | O42: (183) | P42: 0
C43: - списання, як непридатні | O43: (184) | P43: 532
A45: З рядка 180 графа 9 | C45: збільшення вартості основних засобів в результаті :
C46: - придбання | O46: (185) | P46: 0
C47: - реконструкції, добудови, дообладнання, | O47: (186) | P47: 0
C48: - безкоштовного отримання за операціями внутрівідомчої передачі | O48: (187) | P48: 0
C49: - отримання благодійних грантів, дарунків | O49: (188) | P49: 0
A51: З рядка 180 графа 15 | C51: вартість основних засобів, щодо яких існують передбачені чинним законодавством обмеження права власності, користування та розпорядження | O51: (189) | P51: 0
C52: залишкова вартість основних засобів, що тимчасово не використовуються (консервація, реконструкція тощо) | O52: (190) | P52: 0
C53: вартість повністю амортизованих основних засобів, які продовжують використовуватись | O53: (191) | P53: 80080
C54: вартість основних засобів, які утримуються для продажу, передачі без оплати | O54: (192) | P54: 0
C55: вартість безоплатно отриманих основних засобів (крім внутрівідомчої передачі) | O55: (193) | P55: 0
A56: З рядка 180 графа 16 | C56: знос основних засобів, щодо яких існують обмеження права власності, користування та розпорядження | O56: (194) | P56: 0
A58: ІІ. Нематеріальні активи
A59: Групи нематеріальні активи | B59: Код рядка | C59: Залишок на початок року | E59: Переоцінка (дооцінка +, уцінка -) | G59: Вибуття за звітний рік | I59: Надійшло за рік | K59: Зменшення/відновлення корисності за рік | L59: Нараховано амортизацію у звітному році | M59: Інші зміни за рік | O59: Залишок на кінець року | Q59: Діапазон корисного використан-ня
C60: первісна (переоцінена) вартість | D60: накопичена амортизація | E60: первісна вартості | F60: накопиченої амортизації | G60: первісна (переоцінена) вартість | H60: накопичена амортизація | I60: первісна (переоцінена) вартість | J60: накопичена амортизація | M60: первісної (переоціненої) вартості | N60: накопиченої амортизації | O60: первісна (переоцінена) вартість | P60: накопиченої амортизації | Q60: від | R60: до
A61: 1 | B61: 2 | C61: 3 | D61: 4 | E61: 5 | F61: 6 | G61: 7 | H61: 8 | I61: 9 | J61: 10 | K61: 11 | L61: 12 | M61: 13 | N61: 14 | O61: 15 | P61: 16 | Q61: 17 | R61: 18
A62: Авторське та суміжні з ним права | B62: 200 | C62: 0 | D62: 0 | E62: 0 | F62: 0 | G62: 0 | H62: 0 | I62: 0 | J62: 0 | K62: 0 | L62: 0 | M62: 0 | N62: 0 | O62: =C62+E62-G62+I62+K62+M62 -> 0 | P62: 0 | Q62: 0 | R62: 0
A63: Права користування природними ресурсами | B63: 210 | C63: 0 | D63: 0 | E63: 0 | F63: 0 | G63: 0 | H63: 0 | I63: 0 | J63: 0 | K63: 0 | L63: 0 | M63: 0 | N63: 0 | O63: 0 | P63: 0 | Q63: 0 | R63: 0
A64: Права на знаки для товарів і послуг | B64: 220 | C64: 0 | D64: 0 | E64: 0 | F64: 0 | G64: 0 | H64: 0 | I64: 0 | J64: 0 | K64: 0 | L64: 0 | M64: 0 | N64: 0 | O64: 0 | P64: 0 | Q64: 0 | R64: 0
A65: Права користування майном | B65: 230 | C65: 0 | D65: 0 | E65: 0 | F65: 0 | G65: 0 | H65: 0 | I65: 0 | J65: 0 | K65: 0 | L65: 0 | M65: 0 | N65: 0 | O65: 0 | P65: 0 | Q65: 0 | R65: 0
A66: Права на об'єкти промислової власності | B66: 240 | C66: 0 | D66: 0 | E66: 0 | F66: 0 | G66: 0 | H66: 0 | I66: 0 | J66: 0 | K66: 0 | L66: 0 | M66: 0 | N66: 0 | O66: 0 | P66: 0 | Q66: 0 | R66: 0
A67: Інші нематеріальні активи | B67: 250 | C67: 0 | D67: 0 | E67: 0 | F67: 0 | G67: 0 | H67: 0 | I67: 0 | J67: 0 | K67: 0 | L67: 0 | M67: 0 | N67: 0 | O67: 0 | P67: 0 | Q67: 0 | R67: 0
A68: Разом | B68: 260 | C68: =SUM(C62:C67) -> 0 | D68: =SUM(D62:D67) -> 0 | E68: 0 | F68: 0 | G68: 0 | H68: 0 | I68: 0 | J68: 0 | K68: 0 | L68: 0 | M68: 0 | N68: 0 | O68: 0 | P68: 0 | Q68: =SUM(Q62:Q67) -> 0 | R68: =SUM(R62:R67) -> 0
A70: З рядка 260 графа 15 | C70: вартість безоплатно отриманих нематеріальних активів | O70: (261) | P70: 0
C71: вартість нематеріальних активів, щодо яких існує обмеження права власності | O71: (262) | P71: 0
C72: вартість оформлених у заставу нематеріальних активів | O72: (263) | P72: 0
C73: вартість нематеріального активу з невизначеним строком корисності використання | O73: (264) | P73: 0
A74: З рядка 260 графа 16 | C74: накопичена амортизація нематеріальних активів, щодо яких існує обмеження права власності | O74: (265) | P74: 0
C75: накопичена амортизація переданих у заставу нематеріальних активів | O75: (266) | P75: 0
A77: III. Капітальні інвестиції
A78: Найменування показника | D78: Код рядка | E78: На початок року | J78: За рік | O78: На кінець року
A79: 1 | D79: 2 | E79: 3 | J79: 4 | O79: 5
A80: Капітальні інвестиції в основні засоби | D80: 300 | E80: 0 | J80: 0 | O80: 0
A81: Капітальні інвестиції в інші необоротні матеріальні активи | D81: 310 | E81: 0 | J81: 0 | O81: 0
A82: Капітальні інвестиції в нематеріальні активи | D82: 320 | E82: 0 | J82: 0 | O82: 0
A83: Капітальні інвестиції в довгострокові біологічні активи | D83: 330 | E83: 0 | J83: 0 | O83: 0
A84: Капітальні інвестиції в необоротні активи спецпризначення | D84: 340 | E84: 0 | J84: 0 | O84: 0
A85: Разом | D85: 350 | E85: =SUM(E80:I84) -> 0 | J85: =SUM(J80:N84) -> 0 | O85: =SUM(O80:R84) -> 0
A87: З рядка 350 графи 5 | B87: Загальна сума витрат на дослідження та розробку, що включена до складу витрат звітного періоду | O87: (351) | P87: 0

Sheet 5дс_IV_V
A1: ІV. Виробничі запаси
A2: Найменування показника | B2: Код рядка | C2: Надходження за рік | D2: Вибуття | F2: Балансова вартість на кінець року | G2: Зміна вартості на дату балансу
D3: всього | E3: з них витрачено на потреби установи | G3: збільшення до чистої вартості реалізації[1] | H3: уцінка
A4: 1 | B4: 2 | C4: 3 | D4: 4 | E4: 5 | F4: 6 | G4: 7 | H4: 8
A5: Продукти харчування | B5: 360 | C5: 100817 | D5: 89191 | E5: 89191 | F5: 11626 | G5: 0 | H5: 0
A6: Медикаменти та перев'язувальні матеріали | B6: 370 | C6: 200 | D6: 0 | E6: 0 | F6: 4434 | G6: 0 | H6: 0
A7: Будівельні матеріали | B7: 380 | C7: 397 | D7: 397 | E7: 397 | F7: 0 | G7: 0 | H7: 0
A8: Пально-мастильні матеріали | B8: 390 | C8: =79640+6256 -> 85896 | D8: 64330 | E8: 0 | F8: 27510 | G8: 0 | H8: 0
A9: Запасні частини | B9: 400 | C9: 0 | D9: 0 | E9: 0 | F9: 0 | G9: 0 | H9: 0
A10: Тара | B10: 410 | C10: 0 | D10: 0 | E10: 0 | F10: 0 | G10: 0 | H10: 0
A11: Сировина і матеріали | B11: 420 | C11: 0 | D11: 0 | E11: 0 | F11: 0 | G11: 0 | H11: 0
A12: Інші виробничі запаси | B12: 430 | C12: 0 | D12: 0 | E12: 0 | F12: 0 | G12: 0 | H12: 0
A13: Готова продукція | B13: 440 | C13: 0 | D13: 0 | E13: 0 | F13: 0 | G13: 0 | H13: 0
A14: Малоцінні та швидкозношувані предмети | B14: 450 | C14: 2516 | D14: 12639 | E14: 0 | F14: 19087 | G14: 0 | H14: 0
A15: Державні матеріальні резерви та запаси | B15: 460 | C15: 0 | D15: 0 | E15: 0 | F15: 0 | G15: 0 | H15: 0
A16: Активи для розподілу, передачі, продажу | B16: 470 | C16: 0 | D16: 0 | E16: 0 | F16: 0 | G16: 0 | H16: 0
A17: Інші нефінансові активи | B17: 480 | C17: 0 | D17: 0 | E17: 0 | F17: 0 | G17: 0 | H17: 0
A18: Незавершене виробництво запасів | B18: 490 | C18: 0 | D18: 0 | E18: 0 | F18: 0 | G18: 0 | H18: 0
A19: Разом | B19: 500 | C19: =SUM(C5:C18) -> 189826 | D19: 166557 | E19: 89588 | F19: 62657 | G19: 0 | H19: 0
A21: З рядка 500 графа 6 Балансова вартість запасів:
A22: оформлених в заставу | C22: (501) | D22: 0
A23: переданих на комісію | C23: (502) | D23: 0
A24: переданих у переробку | C24: (503) | D24: 0
A25: відображених за чистою вартістю реалізації | C25: (504) | D25: 62657
A26: відображених за відновлювальною вартістю | C26: (505) | D26: 0
A27: ______________
A28: [1] Визначається за п. 5 розділу ІІІ Національного положення (стандарту) бухгалтерського обліку в державному секторі 123 «Запаси»
A30: V. Фінансові інвестиції
A31: Найменування показника | B31: Код рядка | C31: За рік | E31: Залишок на кінець року
C32: довгострокові | D32: поточні | E32: довгострокові | F32: поточні
A33: 1 | B33: 2 | C33: 3 | D33: 4 | E33: 5 | F33: 6
A34: Акції | B34: 530 | C34: 0 | D34: 0 | E34: 0 | F34: 0
A35: Цінні папери (крім акцій) | B35: 540 | C35: 0 | D35: 0 | E35: 0 | F35: 0
A36: Капітал підприємств | B36: 550 | C36: 0 | D36: 0 | E36: 0 | F36: 0
A37: Векселі одержані | B37: 560 | C37: 0 | D37: 0 | E37: 0 | F37: 0
A38: Інші фінансові інвестиції | B38: 570 | C38: 0 | D38: 0 | E38: 0 | F38: 0
A39: Разом: | B39: 580 | C39: =SUM(C34:C38) -> 0 | D39: =SUM(D34:D38) -> 0 | E39: =SUM(E34:E38) -> 0 | F39: =SUM(F34:F38) -> 0
A41: З рядка 580 графа 3 | B41: Втрати від зменшення корисності/доходи від відновлення корисності протягом року | G41: (581) | H41: 0
A43: З рядка 1110 графи 4 Балансу | B43: Довгострокові фінансові інвестиції відображені:
B45: за собівартістю | E45: (582) | F45: 0
B46: за амортизованою собівартістю | E46: (583) | F46: 0
A48: перелік підприємств, що належать до сфери управління (584):
A49: Найменування суб’єкта господарювання | E49: ЄДРПОУ | G49: Розмір частки в капіталі таких підприємств (%)
A50: 0 | E50: 0 | G50: 0
A51: 0 | E51: 0 | G51: 0
A53: учасники спільної діяльності наводять таку інформацію (585):
A54: Перелік суб’єктів, з якими укладено договір про спільну діяльність | D54: Сума активів, переданих до спільної діяльності | E54: Сума всіх зобов’язань, взятих для проведення спільної діяльності | F54: Сума доходів і витрат спільної діяльності | G54: Інформація про оператора спільної діяльності
A55: Найменування суб’єкта господарювання | B55: ЄДРПОУ | C55: Строк дії договору
A56: 1 | B56: 2 | C56: 3 | D56: 4 | E56: 5 | F56: 6 | G56: 7
A57: 0 | B57: 0 | C57: 0 | D57: 0 | E57: 0 | F57: 0 | G57: 0
A58: 0 | B58: 0 | C58: 0 | D58: 0 | E58: 0 | F58: 0 | G58: 0
A60: З рядка 1155 графи 4 Балансу | B60: Поточні фінансові інвестиції відображені:
B61: за собівартістю | F61: (586) | G61: 0
B62: за амортизованою собівартістю | F62: (587) | G62: 0
A64: перелік підприємств, що належать до сфери управління (588):
A65: Найменування суб’єкта господарювання | E65: ЄДРПОУ | G65: Розмір частки в капіталі таких підприємств (%)
A66: 0 | E66: 0 | G66: 0
A67: 0 | E67: 0 | G67: 0
A69: учасники спільної діяльності наводять таку інформацію (589):
A70: Перелік суб’єктів, з якими укладено договір про спільну діяльність | D70: Сума активів, переданих до спільної діяльності | E70: Сума всіх зобов’язань, взятих для проведення спільної діяльності | F70: Сума доходів і витрат спільної діяльності | G70: Інформація про оператора спільної діяльності
A71: Найменування суб’єкта господарювання | B71: ЄДРПОУ | C71: Строк дії договору
A72: 1 | B72: 2 | C72: 3 | D72: 4 | E72: 5 | F72: 6 | G72: 7
A73: 0 | B73: 0 | C73: 0 | D73: 0 | E73: 0 | F73: 0 | G73: 0
A74: 0 | B74: 0 | C74: 0 | D74: 0 | E74: 0 | F74: 0 | G74: 0

Sheet 5дс_VI_VII
A1: VI. Зобов’язання
A2: Групи зобов’язань | B2: Код рядка | C2: Усього на початок року | D2: Усього на кінець року | E2: У т. ч. за строками
E3: до 12 місяців | F3: більше 12 місяців
A4: 1 | B4: 2 | C4: 3 | D4: 4 | E4: 5 | F4: 6
A5: Довгострокові | B5: 600 | C5: 0 | D5: 0 | E5: 0 | F5: 0
A6: Поточні | B6: 610 | C6: 0 | D6: 0 | E6: 0 | F6: 0
A7: Доходи майбутніх періодів | B7: 620 | C7: 0 | D7: 0 | E7: 0 | F7: 0
A9: VII. Дебіторська заборгованість
A10: Найменування показника | B10: Код рядка | C10: Всього на кінець року | D10: у т.ч. по строках погашення
D11: до 12 місяців | E11: від 12 до 18 місяців | F11: від 18 до 36 місяців
A12: 1 | B12: 2 | C12: 3 | D12: 4 | E12: 5 | F12: 6
A13: Довгострокова дебіторська заборгованість | B13: 650 | C13: 0 | D13: 0 | E13: 0 | F13: 0
A14: Поточна дебіторська заборгованість | B14: 660 | C14: 15611 | D14: 15611 | E14: 0 | F14: 0
A16: Списано у звітному році безнадійної дебіторської заборгованості | E16: (661) | F16: 0
A17: Прострочена дебіторська заборгованість ______ | E17: (662) | F17: 0
A18: з неї:
A19: матеріали передано до суду, ведеться позовна робота
A20: винесено рішення суду, виконавче провадження
A21: проти дебітора порушено справу про банкрутство:
A22: заборгованість заявлена та визнана
A23: заборгованість заявлена та не визнана
A24: заборгованість не заявлена
A25: стосовно дебітора проведено державну реєстрацію припинення юридичної особи в результаті ліквідації

Sheet 5дс_VIII_X
A1: VIIІ. Доходи та витрати
A2: Найменування показника | B2: Код рядка | C2: За рік
A3: 1 | B3: 2 | C3: 3
A4: Доходи – усього | B4: 760 | C4: =SUM(C7:C15)+SUM(C20:C25) -> 2725862.34
A5: у тому числі:
A6: від обмінних операцій:
A7: бюджетні асигнування | B7: 770 | C7: =SUM('2дс'!D19:G19) -> 2596003.34
A8: надання послуг | B8: 780 | C8: =SUM('2дс'!D20:G20) -> 129859
A9: продаж | B9: 790 | C9: 0
A10: операцій з капіталом | B10: 800 | C10: 0
A11: продаж нерухомого майна | B11: 810 | C11: 0
A12: відсотки | B12: 820 | C12: 0
A13: роялті | B13: 830 | C13: 0
A14: дивіденди | B14: 840 | C14: 0
A15: інші доходи від обмінних операцій | B15: 850 | C15: =SUM(C16:C18) -> 0
A16: у тому числі: курсова різниця | B16: 851 | C16: 0
A17: дооцінка активів в межах суми попередньої уцінки | B17: 852 | C17: 0
A18: відновлення корисності активів | B18: 853 | C18: 0
A19: від необмінних операцій:
A20: податкові надходження | B20: 860 | C20: 0
A21: неподаткові надходження | B21: 870 | C21: 0
A22: трансферти | B22: 880 | C22: 0
A23: гранти та дарунки | B23: 890 | C23: 0
A24: надходження до державних цільових фондів | B24: 900 | C24: 0
A25: списаних зобов'язань, що не підлягають погашенню | B25: 910 | C25: 0
A26: Витрати - всього | B26: 920 | C26: =C28+C33 -> 2730331.76
A27: у тому числі:
A28: інші витрати за обмінними операціями | B28: 930 | C28: 2730331.76
A29: з них: курсова різниця | B29: 931 | C29: 0
A30: витрати, пов’язані з реалізацією активів | B30: 932 | C30: 0
A31: уцінка активів | B31: 933 | C31: 0
A32: втрати від зменшення корисності активів | B32: 934 | C32: 0
A33: інші витрати за необмінними операціями | B33: 940 | C33: =SUM(C34:C35) -> 0
A34: з них: витрати, пов’язані з передачею активів, що передають суб’єкти державного сектору суб’єктам господарювання, фізичним особам та іншим суб’єктам державного сектору для виконання цільових заходів | B34: 941 | C34: 0
A35: неповернення депозитів | B35: 942 | C35: 0
A37: Сума отриманих активів, робіт (послуг) у натуральній формі | B37: (950) | C37: 0
A38: Сума витрат, визнаних у зв'язку з недоотриманням раніше визнаних доходів | B38: (960) | C38: 0
A40: ІХ. Нестачі і втрати грошових коштів і матеріальних цінностей
A41: Найменування показника | B41: Код рядка | C41: Сума
A42: 1 | B42: 2 | C42: 3
A43: Недостачі та крадіжки грошових коштів і матеріальних цінностей на початок звітного року | B43: 970 | C43: 0
A44: Встановлено недостач та крадіжок грошових коштів і матеріальних цінностей протягом звітного року – усього | B44: 980 | C44: 0
A45: з них: віднесено на винних осіб | B45: 981 | C45: 0
A46: Списано недостачі в межах природного убутку | B46: 990 | C46: 0
A47: Списано недостачі, винні особи за якими не встановлені | B47: 1000 | C47: 0
A48: Стягнуто з винних осіб | B48: 1010 | C48: 0
A49: Списано за висновками слідчих органів | B49: 1020 | C49: 0
A50: Недостачі та крадіжки грошових коштів і матеріальних цінностей на кінець звітного року | B50: 1030 | C50: 0
A51: у тому числі: віднесених на винних осіб | B51: 1031 | C51: 0
A52: справи знаходяться в слідчих органах (винні особи не встановлені) | B52: 1032 | C52: 0
A54: Х. Будівельні контракти
A55: Найменування показника | B55: Код рядка | C55: Сума
A56: 1 | B56: 2 | C56: 3
A57: Дохід за будівельними контрактами за звітний рік | B57: 1050 | C57: 0
A58: Загальна сума за незавершеними будівельними контрактами | B58: 1060 | C58: 0
A59: Загальна сума зазнаних витрат і визнаного дефіциту на дату балансу | B59: 1070 | C59: 0
A60: Сума отриманих авансів за будівельними контрактами на дату балансу | B60: 1080 | C60: 0
A61: Вартість виконаних субпідрядних робіт | B61: 1090 | C61: 0
A62: Сума проміжних рахунків, яка несплачена | B62: 1100 | C62: 0
A63: Сума валової заборгованості замовників на дату балансу | B63: 1110 | C63: 0
A64: Сума валової заборгованості замовникам на дату балансу | B64: 1120 | C64: 0

Sheet 5дс_XI
A1: ХІ. Біологічні активи
A2: Групи біологічних активів | B2: Код рядка | C2: Обліковуються за первісною вартістю | L2: Обліковуються за справедливою вартістю
C3: залишок на початок року | E3: надійшло за рік | F3: вибуло за рік | H3: нараховано амортизації за рік | I3: зменшення/відновлення корисності | J3: залишок на кінець року | L3: залишок на початок року | M3: надійшло за рік | N3: зміни вартості за рік | O3: вибуло за рік | P3: залишок на кінець року
C4: Первісна вартість | D4: Накопичена амортизація | F4: первісна вартість | G4: накопичена вартість | J4: первісна вартість | K4: накопичена амортизація
A5: 1 | B5: 2 | C5: 3 | D5: 4 | E5: 5 | F5: 6 | G5: 7 | H5: 8 | I5: 9 | J5: 10 | K5: 11 | L5: 12 | M5: 13 | N5: 14 | O5: 15 | P5: 16
A6: Довгострокові біологічні активи –усього в тому числі: | B6: 1140 | C6: =SUM(C7:C10) -> 0 | D6: =SUM(D7:D10) -> 0 | E6: 0 | F6: 0 | G6: 0 | H6: 0 | I6: 0 | J6: 0 | K6: 0 | L6: 0 | M6: 0 | N6: 0 | O6: 0 | P6: 0
A7: робоча худоба | B7: 1141 | C7: 0 | D7: 0 | E7: 0 | F7: 0 | G7: 0 | H7: 0 | I7: 0 | J7: 0 | K7: 0 | L7: 0 | M7: 0 | N7: 0 | O7: 0 | P7: 0
A8: продуктивна худоба | B8: 1142 | C8: 0 | D8: 0 | E8: 0 | F8: 0 | G8: 0 | H8: 0 | I8: 0 | J8: 0 | K8: 0 | L8: 0 | M8: 0 | N8: 0 | O8: 0 | P8: 0
A9: багаторічні насадження | B9: 1143 | C9: 0 | D9: 0 | E9: 0 | F9: 0 | G9: 0 | H9: 0 | I9: 0 | J9: 0 | K9: 0 | L9: 0 | M9: 0 | N9: 0 | O9: 0 | P9: 0
A10: інші довгострокові біологічні акти | B10: 1144 | C10: 0 | D10: 0 | E10: 0 | F10: 0 | G10: 0 | H10: 0 | I10: 0 | J10: 0 | K10: 0 | L10: 0 | M10: 0 | N10: 0 | O10: 0 | P10: 0
A11: Поточні біологічні активи –усього в тому числі: | B11: 1150 | C11: =SUM(C12:C15) -> 0 | D11: =SUM(D12:D15) -> 0 | E11: 0 | F11: 0 | G11: 0 | H11: 0 | I11: 0 | J11: 0 | K11: 0 | L11: 0 | M11: 0 | N11: 0 | O11: 0 | P11: 0
A12: тварини на вирощуванні та відгодівлі | B12: 1151 | C12: 0 | D12: 0 | E12: 0 | F12: 0 | G12: 0 | H12: 0 | I12: 0 | J12: 0 | K12: 0 | L12: 0 | M12: 0 | N12: 0 | O12: 0 | P12: 0
A13: біологічні активи в стані біологічних перетворень (крім тварин на вирощуванні та відгодівлі) | B13: 1152 | C13: 0 | D13: 0 | E13: 0 | F13: 0 | G13: 0 | H13: 0 | I13: 0 | J13: 0 | K13: 0 | L13: 0 | M13: 0 | N13: 0 | O13: 0 | P13: 0
A14: Інші поточні біологічні активи | B14: 1153 | C14: 0 | D14: 0 | E14: 0 | F14: 0 | G14: 0 | H14: 0 | I14: 0 | J14: 0 | K14: 0 | L14: 0 | M14: 0 | N14: 0 | O14: 0 | P14: 0
A16: Разом | B16: 1190 | C16: =C11+C6 -> 0 | D16: =D11+D6 -> 0 | E16: 0 | F16: 0 | G16: 0 | H16: 0 | I16: 0 | J16: 0 | K16: 0 | L16: 0 | M16: 0 | N16: 0 | O16: 0 | P16: 0
A18: З рядка 1190 графа 10 і графа 16 | B18: балансова вартість біологічних активів, щодо яких існують передбачені
B19: законодавством обмеження права власності | K19: (1191)
B20: балансова вартість біологічних активів, переданих у заставу
B21: як забезпечення зобов’язань | K21: (1192)
A23: З рядка 1190 графа 13 | B23: вартість придбаних біологічних активів | K23: (1193)
B24: вартість безоплатно отриманих біологічних активів | K24: (1194)
A25: З рядка 1190 графа 15 | B25: вартість реалізованих біологічних активів | K25: (1195)
B26: вартість безоплатно переданих біологічних активів | K26: (1196)
A27: Обсяг виробництва сільськогосподарської продукції за звітний період
A28: Найменування показника | B28: Код рядка | C28: одиниця виміру | D28: Кількість | E28: Вартість первісного визнання за одиницю | H28: Вартість первісного визнання всього
A29: 1 | B29: 2 | C29: 3 | D29: 4 | E29: 5 | H29: 6
A30: Продукція та додаткові біологічні активи рослинництва - усього | B30: 1200 | E30: 0 | H30: 0
A31: у тому числі: | E31: 0 | H31: 0
A32: зернові і зернобобові | B32: 1210 | E32: 0 | H32: 0
A33: з них: пшениця | B33: 1211 | E33: 0 | H33: 0
A34: соя | B34: 1212 | E34: 0 | H34: 0
A35: соняшник | B35: 1213 | E35: 0 | H35: 0
A36: ріпак | B36: 1214 | E36: 0 | H36: 0
A37: цукрові буряки (фабричні) | B37: 1215 | E37: 0 | H37: 0
A38: картопля | B38: 1216 | E38: 0 | H38: 0
A39: плоди (зерняткові, кісточкові) | B39: 1217 | E39: 0 | H39: 0
A40: інша продукція рослинництва | B40: 1218 | E40: 0 | H40: 0
A41: додаткові біологічні активи рослинництва | B41: 1219 | E41: 0 | H41: 0
A42: Продукція та додаткові біологічні активи тваринництва - усього | B42: 1220 | E42: 0 | H42: 0
A43: у тому числі: | E43: 0 | H43: 0
A44: приріст живої маси - усього | B44: 1230 | E44: 0 | H44: 0
A45: з нього: великої рогатої худоби | B45: 1231 | E45: 0 | H45: 0
A46: свиней | B46: 1232 | E46: 0 | H46: 0
A47: молоко | B47: 1233 | E47: 0 | H47: 0
A48: вовна | B48: 1234 | E48: 0 | H48: 0
A49: яйця | B49: 1235 | E49: 0 | H49: 0
A50: інша продукція тваринництва | B50: 1236 | E50: 0 | H50: 0
A51: додаткові біологічні активи тваринництва | B51: 1237 | E51: 0 | H51: 0
A52: продукція рибництва | B52: 1238 | E52: 0 | H52: 0
B53: 1239 | E53: 0 | H53: 0
A54: Сільськогосподарська продукція та додаткові біологічні активи - разом | B54: 1240 | E54: 0 | H54: 0

Sheet 5дс_XII
A1: ХІІ. Розшифровка позабалансових рахунків
A2: Назва рахунку позабалансового обліку | B2: Код рядка | C2: Залишок на початок звітного року | D2: Надходження | E2: Вибуття | F2: Залишок на кінець звітного року
A3: 1 | B3: 2 | C3: 3 | D3: 4 | E3: 5 | F3: 6
A4: 01 «Орендовані основні засоби та нематеріальні активи» | B4: 1310 | C4: =SUM(C5:C8) -> 2558813 | D4: =SUM(D5:D8) -> 0 | E4: =SUM(E5:E8) -> 0 | F4: =C4+D4-E4 -> 2558813
A5: 011 «Орендовані основні засоби розпорядників бюджетних коштів» | B5: 1311 | C5: 2558813 | D5: 0 | E5: 0 | F5: =C5+D5-E5 -> 2558813
A6: 012 «Орендовані основні засоби державних цільових фондів» | B6: 1312 | C6: 0 | D6: 0 | E6: 0 | F6: 0
A7: 013 «Орендовані нематеріальні активи розпорядників бюджетних коштів» | B7: 1313 | C7: 0 | D7: 0 | E7: 0 | F7: 0
A8: 014 «Орендовані нематеріальні активи державних цільових фондів» | B8: 1314 | C8: 0 | D8: 0 | E8: 0 | F8: 0
A9: 02 «Активи на відповідальному зберіганні» | B9: 1320 | C9: =SUM(C10:C11) -> 0 | D9: =SUM(D10:D11) -> 0 | E9: =SUM(E10:E11) -> 0 | F9: 0
A10: 021 «Активи на відповідальному зберіганні розпорядників бюджетних коштів» | B10: 1321 | C10: 0 | D10: 0 | E10: 0 | F10: 0
A11: 022 «Активи на відповідальному зберіганні державних цільових фондів» | B11: 1322 | C11: 0 | D11: 0 | E11: 0 | F11: 0
A12: 03 «Бюджетні зобов’язання» | B12: 1330 | C12: =SUM(C13:C14) -> 0 | D12: =SUM(D13:D14) -> 0 | E12: =SUM(E13:E14) -> 0 | F12: 0
A13: 031 «Укладені договори (угоди, контракти) розпорядників бюджетних коштів» | B13: 1331 | C13: 0 | D13: 0 | E13: 0 | F13: 0
A14: 032 «Укладені договори (угоди, контракти) державних цільових фондів» | B14: 1332 | C14: 0 | D14: 0 | E14: 0 | F14: 0
A15: 04 «Непередбачені активи» | B15: 1340 | C15: =SUM(C16:C17) -> 0 | D15: =SUM(D16:D17) -> 0 | E15: =SUM(E16:E17) -> 0 | F15: 0
A16: 041 «Непередбачені активи розпорядників бюджетних коштів» | B16: 1341 | C16: 0 | D16: 0 | E16: 0 | F16: 0
A17: 042 «Непередбачені активи державних цільових фондів» | B17: 1342 | C17: 0 | D17: 0 | E17: 0 | F17: 0
A18: 05 «Непередбачені зобов’язання, гарантії та забезпечення надані» | B18: 1350 | C18: =SUM(C19:C22) -> 0 | D18: =SUM(D19:D22) -> 0 | E18: =SUM(E19:E22) -> 0 | F18: 0
A19: 051 «Гарантії та забезпечення надані розпорядників бюджетних коштів» | B19: 1351 | C19: 0 | D19: 0 | E19: 0 | F19: 0
A20: 052 «Гарантії та забезпечення надані державних цільових фондів» | B20: 1352 | C20: 0 | D20: 0 | E20: 0 | F20: 0
A21: 053 «Непередбачені зобов’язання розпорядників бюджетних коштів» | B21: 1353 | C21: 0 | D21: 0 | E21: 0 | F21: 0
A22: 054 «Непередбачені зобов’язання державних цільових фондів» | B22: 1354 | C22: 0 | D22: 0 | E22: 0 | F22: 0
A23: 06 «Гарантії та забезпечення отримані» | B23: 1360 | C23: =SUM(C24:C25) -> 0 | D23: =SUM(D24:D25) -> 0 | E23: =SUM(E24:E25) -> 0 | F23: 0
A24: 061 «Гарантії та забезпечення отримані розпорядників бюджетних коштів» | B24: 1361 | C24: 0 | D24: 0 | E24: 0 | F24: 0
A25: 062 «Гарантії та забезпечення отримані державних цільових фондів» | B25: 1362 | C25: 0 | D25: 0 | E25: 0 | F25: 0
A26: 07 «Списані активи» | B26: 1370 | C26: =SUM(C27:C30) -> 0 | D26: =SUM(D27:D30) -> 0 | E26: =SUM(E27:E30) -> 0 | F26: 0
A27: 071 «Списана дебіторська заборгованість розпорядників бюджетних коштів» | B27: 1371 | C27: 0 | D27: 0 | E27: 0 | F27: 0
A28: 072 «Списана дебіторська заборгованість державних цільових фондів» | B28: 1372 | C28: 0 | D28: 0 | E28: 0 | F28: 0
A29: 073 «Невідшкодовані нестачі і втрати від псування цінностей розпорядників бюджетних коштів» | B29: 1373 | C29: 0 | D29: 0 | E29: 0 | F29: 0
A30: 074 «Невідшкодовані нестачі і втрати від псування цінностей державних цільових фондів» | B30: 1374 | C30: 0 | D30: 0 | E30: 0 | F30: 0
A31: 08 «Бланки документів суворої звітності» | B31: 1380 | C31: =SUM(C32:C33) -> 0 | D31: =SUM(D32:D33) -> 0 | E31: =SUM(E32:E33) -> 0 | F31: 0
A32: 081 «Бланки документів суворої звітності розпорядників бюджетних коштів» | B32: 1381 | C32: 0 | D32: 0 | E32: 0 | F32: 0
A33: 082 «Бланки документів суворої звітності державних цільових фондів» | B33: 1382 | C33: 0 | D33: 0 | E33: 0 | F33: 0
A34: 09 «Передані (видані) активи відповідно до законодавства» | B34: 1390 | C34: =SUM(C35:C36) -> 0 | D34: =SUM(D35:D36) -> 0 | E34: =SUM(E35:E36) -> 0 | F34: 0
A35: 091 «Передані (видані) активи відповідно до законодавства розпорядників бюджетних коштів» | B35: 1391 | C35: 0 | D35: 0 | E35: 0 | F35: 0
A36: 092 «Передані (видані) активи відповідно до законодавства державних цільових фондів» | B36: 1392 | C36: 0 | D36: 0 | E36: 0 | F36: 0
A37: Разом | B37: 1400 | C37: =C34+C31+C26+C23+C18+C15+C12+C9+C4 -> 2558813 | D37: =D34+D31+D26+D23+D18+D15+D12+D9+D4 -> 0 | E37: =E34+E31+E26+E23+E18+E15+E12+E9+E4 -> 0 | F37: 2558813

Sheet Ф.2.ЗВЕД
G1: Додаток 1 до Порядку складання бюджетної звітності розпорядниками та одержувачами бюджетних коштів, звітності фондами загальнообов’язкового державного соціального і пенсійного страхування (пункт 1 розділу ІІ)
A4: ЗВІТ
A5: =IF(ЗАПОЛНИТЬ!$F$7=1,CONCATENATE(шапки!A2),CONCATENATE(шапки!A2,шапки!C2)) -> про надходження та використання коштів загального фонду (форма №2д, | G5: =IF(ЗАПОЛНИТЬ!$F$7=1,шапки!C2,шапки!D2) -> №2м) | H5: =IF(ЗАПОЛНИТЬ!$F$7=1,шапки!D2,"") -> 
A6: =CONCATENATE("за ",ЗАПОЛНИТЬ!$B$17," ",ЗАПОЛНИТЬ!$C$17) -> за 2017 р.
J7: коди
A9: Установа | B9: =ЗАПОЛНИТЬ!B3 -> Рафалівський НВК "ЗОШ Іст.-ДНЗ" | H9: за ЄДРПОУ | J9: =ЗАПОЛНИТЬ!B13 -> 25894582
A10: Територія | B10: =ЗАПОЛНИТЬ!B5 -> смт. Рафалівка | H10: за КОАТУУ | J10: =ЗАПОЛНИТЬ!B14 -> 5620855400
A11: Організаційно-правова форма господарювання | B11: =ЗАПОЛНИТЬ!D15 -> Комунальна організація (установа, заклад) | H11: за КОПФГ | J11: =ЗАПОЛНИТЬ!B15 -> 430
A12: Код та назва відомчої класифікації видатків та кредитування державного бюджету | D12: =ЗАПОЛНИТЬ!H9 -> 0 | E12: =IF(D12>0,VLOOKUP(D12,'ДовидникКВК(ГОС)'!A:B,2,FALSE),"") -> 
A13: Код та назва програмної класифікації видатків та кредитування державного бюджету
A14: Код та назва типової відомчої класифікації видатків та кредитування місцевих бюджетів | D14: =ЗАПОЛНИТЬ!H10 -> 10 | E14: =ЗАПОЛНИТЬ!I10 -> Орган з питань освіти і науки
A15: Код та назва програмної класифікації видатків та кредитування місцевих бюджетів (код та назва Типової програмної класифікації видатків та кредитування місцевих бюджетів / Тимчасової класифікації видатків та кредитування для бюджетів місцевого самоврядування, які не застосовують програмно-цільового методу)
A16: Періодичність: квартальна, річна
A17: Одиниця виміру: грн, коп.
A19: Показники | B19: КЕКВ та/або ККК | C19: Код рядка | D19: Затверджено на звітний рік | E19: Затверджено на звітний період (рік)1 | F19: Залишок на початок звітного року | G19: Надійшло коштів за звітний період (рік) | H19: Касові за звітний період (рік) | I19: Фактичні за звітний період (рік) | J19: Залишок на кінець звітного періоду (року)
A22: 1 | B22: 2 | C22: 3 | D22: 4 | E22: 5 | F22: 6 | G22: 7 | H22: 8 | I22: 9 | J22: 9
A23: Видатки та надання кредитів - усього | B23: Х | C23: 010 | D23: =SUM(Ф.2.1:Ф.2.50!D23) -> 2611525 | E23: =SUM(Ф.2.1:Ф.2.50!E23) -> 2611525 | F23: =SUM(Ф.2.1:Ф.2.50!F23) -> 0 | G23: =SUM(Ф.2.1:Ф.2.50!G23) -> 2596003.34 | H23: =SUM(Ф.2.1:Ф.2.50!H23) -> 2596003.34 | I23: =SUM(Ф.2.1:Ф.2.50!I23) -> 0 | J23: =SUM(Ф.2.1:Ф.2.50!J23) -> 0
A24: у тому числі: Поточні видатки | B24: 2000 | C24: 020 | D24: =SUM(Ф.2.1:Ф.2.50!D24) -> 2611525 | E24: =SUM(Ф.2.1:Ф.2.50!E24) -> 0 | F24: =SUM(Ф.2.1:Ф.2.50!F24) -> 0 | G24: =SUM(Ф.2.1:Ф.2.50!G24) -> 2596003.34 | H24: =SUM(Ф.2.1:Ф.2.50!H24) -> 2596003.34 | I24: =SUM(Ф.2.1:Ф.2.50!I24) -> 0 | J24: =SUM(Ф.2.1:Ф.2.50!J24) -> 0
A25: Оплата праці і нарахування на заробітну плату | B25: 2100 | C25: 030 | D25: =SUM(Ф.2.1:Ф.2.50!D25) -> 2275260 | E25: =SUM(Ф.2.1:Ф.2.50!E25) -> 0 | F25: =SUM(Ф.2.1:Ф.2.50!F25) -> 0 | G25: =SUM(Ф.2.1:Ф.2.50!G25) -> 2266049.76 | H25: =SUM(Ф.2.1:Ф.2.50!H25) -> 2266049.76 | I25: =SUM(Ф.2.1:Ф.2.50!I25) -> 0 | J25: =SUM(Ф.2.1:Ф.2.50!J25) -> 0
A26: Оплата праці | B26: 2110 | C26: 040 | D26: =SUM(Ф.2.1:Ф.2.50!D26) -> 1846700 | E26: =SUM(Ф.2.1:Ф.2.50!E26) -> 1846700 | F26: =SUM(Ф.2.1:Ф.2.50!F26) -> 0 | G26: =SUM(Ф.2.1:Ф.2.50!G26) -> 1842396.24 | H26: =SUM(Ф.2.1:Ф.2.50!H26) -> 1842396.24 | I26: =SUM(Ф.2.1:Ф.2.50!I26) -> 0 | J26: =SUM(Ф.2.1:Ф.2.50!J26) -> 0
A27: Заробітна плата | B27: 2111 | C27: 050 | D27: =SUM(Ф.2.1:Ф.2.50!D27) -> 1846700 | E27: =SUM(Ф.2.1:Ф.2.50!E27) -> 0 | F27: =SUM(Ф.2.1:Ф.2.50!F27) -> 0 | G27: =SUM(Ф.2.1:Ф.2.50!G27) -> 1842396.24 | H27: =SUM(Ф.2.1:Ф.2.50!H27) -> 1842396.24 | I27: =SUM(Ф.2.1:Ф.2.50!I27) -> 0 | J27: =SUM(Ф.2.1:Ф.2.50!J27) -> 0
A28: Грошове забезпечення військовослужбовців | B28: 2112 | C28: 060 | D28: =SUM(Ф.2.1:Ф.2.50!D28) -> 0 | E28: =SUM(Ф.2.1:Ф.2.50!E28) -> 0 | F28: =SUM(Ф.2.1:Ф.2.50!F28) -> 0 | G28: =SUM(Ф.2.1:Ф.2.50!G28) -> 0 | H28: =SUM(Ф.2.1:Ф.2.50!H28) -> 0 | I28: =SUM(Ф.2.1:Ф.2.50!I28) -> 0 | J28: =SUM(Ф.2.1:Ф.2.50!J28) -> 0
A29: Нарахування на оплату праці | B29: 2120 | C29: 070 | D29: =SUM(Ф.2.1:Ф.2.50!D29) -> 428560 | E29: =SUM(Ф.2.1:Ф.2.50!E29) -> 428560 | F29: =SUM(Ф.2.1:Ф.2.50!F29) -> 0 | G29: =SUM(Ф.2.1:Ф.2.50!G29) -> 423653.52 | H29: =SUM(Ф.2.1:Ф.2.50!H29) -> 423653.52 | I29: =SUM(Ф.2.1:Ф.2.50!I29) -> 0 | J29: =SUM(Ф.2.1:Ф.2.50!J29) -> 0
A30: Використання товарів і послуг | B30: 2200 | C30: 080 | D30: =SUM(Ф.2.1:Ф.2.50!D30) -> 336195 | E30: =SUM(Ф.2.1:Ф.2.50!E30) -> 0 | F30: =SUM(Ф.2.1:Ф.2.50!F30) -> 0 | G30: =SUM(Ф.2.1:Ф.2.50!G30) -> 329953.58 | H30: =SUM(Ф.2.1:Ф.2.50!H30) -> 329953.58 | I30: =SUM(Ф.2.1:Ф.2.50!I30) -> 0 | J30: =SUM(Ф.2.1:Ф.2.50!J30) -> 0
A31: Предмети, матеріали, обладнання та інвентар | B31: 2210 | C31: 090 | D31: =SUM(Ф.2.1:Ф.2.50!D31) -> 4533 | E31: =SUM(Ф.2.1:Ф.2.50!E31) -> 0 | F31: =SUM(Ф.2.1:Ф.2.50!F31) -> 0 | G31: =SUM(Ф.2.1:Ф.2.50!G31) -> 4431.7 | H31: =SUM(Ф.2.1:Ф.2.50!H31) -> 4431.7 | I31: =SUM(Ф.2.1:Ф.2.50!I31) -> 0 | J31: =SUM(Ф.2.1:Ф.2.50!J31) -> 0
A32: Медикаменти та перев’язувальні матеріали | B32: 2220 | C32: 100 | D32: =SUM(Ф.2.1:Ф.2.50!D32) -> 201 | E32: =SUM(Ф.2.1:Ф.2.50!E32) -> 201 | F32: =SUM(Ф.2.1:Ф.2.50!F32) -> 0 | G32: =SUM(Ф.2.1:Ф.2.50!G32) -> 199.57 | H32: =SUM(Ф.2.1:Ф.2.50!H32) -> 199.57 | I32: =SUM(Ф.2.1:Ф.2.50!I32) -> 0 | J32: =SUM(Ф.2.1:Ф.2.50!J32) -> 0
A33: Продукти харчування | B33: 2230 | C33: 110 | D33: =SUM(Ф.2.1:Ф.2.50!D33) -> 187250 | E33: =SUM(Ф.2.1:Ф.2.50!E33) -> 187250 | F33: =SUM(Ф.2.1:Ф.2.50!F33) -> 0 | G33: =SUM(Ф.2.1:Ф.2.50!G33) -> 182769.03 | H33: =SUM(Ф.2.1:Ф.2.50!H33) -> 182769.03 | I33: =SUM(Ф.2.1:Ф.2.50!I33) -> 0 | J33: =SUM(Ф.2.1:Ф.2.50!J33) -> 0
A34: Оплата послуг (крім комунальних) | B34: 2240 | C34: 120 | D34: =SUM(Ф.2.1:Ф.2.50!D34) -> 6170 | E34: =SUM(Ф.2.1:Ф.2.50!E34) -> 0 | F34: =SUM(Ф.2.1:Ф.2.50!F34) -> 0 | G34: =SUM(Ф.2.1:Ф.2.50!G34) -> 6107.92 | H34: =SUM(Ф.2.1:Ф.2.50!H34) -> 6107.92 | I34: =SUM(Ф.2.1:Ф.2.50!I34) -> 0 | J34: =SUM(Ф.2.1:Ф.2.50!J34) -> 0
A35: Видатки на відрядження | B35: 2250 | C35: 130 | D35: =SUM(Ф.2.1:Ф.2.50!D35) -> 3231 | E35: =SUM(Ф.2.1:Ф.2.50!E35) -> 0 | F35: =SUM(Ф.2.1:Ф.2.50!F35) -> 0 | G35: =SUM(Ф.2.1:Ф.2.50!G35) -> 2741.76 | H35: =SUM(Ф.2.1:Ф.2.50!H35) -> 2741.76 | I35: =SUM(Ф.2.1:Ф.2.50!I35) -> 0 | J35: =SUM(Ф.2.1:Ф.2.50!J35) -> 0
A36: Видатки та заходи спеціального призначення | B36: 2260 | C36: 140 | D36: =SUM(Ф.2.1:Ф.2.50!D36) -> 0 | E36: =SUM(Ф.2.1:Ф.2.50!E36) -> 0 | F36: =SUM(Ф.2.1:Ф.2.50!F36) -> 0 | G36: =SUM(Ф.2.1:Ф.2.50!G36) -> 0 | H36: =SUM(Ф.2.1:Ф.2.50!H36) -> 0 | I36: =SUM(Ф.2.1:Ф.2.50!I36) -> 0 | J36: =SUM(Ф.2.1:Ф.2.50!J36) -> 0
A37: Оплата комунальних послуг та енергоносіїв | B37: 2270 | C37: 150 | D37: =SUM(Ф.2.1:Ф.2.50!D37) -> 134500 | E37: =SUM(Ф.2.1:Ф.2.50!E37) -> 134500 | F37: =SUM(Ф.2.1:Ф.2.50!F37) -> 0 | G37: =SUM(Ф.2.1:Ф.2.50!G37) -> 133703.6 | H37: =SUM(Ф.2.1:Ф.2.50!H37) -> 133703.6 | I37: =SUM(Ф.2.1:Ф.2.50!I37) -> 0 | J37: =SUM(Ф.2.1:Ф.2.50!J37) -> 0
A38: Оплата теплопостачання | B38: 2271 | C38: 160 | D38: =SUM(Ф.2.1:Ф.2.50!D38) -> 0 | E38: =SUM(Ф.2.1:Ф.2.50!E38) -> 0 | F38: =SUM(Ф.2.1:Ф.2.50!F38) -> 0 | G38: =SUM(Ф.2.1:Ф.2.50!G38) -> 0 | H38: =SUM(Ф.2.1:Ф.2.50!H38) -> 0 | I38: =SUM(Ф.2.1:Ф.2.50!I38) -> 0 | J38: =SUM(Ф.2.1:Ф.2.50!J38) -> 0
A39: Оплата водопостачання та водовідведення | B39: 2272 | C39: 170 | D39: =SUM(Ф.2.1:Ф.2.50!D39) -> 4400 | E39: =SUM(Ф.2.1:Ф.2.50!E39) -> 0 | F39: =SUM(Ф.2.1:Ф.2.50!F39) -> 0 | G39: =SUM(Ф.2.1:Ф.2.50!G39) -> 4144.91 | H39: =SUM(Ф.2.1:Ф.2.50!H39) -> 4144.91 | I39: =SUM(Ф.2.1:Ф.2.50!I39) -> 0 | J39: =SUM(Ф.2.1:Ф.2.50!J39) -> 0
A40: Оплата електроенергії | B40: 2273 | C40: 180 | D40: =SUM(Ф.2.1:Ф.2.50!D40) -> 50000 | E40: =SUM(Ф.2.1:Ф.2.50!E40) -> 0 | F40: =SUM(Ф.2.1:Ф.2.50!F40) -> 0 | G40: =SUM(Ф.2.1:Ф.2.50!G40) -> 49918.69 | H40: =SUM(Ф.2.1:Ф.2.50!H40) -> 49918.69 | I40: =SUM(Ф.2.1:Ф.2.50!I40) -> 0 | J40: =SUM(Ф.2.1:Ф.2.50!J40) -> 0
A41: Оплата природного газу | B41: 2274 | C41: 190 | D41: =SUM(Ф.2.1:Ф.2.50!D41) -> 0 | E41: =SUM(Ф.2.1:Ф.2.50!E41) -> 0 | F41: =SUM(Ф.2.1:Ф.2.50!F41) -> 0 | G41: =SUM(Ф.2.1:Ф.2.50!G41) -> 0 | H41: =SUM(Ф.2.1:Ф.2.50!H41) -> 0 | I41: =SUM(Ф.2.1:Ф.2.50!I41) -> 0 | J41: =SUM(Ф.2.1:Ф.2.50!J41) -> 0
A42: Оплата інших енергоносіїв | B42: 2275 | C42: 200 | D42: =SUM(Ф.2.1:Ф.2.50!D42) -> 80100 | E42: =SUM(Ф.2.1:Ф.2.50!E42) -> 0 | F42: =SUM(Ф.2.1:Ф.2.50!F42) -> 0 | G42: =SUM(Ф.2.1:Ф.2.50!G42) -> 79640 | H42: =SUM(Ф.2.1:Ф.2.50!H42) -> 79640 | I42: =SUM(Ф.2.1:Ф.2.50!I42) -> 0 | J42: =SUM(Ф.2.1:Ф.2.50!J42) -> 0
A43: Оплата енергосервісу | B43: 2276 | C43: 210 | D43: =SUM(Ф.2.1:Ф.2.50!D43) -> 0 | E43: =SUM(Ф.2.1:Ф.2.50!E43) -> 0 | F43: =SUM(Ф.2.1:Ф.2.50!F43) -> 0 | G43: =SUM(Ф.2.1:Ф.2.50!G43) -> 0 | H43: =SUM(Ф.2.1:Ф.2.50!H43) -> 0 | I43: =SUM(Ф.2.1:Ф.2.50!I43) -> 0 | J43: =SUM(Ф.2.1:Ф.2.50!J43) -> 0
A44: Дослідження і розробки, окремі заходи по реалізації державних (регіональних) програм | B44: 2280 | C44: 220 | D44: =SUM(Ф.2.1:Ф.2.50!D44) -> 310 | E44: =SUM(Ф.2.1:Ф.2.50!E44) -> 0 | F44: =SUM(Ф.2.1:Ф.2.50!F44) -> 0 | G44: =SUM(Ф.2.1:Ф.2.50!G44) -> 0 | H44: =SUM(Ф.2.1:Ф.2.50!H44) -> 0 | I44: =SUM(Ф.2.1:Ф.2.50!I44) -> 0 | J44: =SUM(Ф.2.1:Ф.2.50!J44) -> 0
A45: Дослідження і розробки, окремі заходи розвитку по реалізації державних (регіональних) програм | B45: 2281 | C45: 230 | D45: =SUM(Ф.2.1:Ф.2.50!D45) -> 0 | E45: =SUM(Ф.2.1:Ф.2.50!E45) -> 0 | F45: =SUM(Ф.2.1:Ф.2.50!F45) -> 0 | G45: =SUM(Ф.2.1:Ф.2.50!G45) -> 0 | H45: =SUM(Ф.2.1:Ф.2.50!H45) -> 0 | I45: =SUM(Ф.2.1:Ф.2.50!I45) -> 0 | J45: =SUM(Ф.2.1:Ф.2.50!J45) -> 0
A46: Окремі заходи по реалізації державних (регіональних) програм, не віднесені до заходів розвитку | B46: 2282 | C46: 240 | D46: =SUM(Ф.2.1:Ф.2.50!D46) -> 310 | E46: =SUM(Ф.2.1:Ф.2.50!E46) -> 310 | F46: =SUM(Ф.2.1:Ф.2.50!F46) -> 0 | G46: =SUM(Ф.2.1:Ф.2.50!G46) -> 0 | H46: =SUM(Ф.2.1:Ф.2.50!H46) -> 0 | I46: =SUM(Ф.2.1:Ф.2.50!I46) -> 0 | J46: =SUM(Ф.2.1:Ф.2.50!J46) -> 0
A47: Обслуговування боргових зобов’язань | B47: 2400 | C47: 250 | D47: =SUM(Ф.2.1:Ф.2.50!D47) -> 0 | E47: =SUM(Ф.2.1:Ф.2.50!E47) -> 0 | F47: =SUM(Ф.2.1:Ф.2.50!F47) -> 0 | G47: =SUM(Ф.2.1:Ф.2.50!G47) -> 0 | H47: =SUM(Ф.2.1:Ф.2.50!H47) -> 0 | I47: =SUM(Ф.2.1:Ф.2.50!I47) -> 0 | J47: =SUM(Ф.2.1:Ф.2.50!J47) -> 0
A48: Обслуговування внутрішніх боргових зобов’язань | B48: 2410 | C48: 260 | D48: =SUM(Ф.2.1:Ф.2.50!D48) -> 0 | E48: =SUM(Ф.2.1:Ф.2.50!E48) -> 0 | F48: =SUM(Ф.2.1:Ф.2.50!F48) -> 0 | G48: =SUM(Ф.2.1:Ф.2.50!G48) -> 0 | H48: =SUM(Ф.2.1:Ф.2.50!H48) -> 0 | I48: =SUM(Ф.2.1:Ф.2.50!I48) -> 0 | J48: =SUM(Ф.2.1:Ф.2.50!J48) -> 0
A49: Обслуговування зовнішніх боргових зобов’язань | B49: 2420 | C49: 270 | D49: =SUM(Ф.2.1:Ф.2.50!D49) -> 0 | E49: =SUM(Ф.2.1:Ф.2.50!E49) -> 0 | F49: =SUM(Ф.2.1:Ф.2.50!F49) -> 0 | G49: =SUM(Ф.2.1:Ф.2.50!G49) -> 0 | H49: =SUM(Ф.2.1:Ф.2.50!H49) -> 0 | I49: =SUM(Ф.2.1:Ф.2.50!I49) -> 0 | J49: =SUM(Ф.2.1:Ф.2.50!J49) -> 0
A50: Поточні трансферти | B50: 2600 | C50: 280 | D50: =SUM(Ф.2.1:Ф.2.50!D50) -> 0 | E50: =SUM(Ф.2.1:Ф.2.50!E50) -> 0 | F50: =SUM(Ф.2.1:Ф.2.50!F50) -> 0 | G50: =SUM(Ф.2.1:Ф.2.50!G50) -> 0 | H50: =SUM(Ф.2.1:Ф.2.50!H50) -> 0 | I50: =SUM(Ф.2.1:Ф.2.50!I50) -> 0 | J50: =SUM(Ф.2.1:Ф.2.50!J50) -> 0
A51: Субсидії та поточні трансферти підприємствам (установам, організаціям) | B51: 2610 | C51: 290 | D51: =SUM(Ф.2.1:Ф.2.50!D51) -> 0 | E51: =SUM(Ф.2.1:Ф.2.50!E51) -> 0 | F51: =SUM(Ф.2.1:Ф.2.50!F51) -> 0 | G51: =SUM(Ф.2.1:Ф.2.50!G51) -> 0 | H51: =SUM(Ф.2.1:Ф.2.50!H51) -> 0 | I51: =SUM(Ф.2.1:Ф.2.50!I51) -> 0 | J51: =SUM(Ф.2.1:Ф.2.50!J51) -> 0
A52: Поточні трансферти органам державного управління інших рівнів | B52: 2620 | C52: 300 | D52: =SUM(Ф.2.1:Ф.2.50!D52) -> 0 | E52: =SUM(Ф.2.1:Ф.2.50!E52) -> 0 | F52: =SUM(Ф.2.1:Ф.2.50!F52) -> 0 | G52: =SUM(Ф.2.1:Ф.2.50!G52) -> 0 | H52: =SUM(Ф.2.1:Ф.2.50!H52) -> 0 | I52: =SUM(Ф.2.1:Ф.2.50!I52) -> 0 | J52: =SUM(Ф.2.1:Ф.2.50!J52) -> 0
A53: Поточні трансферти урядам іноземних держав та міжнародним організаціям | B53: 2630 | C53: 310 | D53: =SUM(Ф.2.1:Ф.2.50!D53) -> 0 | E53: =SUM(Ф.2.1:Ф.2.50!E53) -> 0 | F53: =SUM(Ф.2.1:Ф.2.50!F53) -> 0 | G53: =SUM(Ф.2.1:Ф.2.50!G53) -> 0 | H53: =SUM(Ф.2.1:Ф.2.50!H53) -> 0 | I53: =SUM(Ф.2.1:Ф.2.50!I53) -> 0 | J53: =SUM(Ф.2.1:Ф.2.50!J53) -> 0
A54: Соціальне забезпечення | B54: 2700 | C54: 320 | D54: =SUM(Ф.2.1:Ф.2.50!D54) -> 0 | E54: =SUM(Ф.2.1:Ф.2.50!E54) -> 0 | F54: =SUM(Ф.2.1:Ф.2.50!F54) -> 0 | G54: =SUM(Ф.2.1:Ф.2.50!G54) -> 0 | H54: =SUM(Ф.2.1:Ф.2.50!H54) -> 0 | I54: =SUM(Ф.2.1:Ф.2.50!I54) -> 0 | J54: =SUM(Ф.2.1:Ф.2.50!J54) -> 0
A55: Виплата пенсій і допомоги | B55: 2710 | C55: 330 | D55: =SUM(Ф.2.1:Ф.2.50!D55) -> 0 | E55: =SUM(Ф.2.1:Ф.2.50!E55) -> 0 | F55: =SUM(Ф.2.1:Ф.2.50!F55) -> 0 | G55: =SUM(Ф.2.1:Ф.2.50!G55) -> 0 | H55: =SUM(Ф.2.1:Ф.2.50!H55) -> 0 | I55: =SUM(Ф.2.1:Ф.2.50!I55) -> 0 | J55: =SUM(Ф.2.1:Ф.2.50!J55) -> 0
A56: Стипендії | B56: 2720 | C56: 340 | D56: =SUM(Ф.2.1:Ф.2.50!D56) -> 0 | E56: =SUM(Ф.2.1:Ф.2.50!E56) -> 0 | F56: =SUM(Ф.2.1:Ф.2.50!F56) -> 0 | G56: =SUM(Ф.2.1:Ф.2.50!G56) -> 0 | H56: =SUM(Ф.2.1:Ф.2.50!H56) -> 0 | I56: =SUM(Ф.2.1:Ф.2.50!I56) -> 0 | J56: =SUM(Ф.2.1:Ф.2.50!J56) -> 0
A57: Інші виплати населенню | B57: 2730 | C57: 350 | D57: =SUM(Ф.2.1:Ф.2.50!D57) -> 0 | E57: =SUM(Ф.2.1:Ф.2.50!E57) -> 0 | F57: =SUM(Ф.2.1:Ф.2.50!F57) -> 0 | G57: =SUM(Ф.2.1:Ф.2.50!G57) -> 0 | H57: =SUM(Ф.2.1:Ф.2.50!H57) -> 0 | I57: =SUM(Ф.2.1:Ф.2.50!I57) -> 0 | J57: =SUM(Ф.2.1:Ф.2.50!J57) -> 0
A58: Інші поточні видатки | B58: 2800 | C58: 360 | D58: =SUM(Ф.2.1:Ф.2.50!D58) -> 70 | E58: =SUM(Ф.2.1:Ф.2.50!E58) -> 0 | F58: =SUM(Ф.2.1:Ф.2.50!F58) -> 0 | G58: =SUM(Ф.2.1:Ф.2.50!G58) -> 0 | H58: =SUM(Ф.2.1:Ф.2.50!H58) -> 0 | I58: =SUM(Ф.2.1:Ф.2.50!I58) -> 0 | J58: =SUM(Ф.2.1:Ф.2.50!J58) -> 0
A59: Капітальні видатки | B59: 3000 | C59: 370 | D59: =SUM(Ф.2.1:Ф.2.50!D59) -> 0 | E59: =SUM(Ф.2.1:Ф.2.50!E59) -> 0 | F59: =SUM(Ф.2.1:Ф.2.50!F59) -> 0 | G59: =SUM(Ф.2.1:Ф.2.50!G59) -> 0 | H59: =SUM(Ф.2.1:Ф.2.50!H59) -> 0 | I59: =SUM(Ф.2.1:Ф.2.50!I59) -> 0 | J59: =SUM(Ф.2.1:Ф.2.50!J59) -> 0
A60: Придбання основного капіталу | B60: 3100 | C60: 380 | D60: =SUM(Ф.2.1:Ф.2.50!D60) -> 0 | E60: =SUM(Ф.2.1:Ф.2.50!E60) -> 0 | F60: =SUM(Ф.2.1:Ф.2.50!F60) -> 0 | G60: =SUM(Ф.2.1:Ф.2.50!G60) -> 0 | H60: =SUM(Ф.2.1:Ф.2.50!H60) -> 0 | I60: =SUM(Ф.2.1:Ф.2.50!I60) -> 0 | J60: =SUM(Ф.2.1:Ф.2.50!J60) -> 0
A61: Придбання обладнання і предметів довгострокового користування | B61: 3110 | C61: 390 | D61: =SUM(Ф.2.1:Ф.2.50!D61) -> 0 | E61: =SUM(Ф.2.1:Ф.2.50!E61) -> 0 | F61: =SUM(Ф.2.1:Ф.2.50!F61) -> 0 | G61: =SUM(Ф.2.1:Ф.2.50!G61) -> 0 | H61: =SUM(Ф.2.1:Ф.2.50!H61) -> 0 | I61: =SUM(Ф.2.1:Ф.2.50!I61) -> 0 | J61: =SUM(Ф.2.1:Ф.2.50!J61) -> 0
A62: Капітальне будівництво (придбання) | B62: 3120 | C62: 400 | D62: =SUM(Ф.2.1:Ф.2.50!D62) -> 0 | E62: =SUM(Ф.2.1:Ф.2.50!E62) -> 0 | F62: =SUM(Ф.2.1:Ф.2.50!F62) -> 0 | G62: =SUM(Ф.2.1:Ф.2.50!G62) -> 0 | H62: =SUM(Ф.2.1:Ф.2.50!H62) -> 0 | I62: =SUM(Ф.2.1:Ф.2.50!I62) -> 0 | J62: =SUM(Ф.2.1:Ф.2.50!J62) -> 0
A63: Капітальне будівництво (придбання) житла | B63: 3121 | C63: 410 | D63: =SUM(Ф.2.1:Ф.2.50!D63) -> 0 | E63: =SUM(Ф.2.1:Ф.2.50!E63) -> 0 | F63: =SUM(Ф.2.1:Ф.2.50!F63) -> 0 | G63: =SUM(Ф.2.1:Ф.2.50!G63) -> 0 | H63: =SUM(Ф.2.1:Ф.2.50!H63) -> 0 | I63: =SUM(Ф.2.1:Ф.2.50!I63) -> 0 | J63: =SUM(Ф.2.1:Ф.2.50!J63) -> 0
A64: Капітальне будівництво (придбання) інших об’єктів | B64: 3122 | C64: 420 | D64: =SUM(Ф.2.1:Ф.2.50!D64) -> 0 | E64: =SUM(Ф.2.1:Ф.2.50!E64) -> 0 | F64: =SUM(Ф.2.1:Ф.2.50!F64) -> 0 | G64: =SUM(Ф.2.1:Ф.2.50!G64) -> 0 | H64: =SUM(Ф.2.1:Ф.2.50!H64) -> 0 | I64: =SUM(Ф.2.1:Ф.2.50!I64) -> 0 | J64: =SUM(Ф.2.1:Ф.2.50!J64) -> 0
A65: Капітальний ремонт | B65: 3130 | C65: 430 | D65: =SUM(Ф.2.1:Ф.2.50!D65) -> 0 | E65: =SUM(Ф.2.1:Ф.2.50!E65) -> 0 | F65: =SUM(Ф.2.1:Ф.2.50!F65) -> 0 | G65: =SUM(Ф.2.1:Ф.2.50!G65) -> 0 | H65: =SUM(Ф.2.1:Ф.2.50!H65) -> 0 | I65: =SUM(Ф.2.1:Ф.2.50!I65) -> 0 | J65: =SUM(Ф.2.1:Ф.2.50!J65) -> 0
A66: Капітальний ремонт житлового фонду (приміщень) | B66: 3131 | C66: 440 | D66: =SUM(Ф.2.1:Ф.2.50!D66) -> 0 | E66: =SUM(Ф.2.1:Ф.2.50!E66) -> 0 | F66: =SUM(Ф.2.1:Ф.2.50!F66) -> 0 | G66: =SUM(Ф.2.1:Ф.2.50!G66) -> 0 | H66: =SUM(Ф.2.1:Ф.2.50!H66) -> 0 | I66: =SUM(Ф.2.1:Ф.2.50!I66) -> 0 | J66: =SUM(Ф.2.1:Ф.2.50!J66) -> 0
A67: Капітальний ремонт інших об’єктів | B67: 3132 | C67: 450 | D67: =SUM(Ф.2.1:Ф.2.50!D67) -> 0 | E67: =SUM(Ф.2.1:Ф.2.50!E67) -> 0 | F67: =SUM(Ф.2.1:Ф.2.50!F67) -> 0 | G67: =SUM(Ф.2.1:Ф.2.50!G67) -> 0 | H67: =SUM(Ф.2.1:Ф.2.50!H67) -> 0 | I67: =SUM(Ф.2.1:Ф.2.50!I67) -> 0 | J67: =SUM(Ф.2.1:Ф.2.50!J67) -> 0
A68: Реконструкція та реставрація | B68: 3140 | C68: 460 | D68: =SUM(Ф.2.1:Ф.2.50!D68) -> 0 | E68: =SUM(Ф.2.1:Ф.2.50!E68) -> 0 | F68: =SUM(Ф.2.1:Ф.2.50!F68) -> 0 | G68: =SUM(Ф.2.1:Ф.2.50!G68) -> 0 | H68: =SUM(Ф.2.1:Ф.2.50!H68) -> 0 | I68: =SUM(Ф.2.1:Ф.2.50!I68) -> 0 | J68: =SUM(Ф.2.1:Ф.2.50!J68) -> 0
A69: Реконструкція житлового фонду (приміщень) | B69: 3141 | C69: 470 | D69: =SUM(Ф.2.1:Ф.2.50!D69) -> 0 | E69: =SUM(Ф.2.1:Ф.2.50!E69) -> 0 | F69: =SUM(Ф.2.1:Ф.2.50!F69) -> 0 | G69: =SUM(Ф.2.1:Ф.2.50!G69) -> 0 | H69: =SUM(Ф.2.1:Ф.2.50!H69) -> 0 | I69: =SUM(Ф.2.1:Ф.2.50!I69) -> 0 | J69: =SUM(Ф.2.1:Ф.2.50!J69) -> 0
A70: Реконструкція та реставрація інших об’єктів | B70: 3142 | C70: 480 | D70: =SUM(Ф.2.1:Ф.2.50!D70) -> 0 | E70: =SUM(Ф.2.1:Ф.2.50!E70) -> 0 | F70: =SUM(Ф.2.1:Ф.2.50!F70) -> 0 | G70: =SUM(Ф.2.1:Ф.2.50!G70) -> 0 | H70: =SUM(Ф.2.1:Ф.2.50!H70) -> 0 | I70: =SUM(Ф.2.1:Ф.2.50!I70) -> 0 | J70: =SUM(Ф.2.1:Ф.2.50!J70) -> 0
A71: Реставрація пам’яток культури, історії та архітектури | B71: 3143 | C71: 490 | D71: =SUM(Ф.2.1:Ф.2.50!D71) -> 0 | E71: =SUM(Ф.2.1:Ф.2.50!E71) -> 0 | F71: =SUM(Ф.2.1:Ф.2.50!F71) -> 0 | G71: =SUM(Ф.2.1:Ф.2.50!G71) -> 0 | H71: =SUM(Ф.2.1:Ф.2.50!H71) -> 0 | I71: =SUM(Ф.2.1:Ф.2.50!I71) -> 0 | J71: =SUM(Ф.2.1:Ф.2.50!J71) -> 0
A72: Створення державних запасів і резервів | B72: 3150 | C72: 500 | D72: =SUM(Ф.2.1:Ф.2.50!D72) -> 0 | E72: =SUM(Ф.2.1:Ф.2.50!E72) -> 0 | F72: =SUM(Ф.2.1:Ф.2.50!F72) -> 0 | G72: =SUM(Ф.2.1:Ф.2.50!G72) -> 0 | H72: =SUM(Ф.2.1:Ф.2.50!H72) -> 0 | I72: =SUM(Ф.2.1:Ф.2.50!I72) -> 0 | J72: =SUM(Ф.2.1:Ф.2.50!J72) -> 0
A73: Придбання землі та нематеріальних активів | B73: 3160 | C73: 510 | D73: =SUM(Ф.2.1:Ф.2.50!D73) -> 0 | E73: =SUM(Ф.2.1:Ф.2.50!E73) -> 0 | F73: =SUM(Ф.2.1:Ф.2.50!F73) -> 0 | G73: =SUM(Ф.2.1:Ф.2.50!G73) -> 0 | H73: =SUM(Ф.2.1:Ф.2.50!H73) -> 0 | I73: =SUM(Ф.2.1:Ф.2.50!I73) -> 0 | J73: =SUM(Ф.2.1:Ф.2.50!J73) -> 0
A74: Капітальні трансферти | B74: 3200 | C74: 520 | D74: =SUM(Ф.2.1:Ф.2.50!D74) -> 0 | E74: =SUM(Ф.2.1:Ф.2.50!E74) -> 0 | F74: =SUM(Ф.2.1:Ф.2.50!F74) -> 0 | G74: =SUM(Ф.2.1:Ф.2.50!G74) -> 0 | H74: =SUM(Ф.2.1:Ф.2.50!H74) -> 0 | I74: =SUM(Ф.2.1:Ф.2.50!I74) -> 0 | J74: =SUM(Ф.2.1:Ф.2.50!J74) -> 0
A75: Капітальні трансферти підприємствам (установам, організаціям) | B75: 3210 | C75: 530 | D75: =SUM(Ф.2.1:Ф.2.50!D75) -> 0 | E75: =SUM(Ф.2.1:Ф.2.50!E75) -> 0 | F75: =SUM(Ф.2.1:Ф.2.50!F75) -> 0 | G75: =SUM(Ф.2.1:Ф.2.50!G75) -> 0 | H75: =SUM(Ф.2.1:Ф.2.50!H75) -> 0 | I75: =SUM(Ф.2.1:Ф.2.50!I75) -> 0 | J75: =SUM(Ф.2.1:Ф.2.50!J75) -> 0
A76: Капітальні трансферти органам державного управління інших рівнів | B76: 3220 | C76: 540 | D76: =SUM(Ф.2.1:Ф.2.50!D76) -> 0 | E76: =SUM(Ф.2.1:Ф.2.50!E76) -> 0 | F76: =SUM(Ф.2.1:Ф.2.50!F76) -> 0 | G76: =SUM(Ф.2.1:Ф.2.50!G76) -> 0 | H76: =SUM(Ф.2.1:Ф.2.50!H76) -> 0 | I76: =SUM(Ф.2.1:Ф.2.50!I76) -> 0 | J76: =SUM(Ф.2.1:Ф.2.50!J76) -> 0
A77: Капітальні трансферти урядам іноземних держав та міжнародним організаціям | B77: 3230 | C77: 550 | D77: =SUM(Ф.2.1:Ф.2.50!D77) -> 0 | E77: =SUM(Ф.2.1:Ф.2.50!E77) -> 0 | F77: =SUM(Ф.2.1:Ф.2.50!F77) -> 0 | G77: =SUM(Ф.2.1:Ф.2.50!G77) -> 0 | H77: =SUM(Ф.2.1:Ф.2.50!H77) -> 0 | I77: =SUM(Ф.2.1:Ф.2.50!I77) -> 0 | J77: =SUM(Ф.2.1:Ф.2.50!J77) -> 0
A78: Капітальні трансферти населенню | B78: 3240 | C78: 560 | D78: =SUM(Ф.2.1:Ф.2.50!D78) -> 0 | E78: =SUM(Ф.2.1:Ф.2.50!E78) -> 0 | F78: =SUM(Ф.2.1:Ф.2.50!F78) -> 0 | G78: =SUM(Ф.2.1:Ф.2.50!G78) -> 0 | H78: =SUM(Ф.2.1:Ф.2.50!H78) -> 0 | I78: =SUM(Ф.2.1:Ф.2.50!I78) -> 0 | J78: =SUM(Ф.2.1:Ф.2.50!J78) -> 0
A79: Внутрішнє кредитування | B79: 4100 | C79: 570 | D79: =SUM(Ф.2.1:Ф.2.50!D79) -> 0 | E79: =SUM(Ф.2.1:Ф.2.50!E79) -> 0 | F79: =SUM(Ф.2.1:Ф.2.50!F79) -> 0 | G79: =SUM(Ф.2.1:Ф.2.50!G79) -> 0 | H79: =SUM(Ф.2.1:Ф.2.50!H79) -> 0 | I79: =SUM(Ф.2.1:Ф.2.50!I79) -> 0 | J79: =SUM(Ф.2.1:Ф.2.50!J79) -> 0
A80: Надання внутрішніх кредитів | B80: 4110 | C80: 580 | D80: =SUM(Ф.2.1:Ф.2.50!D80) -> 0 | E80: =SUM(Ф.2.1:Ф.2.50!E80) -> 0 | F80: =SUM(Ф.2.1:Ф.2.50!F80) -> 0 | G80: =SUM(Ф.2.1:Ф.2.50!G80) -> 0 | H80: =SUM(Ф.2.1:Ф.2.50!H80) -> 0 | I80: =SUM(Ф.2.1:Ф.2.50!I80) -> 0 | J80: =SUM(Ф.2.1:Ф.2.50!J80) -> 0
A81: Надання кредитів органам державного управління інших рівнів | B81: 4111 | C81: 590 | D81: =SUM(Ф.2.1:Ф.2.50!D81) -> 0 | E81: =SUM(Ф.2.1:Ф.2.50!E81) -> 0 | F81: =SUM(Ф.2.1:Ф.2.50!F81) -> 0 | G81: =SUM(Ф.2.1:Ф.2.50!G81) -> 0 | H81: =SUM(Ф.2.1:Ф.2.50!H81) -> 0 | I81: =SUM(Ф.2.1:Ф.2.50!I81) -> 0 | J81: =SUM(Ф.2.1:Ф.2.50!J81) -> 0
A82: Надання кредитів підприємствам, установам, організаціям | B82: 4112 | C82: 600 | D82: =SUM(Ф.2.1:Ф.2.50!D82) -> 0 | E82: =SUM(Ф.2.1:Ф.2.50!E82) -> 0 | F82: =SUM(Ф.2.1:Ф.2.50!F82) -> 0 | G82: =SUM(Ф.2.1:Ф.2.50!G82) -> 0 | H82: =SUM(Ф.2.1:Ф.2.50!H82) -> 0 | I82: =SUM(Ф.2.1:Ф.2.50!I82) -> 0 | J82: =SUM(Ф.2.1:Ф.2.50!J82) -> 0
A83: Надання інших внутрішніх кредитів | B83: 4113 | C83: 610 | D83: =SUM(Ф.2.1:Ф.2.50!D83) -> 0 | E83: =SUM(Ф.2.1:Ф.2.50!E83) -> 0 | F83: =SUM(Ф.2.1:Ф.2.50!F83) -> 0 | G83: =SUM(Ф.2.1:Ф.2.50!G83) -> 0 | H83: =SUM(Ф.2.1:Ф.2.50!H83) -> 0 | I83: =SUM(Ф.2.1:Ф.2.50!I83) -> 0 | J83: =SUM(Ф.2.1:Ф.2.50!J83) -> 0
A84: Зовнішнє кредитування | B84: 4200 | C84: 620 | D84: =SUM(Ф.2.1:Ф.2.50!D84) -> 0 | E84: =SUM(Ф.2.1:Ф.2.50!E84) -> 0 | F84: =SUM(Ф.2.1:Ф.2.50!F84) -> 0 | G84: =SUM(Ф.2.1:Ф.2.50!G84) -> 0 | H84: =SUM(Ф.2.1:Ф.2.50!H84) -> 0 | I84: =SUM(Ф.2.1:Ф.2.50!I84) -> 0 | J84: =SUM(Ф.2.1:Ф.2.50!J84) -> 0
A85: Надання зовнішніх кредитів | B85: 4210 | C85: 630 | D85: =SUM(Ф.2.1:Ф.2.50!D85) -> 0 | E85: =SUM(Ф.2.1:Ф.2.50!E85) -> 0 | F85: =SUM(Ф.2.1:Ф.2.50!F85) -> 0 | G85: =SUM(Ф.2.1:Ф.2.50!G85) -> 0 | H85: =SUM(Ф.2.1:Ф.2.50!H85) -> 0 | I85: =SUM(Ф.2.1:Ф.2.50!I85) -> 0 | J85: =SUM(Ф.2.1:Ф.2.50!J85) -> 0
A86: Інші видатки | B86: 5000 | C86: 640 | D86: X | E86: =SUM(Ф.2.1:Ф.2.50!E86) -> 14004 | F86: X | G86: X | H86: X | I86: X | J86: X
A87: Нерозподілені видатки | B87: 9000 | C87: 650 | D87: =SUM(Ф.2.1:Ф.2.50!D87) -> 0 | E87: =SUM(Ф.2.1:Ф.2.50!E87) -> 0 | F87: =SUM(Ф.2.1:Ф.2.50!F87) -> 0 | G87: =SUM(Ф.2.1:Ф.2.50!G87) -> 0 | H87: =SUM(Ф.2.1:Ф.2.50!H87) -> 0 | I87: =SUM(Ф.2.1:Ф.2.50!I87) -> 0 | J87: =SUM(Ф.2.1:Ф.2.50!J87) -> 0
C88: 650
A100: 1 Заповнюється розпорядниками бюджетних коштів.
A101: =ЗАПОЛНИТЬ!F30 -> Керівник | G101: =ЗАПОЛНИТЬ!F26 -> Т.П. Петрук
D102: (підпис) | G102: (ініціали, прізвище)
A103: =ЗАПОЛНИТЬ!F31 -> Головний бухгалтер | G103: =ЗАПОЛНИТЬ!F28 -> В.В. Петрук
A104: =ЗАПОЛНИТЬ!C19 -> "12"січня 2018 року | D104: (підпис) | G104: (ініціали, прізвище)

Sheet Ф.2.1
G1: Додаток 1 до Порядку складання бюджетної звітності розпорядниками та одержувачами бюджетних коштів, звітності фондами загальнообов’язкового державного соціального і пенсійного страхування (пункт 1 розділу ІІ)
A4: ЗВІТ
A5: =IF(ЗАПОЛНИТЬ!$F$7=1,CONCATENATE(шапки!A2),CONCATENATE(шапки!A2,шапки!C2)) -> про надходження та використання коштів загального фонду (форма №2д, | G5: =IF(ЗАПОЛНИТЬ!$F$7=1,шапки!C2,шапки!D2) -> №2м) | H5: =IF(ЗАПОЛНИТЬ!$F$7=1,шапки!D2,"") -> 
A6: =CONCATENATE("за ",ЗАПОЛНИТЬ!$B$17," ",ЗАПОЛНИТЬ!$C$17) -> за 2017 р.
J7: коди
A9: Установа | B9: =ЗАПОЛНИТЬ!B3 -> Рафалівський НВК "ЗОШ Іст.-ДНЗ" | H9: за ЄДРПОУ | J9: =ЗАПОЛНИТЬ!B13 -> 25894582
A10: Територія | B10: =ЗАПОЛНИТЬ!B5 -> смт. Рафалівка | H10: за КОАТУУ | J10: =ЗАПОЛНИТЬ!B14 -> 5620855400
A11: Організаційно-правова форма господарювання | B11: =ЗАПОЛНИТЬ!D15 -> Комунальна організація (установа, заклад) | H11: за КОПФГ | J11: =ЗАПОЛНИТЬ!B15 -> 430
A12: Код та назва відомчої класифікації видатків та кредитування державного бюджету | D12: =ЗАПОЛНИТЬ!H9 -> 0 | E12: =IF(D12>0,VLOOKUP(D12,'ДовидникКВК(ГОС)'!A:B,2,FALSE),"") -> 
A13: Код та назва програмної класифікації видатків та кредитування державного бюджету | E13: =IF(D13>0,VLOOKUP(D13,ДовидникКПК!B:C,2,FALSE),"") -> 
A14: Код та назва типової відомчої класифікації видатків та кредитування місцевих бюджетів | D14: =ЗАПОЛНИТЬ!H10 -> 10 | E14: =ЗАПОЛНИТЬ!I10 -> Орган з питань освіти і науки
A15: Код та назва програмної класифікації видатків та кредитування місцевих бюджетів (код та назва Типової програмної класифікації видатків та кредитування місцевих бюджетів / Тимчасової класифікації видатків та кредитування для бюджетів місцевого самоврядування, які не застосовують програмно-цільового методу) | D15: - | E15: =VLOOKUP(RIGHT(D15,4),КПКВМБ!A:B,2,FALSE) -> -
A16: Періодичність: квартальна, річна
A17: Одиниця виміру: грн, коп.
A19: Показники | B19: КЕКВ та/або ККК | C19: Код рядка | D19: Затверджено на звітний рік | E19: Затверджено на звітний період (рік)1 | F19: Залишок на початок звітного року | G19: Надійшло коштів за звітний період (рік) | H19: Касові за звітний період (рік) | I19: Фактичні за звітний період (рік) | J19: Залишок на кінець звітного періоду (року)
A22: 1 | B22: 2 | C22: 3 | D22: 4 | E22: 5 | F22: 6 | G22: 7 | H22: 8 | I22: 9 | J22: 9
A23: Видатки та надання кредитів - усього | B23: Х | C23: 010 | D23: =D24+D59+D79+D84+D87 -> 0 | E23: =E26+E29+E32+E33+E37+E45+E46+E86+E54 -> 0 | F23: =F24+F59+F79+F84+F87 -> 0 | G23: =G24+G59+G79+G84+G87 -> 0 | H23: =H24+H59+H79+H84+H87 -> 0 | I23: =I24+I59+I79+I84+I87 -> 0 | J23: =F23+G23-H23 -> 0
A24: у тому числі: Поточні видатки | B24: 2000 | C24: 020 | D24: =D25+D30+D47+D50+D54+D58 -> 0 | E24: 0 | F24: 0 | G24: 0 | H24: 0 | I24: 0 | J24: =F24+G24-H24 -> 0
A25: Оплата праці і нарахування на заробітну плату | B25: 2100 | C25: 030 | D25: =D26+D29 -> 0 | E25: 0 | F25: =F26+F29 -> 0 | G25: =G26+G29 -> 0 | H25: =H26+H29 -> 0 | I25: =I26+I29 -> 0 | J25: 0
A26: Оплата праці | B26: 2110 | C26: 040 | D26: =SUM(D27:D28) -> 0 | E26: 0 | F26: 0 | G26: 0 | H26: 0 | I26: 0 | J26: 0
A27: Заробітна плата | B27: 2111 | C27: 050 | D27: 0 | E27: 0 | F27: 0 | G27: 0 | H27: 0 | I27: 0 | J27: 0
A28: Грошове забезпечення військовослужбовців | B28: 2112 | C28: 060 | D28: 0 | E28: 0 | F28: 0 | G28: 0 | H28: 0 | I28: 0 | J28: 0
A29: Нарахування на оплату праці | B29: 2120 | C29: 070 | D29: 0 | E29: 0 | F29: 0 | G29: 0 | H29: 0 | I29: 0 | J29: 0
A30: Використання товарів і послуг | B30: 2200 | C30: 080 | D30: =SUM(D31:D37)+D44 -> 0 | E30: 0 | F30: =SUM(F31:F37)+F44 -> 0 | G30: =SUM(G31:G37)+G44 -> 0 | H30: =SUM(H31:H37)+H44 -> 0 | I30: =SUM(I31:I37)+I44 -> 0 | J30: 0
A31: Предмети, матеріали, обладнання та інвентар | B31: 2210 | C31: 090 | D31: 0 | E31: 0 | F31: 0 | G31: 0 | H31: 0 | I31: 0 | J31: 0
A32: Медикаменти та перев’язувальні матеріали | B32: 2220 | C32: 100 | D32: 0 | E32: 0 | F32: 0 | G32: 0 | H32: 0 | I32: 0 | J32: 0
A33: Продукти харчування | B33: 2230 | C33: 110 | D33: 0 | E33: 0 | F33: 0 | G33: 0 | H33: 0 | I33: 0 | J33: 0
A34: Оплата послуг (крім комунальних) | B34: 2240 | C34: 120 | D34: 0 | E34: 0 | F34: 0 | G34: 0 | H34: 0 | I34: 0 | J34: 0
A35: Видатки на відрядження | B35: 2250 | C35: 130 | D35: 0 | E35: 0 | F35: 0 | G35: 0 | H35: 0 | I35: 0 | J35: 0
A36: Видатки та заходи спеціального призначення | B36: 2260 | C36: 140 | D36: 0 | E36: 0 | F36: 0 | G36: 0 | H36: 0 | I36: 0 | J36: 0
A37: Оплата комунальних послуг та енергоносіїв | B37: 2270 | C37: 150 | D37: =SUM(D38:D43) -> 0 | E37: 0 | F37: =SUM(F38:F43) -> 0 | G37: =SUM(G38:G43) -> 0 | H37: =SUM(H38:H43) -> 0 | I37: =SUM(I38:I43) -> 0 | J37: =F37+G37-H37 -> 0
A38: Оплата теплопостачання | B38: 2271 | C38: 160 | D38: 0 | E38: 0 | F38: 0 | G38: 0 | H38: 0 | I38: 0 | J38: 0
A39: Оплата водопостачання та водовідведення | B39: 2272 | C39: 170 | D39: 0 | E39: 0 | F39: 0 | G39: 0 | H39: 0 | I39: 0 | J39: 0
A40: Оплата електроенергії | B40: 2273 | C40: 180 | D40: 0 | E40: 0 | F40: 0 | G40: 0 | H40: 0 | I40: 0 | J40: 0
A41: Оплата природного газу | B41: 2274 | C41: 190 | D41: 0 | E41: 0 | F41: 0 | G41: 0 | H41: 0 | I41: 0 | J41: 0
A42: Оплата інших енергоносіїв | B42: 2275 | C42: 200 | D42: 0 | E42: 0 | F42: 0 | G42: 0 | H42: 0 | I42: 0 | J42: 0
A43: Оплата енергосервісу | B43: 2276 | C43: 210 | D43: 0 | E43: 0 | F43: 0 | G43: 0 | H43: 0 | I43: 0 | J43: =F43+G43-H43 -> 0
A44: Дослідження і розробки, окремі заходи по реалізації державних (регіональних) програм | B44: 2280 | C44: 220 | D44: =SUM(D45:D46) -> 0 | E44: 0 | F44: =SUM(F45:F46) -> 0 | G44: =SUM(G45:G46) -> 0 | H44: =SUM(H45:H46) -> 0 | I44: =SUM(I45:I46) -> 0 | J44: 0
A45: Дослідження і розробки, окремі заходи розвитку по реалізації державних (регіональних) програм | B45: 2281 | C45: 230 | D45: 0 | E45: 0 | F45: 0 | G45: 0 | H45: 0 | I45: 0 | J45: 0
A46: Окремі заходи по реалізації державних (регіональних) програм, не віднесені до заходів розвитку | B46: 2282 | C46: 240 | D46: 0 | E46: 0 | F46: 0 | G46: 0 | H46: 0 | I46: 0 | J46: 0
A47: Обслуговування боргових зобов’язань | B47: 2400 | C47: 250 | D47: =SUM(D48:D49) -> 0 | E47: 0 | F47: 0 | G47: 0 | H47: 0 | I47: 0 | J47: 0
A48: Обслуговування внутрішніх боргових зобов’язань | B48: 2410 | C48: 260 | D48: 0 | E48: 0 | F48: 0 | G48: 0 | H48: 0 | I48: 0 | J48: 0
A49: Обслуговування зовнішніх боргових зобов’язань | B49: 2420 | C49: 270 | D49: 0 | E49: 0 | F49: 0 | G49: 0 | H49: 0 | I49: 0 | J49: 0
A50: Поточні трансферти | B50: 2600 | C50: 280 | D50: =SUM(D51:D53) -> 0 | E50: 0 | F50: 0 | G50: 0 | H50: 0 | I50: 0 | J50: 0
A51: Субсидії та поточні трансферти підприємствам (установам, організаціям) | B51: 2610 | C51: 290 | D51: 0 | E51: 0 | F51: 0 | G51: 0 | H51: 0 | I51: 0 | J51: 0
A52: Поточні трансферти органам державного управління інших рівнів | B52: 2620 | C52: 300 | D52: 0 | E52: 0 | F52: 0 | G52: 0 | H52: 0 | I52: 0 | J52: 0
A53: Поточні трансферти урядам іноземних держав та міжнародним організаціям | B53: 2630 | C53: 310 | D53: 0 | E53: 0 | F53: 0 | G53: 0 | H53: 0 | I53: 0 | J53: 0
A54: Соціальне забезпечення | B54: 2700 | C54: 320 | D54: =SUM(D55:D57) -> 0 | E54: 0 | F54: 0 | G54: 0 | H54: 0 | I54: 0 | J54: 0
A55: Виплата пенсій і допомоги | B55: 2710 | C55: 330 | D55: 0 | E55: 0 | F55: 0 | G55: 0 | H55: 0 | I55: 0 | J55: 0
A56: Стипендії | B56: 2720 | C56: 340 | D56: 0 | E56: 0 | F56: 0 | G56: 0 | H56: 0 | I56: 0 | J56: 0
A57: Інші виплати населенню | B57: 2730 | C57: 350 | D57: 0 | E57: 0 | F57: 0 | G57: 0 | H57: 0 | I57: 0 | J57: 0
A58: Інші поточні видатки | B58: 2800 | C58: 360 | D58: 0 | E58: 0 | F58: 0 | G58: 0 | H58: 0 | I58: 0 | J58: 0
A59: Капітальні видатки | B59: 3000 | C59: 370 | D59: =D60+D74 -> 0 | E59: 0 | F59: 0 | G59: 0 | H59: 0 | I59: 0 | J59: 0
A60: Придбання основного капіталу | B60: 3100 | C60: 380 | D60: =D61+D62+D65+D68+D72+D73 -> 0 | E60: 0 | F60: 0 | G60: 0 | H60: 0 | I60: 0 | J60: 0
A61: Придбання обладнання і предметів довгострокового користування | B61: 3110 | C61: 390 | D61: 0 | E61: 0 | F61: 0 | G61: 0 | H61: 0 | I61: 0 | J61: 0
A62: Капітальне будівництво (придбання) | B62: 3120 | C62: 400 | D62: =SUM(D63:D64) -> 0 | E62: 0 | F62: 0 | G62: 0 | H62: 0 | I62: 0 | J62: 0
A63: Капітальне будівництво (придбання) житла | B63: 3121 | C63: 410 | D63: 0 | E63: 0 | F63: 0 | G63: 0 | H63: 0 | I63: 0 | J63: 0
A64: Капітальне будівництво (придбання) інших об’єктів | B64: 3122 | C64: 420 | D64: 0 | E64: 0 | F64: 0 | G64: 0 | H64: 0 | I64: 0 | J64: 0
A65: Капітальний ремонт | B65: 3130 | C65: 430 | D65: =SUM(D66:D67) -> 0 | E65: 0 | F65: 0 | G65: 0 | H65: 0 | I65: 0 | J65: 0
A66: Капітальний ремонт житлового фонду (приміщень) | B66: 3131 | C66: 440 | D66: 0 | E66: 0 | F66: 0 | G66: 0 | H66: 0 | I66: 0 | J66: 0
A67: Капітальний ремонт інших об’єктів | B67: 3132 | C67: 450 | D67: 0 | E67: 0 | F67: 0 | G67: 0 | H67: 0 | I67: 0 | J67: 0
A68: Реконструкція та реставрація | B68: 3140 | C68: 460 | D68: =SUM(D69:D71) -> 0 | E68: 0 | F68: 0 | G68: 0 | H68: 0 | I68: 0 | J68: 0
A69: Реконструкція житлового фонду (приміщень) | B69: 3141 | C69: 470 | D69: 0 | E69: 0 | F69: 0 | G69: 0 | H69: 0 | I69: 0 | J69: 0
A70: Реконструкція та реставрація інших об’єктів | B70: 3142 | C70: 480 | D70: 0 | E70: 0 | F70: 0 | G70: 0 | H70: 0 | I70: 0 | J70: 0
A71: Реставрація пам’яток культури, історії та архітектури | B71: 3143 | C71: 490 | D71: 0 | E71: 0 | F71: 0 | G71: 0 | H71: 0 | I71: 0 | J71: 0
A72: Створення державних запасів і резервів | B72: 3150 | C72: 500 | D72: 0 | E72: 0 | F72: 0 | G72: 0 | H72: 0 | I72: 0 | J72: 0
A73: Придбання землі та нематеріальних активів | B73: 3160 | C73: 510 | D73: 0 | E73: 0 | F73: 0 | G73: 0 | H73: 0 | I73: 0 | J73: 0
A74: Капітальні трансферти | B74: 3200 | C74: 520 | D74: =SUM(D75:D78) -> 0 | E74: 0 | F74: 0 | G74: 0 | H74: 0 | I74: 0 | J74: 0
A75: Капітальні трансферти підприємствам (установам, організаціям) | B75: 3210 | C75: 530 | D75: 0 | E75: 0 | F75: 0 | G75: 0 | H75: 0 | I75: 0 | J75: 0
A76: Капітальні трансферти органам державного управління інших рівнів | B76: 3220 | C76: 540 | D76: 0 | E76: 0 | F76: 0 | G76: 0 | H76: 0 | I76: 0 | J76: 0
A77: Капітальні трансферти урядам іноземних держав та міжнародним організаціям | B77: 3230 | C77: 550 | D77: 0 | E77: 0 | F77: 0 | G77: 0 | H77: 0 | I77: 0 | J77: 0
A78: Капітальні трансферти населенню | B78: 3240 | C78: 560 | D78: 0 | E78: 0 | F78: 0 | G78: 0 | H78: 0 | I78: 0 | J78: 0
A79: Внутрішнє кредитування | B79: 4100 | C79: 570 | D79: =SUM(D80) -> 0 | E79: 0 | F79: 0 | G79: 0 | H79: 0 | I79: 0 | J79: 0
A80: Надання внутрішніх кредитів | B80: 4110 | C80: 580 | D80: =SUM(D81:D83) -> 0 | E80: 0 | F80: 0 | G80: 0 | H80: 0 | I80: 0 | J80: 0
A81: Надання кредитів органам державного управління інших рівнів | B81: 4111 | C81: 590 | D81: 0 | E81: 0 | F81: 0 | G81: 0 | H81: 0 | I81: 0 | J81: 0
A82: Надання кредитів підприємствам, установам, організаціям | B82: 4112 | C82: 600 | D82: 0 | E82: 0 | F82: 0 | G82: 0 | H82: 0 | I82: 0 | J82: 0
A83: Надання інших внутрішніх кредитів | B83: 4113 | C83: 610 | D83: 0 | E83: 0 | F83: 0 | G83: 0 | H83: 0 | I83: 0 | J83: 0
A84: Зовнішнє кредитування | B84: 4200 | C84: 620 | D84: =D85 -> 0 | E84: 0 | F84: 0 | G84: 0 | H84: 0 | I84: 0 | J84: 0
A85: Надання зовнішніх кредитів | B85: 4210 | C85: 630 | D85: 0 | E85: 0 | F85: 0 | G85: 0 | H85: 0 | I85: 0 | J85: 0
A86: Інші видатки | B86: 5000 | C86: 640 | D86: X | E86: 0 | F86: X | G86: X | H86: X | I86: X | J86: X
A87: Нерозподілені видатки | B87: 9000 | C87: 650 | D87: 0 | E87: 0 | F87: 0 | G87: 0 | H87: 0 | I87: 0 | J87: 0
C88: 650
A100: 1 Заповнюється розпорядниками бюджетних коштів.
A101: =ЗАПОЛНИТЬ!F30 -> Керівник | G101: =ЗАПОЛНИТЬ!F26 -> Т.П. Петрук
D102: (підпис) | G102: (ініціали, прізвище)
A103: =ЗАПОЛНИТЬ!F31 -> Головний бухгалтер | G103: =ЗАПОЛНИТЬ!F28 -> В.В. Петрук
A104: =ЗАПОЛНИТЬ!C19 -> "12"січня 2018 року | D104: (підпис) | G104: (ініціали, прізвище)

Sheet Ф.2.2
G1: Додаток 1 до Порядку складання бюджетної звітності розпорядниками та одержувачами бюджетних коштів, звітності фондами загальнообов’язкового державного соціального і пенсійного страхування (пункт 1 розділу ІІ)
A4: ЗВІТ
A5: =IF(ЗАПОЛНИТЬ!$F$7=1,CONCATENATE(шапки!A2),CONCATENATE(шапки!A2,шапки!C2)) -> про надходження та використання коштів загального фонду (форма №2д, | G5: =IF(ЗАПОЛНИТЬ!$F$7=1,шапки!C2,шапки!D2) -> №2м) | H5: =IF(ЗАПОЛНИТЬ!$F$7=1,шапки!D2,"") -> 
A6: =CONCATENATE("за ",ЗАПОЛНИТЬ!$B$17," ",ЗАПОЛНИТЬ!$C$17) -> за 2017 р.
J7: коди
A9: Установа | B9: =ЗАПОЛНИТЬ!B3 -> Рафалівський НВК "ЗОШ Іст.-ДНЗ" | H9: за ЄДРПОУ | J9: =ЗАПОЛНИТЬ!B13 -> 25894582
A10: Територія | B10: =ЗАПОЛНИТЬ!B5 -> смт. Рафалівка | H10: за КОАТУУ | J10: =ЗАПОЛНИТЬ!B14 -> 5620855400
A11: Організаційно-правова форма господарювання | B11: =ЗАПОЛНИТЬ!D15 -> Комунальна організація (установа, заклад) | H11: за КОПФГ | J11: =ЗАПОЛНИТЬ!B15 -> 430
A12: Код та назва відомчої класифікації видатків та кредитування державного бюджету | D12: =ЗАПОЛНИТЬ!H9 -> 0 | E12: =IF(D12>0,VLOOKUP(D12,'ДовидникКВК(ГОС)'!A:B,2,FALSE),"") -> 
A13: Код та назва програмної класифікації видатків та кредитування державного бюджету | E13: =IF(D13>0,VLOOKUP(D13,ДовидникКПК!B:C,2,FALSE),"") -> 
A14: Код та назва типової відомчої класифікації видатків та кредитування місцевих бюджетів | D14: =ЗАПОЛНИТЬ!H10 -> 10 | E14: =ЗАПОЛНИТЬ!I10 -> Орган з питань освіти і науки
A15: Код та назва програмної класифікації видатків та кредитування місцевих бюджетів (код та назва Типової програмної класифікації видатків та кредитування місцевих бюджетів / Тимчасової класифікації видатків та кредитування для бюджетів місцевого самоврядування, які не застосовують програмно-цільового методу) | D15: 1011020 | E15: =VLOOKUP(RIGHT(D15,4),КПКВМБ!A:B,2,FALSE) -> Надання загальної середньої освіти загальноосвітніми навчальними закладами (в т. ч. школою - дитячим садком, інтернатом при школі), спеціалізованими школами, ліцеями, гімназіями, колегіумами
A16: Періодичність: квартальна, річна
A17: Одиниця виміру: грн, коп.
A19: Показники | B19: КЕКВ та/або ККК | C19: Код рядка | D19: Затверджено на звітний рік | E19: Затверджено на звітний період (рік)1 | F19: Залишок на початок звітного року | G19: Надійшло коштів за звітний період (рік) | H19: Касові за звітний період (рік) | I19: Фактичні за звітний період (рік) | J19: Залишок на кінець звітного періоду (року)
A22: 1 | B22: 2 | C22: 3 | D22: 4 | E22: 5 | F22: 6 | G22: 7 | H22: 8 | I22: 9 | J22: 9
A23: Видатки та надання кредитів - усього | B23: Х | C23: 010 | D23: =D24+D59+D79+D84+D87 -> 2528275 | E23: =E26+E29+E32+E33+E37+E45+E46+E86+E54 -> 2528275 | F23: =F24+F59+F79+F84+F87 -> 0 | G23: =G24+G59+G79+G84+G87 -> 2513153.63 | H23: =H24+H59+H79+H84+H87 -> 2513153.63 | I23: =I24+I59+I79+I84+I87 -> 0 | J23: =F23+G23-H23 -> 0
A24: у тому числі: Поточні видатки | B24: 2000 | C24: 020 | D24: =D25+D30+D47+D50+D54+D58 -> 2528275 | E24: 0 | F24: 0 | G24: 2513153.63 | H24: 2513153.63 | I24: 0 | J24: =F24+G24-H24 -> 0
A25: Оплата праці і нарахування на заробітну плату | B25: 2100 | C25: 030 | D25: =D26+D29 -> 2275260 | E25: 0 | F25: =F26+F29 -> 0 | G25: =G26+G29 -> 2266049.76 | H25: =H26+H29 -> 2266049.76 | I25: =I26+I29 -> 0 | J25: 0
A26: Оплата праці | B26: 2110 | C26: 040 | D26: =SUM(D27:D28) -> 1846700 | E26: 1846700 | F26: 0 | G26: 1842396.24 | H26: 1842396.24 | I26: 0 | J26: 0
A27: Заробітна плата | B27: 2111 | C27: 050 | D27: 1846700 | E27: 0 | F27: 0 | G27: 1842396.24 | H27: 1842396.24 | I27: 0 | J27: 0
A28: Грошове забезпечення військовослужбовців | B28: 2112 | C28: 060 | D28: 0 | E28: 0 | F28: 0 | G28: 0 | H28: 0 | I28: 0 | J28: 0
A29: Нарахування на оплату праці | B29: 2120 | C29: 070 | D29: 428560 | E29: 428560 | F29: 0 | G29: 423653.52 | H29: 423653.52 | I29: 0 | J29: 0
A30: Використання товарів і послуг | B30: 2200 | C30: 080 | D30: =SUM(D31:D37)+D44 -> 252945 | E30: 0 | F30: =SUM(F31:F37)+F44 -> 0 | G30: =SUM(G31:G37)+G44 -> 247103.87 | H30: =SUM(H31:H37)+H44 -> 247103.87 | I30: =SUM(I31:I37)+I44 -> 0 | J30: 0
A31: Предмети, матеріали, обладнання та інвентар | B31: 2210 | C31: 090 | D31: 4533 | E31: 0 | F31: 0 | G31: 4431.7 | H31: 4431.7 | I31: 0 | J31: 0
A32: Медикаменти та перев’язувальні матеріали | B32: 2220 | C32: 100 | D32: 201 | E32: 201 | F32: 0 | G32: 199.57 | H32: 199.57 | I32: 0 | J32: 0
A33: Продукти харчування | B33: 2230 | C33: 110 | D33: 104000 | E33: 104000 | F33: 0 | G33: 99919.32 | H33: 99919.32 | I33: 0 | J33: 0
A34: Оплата послуг (крім комунальних) | B34: 2240 | C34: 120 | D34: 6170 | E34: 0 | F34: 0 | G34: 6107.92 | H34: 6107.92 | I34: 0 | J34: 0
A35: Видатки на відрядження | B35: 2250 | C35: 130 | D35: 3231 | E35: 0 | F35: 0 | G35: 2741.76 | H35: 2741.76 | I35: 0 | J35: 0
A36: Видатки та заходи спеціального призначення | B36: 2260 | C36: 140 | D36: 0 | E36: 0 | F36: 0 | G36: 0 | H36: 0 | I36: 0 | J36: 0
A37: Оплата комунальних послуг та енергоносіїв | B37: 2270 | C37: 150 | D37: =SUM(D38:D43) -> 134500 | E37: 134500 | F37: =SUM(F38:F43) -> 0 | G37: =SUM(G38:G43) -> 133703.6 | H37: =SUM(H38:H43) -> 133703.6 | I37: =SUM(I38:I43) -> 0 | J37: =F37+G37-H37 -> 0
A38: Оплата теплопостачання | B38: 2271 | C38: 160 | D38: 0 | E38: 0 | F38: 0 | G38: 0 | H38: 0 | I38: 0 | J38: 0
A39: Оплата водопостачання та водовідведення | B39: 2272 | C39: 170 | D39: 4400 | E39: 0 | F39: 0 | G39: 4144.91 | H39: 4144.91 | I39: 0 | J39: 0
A40: Оплата електроенергії | B40: 2273 | C40: 180 | D40: 50000 | E40: 0 | F40: 0 | G40: 49918.69 | H40: 49918.69 | I40: 0 | J40: 0
A41: Оплата природного газу | B41: 2274 | C41: 190 | D41: 0 | E41: 0 | F41: 0 | G41: 0 | H41: 0 | I41: 0 | J41: 0
A42: Оплата інших енергоносіїв | B42: 2275 | C42: 200 | D42: 80100 | E42: 0 | F42: 0 | G42: 79640 | H42: 79640 | I42: 0 | J42: 0
A43: Оплата енергосервісу | B43: 2276 | C43: 210 | D43: 0 | E43: 0 | F43: 0 | G43: 0 | H43: 0 | I43: 0 | J43: =F43+G43-H43 -> 0
A44: Дослідження і розробки, окремі заходи по реалізації державних (регіональних) програм | B44: 2280 | C44: 220 | D44: =SUM(D45:D46) -> 310 | E44: 0 | F44: =SUM(F45:F46) -> 0 | G44: =SUM(G45:G46) -> 0 | H44: =SUM(H45:H46) -> 0 | I44: =SUM(I45:I46) -> 0 | J44: 0
A45: Дослідження і розробки, окремі заходи розвитку по реалізації державних (регіональних) програм | B45: 2281 | C45: 230 | D45: 0 | E45: 0 | F45: 0 | G45: 0 | H45: 0 | I45: 0 | J45: 0
A46: Окремі заходи по реалізації державних (регіональних) програм, не віднесені до заходів розвитку | B46: 2282 | C46: 240 | D46: 310 | E46: 310 | F46: 0 | G46: 0 | H46: 0 | I46: 0 | J46: 0
A47: Обслуговування боргових зобов’язань | B47: 2400 | C47: 250 | D47: =SUM(D48:D49) -> 0 | E47: 0 | F47: 0 | G47: 0 | H47: 0 | I47: 0 | J47: 0
A48: Обслуговування внутрішніх боргових зобов’язань | B48: 2410 | C48: 260 | D48: 0 | E48: 0 | F48: 0 | G48: 0 | H48: 0 | I48: 0 | J48: 0
A49: Обслуговування зовнішніх боргових зобов’язань | B49: 2420 | C49: 270 | D49: 0 | E49: 0 | F49: 0 | G49: 0 | H49: 0 | I49: 0 | J49: 0
A50: Поточні трансферти | B50: 2600 | C50: 280 | D50: =SUM(D51:D53) -> 0 | E50: 0 | F50: 0 | G50: 0 | H50: 0 | I50: 0 | J50: 0
A51: Субсидії та поточні трансферти підприємствам (установам, організаціям) | B51: 2610 | C51: 290 | D51: 0 | E51: 0 | F51: 0 | G51: 0 | H51: 0 | I51: 0 | J51: 0
A52: Поточні трансферти органам державного управління інших рівнів | B52: 2620 | C52: 300 | D52: 0 | E52: 0 | F52: 0 | G52: 0 | H52: 0 | I52: 0 | J52: 0
A53: Поточні трансферти урядам іноземних держав та міжнародним організаціям | B53: 2630 | C53: 310 | D53: 0 | E53: 0 | F53: 0 | G53: 0 | H53: 0 | I53: 0 | J53: 0
A54: Соціальне забезпечення | B54: 2700 | C54: 320 | D54: =SUM(D55:D57) -> 0 | E54: 0 | F54: 0 | G54: 0 | H54: 0 | I54: 0 | J54: 0
A55: Виплата пенсій і допомоги | B55: 2710 | C55: 330 | D55: 0 | E55: 0 | F55: 0 | G55: 0 | H55: 0 | I55: 0 | J55: 0
A56: Стипендії | B56: 2720 | C56: 340 | D56: 0 | E56: 0 | F56: 0 | G56: 0 | H56: 0 | I56: 0 | J56: 0
A57: Інші виплати населенню | B57: 2730 | C57: 350 | D57: 0 | E57: 0 | F57: 0 | G57: 0 | H57: 0 | I57: 0 | J57: 0
A58: Інші поточні видатки | B58: 2800 | C58: 360 | D58: 70 | E58: 0 | F58: 0 | G58: 0 | H58: 0 | I58: 0 | J58: 0
A59: Капітальні видатки | B59: 3000 | C59: 370 | D59: =D60+D74 -> 0 | E59: 0 | F59: 0 | G59: 0 | H59: 0 | I59: 0 | J59: 0
A60: Придбання основного капіталу | B60: 3100 | C60: 380 | D60: =D61+D62+D65+D68+D72+D73 -> 0 | E60: 0 | F60: 0 | G60: 0 | H60: 0 | I60: 0 | J60: 0
A61: Придбання обладнання і предметів довгострокового користування | B61: 3110 | C61: 390 | D61: 0 | E61: 0 | F61: 0 | G61: 0 | H61: 0 | I61: 0 | J61: 0
A62: Капітальне будівництво (придбання) | B62: 3120 | C62: 400 | D62: =SUM(D63:D64) -> 0 | E62: 0 | F62: 0 | G62: 0 | H62: 0 | I62: 0 | J62: 0
A63: Капітальне будівництво (придбання) житла | B63: 3121 | C63: 410 | D63: 0 | E63: 0 | F63: 0 | G63: 0 | H63: 0 | I63: 0 | J63: 0
A64: Капітальне будівництво (придбання) інших об’єктів | B64: 3122 | C64: 420 | D64: 0 | E64: 0 | F64: 0 | G64: 0 | H64: 0 | I64: 0 | J64: 0
A65: Капітальний ремонт | B65: 3130 | C65: 430 | D65: =SUM(D66:D67) -> 0 | E65: 0 | F65: 0 | G65: 0 | H65: 0 | I65: 0 | J65: 0
A66: Капітальний ремонт житлового фонду (приміщень) | B66: 3131 | C66: 440 | D66: 0 | E66: 0 | F66: 0 | G66: 0 | H66: 0 | I66: 0 | J66: 0
A67: Капітальний ремонт інших об’єктів | B67: 3132 | C67: 450 | D67: 0 | E67: 0 | F67: 0 | G67: 0 | H67: 0 | I67: 0 | J67: 0
A68: Реконструкція та реставрація | B68: 3140 | C68: 460 | D68: =SUM(D69:D71) -> 0 | E68: 0 | F68: 0 | G68: 0 | H68: 0 | I68: 0 | J68: 0
A69: Реконструкція житлового фонду (приміщень) | B69: 3141 | C69: 470 | D69: 0 | E69: 0 | F69: 0 | G69: 0 | H69: 0 | I69: 0 | J69: 0
A70: Реконструкція та реставрація інших об’єктів | B70: 3142 | C70: 480 | D70: 0 | E70: 0 | F70: 0 | G70: 0 | H70: 0 | I70: 0 | J70: 0
A71: Реставрація пам’яток культури, історії та архітектури | B71: 3143 | C71: 490 | D71: 0 | E71: 0 | F71: 0 | G71: 0 | H71: 0 | I71: 0 | J71: 0
A72: Створення державних запасів і резервів | B72: 3150 | C72: 500 | D72: 0 | E72: 0 | F72: 0 | G72: 0 | H72: 0 | I72: 0 | J72: 0
A73: Придбання землі та нематеріальних активів | B73: 3160 | C73: 510 | D73: 0 | E73: 0 | F73: 0 | G73: 0 | H73: 0 | I73: 0 | J73: 0
A74: Капітальні трансферти | B74: 3200 | C74: 520 | D74: =SUM(D75:D78) -> 0 | E74: 0 | F74: 0 | G74: 0 | H74: 0 | I74: 0 | J74: 0
A75: Капітальні трансферти підприємствам (установам, організаціям) | B75: 3210 | C75: 530 | D75: 0 | E75: 0 | F75: 0 | G75: 0 | H75: 0 | I75: 0 | J75: 0
A76: Капітальні трансферти органам державного управління інших рівнів | B76: 3220 | C76: 540 | D76: 0 | E76: 0 | F76: 0 | G76: 0 | H76: 0 | I76: 0 | J76: 0
A77: Капітальні трансферти урядам іноземних держав та міжнародним організаціям | B77: 3230 | C77: 550 | D77: 0 | E77: 0 | F77: 0 | G77: 0 | H77: 0 | I77: 0 | J77: 0
A78: Капітальні трансферти населенню | B78: 3240 | C78: 560 | D78: 0 | E78: 0 | F78: 0 | G78: 0 | H78: 0 | I78: 0 | J78: 0
A79: Внутрішнє кредитування | B79: 4100 | C79: 570 | D79: =SUM(D80) -> 0 | E79: 0 | F79: 0 | G79: 0 | H79: 0 | I79: 0 | J79: 0
A80: Надання внутрішніх кредитів | B80: 4110 | C80: 580 | D80: =SUM(D81:D83) -> 0 | E80: 0 | F80: 0 | G80: 0 | H80: 0 | I80: 0 | J80: 0
A81: Надання кредитів органам державного управління інших рівнів | B81: 4111 | C81: 590 | D81: 0 | E81: 0 | F81: 0 | G81: 0 | H81: 0 | I81: 0 | J81: 0
A82: Надання кредитів підприємствам, установам, організаціям | B82: 4112 | C82: 600 | D82: 0 | E82: 0 | F82: 0 | G82: 0 | H82: 0 | I82: 0 | J82: 0
A83: Надання інших внутрішніх кредитів | B83: 4113 | C83: 610 | D83: 0 | E83: 0 | F83: 0 | G83: 0 | H83: 0 | I83: 0 | J83: 0
A84: Зовнішнє кредитування | B84: 4200 | C84: 620 | D84: =D85 -> 0 | E84: 0 | F84: 0 | G84: 0 | H84: 0 | I84: 0 | J84: 0
A85: Надання зовнішніх кредитів | B85: 4210 | C85: 630 | D85: 0 | E85: 0 | F85: 0 | G85: 0 | H85: 0 | I85: 0 | J85: 0
A86: Інші видатки | B86: 5000 | C86: 640 | D86: X | E86: 14004 | F86: X | G86: X | H86: X | I86: X | J86: X
A87: Нерозподілені видатки | B87: 9000 | C87: 650 | D87: 0 | E87: 0 | F87: 0 | G87: 0 | H87: 0 | I87: 0 | J87: 0
C88: 650
A100: 1 Заповнюється розпорядниками бюджетних коштів.
A101: =ЗАПОЛНИТЬ!F30 -> Керівник | G101: =ЗАПОЛНИТЬ!F26 -> Т.П. Петрук
D102: (підпис) | G102: (ініціали, прізвище)
A103: =ЗАПОЛНИТЬ!F31 -> Головний бухгалтер | G103: =ЗАПОЛНИТЬ!F28 -> В.В. Петрук
A104: =ЗАПОЛНИТЬ!C19 -> "12"січня 2018 року | D104: (підпис) | G104: (ініціали, прізвище)

Sheet Ф.2.3
G1: Додаток 1 до Порядку складання бюджетної звітності розпорядниками та одержувачами бюджетних коштів, звітності фондами загальнообов’язкового державного соціального і пенсійного страхування (пункт 1 розділу ІІ)
A4: ЗВІТ
A5: =IF(ЗАПОЛНИТЬ!$F$7=1,CONCATENATE(шапки!A2),CONCATENATE(шапки!A2,шапки!C2)) -> про надходження та використання коштів загального фонду (форма №2д, | G5: =IF(ЗАПОЛНИТЬ!$F$7=1,шапки!C2,шапки!D2) -> №2м) | H5: =IF(ЗАПОЛНИТЬ!$F$7=1,шапки!D2,"") -> 
A6: =CONCATENATE("за ",ЗАПОЛНИТЬ!$B$17," ",ЗАПОЛНИТЬ!$C$17) -> за 2017 р.
J7: коди
A9: Установа | B9: =ЗАПОЛНИТЬ!B3 -> Рафалівський НВК "ЗОШ Іст.-ДНЗ" | H9: за ЄДРПОУ | J9: =ЗАПОЛНИТЬ!B13 -> 25894582
A10: Територія | B10: =ЗАПОЛНИТЬ!B5 -> смт. Рафалівка | H10: за КОАТУУ | J10: =ЗАПОЛНИТЬ!B14 -> 5620855400
A11: Організаційно-правова форма господарювання | B11: =ЗАПОЛНИТЬ!D15 -> Комунальна організація (установа, заклад) | H11: за КОПФГ | J11: =ЗАПОЛНИТЬ!B15 -> 430
A12: Код та назва відомчої класифікації видатків та кредитування державного бюджету | D12: =ЗАПОЛНИТЬ!H9 -> 0 | E12: =IF(D12>0,VLOOKUP(D12,'ДовидникКВК(ГОС)'!A:B,2,FALSE),"") -> 
A13: Код та назва програмної класифікації видатків та кредитування державного бюджету | E13: =IF(D13>0,VLOOKUP(D13,ДовидникКПК!B:C,2,FALSE),"") -> 
A14: Код та назва типової відомчої класифікації видатків та кредитування місцевих бюджетів | D14: =ЗАПОЛНИТЬ!H10 -> 10 | E14: =ЗАПОЛНИТЬ!I10 -> Орган з питань освіти і науки
A15: Код та назва програмної класифікації видатків та кредитування місцевих бюджетів (код та назва Типової програмної класифікації видатків та кредитування місцевих бюджетів / Тимчасової класифікації видатків та кредитування для бюджетів місцевого самоврядування, які не застосовують програмно-цільового методу) | D15: 1011220 | E15: =VLOOKUP(RIGHT(D15,4),КПКВМБ!A:B,2,FALSE) -> Інші освітні програми
A16: Періодичність: квартальна, річна
A17: Одиниця виміру: грн, коп.
A19: Показники | B19: КЕКВ та/або ККК | C19: Код рядка | D19: Затверджено на звітний рік | E19: Затверджено на звітний період (рік)1 | F19: Залишок на початок звітного року | G19: Надійшло коштів за звітний період (рік) | H19: Касові за звітний період (рік) | I19: Фактичні за звітний період (рік) | J19: Залишок на кінець звітного періоду (року)
A22: 1 | B22: 2 | C22: 3 | D22: 4 | E22: 5 | F22: 6 | G22: 7 | H22: 8 | I22: 9 | J22: 9
A23: Видатки та надання кредитів - усього | B23: Х | C23: 010 | D23: =D24+D59+D79+D84+D87 -> 83250 | E23: =E26+E29+E32+E33+E37+E45+E46+E86+E54 -> 83250 | F23: =F24+F59+F79+F84+F87 -> 0 | G23: =G24+G59+G79+G84+G87 -> 82849.71 | H23: =H24+H59+H79+H84+H87 -> 82849.71 | I23: =I24+I59+I79+I84+I87 -> 0 | J23: =F23+G23-H23 -> 0
A24: у тому числі: Поточні видатки | B24: 2000 | C24: 020 | D24: =D25+D30+D47+D50+D54+D58 -> 83250 | E24: 0 | F24: 0 | G24: 82849.71 | H24: 82849.71 | I24: 0 | J24: =F24+G24-H24 -> 0
A25: Оплата праці і нарахування на заробітну плату | B25: 2100 | C25: 030 | D25: =D26+D29 -> 0 | E25: 0 | F25: =F26+F29 -> 0 | G25: =G26+G29 -> 0 | H25: =H26+H29 -> 0 | I25: =I26+I29 -> 0 | J25: 0
A26: Оплата праці | B26: 2110 | C26: 040 | D26: =SUM(D27:D28) -> 0 | E26: 0 | F26: 0 | G26: 0 | H26: 0 | I26: 0 | J26: 0
A27: Заробітна плата | B27: 2111 | C27: 050 | D27: 0 | E27: 0 | F27: 0 | G27: 0 | H27: 0 | I27: 0 | J27: 0
A28: Грошове забезпечення військовослужбовців | B28: 2112 | C28: 060 | D28: 0 | E28: 0 | F28: 0 | G28: 0 | H28: 0 | I28: 0 | J28: 0
A29: Нарахування на оплату праці | B29: 2120 | C29: 070 | D29: 0 | E29: 0 | F29: 0 | G29: 0 | H29: 0 | I29: 0 | J29: 0
A30: Використання товарів і послуг | B30: 2200 | C30: 080 | D30: =SUM(D31:D37)+D44 -> 83250 | E30: 0 | F30: =SUM(F31:F37)+F44 -> 0 | G30: =SUM(G31:G37)+G44 -> 82849.71 | H30: =SUM(H31:H37)+H44 -> 82849.71 | I30: =SUM(I31:I37)+I44 -> 0 | J30: 0
A31: Предмети, матеріали, обладнання та інвентар | B31: 2210 | C31: 090 | D31: 0 | E31: 0 | F31: 0 | G31: 0 | H31: 0 | I31: 0 | J31: 0
A32: Медикаменти та перев’язувальні матеріали | B32: 2220 | C32: 100 | D32: 0 | E32: 0 | F32: 0 | G32: 0 | H32: 0 | I32: 0 | J32: 0
A33: Продукти харчування | B33: 2230 | C33: 110 | D33: 83250 | E33: 83250 | F33: 0 | G33: 82849.71 | H33: 82849.71 | I33: 0 | J33: 0
A34: Оплата послуг (крім комунальних) | B34: 2240 | C34: 120 | D34: 0 | E34: 0 | F34: 0 | G34: 0 | H34: 0 | I34: 0 | J34: 0
A35: Видатки на відрядження | B35: 2250 | C35: 130 | D35: 0 | E35: 0 | F35: 0 | G35: 0 | H35: 0 | I35: 0 | J35: 0
A36: Видатки та заходи спеціального призначення | B36: 2260 | C36: 140 | D36: 0 | E36: 0 | F36: 0 | G36: 0 | H36: 0 | I36: 0 | J36: 0
A37: Оплата комунальних послуг та енергоносіїв | B37: 2270 | C37: 150 | D37: =SUM(D38:D43) -> 0 | E37: 0 | F37: =SUM(F38:F43) -> 0 | G37: =SUM(G38:G43) -> 0 | H37: =SUM(H38:H43) -> 0 | I37: =SUM(I38:I43) -> 0 | J37: =F37+G37-H37 -> 0
A38: Оплата теплопостачання | B38: 2271 | C38: 160 | D38: 0 | E38: 0 | F38: 0 | G38: 0 | H38: 0 | I38: 0 | J38: 0
A39: Оплата водопостачання та водовідведення | B39: 2272 | C39: 170 | D39: 0 | E39: 0 | F39: 0 | G39: 0 | H39: 0 | I39: 0 | J39: 0
A40: Оплата електроенергії | B40: 2273 | C40: 180 | D40: 0 | E40: 0 | F40: 0 | G40: 0 | H40: 0 | I40: 0 | J40: 0
A41: Оплата природного газу | B41: 2274 | C41: 190 | D41: 0 | E41: 0 | F41: 0 | G41: 0 | H41: 0 | I41: 0 | J41: 0
A42: Оплата інших енергоносіїв | B42: 2275 | C42: 200 | D42: 0 | E42: 0 | F42: 0 | G42: 0 | H42: 0 | I42: 0 | J42: 0
A43: Оплата енергосервісу | B43: 2276 | C43: 210 | D43: 0 | E43: 0 | F43: 0 | G43: 0 | H43: 0 | I43: 0 | J43: =F43+G43-H43 -> 0
A44: Дослідження і розробки, окремі заходи по реалізації державних (регіональних) програм | B44: 2280 | C44: 220 | D44: =SUM(D45:D46) -> 0 | E44: 0 | F44: =SUM(F45:F46) -> 0 | G44: =SUM(G45:G46) -> 0 | H44: =SUM(H45:H46) -> 0 | I44: =SUM(I45:I46) -> 0 | J44: 0
A45: Дослідження і розробки, окремі заходи розвитку по реалізації державних (регіональних) програм | B45: 2281 | C45: 230 | D45: 0 | E45: 0 | F45: 0 | G45: 0 | H45: 0 | I45: 0 | J45: 0
A46: Окремі заходи по реалізації державних (регіональних) програм, не віднесені до заходів розвитку | B46: 2282 | C46: 240 | D46: 0 | E46: 0 | F46: 0 | G46: 0 | H46: 0 | I46: 0 | J46: 0
A47: Обслуговування боргових зобов’язань | B47: 2400 | C47: 250 | D47: =SUM(D48:D49) -> 0 | E47: 0 | F47: 0 | G47: 0 | H47: 0 | I47: 0 | J47: 0
A48: Обслуговування внутрішніх боргових зобов’язань | B48: 2410 | C48: 260 | D48: 0 | E48: 0 | F48: 0 | G48: 0 | H48: 0 | I48: 0 | J48: 0
A49: Обслуговування зовнішніх боргових зобов’язань | B49: 2420 | C49: 270 | D49: 0 | E49: 0 | F49: 0 | G49: 0 | H49: 0 | I49: 0 | J49: 0
A50: Поточні трансферти | B50: 2600 | C50: 280 | D50: =SUM(D51:D53) -> 0 | E50: 0 | F50: 0 | G50: 0 | H50: 0 | I50: 0 | J50: 0
A51: Субсидії та поточні трансферти підприємствам (установам, організаціям) | B51: 2610 | C51: 290 | D51: 0 | E51: 0 | F51: 0 | G51: 0 | H51: 0 | I51: 0 | J51: 0
A52: Поточні трансферти органам державного управління інших рівнів | B52: 2620 | C52: 300 | D52: 0 | E52: 0 | F52: 0 | G52: 0 | H52: 0 | I52: 0 | J52: 0
A53: Поточні трансферти урядам іноземних держав та міжнародним організаціям | B53: 2630 | C53: 310 | D53: 0 | E53: 0 | F53: 0 | G53: 0 | H53: 0 | I53: 0 | J53: 0
A54: Соціальне забезпечення | B54: 2700 | C54: 320 | D54: =SUM(D55:D57) -> 0 | E54: 0 | F54: 0 | G54: 0 | H54: 0 | I54: 0 | J54: 0
A55: Виплата пенсій і допомоги | B55: 2710 | C55: 330 | D55: 0 | E55: 0 | F55: 0 | G55: 0 | H55: 0 | I55: 0 | J55: 0
A56: Стипендії | B56: 2720 | C56: 340 | D56: 0 | E56: 0 | F56: 0 | G56: 0 | H56: 0 | I56: 0 | J56: 0
A57: Інші виплати населенню | B57: 2730 | C57: 350 | D57: 0 | E57: 0 | F57: 0 | G57: 0 | H57: 0 | I57: 0 | J57: 0
A58: Інші поточні видатки | B58: 2800 | C58: 360 | D58: 0 | E58: 0 | F58: 0 | G58: 0 | H58: 0 | I58: 0 | J58: 0
A59: Капітальні видатки | B59: 3000 | C59: 370 | D59: =D60+D74 -> 0 | E59: 0 | F59: 0 | G59: 0 | H59: 0 | I59: 0 | J59: 0
A60: Придбання основного капіталу | B60: 3100 | C60: 380 | D60: =D61+D62+D65+D68+D72+D73 -> 0 | E60: 0 | F60: 0 | G60: 0 | H60: 0 | I60: 0 | J60: 0
A61: Придбання обладнання і предметів довгострокового користування | B61: 3110 | C61: 390 | D61: 0 | E61: 0 | F61: 0 | G61: 0 | H61: 0 | I61: 0 | J61: 0
A62: Капітальне будівництво (придбання) | B62: 3120 | C62: 400 | D62: =SUM(D63:D64) -> 0 | E62: 0 | F62: 0 | G62: 0 | H62: 0 | I62: 0 | J62: 0
A63: Капітальне будівництво (придбання) житла | B63: 3121 | C63: 410 | D63: 0 | E63: 0 | F63: 0 | G63: 0 | H63: 0 | I63: 0 | J63: 0
A64: Капітальне будівництво (придбання) інших об’єктів | B64: 3122 | C64: 420 | D64: 0 | E64: 0 | F64: 0 | G64: 0 | H64: 0 | I64: 0 | J64: 0
A65: Капітальний ремонт | B65: 3130 | C65: 430 | D65: =SUM(D66:D67) -> 0 | E65: 0 | F65: 0 | G65: 0 | H65: 0 | I65: 0 | J65: 0
A66: Капітальний ремонт житлового фонду (приміщень) | B66: 3131 | C66: 440 | D66: 0 | E66: 0 | F66: 0 | G66: 0 | H66: 0 | I66: 0 | J66: 0
A67: Капітальний ремонт інших об’єктів | B67: 3132 | C67: 450 | D67: 0 | E67: 0 | F67: 0 | G67: 0 | H67: 0 | I67: 0 | J67: 0
A68: Реконструкція та реставрація | B68: 3140 | C68: 460 | D68: =SUM(D69:D71) -> 0 | E68: 0 | F68: 0 | G68: 0 | H68: 0 | I68: 0 | J68: 0
A69: Реконструкція житлового фонду (приміщень) | B69: 3141 | C69: 470 | D69: 0 | E69: 0 | F69: 0 | G69: 0 | H69: 0 | I69: 0 | J69: 0
A70: Реконструкція та реставрація інших об’єктів | B70: 3142 | C70: 480 | D70: 0 | E70: 0 | F70: 0 | G70: 0 | H70: 0 | I70: 0 | J70: 0
A71: Реставрація пам’яток культури, історії та архітектури | B71: 3143 | C71: 490 | D71: 0 | E71: 0 | F71: 0 | G71: 0 | H71: 0 | I71: 0 | J71: 0
A72: Створення державних запасів і резервів | B72: 3150 | C72: 500 | D72: 0 | E72: 0 | F72: 0 | G72: 0 | H72: 0 | I72: 0 | J72: 0
A73: Придбання землі та нематеріальних активів | B73: 3160 | C73: 510 | D73: 0 | E73: 0 | F73: 0 | G73: 0 | H73: 0 | I73: 0 | J73: 0
A74: Капітальні трансферти | B74: 3200 | C74: 520 | D74: =SUM(D75:D78) -> 0 | E74: 0 | F74: 0 | G74: 0 | H74: 0 | I74: 0 | J74: 0
A75: Капітальні трансферти підприємствам (установам, організаціям) | B75: 3210 | C75: 530 | D75: 0 | E75: 0 | F75: 0 | G75: 0 | H75: 0 | I75: 0 | J75: 0
A76: Капітальні трансферти органам державного управління інших рівнів | B76: 3220 | C76: 540 | D76: 0 | E76: 0 | F76: 0 | G76: 0 | H76: 0 | I76: 0 | J76: 0
A77: Капітальні трансферти урядам іноземних держав та міжнародним організаціям | B77: 3230 | C77: 550 | D77: 0 | E77: 0 | F77: 0 | G77: 0 | H77: 0 | I77: 0 | J77: 0
A78: Капітальні трансферти населенню | B78: 3240 | C78: 560 | D78: 0 | E78: 0 | F78: 0 | G78: 0 | H78: 0 | I78: 0 | J78: 0
A79: Внутрішнє кредитування | B79: 4100 | C79: 570 | D79: =SUM(D80) -> 0 | E79: 0 | F79: 0 | G79: 0 | H79: 0 | I79: 0 | J79: 0
A80: Надання внутрішніх кредитів | B80: 4110 | C80: 580 | D80: =SUM(D81:D83) -> 0 | E80: 0 | F80: 0 | G80: 0 | H80: 0 | I80: 0 | J80: 0
A81: Надання кредитів органам державного управління інших рівнів | B81: 4111 | C81: 590 | D81: 0 | E81: 0 | F81: 0 | G81: 0 | H81: 0 | I81: 0 | J81: 0
A82: Надання кредитів підприємствам, установам, організаціям | B82: 4112 | C82: 600 | D82: 0 | E82: 0 | F82: 0 | G82: 0 | H82: 0 | I82: 0 | J82: 0
A83: Надання інших внутрішніх кредитів | B83: 4113 | C83: 610 | D83: 0 | E83: 0 | F83: 0 | G83: 0 | H83: 0 | I83: 0 | J83: 0
A84: Зовнішнє кредитування | B84: 4200 | C84: 620 | D84: =D85 -> 0 | E84: 0 | F84: 0 | G84: 0 | H84: 0 | I84: 0 | J84: 0
A85: Надання зовнішніх кредитів | B85: 4210 | C85: 630 | D85: 0 | E85: 0 | F85: 0 | G85: 0 | H85: 0 | I85: 0 | J85: 0
A86: Інші видатки | B86: 5000 | C86: 640 | D86: X | E86: 0 | F86: X | G86: X | H86: X | I86: X | J86: X
A87: Нерозподілені видатки | B87: 9000 | C87: 650 | D87: 0 | E87: 0 | F87: 0 | G87: 0 | H87: 0 | I87: 0 | J87: 0
C88: 650
A100: 1 Заповнюється розпорядниками бюджетних коштів.
A101: =ЗАПОЛНИТЬ!F30 -> Керівник | G101: =ЗАПОЛНИТЬ!F26 -> Т.П. Петрук
D102: (підпис) | G102: (ініціали, прізвище)
A103: =ЗАПОЛНИТЬ!F31 -> Головний бухгалтер | G103: =ЗАПОЛНИТЬ!F28 -> В.В. Петрук
A104: =ЗАПОЛНИТЬ!C19 -> "12"січня 2018 року | D104: (підпис) | G104: (ініціали, прізвище)

Sheet Ф.2.4
G1: Додаток 1 до Порядку складання бюджетної звітності розпорядниками та одержувачами бюджетних коштів, звітності фондами загальнообов’язкового державного соціального і пенсійного страхування (пункт 1 розділу ІІ)
A4: ЗВІТ
A5: =IF(ЗАПОЛНИТЬ!$F$7=1,CONCATENATE(шапки!A2),CONCATENATE(шапки!A2,шапки!C2)) -> про надходження та використання коштів загального фонду (форма №2д, | G5: =IF(ЗАПОЛНИТЬ!$F$7=1,шапки!C2,шапки!D2) -> №2м) | H5: =IF(ЗАПОЛНИТЬ!$F$7=1,шапки!D2,"") -> 
A6: =CONCATENATE("за ",ЗАПОЛНИТЬ!$B$17," ",ЗАПОЛНИТЬ!$C$17) -> за 2017 р.
J7: коди
A9: Установа | B9: =ЗАПОЛНИТЬ!B3 -> Рафалівський НВК "ЗОШ Іст.-ДНЗ" | H9: за ЄДРПОУ | J9: =ЗАПОЛНИТЬ!B13 -> 25894582
A10: Територія | B10: =ЗАПОЛНИТЬ!B5 -> смт. Рафалівка | H10: за КОАТУУ | J10: =ЗАПОЛНИТЬ!B14 -> 5620855400
A11: Організаційно-правова форма господарювання | B11: =ЗАПОЛНИТЬ!D15 -> Комунальна організація (установа, заклад) | H11: за КОПФГ | J11: =ЗАПОЛНИТЬ!B15 -> 430
A12: Код та назва відомчої класифікації видатків та кредитування державного бюджету | D12: =ЗАПОЛНИТЬ!H9 -> 0 | E12: =IF(D12>0,VLOOKUP(D12,'ДовидникКВК(ГОС)'!A:B,2,FALSE),"") -> 
A13: Код та назва програмної класифікації видатків та кредитування державного бюджету | E13: =IF(D13>0,VLOOKUP(D13,ДовидникКПК!B:C,2,FALSE),"") -> 
A14: Код та назва типової відомчої класифікації видатків та кредитування місцевих бюджетів | D14: =ЗАПОЛНИТЬ!H10 -> 10 | E14: =ЗАПОЛНИТЬ!I10 -> Орган з питань освіти і науки
A15: Код та назва програмної класифікації видатків та кредитування місцевих бюджетів (код та назва Типової програмної класифікації видатків та кредитування місцевих бюджетів / Тимчасової класифікації видатків та кредитування для бюджетів місцевого самоврядування, які не застосовують програмно-цільового методу) | D15: - | E15: =VLOOKUP(RIGHT(D15,4),КПКВМБ!A:B,2,FALSE) -> -
A16: Періодичність: квартальна, річна
A17: Одиниця виміру: грн, коп.
A19: Показники | B19: КЕКВ та/або ККК | C19: Код рядка | D19: Затверджено на звітний рік | E19: Затверджено на звітний період (рік)1 | F19: Залишок на початок звітного року | G19: Надійшло коштів за звітний період (рік) | H19: Касові за звітний період (рік) | I19: Фактичні за звітний період (рік) | J19: Залишок на кінець звітного періоду (року)
A22: 1 | B22: 2 | C22: 3 | D22: 4 | E22: 5 | F22: 6 | G22: 7 | H22: 8 | I22: 9 | J22: 9
A23: Видатки та надання кредитів - усього | B23: Х | C23: 010 | D23: =D24+D59+D79+D84+D87 -> 0 | E23: =E26+E29+E32+E33+E37+E45+E46+E86+E54 -> 0 | F23: =F24+F59+F79+F84+F87 -> 0 | G23: =G24+G59+G79+G84+G87 -> 0 | H23: =H24+H59+H79+H84+H87 -> 0 | I23: =I24+I59+I79+I84+I87 -> 0 | J23: =F23+G23-H23 -> 0
A24: у тому числі: Поточні видатки | B24: 2000 | C24: 020 | D24: =D25+D30+D47+D50+D54+D58 -> 0 | E24: 0 | F24: 0 | G24: 0 | H24: 0 | I24: 0 | J24: =F24+G24-H24 -> 0
A25: Оплата праці і нарахування на заробітну плату | B25: 2100 | C25: 030 | D25: =D26+D29 -> 0 | E25: 0 | F25: =F26+F29 -> 0 | G25: =G26+G29 -> 0 | H25: =H26+H29 -> 0 | I25: =I26+I29 -> 0 | J25: 0
A26: Оплата праці | B26: 2110 | C26: 040 | D26: =SUM(D27:D28) -> 0 | E26: 0 | F26: 0 | G26: 0 | H26: 0 | I26: 0 | J26: 0
A27: Заробітна плата | B27: 2111 | C27: 050 | D27: 0 | E27: 0 | F27: 0 | G27: 0 | H27: 0 | I27: 0 | J27: 0
A28: Грошове забезпечення військовослужбовців | B28: 2112 | C28: 060 | D28: 0 | E28: 0 | F28: 0 | G28: 0 | H28: 0 | I28: 0 | J28: 0
A29: Нарахування на оплату праці | B29: 2120 | C29: 070 | D29: 0 | E29: 0 | F29: 0 | G29: 0 | H29: 0 | I29: 0 | J29: 0
A30: Використання товарів і послуг | B30: 2200 | C30: 080 | D30: =SUM(D31:D37)+D44 -> 0 | E30: 0 | F30: =SUM(F31:F37)+F44 -> 0 | G30: =SUM(G31:G37)+G44 -> 0 | H30: =SUM(H31:H37)+H44 -> 0 | I30: =SUM(I31:I37)+I44 -> 0 | J30: 0
A31: Предмети, матеріали, обладнання та інвентар | B31: 2210 | C31: 090 | D31: 0 | E31: 0 | F31: 0 | G31: 0 | H31: 0 | I31: 0 | J31: 0
A32: Медикаменти та перев’язувальні матеріали | B32: 2220 | C32: 100 | D32: 0 | E32: 0 | F32: 0 | G32: 0 | H32: 0 | I32: 0 | J32: 0
A33: Продукти харчування | B33: 2230 | C33: 110 | D33: 0 | E33: 0 | F33: 0 | G33: 0 | H33: 0 | I33: 0 | J33: 0
A34: Оплата послуг (крім комунальних) | B34: 2240 | C34: 120 | D34: 0 | E34: 0 | F34: 0 | G34: 0 | H34: 0 | I34: 0 | J34: 0
A35: Видатки на відрядження | B35: 2250 | C35: 130 | D35: 0 | E35: 0 | F35: 0 | G35: 0 | H35: 0 | I35: 0 | J35: 0
A36: Видатки та заходи спеціального призначення | B36: 2260 | C36: 140 | D36: 0 | E36: 0 | F36: 0 | G36: 0 | H36: 0 | I36: 0 | J36: 0
A37: Оплата комунальних послуг та енергоносіїв | B37: 2270 | C37: 150 | D37: =SUM(D38:D43) -> 0 | E37: 0 | F37: =SUM(F38:F43) -> 0 | G37: =SUM(G38:G43) -> 0 | H37: =SUM(H38:H43) -> 0 | I37: =SUM(I38:I43) -> 0 | J37: =F37+G37-H37 -> 0
A38: Оплата теплопостачання | B38: 2271 | C38: 160 | D38: 0 | E38: 0 | F38: 0 | G38: 0 | H38: 0 | I38: 0 | J38: 0
A39: Оплата водопостачання та водовідведення | B39: 2272 | C39: 170 | D39: 0 | E39: 0 | F39: 0 | G39: 0 | H39: 0 | I39: 0 | J39: 0
A40: Оплата електроенергії | B40: 2273 | C40: 180 | D40: 0 | E40: 0 | F40: 0 | G40: 0 | H40: 0 | I40: 0 | J40: 0
A41: Оплата природного газу | B41: 2274 | C41: 190 | D41: 0 | E41: 0 | F41: 0 | G41: 0 | H41: 0 | I41: 0 | J41: 0
A42: Оплата інших енергоносіїв | B42: 2275 | C42: 200 | D42: 0 | E42: 0 | F42: 0 | G42: 0 | H42: 0 | I42: 0 | J42: 0
A43: Оплата енергосервісу | B43: 2276 | C43: 210 | D43: 0 | E43: 0 | F43: 0 | G43: 0 | H43: 0 | I43: 0 | J43: =F43+G43-H43 -> 0
A44: Дослідження і розробки, окремі заходи по реалізації державних (регіональних) програм | B44: 2280 | C44: 220 | D44: =SUM(D45:D46) -> 0 | E44: 0 | F44: =SUM(F45:F46) -> 0 | G44: =SUM(G45:G46) -> 0 | H44: =SUM(H45:H46) -> 0 | I44: =SUM(I45:I46) -> 0 | J44: 0
A45: Дослідження і розробки, окремі заходи розвитку по реалізації державних (регіональних) програм | B45: 2281 | C45: 230 | D45: 0 | E45: 0 | F45: 0 | G45: 0 | H45: 0 | I45: 0 | J45: 0
A46: Окремі заходи по реалізації державних (регіональних) програм, не віднесені до заходів розвитку | B46: 2282 | C46: 240 | D46: 0 | E46: 0 | F46: 0 | G46: 0 | H46: 0 | I46: 0 | J46: 0
A47: Обслуговування боргових зобов’язань | B47: 2400 | C47: 250 | D47: =SUM(D48:D49) -> 0 | E47: 0 | F47: 0 | G47: 0 | H47: 0 | I47: 0 | J47: 0
A48: Обслуговування внутрішніх боргових зобов’язань | B48: 2410 | C48: 260 | D48: 0 | E48: 0 | F48: 0 | G48: 0 | H48: 0 | I48: 0 | J48: 0
A49: Обслуговування зовнішніх боргових зобов’язань | B49: 2420 | C49: 270 | D49: 0 | E49: 0 | F49: 0 | G49: 0 | H49: 0 | I49: 0 | J49: 0
A50: Поточні трансферти | B50: 2600 | C50: 280 | D50: =SUM(D51:D53) -> 0 | E50: 0 | F50: 0 | G50: 0 | H50: 0 | I50: 0 | J50: 0
A51: Субсидії та поточні трансферти підприємствам (установам, організаціям) | B51: 2610 | C51: 290 | D51: 0 | E51: 0 | F51: 0 | G51: 0 | H51: 0 | I51: 0 | J51: 0
A52: Поточні трансферти органам державного управління інших рівнів | B52: 2620 | C52: 300 | D52: 0 | E52: 0 | F52: 0 | G52: 0 | H52: 0 | I52: 0 | J52: 0
A53: Поточні трансферти урядам іноземних держав та міжнародним організаціям | B53: 2630 | C53: 310 | D53: 0 | E53: 0 | F53: 0 | G53: 0 | H53: 0 | I53: 0 | J53: 0
A54: Соціальне забезпечення | B54: 2700 | C54: 320 | D54: =SUM(D55:D57) -> 0 | E54: 0 | F54: 0 | G54: 0 | H54: 0 | I54: 0 | J54: 0
A55: Виплата пенсій і допомоги | B55: 2710 | C55: 330 | D55: 0 | E55: 0 | F55: 0 | G55: 0 | H55: 0 | I55: 0 | J55: 0
A56: Стипендії | B56: 2720 | C56: 340 | D56: 0 | E56: 0 | F56: 0 | G56: 0 | H56: 0 | I56: 0 | J56: 0
A57: Інші виплати населенню | B57: 2730 | C57: 350 | D57: 0 | E57: 0 | F57: 0 | G57: 0 | H57: 0 | I57: 0 | J57: 0
A58: Інші поточні видатки | B58: 2800 | C58: 360 | D58: 0 | E58: 0 | F58: 0 | G58: 0 | H58: 0 | I58: 0 | J58: 0
A59: Капітальні видатки | B59: 3000 | C59: 370 | D59: =D60+D74 -> 0 | E59: 0 | F59: 0 | G59: 0 | H59: 0 | I59: 0 | J59: 0
A60: Придбання основного капіталу | B60: 3100 | C60: 380 | D60: =D61+D62+D65+D68+D72+D73 -> 0 | E60: 0 | F60: 0 | G60: 0 | H60: 0 | I60: 0 | J60: 0
A61: Придбання обладнання і предметів довгострокового користування | B61: 3110 | C61: 390 | D61: 0 | E61: 0 | F61: 0 | G61: 0 | H61: 0 | I61: 0 | J61: 0
A62: Капітальне будівництво (придбання) | B62: 3120 | C62: 400 | D62: =SUM(D63:D64) -> 0 | E62: 0 | F62: 0 | G62: 0 | H62: 0 | I62: 0 | J62: 0
A63: Капітальне будівництво (придбання) житла | B63: 3121 | C63: 410 | D63: 0 | E63: 0 | F63: 0 | G63: 0 | H63: 0 | I63: 0 | J63: 0
A64: Капітальне будівництво (придбання) інших об’єктів | B64: 3122 | C64: 420 | D64: 0 | E64: 0 | F64: 0 | G64: 0 | H64: 0 | I64: 0 | J64: 0
A65: Капітальний ремонт | B65: 3130 | C65: 430 | D65: =SUM(D66:D67) -> 0 | E65: 0 | F65: 0 | G65: 0 | H65: 0 | I65: 0 | J65: 0
A66: Капітальний ремонт житлового фонду (приміщень) | B66: 3131 | C66: 440 | D66: 0 | E66: 0 | F66: 0 | G66: 0 | H66: 0 | I66: 0 | J66: 0
A67: Капітальний ремонт інших об’єктів | B67: 3132 | C67: 450 | D67: 0 | E67: 0 | F67: 0 | G67: 0 | H67: 0 | I67: 0 | J67: 0
A68: Реконструкція та реставрація | B68: 3140 | C68: 460 | D68: =SUM(D69:D71) -> 0 | E68: 0 | F68: 0 | G68: 0 | H68: 0 | I68: 0 | J68: 0
A69: Реконструкція житлового фонду (приміщень) | B69: 3141 | C69: 470 | D69: 0 | E69: 0 | F69: 0 | G69: 0 | H69: 0 | I69: 0 | J69: 0
A70: Реконструкція та реставрація інших об’єктів | B70: 3142 | C70: 480 | D70: 0 | E70: 0 | F70: 0 | G70: 0 | H70: 0 | I70: 0 | J70: 0
A71: Реставрація пам’яток культури, історії та архітектури | B71: 3143 | C71: 490 | D71: 0 | E71: 0 | F71: 0 | G71: 0 | H71: 0 | I71: 0 | J71: 0
A72: Створення державних запасів і резервів | B72: 3150 | C72: 500 | D72: 0 | E72: 0 | F72: 0 | G72: 0 | H72: 0 | I72: 0 | J72: 0
A73: Придбання землі та нематеріальних активів | B73: 3160 | C73: 510 | D73: 0 | E73: 0 | F73: 0 | G73: 0 | H73: 0 | I73: 0 | J73: 0
A74: Капітальні трансферти | B74: 3200 | C74: 520 | D74: =SUM(D75:D78) -> 0 | E74: 0 | F74: 0 | G74: 0 | H74: 0 | I74: 0 | J74: 0
A75: Капітальні трансферти підприємствам (установам, організаціям) | B75: 3210 | C75: 530 | D75: 0 | E75: 0 | F75: 0 | G75: 0 | H75: 0 | I75: 0 | J75: 0
A76: Капітальні трансферти органам державного управління інших рівнів | B76: 3220 | C76: 540 | D76: 0 | E76: 0 | F76: 0 | G76: 0 | H76: 0 | I76: 0 | J76: 0
A77: Капітальні трансферти урядам іноземних держав та міжнародним організаціям | B77: 3230 | C77: 550 | D77: 0 | E77: 0 | F77: 0 | G77: 0 | H77: 0 | I77: 0 | J77: 0
A78: Капітальні трансферти населенню | B78: 3240 | C78: 560 | D78: 0 | E78: 0 | F78: 0 | G78: 0 | H78: 0 | I78: 0 | J78: 0
A79: Внутрішнє кредитування | B79: 4100 | C79: 570 | D79: =SUM(D80) -> 0 | E79: 0 | F79: 0 | G79: 0 | H79: 0 | I79: 0 | J79: 0
A80: Надання внутрішніх кредитів | B80: 4110 | C80: 580 | D80: =SUM(D81:D83) -> 0 | E80: 0 | F80: 0 | G80: 0 | H80: 0 | I80: 0 | J80: 0
A81: Надання кредитів органам державного управління інших рівнів | B81: 4111 | C81: 590 | D81: 0 | E81: 0 | F81: 0 | G81: 0 | H81: 0 | I81: 0 | J81: 0
A82: Надання кредитів підприємствам, установам, організаціям | B82: 4112 | C82: 600 | D82: 0 | E82: 0 | F82: 0 | G82: 0 | H82: 0 | I82: 0 | J82: 0
A83: Надання інших внутрішніх кредитів | B83: 4113 | C83: 610 | D83: 0 | E83: 0 | F83: 0 | G83: 0 | H83: 0 | I83: 0 | J83: 0
A84: Зовнішнє кредитування | B84: 4200 | C84: 620 | D84: =D85 -> 0 | E84: 0 | F84: 0 | G84: 0 | H84: 0 | I84: 0 | J84: 0
A85: Надання зовнішніх кредитів | B85: 4210 | C85: 630 | D85: 0 | E85: 0 | F85: 0 | G85: 0 | H85: 0 | I85: 0 | J85: 0
A86: Інші видатки | B86: 5000 | C86: 640 | D86: X | E86: 0 | F86: X | G86: X | H86: X | I86: X | J86: X
A87: Нерозподілені видатки | B87: 9000 | C87: 650 | D87: 0 | E87: 0 | F87: 0 | G87: 0 | H87: 0 | I87: 0 | J87: 0
C88: 650
A100: 1 Заповнюється розпорядниками бюджетних коштів.
A101: =ЗАПОЛНИТЬ!F30 -> Керівник | G101: =ЗАПОЛНИТЬ!F26 -> Т.П. Петрук
D102: (підпис) | G102: (ініціали, прізвище)
A103: =ЗАПОЛНИТЬ!F31 -> Головний бухгалтер | G103: =ЗАПОЛНИТЬ!F28 -> В.В. Петрук
A104: =ЗАПОЛНИТЬ!C19 -> "12"січня 2018 року | D104: (підпис) | G104: (ініціали, прізвище)

Sheet Ф.2.5 (hidden)
G1: Додаток 1 до Порядку складання бюджетної звітності розпорядниками та одержувачами бюджетних коштів, звітності фондами загальнообов’язкового державного соціального і пенсійного страхування (пункт 1 розділу ІІ)
A4: ЗВІТ
A5: =IF(ЗАПОЛНИТЬ!$F$7=1,CONCATENATE(шапки!A2),CONCATENATE(шапки!A2,шапки!C2)) -> про надходження та використання коштів загального фонду (форма №2д, | G5: =IF(ЗАПОЛНИТЬ!$F$7=1,шапки!C2,шапки!D2) -> №2м) | H5: =IF(ЗАПОЛНИТЬ!$F$7=1,шапки!D2,"") -> 
A6: =CONCATENATE("за ",ЗАПОЛНИТЬ!$B$17," ",ЗАПОЛНИТЬ!$C$17) -> за 2017 р.
J7: коди
A9: Установа | B9: =ЗАПОЛНИТЬ!B3 -> Рафалівський НВК "ЗОШ Іст.-ДНЗ" | H9: за ЄДРПОУ | J9: =ЗАПОЛНИТЬ!B13 -> 25894582
A10: Територія | B10: =ЗАПОЛНИТЬ!B5 -> смт. Рафалівка | H10: за КОАТУУ | J10: =ЗАПОЛНИТЬ!B14 -> 5620855400
A11: Організаційно-правова форма господарювання | B11: =ЗАПОЛНИТЬ!D15 -> Комунальна організація (установа, заклад) | H11: за КОПФГ | J11: =ЗАПОЛНИТЬ!B15 -> 430
A12: Код та назва відомчої класифікації видатків та кредитування державного бюджету | D12: =ЗАПОЛНИТЬ!H9 -> 0 | E12: =IF(D12>0,VLOOKUP(D12,'ДовидникКВК(ГОС)'!A:B,2,FALSE),"") -> 
A13: Код та назва програмної класифікації видатків та кредитування державного бюджету | E13: =IF(D13>0,VLOOKUP(D13,ДовидникКПК!B:C,2,FALSE),"") -> 
A14: Код та назва типової відомчої класифікації видатків та кредитування місцевих бюджетів | D14: =ЗАПОЛНИТЬ!H10 -> 10 | E14: =ЗАПОЛНИТЬ!I10 -> Орган з питань освіти і науки
A15: Код та назва програмної класифікації видатків та кредитування місцевих бюджетів (код та назва Типової програмної класифікації видатків та кредитування місцевих бюджетів / Тимчасової класифікації видатків та кредитування для бюджетів місцевого самоврядування, які не застосовують програмно-цільового методу) | D15: - | E15: =VLOOKUP(RIGHT(D15,4),КПКВМБ!A:B,2,FALSE) -> -
A16: Періодичність: квартальна, річна
A17: Одиниця виміру: грн, коп.
A19: Показники | B19: КЕКВ та/або ККК | C19: Код рядка | D19: Затверджено на звітний рік | E19: Затверджено на звітний період (рік)1 | F19: Залишок на початок звітного року | G19: Надійшло коштів за звітний період (рік) | H19: Касові за звітний період (рік) | I19: Фактичні за звітний період (рік) | J19: Залишок на кінець звітного періоду (року)
A22: 1 | B22: 2 | C22: 3 | D22: 4 | E22: 5 | F22: 6 | G22: 7 | H22: 8 | I22: 9 | J22: 9
A23: Видатки та надання кредитів - усього | B23: Х | C23: 010 | D23: =D24+D59+D79+D84+D87 -> 0 | E23: =E26+E29+E32+E33+E37+E45+E46+E86+E54 -> 0 | F23: =F24+F59+F79+F84+F87 -> 0 | G23: =G24+G59+G79+G84+G87 -> 0 | H23: =H24+H59+H79+H84+H87 -> 0 | I23: =I24+I59+I79+I84+I87 -> 0 | J23: =F23+G23-H23 -> 0
A24: у тому числі: Поточні видатки | B24: 2000 | C24: 020 | D24: =D25+D30+D47+D50+D54+D58 -> 0 | E24: 0 | F24: 0 | G24: 0 | H24: 0 | I24: 0 | J24: =F24+G24-H24 -> 0
A25: Оплата праці і нарахування на заробітну плату | B25: 2100 | C25: 030 | D25: =D26+D29 -> 0 | E25: 0 | F25: =F26+F29 -> 0 | G25: =G26+G29 -> 0 | H25: =H26+H29 -> 0 | I25: =I26+I29 -> 0 | J25: 0
A26: Оплата праці | B26: 2110 | C26: 040 | D26: =SUM(D27:D28) -> 0 | E26: 0 | F26: 0 | G26: 0 | H26: 0 | I26: 0 | J26: 0
A27: Заробітна плата | B27: 2111 | C27: 050 | D27: 0 | E27: 0 | F27: 0 | G27: 0 | H27: 0 | I27: 0 | J27: 0
A28: Грошове забезпечення військовослужбовців | B28: 2112 | C28: 060 | D28: 0 | E28: 0 | F28: 0 | G28: 0 | H28: 0 | I28: 0 | J28: 0
A29: Нарахування на оплату праці | B29: 2120 | C29: 070 | D29: 0 | E29: 0 | F29: 0 | G29: 0 | H29: 0 | I29: 0 | J29: 0
A30: Використання товарів і послуг | B30: 2200 | C30: 080 | D30: =SUM(D31:D37)+D44 -> 0 | E30: 0 | F30: =SUM(F31:F37)+F44 -> 0 | G30: =SUM(G31:G37)+G44 -> 0 | H30: =SUM(H31:H37)+H44 -> 0 | I30: =SUM(I31:I37)+I44 -> 0 | J30: 0
A31: Предмети, матеріали, обладнання та інвентар | B31: 2210 | C31: 090 | D31: 0 | E31: 0 | F31: 0 | G31: 0 | H31: 0 | I31: 0 | J31: 0
A32: Медикаменти та перев’язувальні матеріали | B32: 2220 | C32: 100 | D32: 0 | E32: 0 | F32: 0 | G32: 0 | H32: 0 | I32: 0 | J32: 0
A33: Продукти харчування | B33: 2230 | C33: 110 | D33: 0 | E33: 0 | F33: 0 | G33: 0 | H33: 0 | I33: 0 | J33: 0
A34: Оплата послуг (крім комунальних) | B34: 2240 | C34: 120 | D34: 0 | E34: 0 | F34: 0 | G34: 0 | H34: 0 | I34: 0 | J34: 0
A35: Видатки на відрядження | B35: 2250 | C35: 130 | D35: 0 | E35: 0 | F35: 0 | G35: 0 | H35: 0 | I35: 0 | J35: 0
A36: Видатки та заходи спеціального призначення | B36: 2260 | C36: 140 | D36: 0 | E36: 0 | F36: 0 | G36: 0 | H36: 0 | I36: 0 | J36: 0
A37: Оплата комунальних послуг та енергоносіїв | B37: 2270 | C37: 150 | D37: =SUM(D38:D43) -> 0 | E37: 0 | F37: =SUM(F38:F43) -> 0 | G37: =SUM(G38:G43) -> 0 | H37: =SUM(H38:H43) -> 0 | I37: =SUM(I38:I43) -> 0 | J37: =F37+G37-H37 -> 0
A38: Оплата теплопостачання | B38: 2271 | C38: 160 | D38: 0 | E38: 0 | F38: 0 | G38: 0 | H38: 0 | I38: 0 | J38: 0
A39: Оплата водопостачання та водовідведення | B39: 2272 | C39: 170 | D39: 0 | E39: 0 | F39: 0 | G39: 0 | H39: 0 | I39: 0 | J39: 0
A40: Оплата електроенергії | B40: 2273 | C40: 180 | D40: 0 | E40: 0 | F40: 0 | G40: 0 | H40: 0 | I40: 0 | J40: 0
A41: Оплата природного газу | B41: 2274 | C41: 190 | D41: 0 | E41: 0 | F41: 0 | G41: 0 | H41: 0 | I41: 0 | J41: 0
A42: Оплата інших енергоносіїв | B42: 2275 | C42: 200 | D42: 0 | E42: 0 | F42: 0 | G42: 0 | H42: 0 | I42: 0 | J42: 0
A43: Оплата енергосервісу | B43: 2276 | C43: 210 | D43: 0 | E43: 0 | F43: 0 | G43: 0 | H43: 0 | I43: 0 | J43: =F43+G43-H43 -> 0
A44: Дослідження і розробки, окремі заходи по реалізації державних (регіональних) програм | B44: 2280 | C44: 220 | D44: =SUM(D45:D46) -> 0 | E44: 0 | F44: =SUM(F45:F46) -> 0 | G44: =SUM(G45:G46) -> 0 | H44: =SUM(H45:H46) -> 0 | I44: =SUM(I45:I46) -> 0 | J44: 0
A45: Дослідження і розробки, окремі заходи розвитку по реалізації державних (регіональних) програм | B45: 2281 | C45: 230 | D45: 0 | E45: 0 | F45: 0 | G45: 0 | H45: 0 | I45: 0 | J45: 0
A46: Окремі заходи по реалізації державних (регіональних) програм, не віднесені до заходів розвитку | B46: 2282 | C46: 240 | D46: 0 | E46: 0 | F46: 0 | G46: 0 | H46: 0 | I46: 0 | J46: 0
A47: Обслуговування боргових зобов’язань | B47: 2400 | C47: 250 | D47: =SUM(D48:D49) -> 0 | E47: 0 | F47: 0 | G47: 0 | H47: 0 | I47: 0 | J47: 0
A48: Обслуговування внутрішніх боргових зобов’язань | B48: 2410 | C48: 260 | D48: 0 | E48: 0 | F48: 0 | G48: 0 | H48: 0 | I48: 0 | J48: 0
A49: Обслуговування зовнішніх боргових зобов’язань | B49: 2420 | C49: 270 | D49: 0 | E49: 0 | F49: 0 | G49: 0 | H49: 0 | I49: 0 | J49: 0
A50: Поточні трансферти | B50: 2600 | C50: 280 | D50: =SUM(D51:D53) -> 0 | E50: 0 | F50: 0 | G50: 0 | H50: 0 | I50: 0 | J50: 0
A51: Субсидії та поточні трансферти підприємствам (установам, організаціям) | B51: 2610 | C51: 290 | D51: 0 | E51: 0 | F51: 0 | G51: 0 | H51: 0 | I51: 0 | J51: 0
A52: Поточні трансферти органам державного управління інших рівнів | B52: 2620 | C52: 300 | D52: 0 | E52: 0 | F52: 0 | G52: 0 | H52: 0 | I52: 0 | J52: 0
A53: Поточні трансферти урядам іноземних держав та міжнародним організаціям | B53: 2630 | C53: 310 | D53: 0 | E53: 0 | F53: 0 | G53: 0 | H53: 0 | I53: 0 | J53: 0
A54: Соціальне забезпечення | B54: 2700 | C54: 320 | D54: =SUM(D55:D57) -> 0 | E54: 0 | F54: 0 | G54: 0 | H54: 0 | I54: 0 | J54: 0
A55: Виплата пенсій і допомоги | B55: 2710 | C55: 330 | D55: 0 | E55: 0 | F55: 0 | G55: 0 | H55: 0 | I55: 0 | J55: 0
A56: Стипендії | B56: 2720 | C56: 340 | D56: 0 | E56: 0 | F56: 0 | G56: 0 | H56: 0 | I56: 0 | J56: 0
A57: Інші виплати населенню | B57: 2730 | C57: 350 | D57: 0 | E57: 0 | F57: 0 | G57: 0 | H57: 0 | I57: 0 | J57: 0
A58: Інші поточні видатки | B58: 2800 | C58: 360 | D58: 0 | E58: 0 | F58: 0 | G58: 0 | H58: 0 | I58: 0 | J58: 0
A59: Капітальні видатки | B59: 3000 | C59: 370 | D59: =D60+D74 -> 0 | E59: 0 | F59: 0 | G59: 0 | H59: 0 | I59: 0 | J59: 0
A60: Придбання основного капіталу | B60: 3100 | C60: 380 | D60: =D61+D62+D65+D68+D72+D73 -> 0 | E60: 0 | F60: 0 | G60: 0 | H60: 0 | I60: 0 | J60: 0
A61: Придбання обладнання і предметів довгострокового користування | B61: 3110 | C61: 390 | D61: 0 | E61: 0 | F61: 0 | G61: 0 | H61: 0 | I61: 0 | J61: 0
A62: Капітальне будівництво (придбання) | B62: 3120 | C62: 400 | D62: =SUM(D63:D64) -> 0 | E62: 0 | F62: 0 | G62: 0 | H62: 0 | I62: 0 | J62: 0
A63: Капітальне будівництво (придбання) житла | B63: 3121 | C63: 410 | D63: 0 | E63: 0 | F63: 0 | G63: 0 | H63: 0 | I63: 0 | J63: 0
A64: Капітальне будівництво (придбання) інших об’єктів | B64: 3122 | C64: 420 | D64: 0 | E64: 0 | F64: 0 | G64: 0 | H64: 0 | I64: 0 | J64: 0
A65: Капітальний ремонт | B65: 3130 | C65: 430 | D65: =SUM(D66:D67) -> 0 | E65: 0 | F65: 0 | G65: 0 | H65: 0 | I65: 0 | J65: 0
A66: Капітальний ремонт житлового фонду (приміщень) | B66: 3131 | C66: 440 | D66: 0 | E66: 0 | F66: 0 | G66: 0 | H66: 0 | I66: 0 | J66: 0
A67: Капітальний ремонт інших об’єктів | B67: 3132 | C67: 450 | D67: 0 | E67: 0 | F67: 0 | G67: 0 | H67: 0 | I67: 0 | J67: 0
A68: Реконструкція та реставрація | B68: 3140 | C68: 460 | D68: =SUM(D69:D71) -> 0 | E68: 0 | F68: 0 | G68: 0 | H68: 0 | I68: 0 | J68: 0
A69: Реконструкція житлового фонду (приміщень) | B69: 3141 | C69: 470 | D69: 0 | E69: 0 | F69: 0 | G69: 0 | H69: 0 | I69: 0 | J69: 0
A70: Реконструкція та реставрація інших об’єктів | B70: 3142 | C70: 480 | D70: 0 | E70: 0 | F70: 0 | G70: 0 | H70: 0 | I70: 0 | J70: 0
A71: Реставрація пам’яток культури, історії та архітектури | B71: 3143 | C71: 490 | D71: 0 | E71: 0 | F71: 0 | G71: 0 | H71: 0 | I71: 0 | J71: 0
A72: Створення державних запасів і резервів | B72: 3150 | C72: 500 | D72: 0 | E72: 0 | F72: 0 | G72: 0 | H72: 0 | I72: 0 | J72: 0
A73: Придбання землі та нематеріальних активів | B73: 3160 | C73: 510 | D73: 0 | E73: 0 | F73: 0 | G73: 0 | H73: 0 | I73: 0 | J73: 0
A74: Капітальні трансферти | B74: 3200 | C74: 520 | D74: =SUM(D75:D78) -> 0 | E74: 0 | F74: 0 | G74: 0 | H74: 0 | I74: 0 | J74: 0
A75: Капітальні трансферти підприємствам (установам, організаціям) | B75: 3210 | C75: 530 | D75: 0 | E75: 0 | F75: 0 | G75: 0 | H75: 0 | I75: 0 | J75: 0
A76: Капітальні трансферти органам державного управління інших рівнів | B76: 3220 | C76: 540 | D76: 0 | E76: 0 | F76: 0 | G76: 0 | H76: 0 | I76: 0 | J76: 0
A77: Капітальні трансферти урядам іноземних держав та міжнародним організаціям | B77: 3230 | C77: 550 | D77: 0 | E77: 0 | F77: 0 | G77: 0 | H77: 0 | I77: 0 | J77: 0
A78: Капітальні трансферти населенню | B78: 3240 | C78: 560 | D78: 0 | E78: 0 | F78: 0 | G78: 0 | H78: 0 | I78: 0 | J78: 0
A79: Внутрішнє кредитування | B79: 4100 | C79: 570 | D79: =SUM(D80) -> 0 | E79: 0 | F79: 0 | G79: 0 | H79: 0 | I79: 0 | J79: 0
A80: Надання внутрішніх кредитів | B80: 4110 | C80: 580 | D80: =SUM(D81:D83) -> 0 | E80: 0 | F80: 0 | G80: 0 | H80: 0 | I80: 0 | J80: 0
A81: Надання кредитів органам державного управління інших рівнів | B81: 4111 | C81: 590 | D81: 0 | E81: 0 | F81: 0 | G81: 0 | H81: 0 | I81: 0 | J81: 0
A82: Надання кредитів підприємствам, установам, організаціям | B82: 4112 | C82: 600 | D82: 0 | E82: 0 | F82: 0 | G82: 0 | H82: 0 | I82: 0 | J82: 0
A83: Надання інших внутрішніх кредитів | B83: 4113 | C83: 610 | D83: 0 | E83: 0 | F83: 0 | G83: 0 | H83: 0 | I83: 0 | J83: 0
A84: Зовнішнє кредитування | B84: 4200 | C84: 620 | D84: =D85 -> 0 | E84: 0 | F84: 0 | G84: 0 | H84: 0 | I84: 0 | J84: 0
A85: Надання зовнішніх кредитів | B85: 4210 | C85: 630 | D85: 0 | E85: 0 | F85: 0 | G85: 0 | H85: 0 | I85: 0 | J85: 0
A86: Інші видатки | B86: 5000 | C86: 640 | D86: X | E86: 0 | F86: X | G86: X | H86: X | I86: X | J86: X
A87: Нерозподілені видатки | B87: 9000 | C87: 650 | D87: 0 | E87: 0 | F87: 0 | G87: 0 | H87: 0 | I87: 0 | J87: 0
C88: 650
A100: 1 Заповнюється розпорядниками бюджетних коштів.
A101: =ЗАПОЛНИТЬ!F30 -> Керівник | G101: =ЗАПОЛНИТЬ!F26 -> Т.П. Петрук
D102: (підпис) | G102: (ініціали, прізвище)
A103: =ЗАПОЛНИТЬ!F31 -> Головний бухгалтер | G103: =ЗАПОЛНИТЬ!F28 -> В.В. Петрук
A104: =ЗАПОЛНИТЬ!C19 -> "12"січня 2018 року | D104: (підпис) | G104: (ініціали, прізвище)

Sheet Ф.2.6 (hidden)
G1: Додаток 1 до Порядку складання бюджетної звітності розпорядниками та одержувачами бюджетних коштів, звітності фондами загальнообов’язкового державного соціального і пенсійного страхування (пункт 1 розділу ІІ)
A4: ЗВІТ
A5: =IF(ЗАПОЛНИТЬ!$F$7=1,CONCATENATE(шапки!A2),CONCATENATE(шапки!A2,шапки!C2)) -> про надходження та використання коштів загального фонду (форма №2д, | G5: =IF(ЗАПОЛНИТЬ!$F$7=1,шапки!C2,шапки!D2) -> №2м) | H5: =IF(ЗАПОЛНИТЬ!$F$7=1,шапки!D2,"") -> 
A6: =CONCATENATE("за ",ЗАПОЛНИТЬ!$B$17," ",ЗАПОЛНИТЬ!$C$17) -> за 2017 р.
J7: коди
A9: Установа | B9: =ЗАПОЛНИТЬ!B3 -> Рафалівський НВК "ЗОШ Іст.-ДНЗ" | H9: за ЄДРПОУ | J9: =ЗАПОЛНИТЬ!B13 -> 25894582
A10: Територія | B10: =ЗАПОЛНИТЬ!B5 -> смт. Рафалівка | H10: за КОАТУУ | J10: =ЗАПОЛНИТЬ!B14 -> 5620855400
A11: Організаційно-правова форма господарювання | B11: =ЗАПОЛНИТЬ!D15 -> Комунальна організація (установа, заклад) | H11: за КОПФГ | J11: =ЗАПОЛНИТЬ!B15 -> 430
A12: Код та назва відомчої класифікації видатків та кредитування державного бюджету | D12: =ЗАПОЛНИТЬ!H9 -> 0 | E12: =IF(D12>0,VLOOKUP(D12,'ДовидникКВК(ГОС)'!A:B,2,FALSE),"") -> 
A13: Код та назва програмної класифікації видатків та кредитування державного бюджету | E13: =IF(D13>0,VLOOKUP(D13,ДовидникКПК!B:C,2,FALSE),"") -> 
A14: Код та назва типової відомчої класифікації видатків та кредитування місцевих бюджетів | D14: =ЗАПОЛНИТЬ!H10 -> 10 | E14: =ЗАПОЛНИТЬ!I10 -> Орган з питань освіти і науки
A15: Код та назва програмної класифікації видатків та кредитування місцевих бюджетів (код та назва Типової програмної класифікації видатків та кредитування місцевих бюджетів / Тимчасової класифікації видатків та кредитування для бюджетів місцевого самоврядування, які не застосовують програмно-цільового методу) | D15: - | E15: =VLOOKUP(RIGHT(D15,4),КПКВМБ!A:B,2,FALSE) -> -
A16: Періодичність: квартальна, річна
A17: Одиниця виміру: грн, коп.
A19: Показники | B19: КЕКВ та/або ККК | C19: Код рядка | D19: Затверджено на звітний рік | E19: Затверджено на звітний період (рік)1 | F19: Залишок на початок звітного року | G19: Надійшло коштів за звітний період (рік) | H19: Касові за звітний період (рік) | I19: Фактичні за звітний період (рік) | J19: Залишок на кінець звітного періоду (року)
A22: 1 | B22: 2 | C22: 3 | D22: 4 | E22: 5 | F22: 6 | G22: 7 | H22: 8 | I22: 9 | J22: 9
A23: Видатки та надання кредитів - усього | B23: Х | C23: 010 | D23: =D24+D59+D79+D84+D87 -> 0 | E23: =E26+E29+E32+E33+E37+E45+E46+E86+E54 -> 0 | F23: =F24+F59+F79+F84+F87 -> 0 | G23: =G24+G59+G79+G84+G87 -> 0 | H23: =H24+H59+H79+H84+H87 -> 0 | I23: =I24+I59+I79+I84+I87 -> 0 | J23: =F23+G23-H23 -> 0
A24: у тому числі: Поточні видатки | B24: 2000 | C24: 020 | D24: =D25+D30+D47+D50+D54+D58 -> 0 | E24: 0 | F24: 0 | G24: 0 | H24: 0 | I24: 0 | J24: =F24+G24-H24 -> 0
A25: Оплата праці і нарахування на заробітну плату | B25: 2100 | C25: 030 | D25: =D26+D29 -> 0 | E25: 0 | F25: =F26+F29 -> 0 | G25: =G26+G29 -> 0 | H25: =H26+H29 -> 0 | I25: =I26+I29 -> 0 | J25: 0
A26: Оплата праці | B26: 2110 | C26: 040 | D26: =SUM(D27:D28) -> 0 | E26: 0 | F26: 0 | G26: 0 | H26: 0 | I26: 0 | J26: 0
A27: Заробітна плата | B27: 2111 | C27: 050 | D27: 0 | E27: 0 | F27: 0 | G27: 0 | H27: 0 | I27: 0 | J27: 0
A28: Грошове забезпечення військовослужбовців | B28: 2112 | C28: 060 | D28: 0 | E28: 0 | F28: 0 | G28: 0 | H28: 0 | I28: 0 | J28: 0
A29: Нарахування на оплату праці | B29: 2120 | C29: 070 | D29: 0 | E29: 0 | F29: 0 | G29: 0 | H29: 0 | I29: 0 | J29: 0
A30: Використання товарів і послуг | B30: 2200 | C30: 080 | D30: =SUM(D31:D37)+D44 -> 0 | E30: 0 | F30: =SUM(F31:F37)+F44 -> 0 | G30: =SUM(G31:G37)+G44 -> 0 | H30: =SUM(H31:H37)+H44 -> 0 | I30: =SUM(I31:I37)+I44 -> 0 | J30: 0
A31: Предмети, матеріали, обладнання та інвентар | B31: 2210 | C31: 090 | D31: 0 | E31: 0 | F31: 0 | G31: 0 | H31: 0 | I31: 0 | J31: 0
A32: Медикаменти та перев’язувальні матеріали | B32: 2220 | C32: 100 | D32: 0 | E32: 0 | F32: 0 | G32: 0 | H32: 0 | I32: 0 | J32: 0
A33: Продукти харчування | B33: 2230 | C33: 110 | D33: 0 | E33: 0 | F33: 0 | G33: 0 | H33: 0 | I33: 0 | J33: 0
A34: Оплата послуг (крім комунальних) | B34: 2240 | C34: 120 | D34: 0 | E34: 0 | F34: 0 | G34: 0 | H34: 0 | I34: 0 | J34: 0
A35: Видатки на відрядження | B35: 2250 | C35: 130 | D35: 0 | E35: 0 | F35: 0 | G35: 0 | H35: 0 | I35: 0 | J35: 0
A36: Видатки та заходи спеціального призначення | B36: 2260 | C36: 140 | D36: 0 | E36: 0 | F36: 0 | G36: 0 | H36: 0 | I36: 0 | J36: 0
A37: Оплата комунальних послуг та енергоносіїв | B37: 2270 | C37: 150 | D37: =SUM(D38:D43) -> 0 | E37: 0 | F37: =SUM(F38:F43) -> 0 | G37: =SUM(G38:G43) -> 0 | H37: =SUM(H38:H43) -> 0 | I37: =SUM(I38:I43) -> 0 | J37: =F37+G37-H37 -> 0
A38: Оплата теплопостачання | B38: 2271 | C38: 160 | D38: 0 | E38: 0 | F38: 0 | G38: 0 | H38: 0 | I38: 0 | J38: 0
A39: Оплата водопостачання та водовідведення | B39: 2272 | C39: 170 | D39: 0 | E39: 0 | F39: 0 | G39: 0 | H39: 0 | I39: 0 | J39: 0
A40: Оплата електроенергії | B40: 2273 | C40: 180 | D40: 0 | E40: 0 | F40: 0 | G40: 0 | H40: 0 | I40: 0 | J40: 0
A41: Оплата природного газу | B41: 2274 | C41: 190 | D41: 0 | E41: 0 | F41: 0 | G41: 0 | H41: 0 | I41: 0 | J41: 0
A42: Оплата інших енергоносіїв | B42: 2275 | C42: 200 | D42: 0 | E42: 0 | F42: 0 | G42: 0 | H42: 0 | I42: 0 | J42: 0
A43: Оплата енергосервісу | B43: 2276 | C43: 210 | D43: 0 | E43: 0 | F43: 0 | G43: 0 | H43: 0 | I43: 0 | J43: =F43+G43-H43 -> 0
A44: Дослідження і розробки, окремі заходи по реалізації державних (регіональних) програм | B44: 2280 | C44: 220 | D44: =SUM(D45:D46) -> 0 | E44: 0 | F44: =SUM(F45:F46) -> 0 | G44: =SUM(G45:G46) -> 0 | H44: =SUM(H45:H46) -> 0 | I44: =SUM(I45:I46) -> 0 | J44: 0
A45: Дослідження і розробки, окремі заходи розвитку по реалізації державних (регіональних) програм | B45: 2281 | C45: 230 | D45: 0 | E45: 0 | F45: 0 | G45: 0 | H45: 0 | I45: 0 | J45: 0
A46: Окремі заходи по реалізації державних (регіональних) програм, не віднесені до заходів розвитку | B46: 2282 | C46: 240 | D46: 0 | E46: 0 | F46: 0 | G46: 0 | H46: 0 | I46: 0 | J46: 0
A47: Обслуговування боргових зобов’язань | B47: 2400 | C47: 250 | D47: =SUM(D48:D49) -> 0 | E47: 0 | F47: 0 | G47: 0 | H47: 0 | I47: 0 | J47: 0
A48: Обслуговування внутрішніх боргових зобов’язань | B48: 2410 | C48: 260 | D48: 0 | E48: 0 | F48: 0 | G48: 0 | H48: 0 | I48: 0 | J48: 0
A49: Обслуговування зовнішніх боргових зобов’язань | B49: 2420 | C49: 270 | D49: 0 | E49: 0 | F49: 0 | G49: 0 | H49: 0 | I49: 0 | J49: 0
A50: Поточні трансферти | B50: 2600 | C50: 280 | D50: =SUM(D51:D53) -> 0 | E50: 0 | F50: 0 | G50: 0 | H50: 0 | I50: 0 | J50: 0
A51: Субсидії та поточні трансферти підприємствам (установам, організаціям) | B51: 2610 | C51: 290 | D51: 0 | E51: 0 | F51: 0 | G51: 0 | H51: 0 | I51: 0 | J51: 0
A52: Поточні трансферти органам державного управління інших рівнів | B52: 2620 | C52: 300 | D52: 0 | E52: 0 | F52: 0 | G52: 0 | H52: 0 | I52: 0 | J52: 0
A53: Поточні трансферти урядам іноземних держав та міжнародним організаціям | B53: 2630 | C53: 310 | D53: 0 | E53: 0 | F53: 0 | G53: 0 | H53: 0 | I53: 0 | J53: 0
A54: Соціальне забезпечення | B54: 2700 | C54: 320 | D54: =SUM(D55:D57) -> 0 | E54: 0 | F54: 0 | G54: 0 | H54: 0 | I54: 0 | J54: 0
A55: Виплата пенсій і допомоги | B55: 2710 | C55: 330 | D55: 0 | E55: 0 | F55: 0 | G55: 0 | H55: 0 | I55: 0 | J55: 0
A56: Стипендії | B56: 2720 | C56: 340 | D56: 0 | E56: 0 | F56: 0 | G56: 0 | H56: 0 | I56: 0 | J56: 0
A57: Інші виплати населенню | B57: 2730 | C57: 350 | D57: 0 | E57: 0 | F57: 0 | G57: 0 | H57: 0 | I57: 0 | J57: 0
A58: Інші поточні видатки | B58: 2800 | C58: 360 | D58: 0 | E58: 0 | F58: 0 | G58: 0 | H58: 0 | I58: 0 | J58: 0
A59: Капітальні видатки | B59: 3000 | C59: 370 | D59: =D60+D74 -> 0 | E59: 0 | F59: 0 | G59: 0 | H59: 0 | I59: 0 | J59: 0
A60: Придбання основного капіталу | B60: 3100 | C60: 380 | D60: =D61+D62+D65+D68+D72+D73 -> 0 | E60: 0 | F60: 0 | G60: 0 | H60: 0 | I60: 0 | J60: 0
A61: Придбання обладнання і предметів довгострокового користування | B61: 3110 | C61: 390 | D61: 0 | E61: 0 | F61: 0 | G61: 0 | H61: 0 | I61: 0 | J61: 0
A62: Капітальне будівництво (придбання) | B62: 3120 | C62: 400 | D62: =SUM(D63:D64) -> 0 | E62: 0 | F62: 0 | G62: 0 | H62: 0 | I62: 0 | J62: 0
A63: Капітальне будівництво (придбання) житла | B63: 3121 | C63: 410 | D63: 0 | E63: 0 | F63: 0 | G63: 0 | H63: 0 | I63: 0 | J63: 0
A64: Капітальне будівництво (придбання) інших об’єктів | B64: 3122 | C64: 420 | D64: 0 | E64: 0 | F64: 0 | G64: 0 | H64: 0 | I64: 0 | J64: 0
A65: Капітальний ремонт | B65: 3130 | C65: 430 | D65: =SUM(D66:D67) -> 0 | E65: 0 | F65: 0 | G65: 0 | H65: 0 | I65: 0 | J65: 0
A66: Капітальний ремонт житлового фонду (приміщень) | B66: 3131 | C66: 440 | D66: 0 | E66: 0 | F66: 0 | G66: 0 | H66: 0 | I66: 0 | J66: 0
A67: Капітальний ремонт інших об’єктів | B67: 3132 | C67: 450 | D67: 0 | E67: 0 | F67: 0 | G67: 0 | H67: 0 | I67: 0 | J67: 0
A68: Реконструкція та реставрація | B68: 3140 | C68: 460 | D68: =SUM(D69:D71) -> 0 | E68: 0 | F68: 0 | G68: 0 | H68: 0 | I68: 0 | J68: 0
A69: Реконструкція житлового фонду (приміщень) | B69: 3141 | C69: 470 | D69: 0 | E69: 0 | F69: 0 | G69: 0 | H69: 0 | I69: 0 | J69: 0
A70: Реконструкція та реставрація інших об’єктів | B70: 3142 | C70: 480 | D70: 0 | E70: 0 | F70: 0 | G70: 0 | H70: 0 | I70: 0 | J70: 0
A71: Реставрація пам’яток культури, історії та архітектури | B71: 3143 | C71: 490 | D71: 0 | E71: 0 | F71: 0 | G71: 0 | H71: 0 | I71: 0 | J71: 0
A72: Створення державних запасів і резервів | B72: 3150 | C72: 500 | D72: 0 | E72: 0 | F72: 0 | G72: 0 | H72: 0 | I72: 0 | J72: 0
A73: Придбання землі та нематеріальних активів | B73: 3160 | C73: 510 | D73: 0 | E73: 0 | F73: 0 | G73: 0 | H73: 0 | I73: 0 | J73: 0
A74: Капітальні трансферти | B74: 3200 | C74: 520 | D74: =SUM(D75:D78) -> 0 | E74: 0 | F74: 0 | G74: 0 | H74: 0 | I74: 0 | J74: 0
A75: Капітальні трансферти підприємствам (установам, організаціям) | B75: 3210 | C75: 530 | D75: 0 | E75: 0 | F75: 0 | G75: 0 | H75: 0 | I75: 0 | J75: 0
A76: Капітальні трансферти органам державного управління інших рівнів | B76: 3220 | C76: 540 | D76: 0 | E76: 0 | F76: 0 | G76: 0 | H76: 0 | I76: 0 | J76: 0
A77: Капітальні трансферти урядам іноземних держав та міжнародним організаціям | B77: 3230 | C77: 550 | D77: 0 | E77: 0 | F77: 0 | G77: 0 | H77: 0 | I77: 0 | J77: 0
A78: Капітальні трансферти населенню | B78: 3240 | C78: 560 | D78: 0 | E78: 0 | F78: 0 | G78: 0 | H78: 0 | I78: 0 | J78: 0
A79: Внутрішнє кредитування | B79: 4100 | C79: 570 | D79: =SUM(D80) -> 0 | E79: 0 | F79: 0 | G79: 0 | H79: 0 | I79: 0 | J79: 0
A80: Надання внутрішніх кредитів | B80: 4110 | C80: 580 | D80: =SUM(D81:D83) -> 0 | E80: 0 | F80: 0 | G80: 0 | H80: 0 | I80: 0 | J80: 0
A81: Надання кредитів органам державного управління інших рівнів | B81: 4111 | C81: 590 | D81: 0 | E81: 0 | F81: 0 | G81: 0 | H81: 0 | I81: 0 | J81: 0
A82: Надання кредитів підприємствам, установам, організаціям | B82: 4112 | C82: 600 | D82: 0 | E82: 0 | F82: 0 | G82: 0 | H82: 0 | I82: 0 | J82: 0
A83: Надання інших внутрішніх кредитів | B83: 4113 | C83: 610 | D83: 0 | E83: 0 | F83: 0 | G83: 0 | H83: 0 | I83: 0 | J83: 0
A84: Зовнішнє кредитування | B84: 4200 | C84: 620 | D84: =D85 -> 0 | E84: 0 | F84: 0 | G84: 0 | H84: 0 | I84: 0 | J84: 0
A85: Надання зовнішніх кредитів | B85: 4210 | C85: 630 | D85: 0 | E85: 0 | F85: 0 | G85: 0 | H85: 0 | I85: 0 | J85: 0
A86: Інші видатки | B86: 5000 | C86: 640 | D86: X | E86: 0 | F86: X | G86: X | H86: X | I86: X | J86: X
A87: Нерозподілені видатки | B87: 9000 | C87: 650 | D87: 0 | E87: 0 | F87: 0 | G87: 0 | H87: 0 | I87: 0 | J87: 0
C88: 650
A100: 1 Заповнюється розпорядниками бюджетних коштів.
A101: =ЗАПОЛНИТЬ!F30 -> Керівник | G101: =ЗАПОЛНИТЬ!F26 -> Т.П. Петрук
D102: (підпис) | G102: (ініціали, прізвище)
A103: =ЗАПОЛНИТЬ!F31 -> Головний бухгалтер | G103: =ЗАПОЛНИТЬ!F28 -> В.В. Петрук
A104: =ЗАПОЛНИТЬ!C19 -> "12"січня 2018 року | D104: (підпис) | G104: (ініціали, прізвище)

Sheet Ф.2.7 (hidden)
G1: Додаток 1 до Порядку складання бюджетної звітності розпорядниками та одержувачами бюджетних коштів, звітності фондами загальнообов’язкового державного соціального і пенсійного страхування (пункт 1 розділу ІІ)
A4: ЗВІТ
A5: =IF(ЗАПОЛНИТЬ!$F$7=1,CONCATENATE(шапки!A2),CONCATENATE(шапки!A2,шапки!C2)) -> про надходження та використання коштів загального фонду (форма №2д, | G5: =IF(ЗАПОЛНИТЬ!$F$7=1,шапки!C2,шапки!D2) -> №2м) | H5: =IF(ЗАПОЛНИТЬ!$F$7=1,шапки!D2,"") -> 
A6: =CONCATENATE("за ",ЗАПОЛНИТЬ!$B$17," ",ЗАПОЛНИТЬ!$C$17) -> за 2017 р.
J7: коди
A9: Установа | B9: =ЗАПОЛНИТЬ!B3 -> Рафалівський НВК "ЗОШ Іст.-ДНЗ" | H9: за ЄДРПОУ | J9: =ЗАПОЛНИТЬ!B13 -> 25894582
A10: Територія | B10: =ЗАПОЛНИТЬ!B5 -> смт. Рафалівка | H10: за КОАТУУ | J10: =ЗАПОЛНИТЬ!B14 -> 5620855400
A11: Організаційно-правова форма господарювання | B11: =ЗАПОЛНИТЬ!D15 -> Комунальна організація (установа, заклад) | H11: за КОПФГ | J11: =ЗАПОЛНИТЬ!B15 -> 430
A12: Код та назва відомчої класифікації видатків та кредитування державного бюджету | D12: =ЗАПОЛНИТЬ!H9 -> 0 | E12: =IF(D12>0,VLOOKUP(D12,'ДовидникКВК(ГОС)'!A:B,2,FALSE),"") -> 
A13: Код та назва програмної класифікації видатків та кредитування державного бюджету | E13: =IF(D13>0,VLOOKUP(D13,ДовидникКПК!B:C,2,FALSE),"") -> 
A14: Код та назва типової відомчої класифікації видатків та кредитування місцевих бюджетів | D14: =ЗАПОЛНИТЬ!H10 -> 10 | E14: =ЗАПОЛНИТЬ!I10 -> Орган з питань освіти і науки
A15: Код та назва програмної класифікації видатків та кредитування місцевих бюджетів (код та назва Типової програмної класифікації видатків та кредитування місцевих бюджетів / Тимчасової класифікації видатків та кредитування для бюджетів місцевого самоврядування, які не застосовують програмно-цільового методу) | D15: - | E15: =VLOOKUP(RIGHT(D15,4),КПКВМБ!A:B,2,FALSE) -> -
A16: Періодичність: квартальна, річна
A17: Одиниця виміру: грн, коп.
A19: Показники | B19: КЕКВ та/або ККК | C19: Код рядка | D19: Затверджено на звітний рік | E19: Затверджено на звітний період (рік)1 | F19: Залишок на початок звітного року | G19: Надійшло коштів за звітний період (рік) | H19: Касові за звітний період (рік) | I19: Фактичні за звітний період (рік) | J19: Залишок на кінець звітного періоду (року)
A22: 1 | B22: 2 | C22: 3 | D22: 4 | E22: 5 | F22: 6 | G22: 7 | H22: 8 | I22: 9 | J22: 9
A23: Видатки та надання кредитів - усього | B23: Х | C23: 010 | D23: =D24+D59+D79+D84+D87 -> 0 | E23: =E26+E29+E32+E33+E37+E45+E46+E86+E54 -> 0 | F23: =F24+F59+F79+F84+F87 -> 0 | G23: =G24+G59+G79+G84+G87 -> 0 | H23: =H24+H59+H79+H84+H87 -> 0 | I23: =I24+I59+I79+I84+I87 -> 0 | J23: =F23+G23-H23 -> 0
A24: у тому числі: Поточні видатки | B24: 2000 | C24: 020 | D24: =D25+D30+D47+D50+D54+D58 -> 0 | E24: 0 | F24: 0 | G24: 0 | H24: 0 | I24: 0 | J24: =F24+G24-H24 -> 0
A25: Оплата праці і нарахування на заробітну плату | B25: 2100 | C25: 030 | D25: =D26+D29 -> 0 | E25: 0 | F25: =F26+F29 -> 0 | G25: =G26+G29 -> 0 | H25: =H26+H29 -> 0 | I25: =I26+I29 -> 0 | J25: 0
A26: Оплата праці | B26: 2110 | C26: 040 | D26: =SUM(D27:D28) -> 0 | E26: 0 | F26: 0 | G26: 0 | H26: 0 | I26: 0 | J26: 0
A27: Заробітна плата | B27: 2111 | C27: 050 | D27: 0 | E27: 0 | F27: 0 | G27: 0 | H27: 0 | I27: 0 | J27: 0
A28: Грошове забезпечення військовослужбовців | B28: 2112 | C28: 060 | D28: 0 | E28: 0 | F28: 0 | G28: 0 | H28: 0 | I28: 0 | J28: 0
A29: Нарахування на оплату праці | B29: 2120 | C29: 070 | D29: 0 | E29: 0 | F29: 0 | G29: 0 | H29: 0 | I29: 0 | J29: 0
A30: Використання товарів і послуг | B30: 2200 | C30: 080 | D30: =SUM(D31:D37)+D44 -> 0 | E30: 0 | F30: =SUM(F31:F37)+F44 -> 0 | G30: =SUM(G31:G37)+G44 -> 0 | H30: =SUM(H31:H37)+H44 -> 0 | I30: =SUM(I31:I37)+I44 -> 0 | J30: 0
A31: Предмети, матеріали, обладнання та інвентар | B31: 2210 | C31: 090 | D31: 0 | E31: 0 | F31: 0 | G31: 0 | H31: 0 | I31: 0 | J31: 0
A32: Медикаменти та перев’язувальні матеріали | B32: 2220 | C32: 100 | D32: 0 | E32: 0 | F32: 0 | G32: 0 | H32: 0 | I32: 0 | J32: 0
A33: Продукти харчування | B33: 2230 | C33: 110 | D33: 0 | E33: 0 | F33: 0 | G33: 0 | H33: 0 | I33: 0 | J33: 0
A34: Оплата послуг (крім комунальних) | B34: 2240 | C34: 120 | D34: 0 | E34: 0 | F34: 0 | G34: 0 | H34: 0 | I34: 0 | J34: 0
A35: Видатки на відрядження | B35: 2250 | C35: 130 | D35: 0 | E35: 0 | F35: 0 | G35: 0 | H35: 0 | I35: 0 | J35: 0
A36: Видатки та заходи спеціального призначення | B36: 2260 | C36: 140 | D36: 0 | E36: 0 | F36: 0 | G36: 0 | H36: 0 | I36: 0 | J36: 0
A37: Оплата комунальних послуг та енергоносіїв | B37: 2270 | C37: 150 | D37: =SUM(D38:D43) -> 0 | E37: 0 | F37: =SUM(F38:F43) -> 0 | G37: =SUM(G38:G43) -> 0 | H37: =SUM(H38:H43) -> 0 | I37: =SUM(I38:I43) -> 0 | J37: =F37+G37-H37 -> 0
A38: Оплата теплопостачання | B38: 2271 | C38: 160 | D38: 0 | E38: 0 | F38: 0 | G38: 0 | H38: 0 | I38: 0 | J38: 0
A39: Оплата водопостачання та водовідведення | B39: 2272 | C39: 170 | D39: 0 | E39: 0 | F39: 0 | G39: 0 | H39: 0 | I39: 0 | J39: 0
A40: Оплата електроенергії | B40: 2273 | C40: 180 | D40: 0 | E40: 0 | F40: 0 | G40: 0 | H40: 0 | I40: 0 | J40: 0
A41: Оплата природного газу | B41: 2274 | C41: 190 | D41: 0 | E41: 0 | F41: 0 | G41: 0 | H41: 0 | I41: 0 | J41: 0
A42: Оплата інших енергоносіїв | B42: 2275 | C42: 200 | D42: 0 | E42: 0 | F42: 0 | G42: 0 | H42: 0 | I42: 0 | J42: 0
A43: Оплата енергосервісу | B43: 2276 | C43: 210 | D43: 0 | E43: 0 | F43: 0 | G43: 0 | H43: 0 | I43: 0 | J43: =F43+G43-H43 -> 0
A44: Дослідження і розробки, окремі заходи по реалізації державних (регіональних) програм | B44: 2280 | C44: 220 | D44: =SUM(D45:D46) -> 0 | E44: 0 | F44: =SUM(F45:F46) -> 0 | G44: =SUM(G45:G46) -> 0 | H44: =SUM(H45:H46) -> 0 | I44: =SUM(I45:I46) -> 0 | J44: 0
A45: Дослідження і розробки, окремі заходи розвитку по реалізації державних (регіональних) програм | B45: 2281 | C45: 230 | D45: 0 | E45: 0 | F45: 0 | G45: 0 | H45: 0 | I45: 0 | J45: 0
A46: Окремі заходи по реалізації державних (регіональних) програм, не віднесені до заходів розвитку | B46: 2282 | C46: 240 | D46: 0 | E46: 0 | F46: 0 | G46: 0 | H46: 0 | I46: 0 | J46: 0
A47: Обслуговування боргових зобов’язань | B47: 2400 | C47: 250 | D47: =SUM(D48:D49) -> 0 | E47: 0 | F47: 0 | G47: 0 | H47: 0 | I47: 0 | J47: 0
A48: Обслуговування внутрішніх боргових зобов’язань | B48: 2410 | C48: 260 | D48: 0 | E48: 0 | F48: 0 | G48: 0 | H48: 0 | I48: 0 | J48: 0
A49: Обслуговування зовнішніх боргових зобов’язань | B49: 2420 | C49: 270 | D49: 0 | E49: 0 | F49: 0 | G49: 0 | H49: 0 | I49: 0 | J49: 0
A50: Поточні трансферти | B50: 2600 | C50: 280 | D50: =SUM(D51:D53) -> 0 | E50: 0 | F50: 0 | G50: 0 | H50: 0 | I50: 0 | J50: 0
A51: Субсидії та поточні трансферти підприємствам (установам, організаціям) | B51: 2610 | C51: 290 | D51: 0 | E51: 0 | F51: 0 | G51: 0 | H51: 0 | I51: 0 | J51: 0
A52: Поточні трансферти органам державного управління інших рівнів | B52: 2620 | C52: 300 | D52: 0 | E52: 0 | F52: 0 | G52: 0 | H52: 0 | I52: 0 | J52: 0
A53: Поточні трансферти урядам іноземних держав та міжнародним організаціям | B53: 2630 | C53: 310 | D53: 0 | E53: 0 | F53: 0 | G53: 0 | H53: 0 | I53: 0 | J53: 0
A54: Соціальне забезпечення | B54: 2700 | C54: 320 | D54: =SUM(D55:D57) -> 0 | E54: 0 | F54: 0 | G54: 0 | H54: 0 | I54: 0 | J54: 0
A55: Виплата пенсій і допомоги | B55: 2710 | C55: 330 | D55: 0 | E55: 0 | F55: 0 | G55: 0 | H55: 0 | I55: 0 | J55: 0
A56: Стипендії | B56: 2720 | C56: 340 | D56: 0 | E56: 0 | F56: 0 | G56: 0 | H56: 0 | I56: 0 | J56: 0
A57: Інші виплати населенню | B57: 2730 | C57: 350 | D57: 0 | E57: 0 | F57: 0 | G57: 0 | H57: 0 | I57: 0 | J57: 0
A58: Інші поточні видатки | B58: 2800 | C58: 360 | D58: 0 | E58: 0 | F58: 0 | G58: 0 | H58: 0 | I58: 0 | J58: 0
A59: Капітальні видатки | B59: 3000 | C59: 370 | D59: =D60+D74 -> 0 | E59: 0 | F59: 0 | G59: 0 | H59: 0 | I59: 0 | J59: 0
A60: Придбання основного капіталу | B60: 3100 | C60: 380 | D60: =D61+D62+D65+D68+D72+D73 -> 0 | E60: 0 | F60: 0 | G60: 0 | H60: 0 | I60: 0 | J60: 0
A61: Придбання обладнання і предметів довгострокового користування | B61: 3110 | C61: 390 | D61: 0 | E61: 0 | F61: 0 | G61: 0 | H61: 0 | I61: 0 | J61: 0
A62: Капітальне будівництво (придбання) | B62: 3120 | C62: 400 | D62: =SUM(D63:D64) -> 0 | E62: 0 | F62: 0 | G62: 0 | H62: 0 | I62: 0 | J62: 0
A63: Капітальне будівництво (придбання) житла | B63: 3121 | C63: 410 | D63: 0 | E63: 0 | F63: 0 | G63: 0 | H63: 0 | I63: 0 | J63: 0
A64: Капітальне будівництво (придбання) інших об’єктів | B64: 3122 | C64: 420 | D64: 0 | E64: 0 | F64: 0 | G64: 0 | H64: 0 | I64: 0 | J64: 0
A65: Капітальний ремонт | B65: 3130 | C65: 430 | D65: =SUM(D66:D67) -> 0 | E65: 0 | F65: 0 | G65: 0 | H65: 0 | I65: 0 | J65: 0
A66: Капітальний ремонт житлового фонду (приміщень) | B66: 3131 | C66: 440 | D66: 0 | E66: 0 | F66: 0 | G66: 0 | H66: 0 | I66: 0 | J66: 0
A67: Капітальний ремонт інших об’єктів | B67: 3132 | C67: 450 | D67: 0 | E67: 0 | F67: 0 | G67: 0 | H67: 0 | I67: 0 | J67: 0
A68: Реконструкція та реставрація | B68: 3140 | C68: 460 | D68: =SUM(D69:D71) -> 0 | E68: 0 | F68: 0 | G68: 0 | H68: 0 | I68: 0 | J68: 0
A69: Реконструкція житлового фонду (приміщень) | B69: 3141 | C69: 470 | D69: 0 | E69: 0 | F69: 0 | G69: 0 | H69: 0 | I69: 0 | J69: 0
A70: Реконструкція та реставрація інших об’єктів | B70: 3142 | C70: 480 | D70: 0 | E70: 0 | F70: 0 | G70: 0 | H70: 0 | I70: 0 | J70: 0
A71: Реставрація пам’яток культури, історії та архітектури | B71: 3143 | C71: 490 | D71: 0 | E71: 0 | F71: 0 | G71: 0 | H71: 0 | I71: 0 | J71: 0
A72: Створення державних запасів і резервів | B72: 3150 | C72: 500 | D72: 0 | E72: 0 | F72: 0 | G72: 0 | H72: 0 | I72: 0 | J72: 0
A73: Придбання землі та нематеріальних активів | B73: 3160 | C73: 510 | D73: 0 | E73: 0 | F73: 0 | G73: 0 | H73: 0 | I73: 0 | J73: 0
A74: Капітальні трансферти | B74: 3200 | C74: 520 | D74: =SUM(D75:D78) -> 0 | E74: 0 | F74: 0 | G74: 0 | H74: 0 | I74: 0 | J74: 0
A75: Капітальні трансферти підприємствам (установам, організаціям) | B75: 3210 | C75: 530 | D75: 0 | E75: 0 | F75: 0 | G75: 0 | H75: 0 | I75: 0 | J75: 0
A76: Капітальні трансферти органам державного управління інших рівнів | B76: 3220 | C76: 540 | D76: 0 | E76: 0 | F76: 0 | G76: 0 | H76: 0 | I76: 0 | J76: 0
A77: Капітальні трансферти урядам іноземних держав та міжнародним організаціям | B77: 3230 | C77: 550 | D77: 0 | E77: 0 | F77: 0 | G77: 0 | H77: 0 | I77: 0 | J77: 0
A78: Капітальні трансферти населенню | B78: 3240 | C78: 560 | D78: 0 | E78: 0 | F78: 0 | G78: 0 | H78: 0 | I78: 0 | J78: 0
A79: Внутрішнє кредитування | B79: 4100 | C79: 570 | D79: =SUM(D80) -> 0 | E79: 0 | F79: 0 | G79: 0 | H79: 0 | I79: 0 | J79: 0
A80: Надання внутрішніх кредитів | B80: 4110 | C80: 580 | D80: =SUM(D81:D83) -> 0 | E80: 0 | F80: 0 | G80: 0 | H80: 0 | I80: 0 | J80: 0
A81: Надання кредитів органам державного управління інших рівнів | B81: 4111 | C81: 590 | D81: 0 | E81: 0 | F81: 0 | G81: 0 | H81: 0 | I81: 0 | J81: 0
A82: Надання кредитів підприємствам, установам, організаціям | B82: 4112 | C82: 600 | D82: 0 | E82: 0 | F82: 0 | G82: 0 | H82: 0 | I82: 0 | J82: 0
A83: Надання інших внутрішніх кредитів | B83: 4113 | C83: 610 | D83: 0 | E83: 0 | F83: 0 | G83: 0 | H83: 0 | I83: 0 | J83: 0
A84: Зовнішнє кредитування | B84: 4200 | C84: 620 | D84: =D85 -> 0 | E84: 0 | F84: 0 | G84: 0 | H84: 0 | I84: 0 | J84: 0
A85: Надання зовнішніх кредитів | B85: 4210 | C85: 630 | D85: 0 | E85: 0 | F85: 0 | G85: 0 | H85: 0 | I85: 0 | J85: 0
A86: Інші видатки | B86: 5000 | C86: 640 | D86: X | E86: 0 | F86: X | G86: X | H86: X | I86: X | J86: X
A87: Нерозподілені видатки | B87: 9000 | C87: 650 | D87: 0 | E87: 0 | F87: 0 | G87: 0 | H87: 0 | I87: 0 | J87: 0
C88: 650
A100: 1 Заповнюється розпорядниками бюджетних коштів.
A101: =ЗАПОЛНИТЬ!F30 -> Керівник | G101: =ЗАПОЛНИТЬ!F26 -> Т.П. Петрук
D102: (підпис) | G102: (ініціали, прізвище)
A103: =ЗАПОЛНИТЬ!F31 -> Головний бухгалтер | G103: =ЗАПОЛНИТЬ!F28 -> В.В. Петрук
A104: =ЗАПОЛНИТЬ!C19 -> "12"січня 2018 року | D104: (підпис) | G104: (ініціали, прізвище)

Sheet Ф.2.8 (hidden)
G1: Додаток 1 до Порядку складання бюджетної звітності розпорядниками та одержувачами бюджетних коштів, звітності фондами загальнообов’язкового державного соціального і пенсійного страхування (пункт 1 розділу ІІ)
A4: ЗВІТ
A5: =IF(ЗАПОЛНИТЬ!$F$7=1,CONCATENATE(шапки!A2),CONCATENATE(шапки!A2,шапки!C2)) -> про надходження та використання коштів загального фонду (форма №2д, | G5: =IF(ЗАПОЛНИТЬ!$F$7=1,шапки!C2,шапки!D2) -> №2м) | H5: =IF(ЗАПОЛНИТЬ!$F$7=1,шапки!D2,"") -> 
A6: =CONCATENATE("за ",ЗАПОЛНИТЬ!$B$17," ",ЗАПОЛНИТЬ!$C$17) -> за 2017 р.
J7: коди
A9: Установа | B9: =ЗАПОЛНИТЬ!B3 -> Рафалівський НВК "ЗОШ Іст.-ДНЗ" | H9: за ЄДРПОУ | J9: =ЗАПОЛНИТЬ!B13 -> 25894582
A10: Територія | B10: =ЗАПОЛНИТЬ!B5 -> смт. Рафалівка | H10: за КОАТУУ | J10: =ЗАПОЛНИТЬ!B14 -> 5620855400
A11: Організаційно-правова форма господарювання | B11: =ЗАПОЛНИТЬ!D15 -> Комунальна організація (установа, заклад) | H11: за КОПФГ | J11: =ЗАПОЛНИТЬ!B15 -> 430
A12: Код та назва відомчої класифікації видатків та кредитування державного бюджету | D12: =ЗАПОЛНИТЬ!H9 -> 0 | E12: =IF(D12>0,VLOOKUP(D12,'ДовидникКВК(ГОС)'!A:B,2,FALSE),"") -> 
A13: Код та назва програмної класифікації видатків та кредитування державного бюджету | E13: =IF(D13>0,VLOOKUP(D13,ДовидникКПК!B:C,2,FALSE),"") -> 
A14: Код та назва типової відомчої класифікації видатків та кредитування місцевих бюджетів | D14: =ЗАПОЛНИТЬ!H10 -> 10 | E14: =ЗАПОЛНИТЬ!I10 -> Орган з питань освіти і науки
A15: Код та назва програмної класифікації видатків та кредитування місцевих бюджетів (код та назва Типової програмної класифікації видатків та кредитування місцевих бюджетів / Тимчасової класифікації видатків та кредитування для бюджетів місцевого самоврядування, які не застосовують програмно-цільового методу) | D15: - | E15: =VLOOKUP(RIGHT(D15,4),КПКВМБ!A:B,2,FALSE) -> -
A16: Періодичність: квартальна, річна
A17: Одиниця виміру: грн, коп.
A19: Показники | B19: КЕКВ та/або ККК | C19: Код рядка | D19: Затверджено на звітний рік | E19: Затверджено на звітний період (рік)1 | F19: Залишок на початок звітного року | G19: Надійшло коштів за звітний період (рік) | H19: Касові за звітний період (рік) | I19: Фактичні за звітний період (рік) | J19: Залишок на кінець звітного періоду (року)
A22: 1 | B22: 2 | C22: 3 | D22: 4 | E22: 5 | F22: 6 | G22: 7 | H22: 8 | I22: 9 | J22: 9
A23: Видатки та надання кредитів - усього | B23: Х | C23: 010 | D23: =D24+D59+D79+D84+D87 -> 0 | E23: =E26+E29+E32+E33+E37+E45+E46+E86+E54 -> 0 | F23: =F24+F59+F79+F84+F87 -> 0 | G23: =G24+G59+G79+G84+G87 -> 0 | H23: =H24+H59+H79+H84+H87 -> 0 | I23: =I24+I59+I79+I84+I87 -> 0 | J23: =F23+G23-H23 -> 0
A24: у тому числі: Поточні видатки | B24: 2000 | C24: 020 | D24: =D25+D30+D47+D50+D54+D58 -> 0 | E24: 0 | F24: 0 | G24: 0 | H24: 0 | I24: 0 | J24: =F24+G24-H24 -> 0
A25: Оплата праці і нарахування на заробітну плату | B25: 2100 | C25: 030 | D25: =D26+D29 -> 0 | E25: 0 | F25: =F26+F29 -> 0 | G25: =G26+G29 -> 0 | H25: =H26+H29 -> 0 | I25: =I26+I29 -> 0 | J25: 0
A26: Оплата праці | B26: 2110 | C26: 040 | D26: =SUM(D27:D28) -> 0 | E26: 0 | F26: 0 | G26: 0 | H26: 0 | I26: 0 | J26: 0
A27: Заробітна плата | B27: 2111 | C27: 050 | D27: 0 | E27: 0 | F27: 0 | G27: 0 | H27: 0 | I27: 0 | J27: 0
A28: Грошове забезпечення військовослужбовців | B28: 2112 | C28: 060 | D28: 0 | E28: 0 | F28: 0 | G28: 0 | H28: 0 | I28: 0 | J28: 0
A29: Нарахування на оплату праці | B29: 2120 | C29: 070 | D29: 0 | E29: 0 | F29: 0 | G29: 0 | H29: 0 | I29: 0 | J29: 0
A30: Використання товарів і послуг | B30: 2200 | C30: 080 | D30: =SUM(D31:D37)+D44 -> 0 | E30: 0 | F30: =SUM(F31:F37)+F44 -> 0 | G30: =SUM(G31:G37)+G44 -> 0 | H30: =SUM(H31:H37)+H44 -> 0 | I30: =SUM(I31:I37)+I44 -> 0 | J30: 0
A31: Предмети, матеріали, обладнання та інвентар | B31: 2210 | C31: 090 | D31: 0 | E31: 0 | F31: 0 | G31: 0 | H31: 0 | I31: 0 | J31: 0
A32: Медикаменти та перев’язувальні матеріали | B32: 2220 | C32: 100 | D32: 0 | E32: 0 | F32: 0 | G32: 0 | H32: 0 | I32: 0 | J32: 0
A33: Продукти харчування | B33: 2230 | C33: 110 | D33: 0 | E33: 0 | F33: 0 | G33: 0 | H33: 0 | I33: 0 | J33: 0
A34: Оплата послуг (крім комунальних) | B34: 2240 | C34: 120 | D34: 0 | E34: 0 | F34: 0 | G34: 0 | H34: 0 | I34: 0 | J34: 0
A35: Видатки на відрядження | B35: 2250 | C35: 130 | D35: 0 | E35: 0 | F35: 0 | G35: 0 | H35: 0 | I35: 0 | J35: 0
A36: Видатки та заходи спеціального призначення | B36: 2260 | C36: 140 | D36: 0 | E36: 0 | F36: 0 | G36: 0 | H36: 0 | I36: 0 | J36: 0
A37: Оплата комунальних послуг та енергоносіїв | B37: 2270 | C37: 150 | D37: =SUM(D38:D43) -> 0 | E37: 0 | F37: =SUM(F38:F43) -> 0 | G37: =SUM(G38:G43) -> 0 | H37: =SUM(H38:H43) -> 0 | I37: =SUM(I38:I43) -> 0 | J37: =F37+G37-H37 -> 0
A38: Оплата теплопостачання | B38: 2271 | C38: 160 | D38: 0 | E38: 0 | F38: 0 | G38: 0 | H38: 0 | I38: 0 | J38: 0
A39: Оплата водопостачання та водовідведення | B39: 2272 | C39: 170 | D39: 0 | E39: 0 | F39: 0 | G39: 0 | H39: 0 | I39: 0 | J39: 0
A40: Оплата електроенергії | B40: 2273 | C40: 180 | D40: 0 | E40: 0 | F40: 0 | G40: 0 | H40: 0 | I40: 0 | J40: 0
A41: Оплата природного газу | B41: 2274 | C41: 190 | D41: 0 | E41: 0 | F41: 0 | G41: 0 | H41: 0 | I41: 0 | J41: 0
A42: Оплата інших енергоносіїв | B42: 2275 | C42: 200 | D42: 0 | E42: 0 | F42: 0 | G42: 0 | H42: 0 | I42: 0 | J42: 0
A43: Оплата енергосервісу | B43: 2276 | C43: 210 | D43: 0 | E43: 0 | F43: 0 | G43: 0 | H43: 0 | I43: 0 | J43: =F43+G43-H43 -> 0
A44: Дослідження і розробки, окремі заходи по реалізації державних (регіональних) програм | B44: 2280 | C44: 220 | D44: =SUM(D45:D46) -> 0 | E44: 0 | F44: =SUM(F45:F46) -> 0 | G44: =SUM(G45:G46) -> 0 | H44: =SUM(H45:H46) -> 0 | I44: =SUM(I45:I46) -> 0 | J44: 0
A45: Дослідження і розробки, окремі заходи розвитку по реалізації державних (регіональних) програм | B45: 2281 | C45: 230 | D45: 0 | E45: 0 | F45: 0 | G45: 0 | H45: 0 | I45: 0 | J45: 0
A46: Окремі заходи по реалізації державних (регіональних) програм, не віднесені до заходів розвитку | B46: 2282 | C46: 240 | D46: 0 | E46: 0 | F46: 0 | G46: 0 | H46: 0 | I46: 0 | J46: 0
A47: Обслуговування боргових зобов’язань | B47: 2400 | C47: 250 | D47: =SUM(D48:D49) -> 0 | E47: 0 | F47: 0 | G47: 0 | H47: 0 | I47: 0 | J47: 0
A48: Обслуговування внутрішніх боргових зобов’язань | B48: 2410 | C48: 260 | D48: 0 | E48: 0 | F48: 0 | G48: 0 | H48: 0 | I48: 0 | J48: 0
A49: Обслуговування зовнішніх боргових зобов’язань | B49: 2420 | C49: 270 | D49: 0 | E49: 0 | F49: 0 | G49: 0 | H49: 0 | I49: 0 | J49: 0
A50: Поточні трансферти | B50: 2600 | C50: 280 | D50: =SUM(D51:D53) -> 0 | E50: 0 | F50: 0 | G50: 0 | H50: 0 | I50: 0 | J50: 0
A51: Субсидії та поточні трансферти підприємствам (установам, організаціям) | B51: 2610 | C51: 290 | D51: 0 | E51: 0 | F51: 0 | G51: 0 | H51: 0 | I51: 0 | J51: 0
A52: Поточні трансферти органам державного управління інших рівнів | B52: 2620 | C52: 300 | D52: 0 | E52: 0 | F52: 0 | G52: 0 | H52: 0 | I52: 0 | J52: 0
A53: Поточні трансферти урядам іноземних держав та міжнародним організаціям | B53: 2630 | C53: 310 | D53: 0 | E53: 0 | F53: 0 | G53: 0 | H53: 0 | I53: 0 | J53: 0
A54: Соціальне забезпечення | B54: 2700 | C54: 320 | D54: =SUM(D55:D57) -> 0 | E54: 0 | F54: 0 | G54: 0 | H54: 0 | I54: 0 | J54: 0
A55: Виплата пенсій і допомоги | B55: 2710 | C55: 330 | D55: 0 | E55: 0 | F55: 0 | G55: 0 | H55: 0 | I55: 0 | J55: 0
A56: Стипендії | B56: 2720 | C56: 340 | D56: 0 | E56: 0 | F56: 0 | G56: 0 | H56: 0 | I56: 0 | J56: 0
A57: Інші виплати населенню | B57: 2730 | C57: 350 | D57: 0 | E57: 0 | F57: 0 | G57: 0 | H57: 0 | I57: 0 | J57: 0
A58: Інші поточні видатки | B58: 2800 | C58: 360 | D58: 0 | E58: 0 | F58: 0 | G58: 0 | H58: 0 | I58: 0 | J58: 0
A59: Капітальні видатки | B59: 3000 | C59: 370 | D59: =D60+D74 -> 0 | E59: 0 | F59: 0 | G59: 0 | H59: 0 | I59: 0 | J59: 0
A60: Придбання основного капіталу | B60: 3100 | C60: 380 | D60: =D61+D62+D65+D68+D72+D73 -> 0 | E60: 0 | F60: 0 | G60: 0 | H60: 0 | I60: 0 | J60: 0
A61: Придбання обладнання і предметів довгострокового користування | B61: 3110 | C61: 390 | D61: 0 | E61: 0 | F61: 0 | G61: 0 | H61: 0 | I61: 0 | J61: 0
A62: Капітальне будівництво (придбання) | B62: 3120 | C62: 400 | D62: =SUM(D63:D64) -> 0 | E62: 0 | F62: 0 | G62: 0 | H62: 0 | I62: 0 | J62: 0
A63: Капітальне будівництво (придбання) житла | B63: 3121 | C63: 410 | D63: 0 | E63: 0 | F63: 0 | G63: 0 | H63: 0 | I63: 0 | J63: 0
A64: Капітальне будівництво (придбання) інших об’єктів | B64: 3122 | C64: 420 | D64: 0 | E64: 0 | F64: 0 | G64: 0 | H64: 0 | I64: 0 | J64: 0
A65: Капітальний ремонт | B65: 3130 | C65: 430 | D65: =SUM(D66:D67) -> 0 | E65: 0 | F65: 0 | G65: 0 | H65: 0 | I65: 0 | J65: 0
A66: Капітальний ремонт житлового фонду (приміщень) | B66: 3131 | C66: 440 | D66: 0 | E66: 0 | F66: 0 | G66: 0 | H66: 0 | I66: 0 | J66: 0
A67: Капітальний ремонт інших об’єктів | B67: 3132 | C67: 450 | D67: 0 | E67: 0 | F67: 0 | G67: 0 | H67: 0 | I67: 0 | J67: 0
A68: Реконструкція та реставрація | B68: 3140 | C68: 460 | D68: =SUM(D69:D71) -> 0 | E68: 0 | F68: 0 | G68: 0 | H68: 0 | I68: 0 | J68: 0
A69: Реконструкція житлового фонду (приміщень) | B69: 3141 | C69: 470 | D69: 0 | E69: 0 | F69: 0 | G69: 0 | H69: 0 | I69: 0 | J69: 0
A70: Реконструкція та реставрація інших об’єктів | B70: 3142 | C70: 480 | D70: 0 | E70: 0 | F70: 0 | G70: 0 | H70: 0 | I70: 0 | J70: 0
A71: Реставрація пам’яток культури, історії та архітектури | B71: 3143 | C71: 490 | D71: 0 | E71: 0 | F71: 0 | G71: 0 | H71: 0 | I71: 0 | J71: 0
A72: Створення державних запасів і резервів | B72: 3150 | C72: 500 | D72: 0 | E72: 0 | F72: 0 | G72: 0 | H72: 0 | I72: 0 | J72: 0
A73: Придбання землі та нематеріальних активів | B73: 3160 | C73: 510 | D73: 0 | E73: 0 | F73: 0 | G73: 0 | H73: 0 | I73: 0 | J73: 0
A74: Капітальні трансферти | B74: 3200 | C74: 520 | D74: =SUM(D75:D78) -> 0 | E74: 0 | F74: 0 | G74: 0 | H74: 0 | I74: 0 | J74: 0
A75: Капітальні трансферти підприємствам (установам, організаціям) | B75: 3210 | C75: 530 | D75: 0 | E75: 0 | F75: 0 | G75: 0 | H75: 0 | I75: 0 | J75: 0
A76: Капітальні трансферти органам державного управління інших рівнів | B76: 3220 | C76: 540 | D76: 0 | E76: 0 | F76: 0 | G76: 0 | H76: 0 | I76: 0 | J76: 0
A77: Капітальні трансферти урядам іноземних держав та міжнародним організаціям | B77: 3230 | C77: 550 | D77: 0 | E77: 0 | F77: 0 | G77: 0 | H77: 0 | I77: 0 | J77: 0
A78: Капітальні трансферти населенню | B78: 3240 | C78: 560 | D78: 0 | E78: 0 | F78: 0 | G78: 0 | H78: 0 | I78: 0 | J78: 0
A79: Внутрішнє кредитування | B79: 4100 | C79: 570 | D79: =SUM(D80) -> 0 | E79: 0 | F79: 0 | G79: 0 | H79: 0 | I79: 0 | J79: 0
A80: Надання внутрішніх кредитів | B80: 4110 | C80: 580 | D80: =SUM(D81:D83) -> 0 | E80: 0 | F80: 0 | G80: 0 | H80: 0 | I80: 0 | J80: 0
A81: Надання кредитів органам державного управління інших рівнів | B81: 4111 | C81: 590 | D81: 0 | E81: 0 | F81: 0 | G81: 0 | H81: 0 | I81: 0 | J81: 0
A82: Надання кредитів підприємствам, установам, організаціям | B82: 4112 | C82: 600 | D82: 0 | E82: 0 | F82: 0 | G82: 0 | H82: 0 | I82: 0 | J82: 0
A83: Надання інших внутрішніх кредитів | B83: 4113 | C83: 610 | D83: 0 | E83: 0 | F83: 0 | G83: 0 | H83: 0 | I83: 0 | J83: 0
A84: Зовнішнє кредитування | B84: 4200 | C84: 620 | D84: =D85 -> 0 | E84: 0 | F84: 0 | G84: 0 | H84: 0 | I84: 0 | J84: 0
A85: Надання зовнішніх кредитів | B85: 4210 | C85: 630 | D85: 0 | E85: 0 | F85: 0 | G85: 0 | H85: 0 | I85: 0 | J85: 0
A86: Інші видатки | B86: 5000 | C86: 640 | D86: X | E86: 0 | F86: X | G86: X | H86: X | I86: X | J86: X
A87: Нерозподілені видатки | B87: 9000 | C87: 650 | D87: 0 | E87: 0 | F87: 0 | G87: 0 | H87: 0 | I87: 0 | J87: 0
C88: 650
A100: 1 Заповнюється розпорядниками бюджетних коштів.
A101: =ЗАПОЛНИТЬ!F30 -> Керівник | G101: =ЗАПОЛНИТЬ!F26 -> Т.П. Петрук
D102: (підпис) | G102: (ініціали, прізвище)
A103: =ЗАПОЛНИТЬ!F31 -> Головний бухгалтер | G103: =ЗАПОЛНИТЬ!F28 -> В.В. Петрук
A104: =ЗАПОЛНИТЬ!C19 -> "12"січня 2018 року | D104: (підпис) | G104: (ініціали, прізвище)

Sheet Ф.2.9 (hidden)
G1: Додаток 1 до Порядку складання бюджетної звітності розпорядниками та одержувачами бюджетних коштів, звітності фондами загальнообов’язкового державного соціального і пенсійного страхування (пункт 1 розділу ІІ)
A4: ЗВІТ
A5: =IF(ЗАПОЛНИТЬ!$F$7=1,CONCATENATE(шапки!A2),CONCATENATE(шапки!A2,шапки!C2)) -> про надходження та використання коштів загального фонду (форма №2д, | G5: =IF(ЗАПОЛНИТЬ!$F$7=1,шапки!C2,шапки!D2) -> №2м) | H5: =IF(ЗАПОЛНИТЬ!$F$7=1,шапки!D2,"") -> 
A6: =CONCATENATE("за ",ЗАПОЛНИТЬ!$B$17," ",ЗАПОЛНИТЬ!$C$17) -> за 2017 р.
J7: коди
A9: Установа | B9: =ЗАПОЛНИТЬ!B3 -> Рафалівський НВК "ЗОШ Іст.-ДНЗ" | H9: за ЄДРПОУ | J9: =ЗАПОЛНИТЬ!B13 -> 25894582
A10: Територія | B10: =ЗАПОЛНИТЬ!B5 -> смт. Рафалівка | H10: за КОАТУУ | J10: =ЗАПОЛНИТЬ!B14 -> 5620855400
A11: Організаційно-правова форма господарювання | B11: =ЗАПОЛНИТЬ!D15 -> Комунальна організація (установа, заклад) | H11: за КОПФГ | J11: =ЗАПОЛНИТЬ!B15 -> 430
A12: Код та назва відомчої класифікації видатків та кредитування державного бюджету | D12: =ЗАПОЛНИТЬ!H9 -> 0 | E12: =IF(D12>0,VLOOKUP(D12,'ДовидникКВК(ГОС)'!A:B,2,FALSE),"") -> 
A13: Код та назва програмної класифікації видатків та кредитування державного бюджету | E13: =IF(D13>0,VLOOKUP(D13,ДовидникКПК!B:C,2,FALSE),"") -> 
A14: Код та назва типової відомчої класифікації видатків та кредитування місцевих бюджетів | D14: =ЗАПОЛНИТЬ!H10 -> 10 | E14: =ЗАПОЛНИТЬ!I10 -> Орган з питань освіти і науки
A15: Код та назва програмної класифікації видатків та кредитування місцевих бюджетів (код та назва Типової програмної класифікації видатків та кредитування місцевих бюджетів / Тимчасової класифікації видатків та кредитування для бюджетів місцевого самоврядування, які не застосовують програмно-цільового методу) | D15: - | E15: =VLOOKUP(RIGHT(D15,4),КПКВМБ!A:B,2,FALSE) -> -
A16: Періодичність: квартальна, річна
A17: Одиниця виміру: грн, коп.
A19: Показники | B19: КЕКВ та/або ККК | C19: Код рядка | D19: Затверджено на звітний рік | E19: Затверджено на звітний період (рік)1 | F19: Залишок на початок звітного року | G19: Надійшло коштів за звітний період (рік) | H19: Касові за звітний період (рік) | I19: Фактичні за звітний період (рік) | J19: Залишок на кінець звітного періоду (року)
A22: 1 | B22: 2 | C22: 3 | D22: 4 | E22: 5 | F22: 6 | G22: 7 | H22: 8 | I22: 9 | J22: 9
A23: Видатки та надання кредитів - усього | B23: Х | C23: 010 | D23: =D24+D59+D79+D84+D87 -> 0 | E23: =E26+E29+E32+E33+E37+E45+E46+E86+E54 -> 0 | F23: =F24+F59+F79+F84+F87 -> 0 | G23: =G24+G59+G79+G84+G87 -> 0 | H23: =H24+H59+H79+H84+H87 -> 0 | I23: =I24+I59+I79+I84+I87 -> 0 | J23: =F23+G23-H23 -> 0
A24: у тому числі: Поточні видатки | B24: 2000 | C24: 020 | D24: =D25+D30+D47+D50+D54+D58 -> 0 | E24: 0 | F24: 0 | G24: 0 | H24: 0 | I24: 0 | J24: =F24+G24-H24 -> 0
A25: Оплата праці і нарахування на заробітну плату | B25: 2100 | C25: 030 | D25: =D26+D29 -> 0 | E25: 0 | F25: =F26+F29 -> 0 | G25: =G26+G29 -> 0 | H25: =H26+H29 -> 0 | I25: =I26+I29 -> 0 | J25: 0
A26: Оплата праці | B26: 2110 | C26: 040 | D26: =SUM(D27:D28) -> 0 | E26: 0 | F26: 0 | G26: 0 | H26: 0 | I26: 0 | J26: 0
A27: Заробітна плата | B27: 2111 | C27: 050 | D27: 0 | E27: 0 | F27: 0 | G27: 0 | H27: 0 | I27: 0 | J27: 0
A28: Грошове забезпечення військовослужбовців | B28: 2112 | C28: 060 | D28: 0 | E28: 0 | F28: 0 | G28: 0 | H28: 0 | I28: 0 | J28: 0
A29: Нарахування на оплату праці | B29: 2120 | C29: 070 | D29: 0 | E29: 0 | F29: 0 | G29: 0 | H29: 0 | I29: 0 | J29: 0
A30: Використання товарів і послуг | B30: 2200 | C30: 080 | D30: =SUM(D31:D37)+D44 -> 0 | E30: 0 | F30: =SUM(F31:F37)+F44 -> 0 | G30: =SUM(G31:G37)+G44 -> 0 | H30: =SUM(H31:H37)+H44 -> 0 | I30: =SUM(I31:I37)+I44 -> 0 | J30: 0
A31: Предмети, матеріали, обладнання та інвентар | B31: 2210 | C31: 090 | D31: 0 | E31: 0 | F31: 0 | G31: 0 | H31: 0 | I31: 0 | J31: 0
A32: Медикаменти та перев’язувальні матеріали | B32: 2220 | C32: 100 | D32: 0 | E32: 0 | F32: 0 | G32: 0 | H32: 0 | I32: 0 | J32: 0
A33: Продукти харчування | B33: 2230 | C33: 110 | D33: 0 | E33: 0 | F33: 0 | G33: 0 | H33: 0 | I33: 0 | J33: 0
A34: Оплата послуг (крім комунальних) | B34: 2240 | C34: 120 | D34: 0 | E34: 0 | F34: 0 | G34: 0 | H34: 0 | I34: 0 | J34: 0
A35: Видатки на відрядження | B35: 2250 | C35: 130 | D35: 0 | E35: 0 | F35: 0 | G35: 0 | H35: 0 | I35: 0 | J35: 0
A36: Видатки та заходи спеціального призначення | B36: 2260 | C36: 140 | D36: 0 | E36: 0 | F36: 0 | G36: 0 | H36: 0 | I36: 0 | J36: 0
A37: Оплата комунальних послуг та енергоносіїв | B37: 2270 | C37: 150 | D37: =SUM(D38:D43) -> 0 | E37: 0 | F37: =SUM(F38:F43) -> 0 | G37: =SUM(G38:G43) -> 0 | H37: =SUM(H38:H43) -> 0 | I37: =SUM(I38:I43) -> 0 | J37: =F37+G37-H37 -> 0
A38: Оплата теплопостачання | B38: 2271 | C38: 160 | D38: 0 | E38: 0 | F38: 0 | G38: 0 | H38: 0 | I38: 0 | J38: 0
A39: Оплата водопостачання та водовідведення | B39: 2272 | C39: 170 | D39: 0 | E39: 0 | F39: 0 | G39: 0 | H39: 0 | I39: 0 | J39: 0
A40: Оплата електроенергії | B40: 2273 | C40: 180 | D40: 0 | E40: 0 | F40: 0 | G40: 0 | H40: 0 | I40: 0 | J40: 0
A41: Оплата природного газу | B41: 2274 | C41: 190 | D41: 0 | E41: 0 | F41: 0 | G41: 0 | H41: 0 | I41: 0 | J41: 0
A42: Оплата інших енергоносіїв | B42: 2275 | C42: 200 | D42: 0 | E42: 0 | F42: 0 | G42: 0 | H42: 0 | I42: 0 | J42: 0
A43: Оплата енергосервісу | B43: 2276 | C43: 210 | D43: 0 | E43: 0 | F43: 0 | G43: 0 | H43: 0 | I43: 0 | J43: =F43+G43-H43 -> 0
A44: Дослідження і розробки, окремі заходи по реалізації державних (регіональних) програм | B44: 2280 | C44: 220 | D44: =SUM(D45:D46) -> 0 | E44: 0 | F44: =SUM(F45:F46) -> 0 | G44: =SUM(G45:G46) -> 0 | H44: =SUM(H45:H46) -> 0 | I44: =SUM(I45:I46) -> 0 | J44: 0
A45: Дослідження і розробки, окремі заходи розвитку по реалізації державних (регіональних) програм | B45: 2281 | C45: 230 | D45: 0 | E45: 0 | F45: 0 | G45: 0 | H45: 0 | I45: 0 | J45: 0
A46: Окремі заходи по реалізації державних (регіональних) програм, не віднесені до заходів розвитку | B46: 2282 | C46: 240 | D46: 0 | E46: 0 | F46: 0 | G46: 0 | H46: 0 | I46: 0 | J46: 0
A47: Обслуговування боргових зобов’язань | B47: 2400 | C47: 250 | D47: =SUM(D48:D49) -> 0 | E47: 0 | F47: 0 | G47: 0 | H47: 0 | I47: 0 | J47: 0
A48: Обслуговування внутрішніх боргових зобов’язань | B48: 2410 | C48: 260 | D48: 0 | E48: 0 | F48: 0 | G48: 0 | H48: 0 | I48: 0 | J48: 0
A49: Обслуговування зовнішніх боргових зобов’язань | B49: 2420 | C49: 270 | D49: 0 | E49: 0 | F49: 0 | G49: 0 | H49: 0 | I49: 0 | J49: 0
A50: Поточні трансферти | B50: 2600 | C50: 280 | D50: =SUM(D51:D53) -> 0 | E50: 0 | F50: 0 | G50: 0 | H50: 0 | I50: 0 | J50: 0
A51: Субсидії та поточні трансферти підприємствам (установам, організаціям) | B51: 2610 | C51: 290 | D51: 0 | E51: 0 | F51: 0 | G51: 0 | H51: 0 | I51: 0 | J51: 0
A52: Поточні трансферти органам державного управління інших рівнів | B52: 2620 | C52: 300 | D52: 0 | E52: 0 | F52: 0 | G52: 0 | H52: 0 | I52: 0 | J52: 0
A53: Поточні трансферти урядам іноземних держав та міжнародним організаціям | B53: 2630 | C53: 310 | D53: 0 | E53: 0 | F53: 0 | G53: 0 | H53: 0 | I53: 0 | J53: 0
A54: Соціальне забезпечення | B54: 2700 | C54: 320 | D54: =SUM(D55:D57) -> 0 | E54: 0 | F54: 0 | G54: 0 | H54: 0 | I54: 0 | J54: 0
A55: Виплата пенсій і допомоги | B55: 2710 | C55: 330 | D55: 0 | E55: 0 | F55: 0 | G55: 0 | H55: 0 | I55: 0 | J55: 0
A56: Стипендії | B56: 2720 | C56: 340 | D56: 0 | E56: 0 | F56: 0 | G56: 0 | H56: 0 | I56: 0 | J56: 0
A57: Інші виплати населенню | B57: 2730 | C57: 350 | D57: 0 | E57: 0 | F57: 0 | G57: 0 | H57: 0 | I57: 0 | J57: 0
A58: Інші поточні видатки | B58: 2800 | C58: 360 | D58: 0 | E58: 0 | F58: 0 | G58: 0 | H58: 0 | I58: 0 | J58: 0
A59: Капітальні видатки | B59: 3000 | C59: 370 | D59: =D60+D74 -> 0 | E59: 0 | F59: 0 | G59: 0 | H59: 0 | I59: 0 | J59: 0
A60: Придбання основного капіталу | B60: 3100 | C60: 380 | D60: =D61+D62+D65+D68+D72+D73 -> 0 | E60: 0 | F60: 0 | G60: 0 | H60: 0 | I60: 0 | J60: 0
A61: Придбання обладнання і предметів довгострокового користування | B61: 3110 | C61: 390 | D61: 0 | E61: 0 | F61: 0 | G61: 0 | H61: 0 | I61: 0 | J61: 0
A62: Капітальне будівництво (придбання) | B62: 3120 | C62: 400 | D62: =SUM(D63:D64) -> 0 | E62: 0 | F62: 0 | G62: 0 | H62: 0 | I62: 0 | J62: 0
A63: Капітальне будівництво (придбання) житла | B63: 3121 | C63: 410 | D63: 0 | E63: 0 | F63: 0 | G63: 0 | H63: 0 | I63: 0 | J63: 0
A64: Капітальне будівництво (придбання) інших об’єктів | B64: 3122 | C64: 420 | D64: 0 | E64: 0 | F64: 0 | G64: 0 | H64: 0 | I64: 0 | J64: 0
A65: Капітальний ремонт | B65: 3130 | C65: 430 | D65: =SUM(D66:D67) -> 0 | E65: 0 | F65: 0 | G65: 0 | H65: 0 | I65: 0 | J65: 0
A66: Капітальний ремонт житлового фонду (приміщень) | B66: 3131 | C66: 440 | D66: 0 | E66: 0 | F66: 0 | G66: 0 | H66: 0 | I66: 0 | J66: 0
A67: Капітальний ремонт інших об’єктів | B67: 3132 | C67: 450 | D67: 0 | E67: 0 | F67: 0 | G67: 0 | H67: 0 | I67: 0 | J67: 0
A68: Реконструкція та реставрація | B68: 3140 | C68: 460 | D68: =SUM(D69:D71) -> 0 | E68: 0 | F68: 0 | G68: 0 | H68: 0 | I68: 0 | J68: 0
A69: Реконструкція житлового фонду (приміщень) | B69: 3141 | C69: 470 | D69: 0 | E69: 0 | F69: 0 | G69: 0 | H69: 0 | I69: 0 | J69: 0
A70: Реконструкція та реставрація інших об’єктів | B70: 3142 | C70: 480 | D70: 0 | E70: 0 | F70: 0 | G70: 0 | H70: 0 | I70: 0 | J70: 0
A71: Реставрація пам’яток культури, історії та архітектури | B71: 3143 | C71: 490 | D71: 0 | E71: 0 | F71: 0 | G71: 0 | H71: 0 | I71: 0 | J71: 0
A72: Створення державних запасів і резервів | B72: 3150 | C72: 500 | D72: 0 | E72: 0 | F72: 0 | G72: 0 | H72: 0 | I72: 0 | J72: 0
A73: Придбання землі та нематеріальних активів | B73: 3160 | C73: 510 | D73: 0 | E73: 0 | F73: 0 | G73: 0 | H73: 0 | I73: 0 | J73: 0
A74: Капітальні трансферти | B74: 3200 | C74: 520 | D74: =SUM(D75:D78) -> 0 | E74: 0 | F74: 0 | G74: 0 | H74: 0 | I74: 0 | J74: 0
A75: Капітальні трансферти підприємствам (установам, організаціям) | B75: 3210 | C75: 530 | D75: 0 | E75: 0 | F75: 0 | G75: 0 | H75: 0 | I75: 0 | J75: 0
A76: Капітальні трансферти органам державного управління інших рівнів | B76: 3220 | C76: 540 | D76: 0 | E76: 0 | F76: 0 | G76: 0 | H76: 0 | I76: 0 | J76: 0
A77: Капітальні трансферти урядам іноземних держав та міжнародним організаціям | B77: 3230 | C77: 550 | D77: 0 | E77: 0 | F77: 0 | G77: 0 | H77: 0 | I77: 0 | J77: 0
A78: Капітальні трансферти населенню | B78: 3240 | C78: 560 | D78: 0 | E78: 0 | F78: 0 | G78: 0 | H78: 0 | I78: 0 | J78: 0
A79: Внутрішнє кредитування | B79: 4100 | C79: 570 | D79: =SUM(D80) -> 0 | E79: 0 | F79: 0 | G79: 0 | H79: 0 | I79: 0 | J79: 0
A80: Надання внутрішніх кредитів | B80: 4110 | C80: 580 | D80: =SUM(D81:D83) -> 0 | E80: 0 | F80: 0 | G80: 0 | H80: 0 | I80: 0 | J80: 0
A81: Надання кредитів органам державного управління інших рівнів | B81: 4111 | C81: 590 | D81: 0 | E81: 0 | F81: 0 | G81: 0 | H81: 0 | I81: 0 | J81: 0
A82: Надання кредитів підприємствам, установам, організаціям | B82: 4112 | C82: 600 | D82: 0 | E82: 0 | F82: 0 | G82: 0 | H82: 0 | I82: 0 | J82: 0
A83: Надання інших внутрішніх кредитів | B83: 4113 | C83: 610 | D83: 0 | E83: 0 | F83: 0 | G83: 0 | H83: 0 | I83: 0 | J83: 0
A84: Зовнішнє кредитування | B84: 4200 | C84: 620 | D84: =D85 -> 0 | E84: 0 | F84: 0 | G84: 0 | H84: 0 | I84: 0 | J84: 0
A85: Надання зовнішніх кредитів | B85: 4210 | C85: 630 | D85: 0 | E85: 0 | F85: 0 | G85: 0 | H85: 0 | I85: 0 | J85: 0
A86: Інші видатки | B86: 5000 | C86: 640 | D86: X | E86: 0 | F86: X | G86: X | H86: X | I86: X | J86: X
A87: Нерозподілені видатки | B87: 9000 | C87: 650 | D87: 0 | E87: 0 | F87: 0 | G87: 0 | H87: 0 | I87: 0 | J87: 0
C88: 650
A100: 1 Заповнюється розпорядниками бюджетних коштів.
A101: =ЗАПОЛНИТЬ!F30 -> Керівник | G101: =ЗАПОЛНИТЬ!F26 -> Т.П. Петрук
D102: (підпис) | G102: (ініціали, прізвище)
A103: =ЗАПОЛНИТЬ!F31 -> Головний бухгалтер | G103: =ЗАПОЛНИТЬ!F28 -> В.В. Петрук
A104: =ЗАПОЛНИТЬ!C19 -> "12"січня 2018 року | D104: (підпис) | G104: (ініціали, прізвище)

Sheet Ф.2.10 (hidden)
G1: Додаток 1 до Порядку складання бюджетної звітності розпорядниками та одержувачами бюджетних коштів, звітності фондами загальнообов’язкового державного соціального і пенсійного страхування (пункт 1 розділу ІІ)
A4: ЗВІТ
A5: =IF(ЗАПОЛНИТЬ!$F$7=1,CONCATENATE(шапки!A2),CONCATENATE(шапки!A2,шапки!C2)) -> про надходження та використання коштів загального фонду (форма №2д, | G5: =IF(ЗАПОЛНИТЬ!$F$7=1,шапки!C2,шапки!D2) -> №2м) | H5: =IF(ЗАПОЛНИТЬ!$F$7=1,шапки!D2,"") -> 
A6: =CONCATENATE("за ",ЗАПОЛНИТЬ!$B$17," ",ЗАПОЛНИТЬ!$C$17) -> за 2017 р.
J7: коди
A9: Установа | B9: =ЗАПОЛНИТЬ!B3 -> Рафалівський НВК "ЗОШ Іст.-ДНЗ" | H9: за ЄДРПОУ | J9: =ЗАПОЛНИТЬ!B13 -> 25894582
A10: Територія | B10: =ЗАПОЛНИТЬ!B5 -> смт. Рафалівка | H10: за КОАТУУ | J10: =ЗАПОЛНИТЬ!B14 -> 5620855400
A11: Організаційно-правова форма господарювання | B11: =ЗАПОЛНИТЬ!D15 -> Комунальна організація (установа, заклад) | H11: за КОПФГ | J11: =ЗАПОЛНИТЬ!B15 -> 430
A12: Код та назва відомчої класифікації видатків та кредитування державного бюджету | D12: =ЗАПОЛНИТЬ!H9 -> 0 | E12: =IF(D12>0,VLOOKUP(D12,'ДовидникКВК(ГОС)'!A:B,2,FALSE),"") -> 
A13: Код та назва програмної класифікації видатків та кредитування державного бюджету | E13: =IF(D13>0,VLOOKUP(D13,ДовидникКПК!B:C,2,FALSE),"") -> 
A14: Код та назва типової відомчої класифікації видатків та кредитування місцевих бюджетів | D14: =ЗАПОЛНИТЬ!H10 -> 10 | E14: =ЗАПОЛНИТЬ!I10 -> Орган з питань освіти і науки
A15: Код та назва програмної класифікації видатків та кредитування місцевих бюджетів (код та назва Типової програмної класифікації видатків та кредитування місцевих бюджетів / Тимчасової класифікації видатків та кредитування для бюджетів місцевого самоврядування, які не застосовують програмно-цільового методу) | D15: - | E15: =VLOOKUP(RIGHT(D15,4),КПКВМБ!A:B,2,FALSE) -> -
A16: Періодичність: квартальна, річна
A17: Одиниця виміру: грн, коп.
A19: Показники | B19: КЕКВ та/або ККК | C19: Код рядка | D19: Затверджено на звітний рік | E19: Затверджено на звітний період (рік)1 | F19: Залишок на початок звітного року | G19: Надійшло коштів за звітний період (рік) | H19: Касові за звітний період (рік) | I19: Фактичні за звітний період (рік) | J19: Залишок на кінець звітного періоду (року)
A22: 1 | B22: 2 | C22: 3 | D22: 4 | E22: 5 | F22: 6 | G22: 7 | H22: 8 | I22: 9 | J22: 9
A23: Видатки та надання кредитів - усього | B23: Х | C23: 010 | D23: =D24+D59+D79+D84+D87 -> 0 | E23: =E26+E29+E32+E33+E37+E45+E46+E86+E54 -> 0 | F23: =F24+F59+F79+F84+F87 -> 0 | G23: =G24+G59+G79+G84+G87 -> 0 | H23: =H24+H59+H79+H84+H87 -> 0 | I23: =I24+I59+I79+I84+I87 -> 0 | J23: =F23+G23-H23 -> 0
A24: у тому числі: Поточні видатки | B24: 2000 | C24: 020 | D24: =D25+D30+D47+D50+D54+D58 -> 0 | E24: 0 | F24: 0 | G24: 0 | H24: 0 | I24: 0 | J24: =F24+G24-H24 -> 0
A25: Оплата праці і нарахування на заробітну плату | B25: 2100 | C25: 030 | D25: =D26+D29 -> 0 | E25: 0 | F25: =F26+F29 -> 0 | G25: =G26+G29 -> 0 | H25: =H26+H29 -> 0 | I25: =I26+I29 -> 0 | J25: 0
A26: Оплата праці | B26: 2110 | C26: 040 | D26: =SUM(D27:D28) -> 0 | E26: 0 | F26: 0 | G26: 0 | H26: 0 | I26: 0 | J26: 0
A27: Заробітна плата | B27: 2111 | C27: 050 | D27: 0 | E27: 0 | F27: 0 | G27: 0 | H27: 0 | I27: 0 | J27: 0
A28: Грошове забезпечення військовослужбовців | B28: 2112 | C28: 060 | D28: 0 | E28: 0 | F28: 0 | G28: 0 | H28: 0 | I28: 0 | J28: 0
A29: Нарахування на оплату праці | B29: 2120 | C29: 070 | D29: 0 | E29: 0 | F29: 0 | G29: 0 | H29: 0 | I29: 0 | J29: 0
A30: Використання товарів і послуг | B30: 2200 | C30: 080 | D30: =SUM(D31:D37)+D44 -> 0 | E30: 0 | F30: =SUM(F31:F37)+F44 -> 0 | G30: =SUM(G31:G37)+G44 -> 0 | H30: =SUM(H31:H37)+H44 -> 0 | I30: =SUM(I31:I37)+I44 -> 0 | J30: 0
A31: Предмети, матеріали, обладнання та інвентар | B31: 2210 | C31: 090 | D31: 0 | E31: 0 | F31: 0 | G31: 0 | H31: 0 | I31: 0 | J31: 0
A32: Медикаменти та перев’язувальні матеріали | B32: 2220 | C32: 100 | D32: 0 | E32: 0 | F32: 0 | G32: 0 | H32: 0 | I32: 0 | J32: 0
A33: Продукти харчування | B33: 2230 | C33: 110 | D33: 0 | E33: 0 | F33: 0 | G33: 0 | H33: 0 | I33: 0 | J33: 0
A34: Оплата послуг (крім комунальних) | B34: 2240 | C34: 120 | D34: 0 | E34: 0 | F34: 0 | G34: 0 | H34: 0 | I34: 0 | J34: 0
A35: Видатки на відрядження | B35: 2250 | C35: 130 | D35: 0 | E35: 0 | F35: 0 | G35: 0 | H35: 0 | I35: 0 | J35: 0
A36: Видатки та заходи спеціального призначення | B36: 2260 | C36: 140 | D36: 0 | E36: 0 | F36: 0 | G36: 0 | H36: 0 | I36: 0 | J36: 0
A37: Оплата комунальних послуг та енергоносіїв | B37: 2270 | C37: 150 | D37: =SUM(D38:D43) -> 0 | E37: 0 | F37: =SUM(F38:F43) -> 0 | G37: =SUM(G38:G43) -> 0 | H37: =SUM(H38:H43) -> 0 | I37: =SUM(I38:I43) -> 0 | J37: =F37+G37-H37 -> 0
A38: Оплата теплопостачання | B38: 2271 | C38: 160 | D38: 0 | E38: 0 | F38: 0 | G38: 0 | H38: 0 | I38: 0 | J38: 0
A39: Оплата водопостачання та водовідведення | B39: 2272 | C39: 170 | D39: 0 | E39: 0 | F39: 0 | G39: 0 | H39: 0 | I39: 0 | J39: 0
A40: Оплата електроенергії | B40: 2273 | C40: 180 | D40: 0 | E40: 0 | F40: 0 | G40: 0 | H40: 0 | I40: 0 | J40: 0
A41: Оплата природного газу | B41: 2274 | C41: 190 | D41: 0 | E41: 0 | F41: 0 | G41: 0 | H41: 0 | I41: 0 | J41: 0
A42: Оплата інших енергоносіїв | B42: 2275 | C42: 200 | D42: 0 | E42: 0 | F42: 0 | G42: 0 | H42: 0 | I42: 0 | J42: 0
A43: Оплата енергосервісу | B43: 2276 | C43: 210 | D43: 0 | E43: 0 | F43: 0 | G43: 0 | H43: 0 | I43: 0 | J43: =F43+G43-H43 -> 0
A44: Дослідження і розробки, окремі заходи по реалізації державних (регіональних) програм | B44: 2280 | C44: 220 | D44: =SUM(D45:D46) -> 0 | E44: 0 | F44: =SUM(F45:F46) -> 0 | G44: =SUM(G45:G46) -> 0 | H44: =SUM(H45:H46) -> 0 | I44: =SUM(I45:I46) -> 0 | J44: 0
A45: Дослідження і розробки, окремі заходи розвитку по реалізації державних (регіональних) програм | B45: 2281 | C45: 230 | D45: 0 | E45: 0 | F45: 0 | G45: 0 | H45: 0 | I45: 0 | J45: 0
A46: Окремі заходи по реалізації державних (регіональних) програм, не віднесені до заходів розвитку | B46: 2282 | C46: 240 | D46: 0 | E46: 0 | F46: 0 | G46: 0 | H46: 0 | I46: 0 | J46: 0
A47: Обслуговування боргових зобов’язань | B47: 2400 | C47: 250 | D47: =SUM(D48:D49) -> 0 | E47: 0 | F47: 0 | G47: 0 | H47: 0 | I47: 0 | J47: 0
A48: Обслуговування внутрішніх боргових зобов’язань | B48: 2410 | C48: 260 | D48: 0 | E48: 0 | F48: 0 | G48: 0 | H48: 0 | I48: 0 | J48: 0
A49: Обслуговування зовнішніх боргових зобов’язань | B49: 2420 | C49: 270 | D49: 0 | E49: 0 | F49: 0 | G49: 0 | H49: 0 | I49: 0 | J49: 0
A50: Поточні трансферти | B50: 2600 | C50: 280 | D50: =SUM(D51:D53) -> 0 | E50: 0 | F50: 0 | G50: 0 | H50: 0 | I50: 0 | J50: 0
A51: Субсидії та поточні трансферти підприємствам (установам, організаціям) | B51: 2610 | C51: 290 | D51: 0 | E51: 0 | F51: 0 | G51: 0 | H51: 0 | I51: 0 | J51: 0
A52: Поточні трансферти органам державного управління інших рівнів | B52: 2620 | C52: 300 | D52: 0 | E52: 0 | F52: 0 | G52: 0 | H52: 0 | I52: 0 | J52: 0
A53: Поточні трансферти урядам іноземних держав та міжнародним організаціям | B53: 2630 | C53: 310 | D53: 0 | E53: 0 | F53: 0 | G53: 0 | H53: 0 | I53: 0 | J53: 0
A54: Соціальне забезпечення | B54: 2700 | C54: 320 | D54: =SUM(D55:D57) -> 0 | E54: 0 | F54: 0 | G54: 0 | H54: 0 | I54: 0 | J54: 0
A55: Виплата пенсій і допомоги | B55: 2710 | C55: 330 | D55: 0 | E55: 0 | F55: 0 | G55: 0 | H55: 0 | I55: 0 | J55: 0
A56: Стипендії | B56: 2720 | C56: 340 | D56: 0 | E56: 0 | F56: 0 | G56: 0 | H56: 0 | I56: 0 | J56: 0
A57: Інші виплати населенню | B57: 2730 | C57: 350 | D57: 0 | E57: 0 | F57: 0 | G57: 0 | H57: 0 | I57: 0 | J57: 0
A58: Інші поточні видатки | B58: 2800 | C58: 360 | D58: 0 | E58: 0 | F58: 0 | G58: 0 | H58: 0 | I58: 0 | J58: 0
A59: Капітальні видатки | B59: 3000 | C59: 370 | D59: =D60+D74 -> 0 | E59: 0 | F59: 0 | G59: 0 | H59: 0 | I59: 0 | J59: 0
A60: Придбання основного капіталу | B60: 3100 | C60: 380 | D60: =D61+D62+D65+D68+D72+D73 -> 0 | E60: 0 | F60: 0 | G60: 0 | H60: 0 | I60: 0 | J60: 0
A61: Придбання обладнання і предметів довгострокового користування | B61: 3110 | C61: 390 | D61: 0 | E61: 0 | F61: 0 | G61: 0 | H61: 0 | I61: 0 | J61: 0
A62: Капітальне будівництво (придбання) | B62: 3120 | C62: 400 | D62: =SUM(D63:D64) -> 0 | E62: 0 | F62: 0 | G62: 0 | H62: 0 | I62: 0 | J62: 0
A63: Капітальне будівництво (придбання) житла | B63: 3121 | C63: 410 | D63: 0 | E63: 0 | F63: 0 | G63: 0 | H63: 0 | I63: 0 | J63: 0
A64: Капітальне будівництво (придбання) інших об’єктів | B64: 3122 | C64: 420 | D64: 0 | E64: 0 | F64: 0 | G64: 0 | H64: 0 | I64: 0 | J64: 0
A65: Капітальний ремонт | B65: 3130 | C65: 430 | D65: =SUM(D66:D67) -> 0 | E65: 0 | F65: 0 | G65: 0 | H65: 0 | I65: 0 | J65: 0
A66: Капітальний ремонт житлового фонду (приміщень) | B66: 3131 | C66: 440 | D66: 0 | E66: 0 | F66: 0 | G66: 0 | H66: 0 | I66: 0 | J66: 0
A67: Капітальний ремонт інших об’єктів | B67: 3132 | C67: 450 | D67: 0 | E67: 0 | F67: 0 | G67: 0 | H67: 0 | I67: 0 | J67: 0
A68: Реконструкція та реставрація | B68: 3140 | C68: 460 | D68: =SUM(D69:D71) -> 0 | E68: 0 | F68: 0 | G68: 0 | H68: 0 | I68: 0 | J68: 0
A69: Реконструкція житлового фонду (приміщень) | B69: 3141 | C69: 470 | D69: 0 | E69: 0 | F69: 0 | G69: 0 | H69: 0 | I69: 0 | J69: 0
A70: Реконструкція та реставрація інших об’єктів | B70: 3142 | C70: 480 | D70: 0 | E70: 0 | F70: 0 | G70: 0 | H70: 0 | I70: 0 | J70: 0
A71: Реставрація пам’яток культури, історії та архітектури | B71: 3143 | C71: 490 | D71: 0 | E71: 0 | F71: 0 | G71: 0 | H71: 0 | I71: 0 | J71: 0
A72: Створення державних запасів і резервів | B72: 3150 | C72: 500 | D72: 0 | E72: 0 | F72: 0 | G72: 0 | H72: 0 | I72: 0 | J72: 0
A73: Придбання землі та нематеріальних активів | B73: 3160 | C73: 510 | D73: 0 | E73: 0 | F73: 0 | G73: 0 | H73: 0 | I73: 0 | J73: 0
A74: Капітальні трансферти | B74: 3200 | C74: 520 | D74: =SUM(D75:D78) -> 0 | E74: 0 | F74: 0 | G74: 0 | H74: 0 | I74: 0 | J74: 0
A75: Капітальні трансферти підприємствам (установам, організаціям) | B75: 3210 | C75: 530 | D75: 0 | E75: 0 | F75: 0 | G75: 0 | H75: 0 | I75: 0 | J75: 0
A76: Капітальні трансферти органам державного управління інших рівнів | B76: 3220 | C76: 540 | D76: 0 | E76: 0 | F76: 0 | G76: 0 | H76: 0 | I76: 0 | J76: 0
A77: Капітальні трансферти урядам іноземних держав та міжнародним організаціям | B77: 3230 | C77: 550 | D77: 0 | E77: 0 | F77: 0 | G77: 0 | H77: 0 | I77: 0 | J77: 0
A78: Капітальні трансферти населенню | B78: 3240 | C78: 560 | D78: 0 | E78: 0 | F78: 0 | G78: 0 | H78: 0 | I78: 0 | J78: 0
A79: Внутрішнє кредитування | B79: 4100 | C79: 570 | D79: =SUM(D80) -> 0 | E79: 0 | F79: 0 | G79: 0 | H79: 0 | I79: 0 | J79: 0
A80: Надання внутрішніх кредитів | B80: 4110 | C80: 580 | D80: =SUM(D81:D83) -> 0 | E80: 0 | F80: 0 | G80: 0 | H80: 0 | I80: 0 | J80: 0
A81: Надання кредитів органам державного управління інших рівнів | B81: 4111 | C81: 590 | D81: 0 | E81: 0 | F81: 0 | G81: 0 | H81: 0 | I81: 0 | J81: 0
A82: Надання кредитів підприємствам, установам, організаціям | B82: 4112 | C82: 600 | D82: 0 | E82: 0 | F82: 0 | G82: 0 | H82: 0 | I82: 0 | J82: 0
A83: Надання інших внутрішніх кредитів | B83: 4113 | C83: 610 | D83: 0 | E83: 0 | F83: 0 | G83: 0 | H83: 0 | I83: 0 | J83: 0
A84: Зовнішнє кредитування | B84: 4200 | C84: 620 | D84: =D85 -> 0 | E84: 0 | F84: 0 | G84: 0 | H84: 0 | I84: 0 | J84: 0
A85: Надання зовнішніх кредитів | B85: 4210 | C85: 630 | D85: 0 | E85: 0 | F85: 0 | G85: 0 | H85: 0 | I85: 0 | J85: 0
A86: Інші видатки | B86: 5000 | C86: 640 | D86: X | E86: 0 | F86: X | G86: X | H86: X | I86: X | J86: X
A87: Нерозподілені видатки | B87: 9000 | C87: 650 | D87: 0 | E87: 0 | F87: 0 | G87: 0 | H87: 0 | I87: 0 | J87: 0
C88: 650
A100: 1 Заповнюється розпорядниками бюджетних коштів.
A101: =ЗАПОЛНИТЬ!F30 -> Керівник | G101: =ЗАПОЛНИТЬ!F26 -> Т.П. Петрук
D102: (підпис) | G102: (ініціали, прізвище)
A103: =ЗАПОЛНИТЬ!F31 -> Головний бухгалтер | G103: =ЗАПОЛНИТЬ!F28 -> В.В. Петрук
A104: =ЗАПОЛНИТЬ!C19 -> "12"січня 2018 року | D104: (підпис) | G104: (ініціали, прізвище)

Sheet Ф.2.11 (hidden)
G1: Додаток 1 до Порядку складання бюджетної звітності розпорядниками та одержувачами бюджетних коштів, звітності фондами загальнообов’язкового державного соціального і пенсійного страхування (пункт 1 розділу ІІ)
A4: ЗВІТ
A5: =IF(ЗАПОЛНИТЬ!$F$7=1,CONCATENATE(шапки!A2),CONCATENATE(шапки!A2,шапки!C2)) -> про надходження та використання коштів загального фонду (форма №2д, | G5: =IF(ЗАПОЛНИТЬ!$F$7=1,шапки!C2,шапки!D2) -> №2м) | H5: =IF(ЗАПОЛНИТЬ!$F$7=1,шапки!D2,"") -> 
A6: =CONCATENATE("за ",ЗАПОЛНИТЬ!$B$17," ",ЗАПОЛНИТЬ!$C$17) -> за 2017 р.
J7: коди
A9: Установа | B9: =ЗАПОЛНИТЬ!B3 -> Рафалівський НВК "ЗОШ Іст.-ДНЗ" | H9: за ЄДРПОУ | J9: =ЗАПОЛНИТЬ!B13 -> 25894582
A10: Територія | B10: =ЗАПОЛНИТЬ!B5 -> смт. Рафалівка | H10: за КОАТУУ | J10: =ЗАПОЛНИТЬ!B14 -> 5620855400
A11: Організаційно-правова форма господарювання | B11: =ЗАПОЛНИТЬ!D15 -> Комунальна організація (установа, заклад) | H11: за КОПФГ | J11: =ЗАПОЛНИТЬ!B15 -> 430
A12: Код та назва відомчої класифікації видатків та кредитування державного бюджету | D12: =ЗАПОЛНИТЬ!H9 -> 0 | E12: =IF(D12>0,VLOOKUP(D12,'ДовидникКВК(ГОС)'!A:B,2,FALSE),"") -> 
A13: Код та назва програмної класифікації видатків та кредитування державного бюджету | E13: =IF(D13>0,VLOOKUP(D13,ДовидникКПК!B:C,2,FALSE),"") -> 
A14: Код та назва типової відомчої класифікації видатків та кредитування місцевих бюджетів | D14: =ЗАПОЛНИТЬ!H10 -> 10 | E14: =ЗАПОЛНИТЬ!I10 -> Орган з питань освіти і науки
A15: Код та назва програмної класифікації видатків та кредитування місцевих бюджетів (код та назва Типової програмної класифікації видатків та кредитування місцевих бюджетів / Тимчасової класифікації видатків та кредитування для бюджетів місцевого самоврядування, які не застосовують програмно-цільового методу) | D15: - | E15: =VLOOKUP(RIGHT(D15,4),КПКВМБ!A:B,2,FALSE) -> -
A16: Періодичність: квартальна, річна
A17: Одиниця виміру: грн, коп.
A19: Показники | B19: КЕКВ та/або ККК | C19: Код рядка | D19: Затверджено на звітний рік | E19: Затверджено на звітний період (рік)1 | F19: Залишок на початок звітного року | G19: Надійшло коштів за звітний період (рік) | H19: Касові за звітний період (рік) | I19: Фактичні за звітний період (рік) | J19: Залишок на кінець звітного періоду (року)
A22: 1 | B22: 2 | C22: 3 | D22: 4 | E22: 5 | F22: 6 | G22: 7 | H22: 8 | I22: 9 | J22: 9
A23: Видатки та надання кредитів - усього | B23: Х | C23: 010 | D23: =D24+D59+D79+D84+D87 -> 0 | E23: =E26+E29+E32+E33+E37+E45+E46+E86+E54 -> 0 | F23: =F24+F59+F79+F84+F87 -> 0 | G23: =G24+G59+G79+G84+G87 -> 0 | H23: =H24+H59+H79+H84+H87 -> 0 | I23: =I24+I59+I79+I84+I87 -> 0 | J23: =F23+G23-H23 -> 0
A24: у тому числі: Поточні видатки | B24: 2000 | C24: 020 | D24: =D25+D30+D47+D50+D54+D58 -> 0 | E24: 0 | F24: 0 | G24: 0 | H24: 0 | I24: 0 | J24: =F24+G24-H24 -> 0
A25: Оплата праці і нарахування на заробітну плату | B25: 2100 | C25: 030 | D25: =D26+D29 -> 0 | E25: 0 | F25: =F26+F29 -> 0 | G25: =G26+G29 -> 0 | H25: =H26+H29 -> 0 | I25: =I26+I29 -> 0 | J25: 0
A26: Оплата праці | B26: 2110 | C26: 040 | D26: =SUM(D27:D28) -> 0 | E26: 0 | F26: 0 | G26: 0 | H26: 0 | I26: 0 | J26: 0
A27: Заробітна плата | B27: 2111 | C27: 050 | D27: 0 | E27: 0 | F27: 0 | G27: 0 | H27: 0 | I27: 0 | J27: 0
A28: Грошове забезпечення військовослужбовців | B28: 2112 | C28: 060 | D28: 0 | E28: 0 | F28: 0 | G28: 0 | H28: 0 | I28: 0 | J28: 0
A29: Нарахування на оплату праці | B29: 2120 | C29: 070 | D29: 0 | E29: 0 | F29: 0 | G29: 0 | H29: 0 | I29: 0 | J29: 0
A30: Використання товарів і послуг | B30: 2200 | C30: 080 | D30: =SUM(D31:D37)+D44 -> 0 | E30: 0 | F30: =SUM(F31:F37)+F44 -> 0 | G30: =SUM(G31:G37)+G44 -> 0 | H30: =SUM(H31:H37)+H44 -> 0 | I30: =SUM(I31:I37)+I44 -> 0 | J30: 0
A31: Предмети, матеріали, обладнання та інвентар | B31: 2210 | C31: 090 | D31: 0 | E31: 0 | F31: 0 | G31: 0 | H31: 0 | I31: 0 | J31: 0
A32: Медикаменти та перев’язувальні матеріали | B32: 2220 | C32: 100 | D32: 0 | E32: 0 | F32: 0 | G32: 0 | H32: 0 | I32: 0 | J32: 0
A33: Продукти харчування | B33: 2230 | C33: 110 | D33: 0 | E33: 0 | F33: 0 | G33: 0 | H33: 0 | I33: 0 | J33: 0
A34: Оплата послуг (крім комунальних) | B34: 2240 | C34: 120 | D34: 0 | E34: 0 | F34: 0 | G34: 0 | H34: 0 | I34: 0 | J34: 0
A35: Видатки на відрядження | B35: 2250 | C35: 130 | D35: 0 | E35: 0 | F35: 0 | G35: 0 | H35: 0 | I35: 0 | J35: 0
A36: Видатки та заходи спеціального призначення | B36: 2260 | C36: 140 | D36: 0 | E36: 0 | F36: 0 | G36: 0 | H36: 0 | I36: 0 | J36: 0
A37: Оплата комунальних послуг та енергоносіїв | B37: 2270 | C37: 150 | D37: =SUM(D38:D43) -> 0 | E37: 0 | F37: =SUM(F38:F43) -> 0 | G37: =SUM(G38:G43) -> 0 | H37: =SUM(H38:H43) -> 0 | I37: =SUM(I38:I43) -> 0 | J37: =F37+G37-H37 -> 0
A38: Оплата теплопостачання | B38: 2271 | C38: 160 | D38: 0 | E38: 0 | F38: 0 | G38: 0 | H38: 0 | I38: 0 | J38: 0
A39: Оплата водопостачання та водовідведення | B39: 2272 | C39: 170 | D39: 0 | E39: 0 | F39: 0 | G39: 0 | H39: 0 | I39: 0 | J39: 0
A40: Оплата електроенергії | B40: 2273 | C40: 180 | D40: 0 | E40: 0 | F40: 0 | G40: 0 | H40: 0 | I40: 0 | J40: 0
A41: Оплата природного газу | B41: 2274 | C41: 190 | D41: 0 | E41: 0 | F41: 0 | G41: 0 | H41: 0 | I41: 0 | J41: 0
A42: Оплата інших енергоносіїв | B42: 2275 | C42: 200 | D42: 0 | E42: 0 | F42: 0 | G42: 0 | H42: 0 | I42: 0 | J42: 0
A43: Оплата енергосервісу | B43: 2276 | C43: 210 | D43: 0 | E43: 0 | F43: 0 | G43: 0 | H43: 0 | I43: 0 | J43: =F43+G43-H43 -> 0
A44: Дослідження і розробки, окремі заходи по реалізації державних (регіональних) програм | B44: 2280 | C44: 220 | D44: =SUM(D45:D46) -> 0 | E44: 0 | F44: =SUM(F45:F46) -> 0 | G44: =SUM(G45:G46) -> 0 | H44: =SUM(H45:H46) -> 0 | I44: =SUM(I45:I46) -> 0 | J44: 0
A45: Дослідження і розробки, окремі заходи розвитку по реалізації державних (регіональних) програм | B45: 2281 | C45: 230 | D45: 0 | E45: 0 | F45: 0 | G45: 0 | H45: 0 | I45: 0 | J45: 0
A46: Окремі заходи по реалізації державних (регіональних) програм, не віднесені до заходів розвитку | B46: 2282 | C46: 240 | D46: 0 | E46: 0 | F46: 0 | G46: 0 | H46: 0 | I46: 0 | J46: 0
A47: Обслуговування боргових зобов’язань | B47: 2400 | C47: 250 | D47: =SUM(D48:D49) -> 0 | E47: 0 | F47: 0 | G47: 0 | H47: 0 | I47: 0 | J47: 0
A48: Обслуговування внутрішніх боргових зобов’язань | B48: 2410 | C48: 260 | D48: 0 | E48: 0 | F48: 0 | G48: 0 | H48: 0 | I48: 0 | J48: 0
A49: Обслуговування зовнішніх боргових зобов’язань | B49: 2420 | C49: 270 | D49: 0 | E49: 0 | F49: 0 | G49: 0 | H49: 0 | I49: 0 | J49: 0
A50: Поточні трансферти | B50: 2600 | C50: 280 | D50: =SUM(D51:D53) -> 0 | E50: 0 | F50: 0 | G50: 0 | H50: 0 | I50: 0 | J50: 0
A51: Субсидії та поточні трансферти підприємствам (установам, організаціям) | B51: 2610 | C51: 290 | D51: 0 | E51: 0 | F51: 0 | G51: 0 | H51: 0 | I51: 0 | J51: 0
A52: Поточні трансферти органам державного управління інших рівнів | B52: 2620 | C52: 300 | D52: 0 | E52: 0 | F52: 0 | G52: 0 | H52: 0 | I52: 0 | J52: 0
A53: Поточні трансферти урядам іноземних держав та міжнародним організаціям | B53: 2630 | C53: 310 | D53: 0 | E53: 0 | F53: 0 | G53: 0 | H53: 0 | I53: 0 | J53: 0
A54: Соціальне забезпечення | B54: 2700 | C54: 320 | D54: =SUM(D55:D57) -> 0 | E54: 0 | F54: 0 | G54: 0 | H54: 0 | I54: 0 | J54: 0
A55: Виплата пенсій і допомоги | B55: 2710 | C55: 330 | D55: 0 | E55: 0 | F55: 0 | G55: 0 | H55: 0 | I55: 0 | J55: 0
A56: Стипендії | B56: 2720 | C56: 340 | D56: 0 | E56: 0 | F56: 0 | G56: 0 | H56: 0 | I56: 0 | J56: 0
A57: Інші виплати населенню | B57: 2730 | C57: 350 | D57: 0 | E57: 0 | F57: 0 | G57: 0 | H57: 0 | I57: 0 | J57: 0
A58: Інші поточні видатки | B58: 2800 | C58: 360 | D58: 0 | E58: 0 | F58: 0 | G58: 0 | H58: 0 | I58: 0 | J58: 0
A59: Капітальні видатки | B59: 3000 | C59: 370 | D59: =D60+D74 -> 0 | E59: 0 | F59: 0 | G59: 0 | H59: 0 | I59: 0 | J59: 0
A60: Придбання основного капіталу | B60: 3100 | C60: 380 | D60: =D61+D62+D65+D68+D72+D73 -> 0 | E60: 0 | F60: 0 | G60: 0 | H60: 0 | I60: 0 | J60: 0
A61: Придбання обладнання і предметів довгострокового користування | B61: 3110 | C61: 390 | D61: 0 | E61: 0 | F61: 0 | G61: 0 | H61: 0 | I61: 0 | J61: 0
A62: Капітальне будівництво (придбання) | B62: 3120 | C62: 400 | D62: =SUM(D63:D64) -> 0 | E62: 0 | F62: 0 | G62: 0 | H62: 0 | I62: 0 | J62: 0
A63: Капітальне будівництво (придбання) житла | B63: 3121 | C63: 410 | D63: 0 | E63: 0 | F63: 0 | G63: 0 | H63: 0 | I63: 0 | J63: 0
A64: Капітальне будівництво (придбання) інших об’єктів | B64: 3122 | C64: 420 | D64: 0 | E64: 0 | F64: 0 | G64: 0 | H64: 0 | I64: 0 | J64: 0
A65: Капітальний ремонт | B65: 3130 | C65: 430 | D65: =SUM(D66:D67) -> 0 | E65: 0 | F65: 0 | G65: 0 | H65: 0 | I65: 0 | J65: 0
A66: Капітальний ремонт житлового фонду (приміщень) | B66: 3131 | C66: 440 | D66: 0 | E66: 0 | F66: 0 | G66: 0 | H66: 0 | I66: 0 | J66: 0
A67: Капітальний ремонт інших об’єктів | B67: 3132 | C67: 450 | D67: 0 | E67: 0 | F67: 0 | G67: 0 | H67: 0 | I67: 0 | J67: 0
A68: Реконструкція та реставрація | B68: 3140 | C68: 460 | D68: =SUM(D69:D71) -> 0 | E68: 0 | F68: 0 | G68: 0 | H68: 0 | I68: 0 | J68: 0
A69: Реконструкція житлового фонду (приміщень) | B69: 3141 | C69: 470 | D69: 0 | E69: 0 | F69: 0 | G69: 0 | H69: 0 | I69: 0 | J69: 0
A70: Реконструкція та реставрація інших об’єктів | B70: 3142 | C70: 480 | D70: 0 | E70: 0 | F70: 0 | G70: 0 | H70: 0 | I70: 0 | J70: 0
A71: Реставрація пам’яток культури, історії та архітектури | B71: 3143 | C71: 490 | D71: 0 | E71: 0 | F71: 0 | G71: 0 | H71: 0 | I71: 0 | J71: 0
A72: Створення державних запасів і резервів | B72: 3150 | C72: 500 | D72: 0 | E72: 0 | F72: 0 | G72: 0 | H72: 0 | I72: 0 | J72: 0
A73: Придбання землі та нематеріальних активів | B73: 3160 | C73: 510 | D73: 0 | E73: 0 | F73: 0 | G73: 0 | H73: 0 | I73: 0 | J73: 0
A74: Капітальні трансферти | B74: 3200 | C74: 520 | D74: =SUM(D75:D78) -> 0 | E74: 0 | F74: 0 | G74: 0 | H74: 0 | I74: 0 | J74: 0
A75: Капітальні трансферти підприємствам (установам, організаціям) | B75: 3210 | C75: 530 | D75: 0 | E75: 0 | F75: 0 | G75: 0 | H75: 0 | I75: 0 | J75: 0
A76: Капітальні трансферти органам державного управління інших рівнів | B76: 3220 | C76: 540 | D76: 0 | E76: 0 | F76: 0 | G76: 0 | H76: 0 | I76: 0 | J76: 0
A77: Капітальні трансферти урядам іноземних держав та міжнародним організаціям | B77: 3230 | C77: 550 | D77: 0 | E77: 0 | F77: 0 | G77: 0 | H77: 0 | I77: 0 | J77: 0
A78: Капітальні трансферти населенню | B78: 3240 | C78: 560 | D78: 0 | E78: 0 | F78: 0 | G78: 0 | H78: 0 | I78: 0 | J78: 0
A79: Внутрішнє кредитування | B79: 4100 | C79: 570 | D79: =SUM(D80) -> 0 | E79: 0 | F79: 0 | G79: 0 | H79: 0 | I79: 0 | J79: 0
A80: Надання внутрішніх кредитів | B80: 4110 | C80: 580 | D80: =SUM(D81:D83) -> 0 | E80: 0 | F80: 0 | G80: 0 | H80: 0 | I80: 0 | J80: 0
A81: Надання кредитів органам державного управління інших рівнів | B81: 4111 | C81: 590 | D81: 0 | E81: 0 | F81: 0 | G81: 0 | H81: 0 | I81: 0 | J81: 0
A82: Надання кредитів підприємствам, установам, організаціям | B82: 4112 | C82: 600 | D82: 0 | E82: 0 | F82: 0 | G82: 0 | H82: 0 | I82: 0 | J82: 0
A83: Надання інших внутрішніх кредитів | B83: 4113 | C83: 610 | D83: 0 | E83: 0 | F83: 0 | G83: 0 | H83: 0 | I83: 0 | J83: 0
A84: Зовнішнє кредитування | B84: 4200 | C84: 620 | D84: =D85 -> 0 | E84: 0 | F84: 0 | G84: 0 | H84: 0 | I84: 0 | J84: 0
A85: Надання зовнішніх кредитів | B85: 4210 | C85: 630 | D85: 0 | E85: 0 | F85: 0 | G85: 0 | H85: 0 | I85: 0 | J85: 0
A86: Інші видатки | B86: 5000 | C86: 640 | D86: X | E86: 0 | F86: X | G86: X | H86: X | I86: X | J86: X
A87: Нерозподілені видатки | B87: 9000 | C87: 650 | D87: 0 | E87: 0 | F87: 0 | G87: 0 | H87: 0 | I87: 0 | J87: 0
C88: 650
A100: 1 Заповнюється розпорядниками бюджетних коштів.
A101: =ЗАПОЛНИТЬ!F30 -> Керівник | G101: =ЗАПОЛНИТЬ!F26 -> Т.П. Петрук
D102: (підпис) | G102: (ініціали, прізвище)
A103: =ЗАПОЛНИТЬ!F31 -> Головний бухгалтер | G103: =ЗАПОЛНИТЬ!F28 -> В.В. Петрук
A104: =ЗАПОЛНИТЬ!C19 -> "12"січня 2018 року | D104: (підпис) | G104: (ініціали, прізвище)

Sheet Ф.2.12 (hidden)
G1: Додаток 1 до Порядку складання бюджетної звітності розпорядниками та одержувачами бюджетних коштів, звітності фондами загальнообов’язкового державного соціального і пенсійного страхування (пункт 1 розділу ІІ)
A4: ЗВІТ
A5: =IF(ЗАПОЛНИТЬ!$F$7=1,CONCATENATE(шапки!A2),CONCATENATE(шапки!A2,шапки!C2)) -> про надходження та використання коштів загального фонду (форма №2д, | G5: =IF(ЗАПОЛНИТЬ!$F$7=1,шапки!C2,шапки!D2) -> №2м) | H5: =IF(ЗАПОЛНИТЬ!$F$7=1,шапки!D2,"") -> 
A6: =CONCATENATE("за ",ЗАПОЛНИТЬ!$B$17," ",ЗАПОЛНИТЬ!$C$17) -> за 2017 р.
J7: коди
A9: Установа | B9: =ЗАПОЛНИТЬ!B3 -> Рафалівський НВК "ЗОШ Іст.-ДНЗ" | H9: за ЄДРПОУ | J9: =ЗАПОЛНИТЬ!B13 -> 25894582
A10: Територія | B10: =ЗАПОЛНИТЬ!B5 -> смт. Рафалівка | H10: за КОАТУУ | J10: =ЗАПОЛНИТЬ!B14 -> 5620855400
A11: Організаційно-правова форма господарювання | B11: =ЗАПОЛНИТЬ!D15 -> Комунальна організація (установа, заклад) | H11: за КОПФГ | J11: =ЗАПОЛНИТЬ!B15 -> 430
A12: Код та назва відомчої класифікації видатків та кредитування державного бюджету | D12: =ЗАПОЛНИТЬ!H9 -> 0 | E12: =IF(D12>0,VLOOKUP(D12,'ДовидникКВК(ГОС)'!A:B,2,FALSE),"") -> 
A13: Код та назва програмної класифікації видатків та кредитування державного бюджету | E13: =IF(D13>0,VLOOKUP(D13,ДовидникКПК!B:C,2,FALSE),"") -> 
A14: Код та назва типової відомчої класифікації видатків та кредитування місцевих бюджетів | D14: =ЗАПОЛНИТЬ!H10 -> 10 | E14: =ЗАПОЛНИТЬ!I10 -> Орган з питань освіти і науки
A15: Код та назва програмної класифікації видатків та кредитування місцевих бюджетів (код та назва Типової програмної класифікації видатків та кредитування місцевих бюджетів / Тимчасової класифікації видатків та кредитування для бюджетів місцевого самоврядування, які не застосовують програмно-цільового методу) | D15: - | E15: =VLOOKUP(RIGHT(D15,4),КПКВМБ!A:B,2,FALSE) -> -
A16: Періодичність: квартальна, річна
A17: Одиниця виміру: грн, коп.
A19: Показники | B19: КЕКВ та/або ККК | C19: Код рядка | D19: Затверджено на звітний рік | E19: Затверджено на звітний період (рік)1 | F19: Залишок на початок звітного року | G19: Надійшло коштів за звітний період (рік) | H19: Касові за звітний період (рік) | I19: Фактичні за звітний період (рік) | J19: Залишок на кінець звітного періоду (року)
A22: 1 | B22: 2 | C22: 3 | D22: 4 | E22: 5 | F22: 6 | G22: 7 | H22: 8 | I22: 9 | J22: 9
A23: Видатки та надання кредитів - усього | B23: Х | C23: 010 | D23: =D24+D59+D79+D84+D87 -> 0 | E23: =E26+E29+E32+E33+E37+E45+E46+E86+E54 -> 0 | F23: =F24+F59+F79+F84+F87 -> 0 | G23: =G24+G59+G79+G84+G87 -> 0 | H23: =H24+H59+H79+H84+H87 -> 0 | I23: =I24+I59+I79+I84+I87 -> 0 | J23: =F23+G23-H23 -> 0
A24: у тому числі: Поточні видатки | B24: 2000 | C24: 020 | D24: =D25+D30+D47+D50+D54+D58 -> 0 | E24: 0 | F24: 0 | G24: 0 | H24: 0 | I24: 0 | J24: =F24+G24-H24 -> 0
A25: Оплата праці і нарахування на заробітну плату | B25: 2100 | C25: 030 | D25: =D26+D29 -> 0 | E25: 0 | F25: =F26+F29 -> 0 | G25: =G26+G29 -> 0 | H25: =H26+H29 -> 0 | I25: =I26+I29 -> 0 | J25: 0
A26: Оплата праці | B26: 2110 | C26: 040 | D26: =SUM(D27:D28) -> 0 | E26: 0 | F26: 0 | G26: 0 | H26: 0 | I26: 0 | J26: 0
A27: Заробітна плата | B27: 2111 | C27: 050 | D27: 0 | E27: 0 | F27: 0 | G27: 0 | H27: 0 | I27: 0 | J27: 0
A28: Грошове забезпечення військовослужбовців | B28: 2112 | C28: 060 | D28: 0 | E28: 0 | F28: 0 | G28: 0 | H28: 0 | I28: 0 | J28: 0
A29: Нарахування на оплату праці | B29: 2120 | C29: 070 | D29: 0 | E29: 0 | F29: 0 | G29: 0 | H29: 0 | I29: 0 | J29: 0
A30: Використання товарів і послуг | B30: 2200 | C30: 080 | D30: =SUM(D31:D37)+D44 -> 0 | E30: 0 | F30: =SUM(F31:F37)+F44 -> 0 | G30: =SUM(G31:G37)+G44 -> 0 | H30: =SUM(H31:H37)+H44 -> 0 | I30: =SUM(I31:I37)+I44 -> 0 | J30: 0
A31: Предмети, матеріали, обладнання та інвентар | B31: 2210 | C31: 090 | D31: 0 | E31: 0 | F31: 0 | G31: 0 | H31: 0 | I31: 0 | J31: 0
A32: Медикаменти та перев’язувальні матеріали | B32: 2220 | C32: 100 | D32: 0 | E32: 0 | F32: 0 | G32: 0 | H32: 0 | I32: 0 | J32: 0
A33: Продукти харчування | B33: 2230 | C33: 110 | D33: 0 | E33: 0 | F33: 0 | G33: 0 | H33: 0 | I33: 0 | J33: 0
A34: Оплата послуг (крім комунальних) | B34: 2240 | C34: 120 | D34: 0 | E34: 0 | F34: 0 | G34: 0 | H34: 0 | I34: 0 | J34: 0
A35: Видатки на відрядження | B35: 2250 | C35: 130 | D35: 0 | E35: 0 | F35: 0 | G35: 0 | H35: 0 | I35: 0 | J35: 0
A36: Видатки та заходи спеціального призначення | B36: 2260 | C36: 140 | D36: 0 | E36: 0 | F36: 0 | G36: 0 | H36: 0 | I36: 0 | J36: 0
A37: Оплата комунальних послуг та енергоносіїв | B37: 2270 | C37: 150 | D37: =SUM(D38:D43) -> 0 | E37: 0 | F37: =SUM(F38:F43) -> 0 | G37: =SUM(G38:G43) -> 0 | H37: =SUM(H38:H43) -> 0 | I37: =SUM(I38:I43) -> 0 | J37: =F37+G37-H37 -> 0
A38: Оплата теплопостачання | B38: 2271 | C38: 160 | D38: 0 | E38: 0 | F38: 0 | G38: 0 | H38: 0 | I38: 0 | J38: 0
A39: Оплата водопостачання та водовідведення | B39: 2272 | C39: 170 | D39: 0 | E39: 0 | F39: 0 | G39: 0 | H39: 0 | I39: 0 | J39: 0
A40: Оплата електроенергії | B40: 2273 | C40: 180 | D40: 0 | E40: 0 | F40: 0 | G40: 0 | H40: 0 | I40: 0 | J40: 0
A41: Оплата природного газу | B41: 2274 | C41: 190 | D41: 0 | E41: 0 | F41: 0 | G41: 0 | H41: 0 | I41: 0 | J41: 0
A42: Оплата інших енергоносіїв | B42: 2275 | C42: 200 | D42: 0 | E42: 0 | F42: 0 | G42: 0 | H42: 0 | I42: 0 | J42: 0
A43: Оплата енергосервісу | B43: 2276 | C43: 210 | D43: 0 | E43: 0 | F43: 0 | G43: 0 | H43: 0 | I43: 0 | J43: =F43+G43-H43 -> 0
A44: Дослідження і розробки, окремі заходи по реалізації державних (регіональних) програм | B44: 2280 | C44: 220 | D44: =SUM(D45:D46) -> 0 | E44: 0 | F44: =SUM(F45:F46) -> 0 | G44: =SUM(G45:G46) -> 0 | H44: =SUM(H45:H46) -> 0 | I44: =SUM(I45:I46) -> 0 | J44: 0
A45: Дослідження і розробки, окремі заходи розвитку по реалізації державних (регіональних) програм | B45: 2281 | C45: 230 | D45: 0 | E45: 0 | F45: 0 | G45: 0 | H45: 0 | I45: 0 | J45: 0
A46: Окремі заходи по реалізації державних (регіональних) програм, не віднесені до заходів розвитку | B46: 2282 | C46: 240 | D46: 0 | E46: 0 | F46: 0 | G46: 0 | H46: 0 | I46: 0 | J46: 0
A47: Обслуговування боргових зобов’язань | B47: 2400 | C47: 250 | D47: =SUM(D48:D49) -> 0 | E47: 0 | F47: 0 | G47: 0 | H47: 0 | I47: 0 | J47: 0
A48: Обслуговування внутрішніх боргових зобов’язань | B48: 2410 | C48: 260 | D48: 0 | E48: 0 | F48: 0 | G48: 0 | H48: 0 | I48: 0 | J48: 0
A49: Обслуговування зовнішніх боргових зобов’язань | B49: 2420 | C49: 270 | D49: 0 | E49: 0 | F49: 0 | G49: 0 | H49: 0 | I49: 0 | J49: 0
A50: Поточні трансферти | B50: 2600 | C50: 280 | D50: =SUM(D51:D53) -> 0 | E50: 0 | F50: 0 | G50: 0 | H50: 0 | I50: 0 | J50: 0
A51: Субсидії та поточні трансферти підприємствам (установам, організаціям) | B51: 2610 | C51: 290 | D51: 0 | E51: 0 | F51: 0 | G51: 0 | H51: 0 | I51: 0 | J51: 0
A52: Поточні трансферти органам державного управління інших рівнів | B52: 2620 | C52: 300 | D52: 0 | E52: 0 | F52: 0 | G52: 0 | H52: 0 | I52: 0 | J52: 0
A53: Поточні трансферти урядам іноземних держав та міжнародним організаціям | B53: 2630 | C53: 310 | D53: 0 | E53: 0 | F53: 0 | G53: 0 | H53: 0 | I53: 0 | J53: 0
A54: Соціальне забезпечення | B54: 2700 | C54: 320 | D54: =SUM(D55:D57) -> 0 | E54: 0 | F54: 0 | G54: 0 | H54: 0 | I54: 0 | J54: 0
A55: Виплата пенсій і допомоги | B55: 2710 | C55: 330 | D55: 0 | E55: 0 | F55: 0 | G55: 0 | H55: 0 | I55: 0 | J55: 0
A56: Стипендії | B56: 2720 | C56: 340 | D56: 0 | E56: 0 | F56: 0 | G56: 0 | H56: 0 | I56: 0 | J56: 0
A57: Інші виплати населенню | B57: 2730 | C57: 350 | D57: 0 | E57: 0 | F57: 0 | G57: 0 | H57: 0 | I57: 0 | J57: 0
A58: Інші поточні видатки | B58: 2800 | C58: 360 | D58: 0 | E58: 0 | F58: 0 | G58: 0 | H58: 0 | I58: 0 | J58: 0
A59: Капітальні видатки | B59: 3000 | C59: 370 | D59: =D60+D74 -> 0 | E59: 0 | F59: 0 | G59: 0 | H59: 0 | I59: 0 | J59: 0
A60: Придбання основного капіталу | B60: 3100 | C60: 380 | D60: =D61+D62+D65+D68+D72+D73 -> 0 | E60: 0 | F60: 0 | G60: 0 | H60: 0 | I60: 0 | J60: 0
A61: Придбання обладнання і предметів довгострокового користування | B61: 3110 | C61: 390 | D61: 0 | E61: 0 | F61: 0 | G61: 0 | H61: 0 | I61: 0 | J61: 0
A62: Капітальне будівництво (придбання) | B62: 3120 | C62: 400 | D62: =SUM(D63:D64) -> 0 | E62: 0 | F62: 0 | G62: 0 | H62: 0 | I62: 0 | J62: 0
A63: Капітальне будівництво (придбання) житла | B63: 3121 | C63: 410 | D63: 0 | E63: 0 | F63: 0 | G63: 0 | H63: 0 | I63: 0 | J63: 0
A64: Капітальне будівництво (придбання) інших об’єктів | B64: 3122 | C64: 420 | D64: 0 | E64: 0 | F64: 0 | G64: 0 | H64: 0 | I64: 0 | J64: 0
A65: Капітальний ремонт | B65: 3130 | C65: 430 | D65: =SUM(D66:D67) -> 0 | E65: 0 | F65: 0 | G65: 0 | H65: 0 | I65: 0 | J65: 0
A66: Капітальний ремонт житлового фонду (приміщень) | B66: 3131 | C66: 440 | D66: 0 | E66: 0 | F66: 0 | G66: 0 | H66: 0 | I66: 0 | J66: 0
A67: Капітальний ремонт інших об’єктів | B67: 3132 | C67: 450 | D67: 0 | E67: 0 | F67: 0 | G67: 0 | H67: 0 | I67: 0 | J67: 0
A68: Реконструкція та реставрація | B68: 3140 | C68: 460 | D68: =SUM(D69:D71) -> 0 | E68: 0 | F68: 0 | G68: 0 | H68: 0 | I68: 0 | J68: 0
A69: Реконструкція житлового фонду (приміщень) | B69: 3141 | C69: 470 | D69: 0 | E69: 0 | F69: 0 | G69: 0 | H69: 0 | I69: 0 | J69: 0
A70: Реконструкція та реставрація інших об’єктів | B70: 3142 | C70: 480 | D70: 0 | E70: 0 | F70: 0 | G70: 0 | H70: 0 | I70: 0 | J70: 0
A71: Реставрація пам’яток культури, історії та архітектури | B71: 3143 | C71: 490 | D71: 0 | E71: 0 | F71: 0 | G71: 0 | H71: 0 | I71: 0 | J71: 0
A72: Створення державних запасів і резервів | B72: 3150 | C72: 500 | D72: 0 | E72: 0 | F72: 0 | G72: 0 | H72: 0 | I72: 0 | J72: 0
A73: Придбання землі та нематеріальних активів | B73: 3160 | C73: 510 | D73: 0 | E73: 0 | F73: 0 | G73: 0 | H73: 0 | I73: 0 | J73: 0
A74: Капітальні трансферти | B74: 3200 | C74: 520 | D74: =SUM(D75:D78) -> 0 | E74: 0 | F74: 0 | G74: 0 | H74: 0 | I74: 0 | J74: 0
A75: Капітальні трансферти підприємствам (установам, організаціям) | B75: 3210 | C75: 530 | D75: 0 | E75: 0 | F75: 0 | G75: 0 | H75: 0 | I75: 0 | J75: 0
A76: Капітальні трансферти органам державного управління інших рівнів | B76: 3220 | C76: 540 | D76: 0 | E76: 0 | F76: 0 | G76: 0 | H76: 0 | I76: 0 | J76: 0
A77: Капітальні трансферти урядам іноземних держав та міжнародним організаціям | B77: 3230 | C77: 550 | D77: 0 | E77: 0 | F77: 0 | G77: 0 | H77: 0 | I77: 0 | J77: 0
A78: Капітальні трансферти населенню | B78: 3240 | C78: 560 | D78: 0 | E78: 0 | F78: 0 | G78: 0 | H78: 0 | I78: 0 | J78: 0
A79: Внутрішнє кредитування | B79: 4100 | C79: 570 | D79: =SUM(D80) -> 0 | E79: 0 | F79: 0 | G79: 0 | H79: 0 | I79: 0 | J79: 0
A80: Надання внутрішніх кредитів | B80: 4110 | C80: 580 | D80: =SUM(D81:D83) -> 0 | E80: 0 | F80: 0 | G80: 0 | H80: 0 | I80: 0 | J80: 0
A81: Надання кредитів органам державного управління інших рівнів | B81: 4111 | C81: 590 | D81: 0 | E81: 0 | F81: 0 | G81: 0 | H81: 0 | I81: 0 | J81: 0
A82: Надання кредитів підприємствам, установам, організаціям | B82: 4112 | C82: 600 | D82: 0 | E82: 0 | F82: 0 | G82: 0 | H82: 0 | I82: 0 | J82: 0
A83: Надання інших внутрішніх кредитів | B83: 4113 | C83: 610 | D83: 0 | E83: 0 | F83: 0 | G83: 0 | H83: 0 | I83: 0 | J83: 0
A84: Зовнішнє кредитування | B84: 4200 | C84: 620 | D84: =D85 -> 0 | E84: 0 | F84: 0 | G84: 0 | H84: 0 | I84: 0 | J84: 0
A85: Надання зовнішніх кредитів | B85: 4210 | C85: 630 | D85: 0 | E85: 0 | F85: 0 | G85: 0 | H85: 0 | I85: 0 | J85: 0
A86: Інші видатки | B86: 5000 | C86: 640 | D86: X | E86: 0 | F86: X | G86: X | H86: X | I86: X | J86: X
A87: Нерозподілені видатки | B87: 9000 | C87: 650 | D87: 0 | E87: 0 | F87: 0 | G87: 0 | H87: 0 | I87: 0 | J87: 0
C88: 650
A100: 1 Заповнюється розпорядниками бюджетних коштів.
A101: =ЗАПОЛНИТЬ!F30 -> Керівник | G101: =ЗАПОЛНИТЬ!F26 -> Т.П. Петрук
D102: (підпис) | G102: (ініціали, прізвище)
A103: =ЗАПОЛНИТЬ!F31 -> Головний бухгалтер | G103: =ЗАПОЛНИТЬ!F28 -> В.В. Петрук
A104: =ЗАПОЛНИТЬ!C19 -> "12"січня 2018 року | D104: (підпис) | G104: (ініціали, прізвище)

Sheet Ф.2.13 (hidden)
G1: Додаток 1 до Порядку складання бюджетної звітності розпорядниками та одержувачами бюджетних коштів, звітності фондами загальнообов’язкового державного соціального і пенсійного страхування (пункт 1 розділу ІІ)
A4: ЗВІТ
A5: =IF(ЗАПОЛНИТЬ!$F$7=1,CONCATENATE(шапки!A2),CONCATENATE(шапки!A2,шапки!C2)) -> про надходження та використання коштів загального фонду (форма №2д, | G5: =IF(ЗАПОЛНИТЬ!$F$7=1,шапки!C2,шапки!D2) -> №2м) | H5: =IF(ЗАПОЛНИТЬ!$F$7=1,шапки!D2,"") -> 
A6: =CONCATENATE("за ",ЗАПОЛНИТЬ!$B$17," ",ЗАПОЛНИТЬ!$C$17) -> за 2017 р.
J7: коди
A9: Установа | B9: =ЗАПОЛНИТЬ!B3 -> Рафалівський НВК "ЗОШ Іст.-ДНЗ" | H9: за ЄДРПОУ | J9: =ЗАПОЛНИТЬ!B13 -> 25894582
A10: Територія | B10: =ЗАПОЛНИТЬ!B5 -> смт. Рафалівка | H10: за КОАТУУ | J10: =ЗАПОЛНИТЬ!B14 -> 5620855400
A11: Організаційно-правова форма господарювання | B11: =ЗАПОЛНИТЬ!D15 -> Комунальна організація (установа, заклад) | H11: за КОПФГ | J11: =ЗАПОЛНИТЬ!B15 -> 430
A12: Код та назва відомчої класифікації видатків та кредитування державного бюджету | D12: =ЗАПОЛНИТЬ!H9 -> 0 | E12: =IF(D12>0,VLOOKUP(D12,'ДовидникКВК(ГОС)'!A:B,2,FALSE),"") -> 
A13: Код та назва програмної класифікації видатків та кредитування державного бюджету | E13: =IF(D13>0,VLOOKUP(D13,ДовидникКПК!B:C,2,FALSE),"") -> 
A14: Код та назва типової відомчої класифікації видатків та кредитування місцевих бюджетів | D14: =ЗАПОЛНИТЬ!H10 -> 10 | E14: =ЗАПОЛНИТЬ!I10 -> Орган з питань освіти і науки
A15: Код та назва програмної класифікації видатків та кредитування місцевих бюджетів (код та назва Типової програмної класифікації видатків та кредитування місцевих бюджетів / Тимчасової класифікації видатків та кредитування для бюджетів місцевого самоврядування, які не застосовують програмно-цільового методу) | D15: - | E15: =VLOOKUP(RIGHT(D15,4),КПКВМБ!A:B,2,FALSE) -> -
A16: Періодичність: квартальна, річна
A17: Одиниця виміру: грн, коп.
A19: Показники | B19: КЕКВ та/або ККК | C19: Код рядка | D19: Затверджено на звітний рік | E19: Затверджено на звітний період (рік)1 | F19: Залишок на початок звітного року | G19: Надійшло коштів за звітний період (рік) | H19: Касові за звітний період (рік) | I19: Фактичні за звітний період (рік) | J19: Залишок на кінець звітного періоду (року)
A22: 1 | B22: 2 | C22: 3 | D22: 4 | E22: 5 | F22: 6 | G22: 7 | H22: 8 | I22: 9 | J22: 9
A23: Видатки та надання кредитів - усього | B23: Х | C23: 010 | D23: =D24+D59+D79+D84+D87 -> 0 | E23: =E26+E29+E32+E33+E37+E45+E46+E86+E54 -> 0 | F23: =F24+F59+F79+F84+F87 -> 0 | G23: =G24+G59+G79+G84+G87 -> 0 | H23: =H24+H59+H79+H84+H87 -> 0 | I23: =I24+I59+I79+I84+I87 -> 0 | J23: =F23+G23-H23 -> 0
A24: у тому числі: Поточні видатки | B24: 2000 | C24: 020 | D24: =D25+D30+D47+D50+D54+D58 -> 0 | E24: 0 | F24: 0 | G24: 0 | H24: 0 | I24: 0 | J24: =F24+G24-H24 -> 0
A25: Оплата праці і нарахування на заробітну плату | B25: 2100 | C25: 030 | D25: =D26+D29 -> 0 | E25: 0 | F25: =F26+F29 -> 0 | G25: =G26+G29 -> 0 | H25: =H26+H29 -> 0 | I25: =I26+I29 -> 0 | J25: 0
A26: Оплата праці | B26: 2110 | C26: 040 | D26: =SUM(D27:D28) -> 0 | E26: 0 | F26: 0 | G26: 0 | H26: 0 | I26: 0 | J26: 0
A27: Заробітна плата | B27: 2111 | C27: 050 | D27: 0 | E27: 0 | F27: 0 | G27: 0 | H27: 0 | I27: 0 | J27: 0
A28: Грошове забезпечення військовослужбовців | B28: 2112 | C28: 060 | D28: 0 | E28: 0 | F28: 0 | G28: 0 | H28: 0 | I28: 0 | J28: 0
A29: Нарахування на оплату праці | B29: 2120 | C29: 070 | D29: 0 | E29: 0 | F29: 0 | G29: 0 | H29: 0 | I29: 0 | J29: 0
A30: Використання товарів і послуг | B30: 2200 | C30: 080 | D30: =SUM(D31:D37)+D44 -> 0 | E30: 0 | F30: =SUM(F31:F37)+F44 -> 0 | G30: =SUM(G31:G37)+G44 -> 0 | H30: =SUM(H31:H37)+H44 -> 0 | I30: =SUM(I31:I37)+I44 -> 0 | J30: 0
A31: Предмети, матеріали, обладнання та інвентар | B31: 2210 | C31: 090 | D31: 0 | E31: 0 | F31: 0 | G31: 0 | H31: 0 | I31: 0 | J31: 0
A32: Медикаменти та перев’язувальні матеріали | B32: 2220 | C32: 100 | D32: 0 | E32: 0 | F32: 0 | G32: 0 | H32: 0 | I32: 0 | J32: 0
A33: Продукти харчування | B33: 2230 | C33: 110 | D33: 0 | E33: 0 | F33: 0 | G33: 0 | H33: 0 | I33: 0 | J33: 0
A34: Оплата послуг (крім комунальних) | B34: 2240 | C34: 120 | D34: 0 | E34: 0 | F34: 0 | G34: 0 | H34: 0 | I34: 0 | J34: 0
A35: Видатки на відрядження | B35: 2250 | C35: 130 | D35: 0 | E35: 0 | F35: 0 | G35: 0 | H35: 0 | I35: 0 | J35: 0
A36: Видатки та заходи спеціального призначення | B36: 2260 | C36: 140 | D36: 0 | E36: 0 | F36: 0 | G36: 0 | H36: 0 | I36: 0 | J36: 0
A37: Оплата комунальних послуг та енергоносіїв | B37: 2270 | C37: 150 | D37: =SUM(D38:D43) -> 0 | E37: 0 | F37: =SUM(F38:F43) -> 0 | G37: =SUM(G38:G43) -> 0 | H37: =SUM(H38:H43) -> 0 | I37: =SUM(I38:I43) -> 0 | J37: =F37+G37-H37 -> 0
A38: Оплата теплопостачання | B38: 2271 | C38: 160 | D38: 0 | E38: 0 | F38: 0 | G38: 0 | H38: 0 | I38: 0 | J38: 0
A39: Оплата водопостачання та водовідведення | B39: 2272 | C39: 170 | D39: 0 | E39: 0 | F39: 0 | G39: 0 | H39: 0 | I39: 0 | J39: 0
A40: Оплата електроенергії | B40: 2273 | C40: 180 | D40: 0 | E40: 0 | F40: 0 | G40: 0 | H40: 0 | I40: 0 | J40: 0
A41: Оплата природного газу | B41: 2274 | C41: 190 | D41: 0 | E41: 0 | F41: 0 | G41: 0 | H41: 0 | I41: 0 | J41: 0
A42: Оплата інших енергоносіїв | B42: 2275 | C42: 200 | D42: 0 | E42: 0 | F42: 0 | G42: 0 | H42: 0 | I42: 0 | J42: 0
A43: Оплата енергосервісу | B43: 2276 | C43: 210 | D43: 0 | E43: 0 | F43: 0 | G43: 0 | H43: 0 | I43: 0 | J43: =F43+G43-H43 -> 0
A44: Дослідження і розробки, окремі заходи по реалізації державних (регіональних) програм | B44: 2280 | C44: 220 | D44: =SUM(D45:D46) -> 0 | E44: 0 | F44: =SUM(F45:F46) -> 0 | G44: =SUM(G45:G46) -> 0 | H44: =SUM(H45:H46) -> 0 | I44: =SUM(I45:I46) -> 0 | J44: 0
A45: Дослідження і розробки, окремі заходи розвитку по реалізації державних (регіональних) програм | B45: 2281 | C45: 230 | D45: 0 | E45: 0 | F45: 0 | G45: 0 | H45: 0 | I45: 0 | J45: 0
A46: Окремі заходи по реалізації державних (регіональних) програм, не віднесені до заходів розвитку | B46: 2282 | C46: 240 | D46: 0 | E46: 0 | F46: 0 | G46: 0 | H46: 0 | I46: 0 | J46: 0
A47: Обслуговування боргових зобов’язань | B47: 2400 | C47: 250 | D47: =SUM(D48:D49) -> 0 | E47: 0 | F47: 0 | G47: 0 | H47: 0 | I47: 0 | J47: 0
A48: Обслуговування внутрішніх боргових зобов’язань | B48: 2410 | C48: 260 | D48: 0 | E48: 0 | F48: 0 | G48: 0 | H48: 0 | I48: 0 | J48: 0
A49: Обслуговування зовнішніх боргових зобов’язань | B49: 2420 | C49: 270 | D49: 0 | E49: 0 | F49: 0 | G49: 0 | H49: 0 | I49: 0 | J49: 0
A50: Поточні трансферти | B50: 2600 | C50: 280 | D50: =SUM(D51:D53) -> 0 | E50: 0 | F50: 0 | G50: 0 | H50: 0 | I50: 0 | J50: 0
A51: Субсидії та поточні трансферти підприємствам (установам, організаціям) | B51: 2610 | C51: 290 | D51: 0 | E51: 0 | F51: 0 | G51: 0 | H51: 0 | I51: 0 | J51: 0
A52: Поточні трансферти органам державного управління інших рівнів | B52: 2620 | C52: 300 | D52: 0 | E52: 0 | F52: 0 | G52: 0 | H52: 0 | I52: 0 | J52: 0
A53: Поточні трансферти урядам іноземних держав та міжнародним організаціям | B53: 2630 | C53: 310 | D53: 0 | E53: 0 | F53: 0 | G53: 0 | H53: 0 | I53: 0 | J53: 0
A54: Соціальне забезпечення | B54: 2700 | C54: 320 | D54: =SUM(D55:D57) -> 0 | E54: 0 | F54: 0 | G54: 0 | H54: 0 | I54: 0 | J54: 0
A55: Виплата пенсій і допомоги | B55: 2710 | C55: 330 | D55: 0 | E55: 0 | F55: 0 | G55: 0 | H55: 0 | I55: 0 | J55: 0
A56: Стипендії | B56: 2720 | C56: 340 | D56: 0 | E56: 0 | F56: 0 | G56: 0 | H56: 0 | I56: 0 | J56: 0
A57: Інші виплати населенню | B57: 2730 | C57: 350 | D57: 0 | E57: 0 | F57: 0 | G57: 0 | H57: 0 | I57: 0 | J57: 0
A58: Інші поточні видатки | B58: 2800 | C58: 360 | D58: 0 | E58: 0 | F58: 0 | G58: 0 | H58: 0 | I58: 0 | J58: 0
A59: Капітальні видатки | B59: 3000 | C59: 370 | D59: =D60+D74 -> 0 | E59: 0 | F59: 0 | G59: 0 | H59: 0 | I59: 0 | J59: 0
A60: Придбання основного капіталу | B60: 3100 | C60: 380 | D60: =D61+D62+D65+D68+D72+D73 -> 0 | E60: 0 | F60: 0 | G60: 0 | H60: 0 | I60: 0 | J60: 0
A61: Придбання обладнання і предметів довгострокового користування | B61: 3110 | C61: 390 | D61: 0 | E61: 0 | F61: 0 | G61: 0 | H61: 0 | I61: 0 | J61: 0
A62: Капітальне будівництво (придбання) | B62: 3120 | C62: 400 | D62: =SUM(D63:D64) -> 0 | E62: 0 | F62: 0 | G62: 0 | H62: 0 | I62: 0 | J62: 0
A63: Капітальне будівництво (придбання) житла | B63: 3121 | C63: 410 | D63: 0 | E63: 0 | F63: 0 | G63: 0 | H63: 0 | I63: 0 | J63: 0
A64: Капітальне будівництво (придбання) інших об’єктів | B64: 3122 | C64: 420 | D64: 0 | E64: 0 | F64: 0 | G64: 0 | H64: 0 | I64: 0 | J64: 0
A65: Капітальний ремонт | B65: 3130 | C65: 430 | D65: =SUM(D66:D67) -> 0 | E65: 0 | F65: 0 | G65: 0 | H65: 0 | I65: 0 | J65: 0
A66: Капітальний ремонт житлового фонду (приміщень) | B66: 3131 | C66: 440 | D66: 0 | E66: 0 | F66: 0 | G66: 0 | H66: 0 | I66: 0 | J66: 0
A67: Капітальний ремонт інших об’єктів | B67: 3132 | C67: 450 | D67: 0 | E67: 0 | F67: 0 | G67: 0 | H67: 0 | I67: 0 | J67: 0
A68: Реконструкція та реставрація | B68: 3140 | C68: 460 | D68: =SUM(D69:D71) -> 0 | E68: 0 | F68: 0 | G68: 0 | H68: 0 | I68: 0 | J68: 0
A69: Реконструкція житлового фонду (приміщень) | B69: 3141 | C69: 470 | D69: 0 | E69: 0 | F69: 0 | G69: 0 | H69: 0 | I69: 0 | J69: 0
A70: Реконструкція та реставрація інших об’єктів | B70: 3142 | C70: 480 | D70: 0 | E70: 0 | F70: 0 | G70: 0 | H70: 0 | I70: 0 | J70: 0
A71: Реставрація пам’яток культури, історії та архітектури | B71: 3143 | C71: 490 | D71: 0 | E71: 0 | F71: 0 | G71: 0 | H71: 0 | I71: 0 | J71: 0
A72: Створення державних запасів і резервів | B72: 3150 | C72: 500 | D72: 0 | E72: 0 | F72: 0 | G72: 0 | H72: 0 | I72: 0 | J72: 0
A73: Придбання землі та нематеріальних активів | B73: 3160 | C73: 510 | D73: 0 | E73: 0 | F73: 0 | G73: 0 | H73: 0 | I73: 0 | J73: 0
A74: Капітальні трансферти | B74: 3200 | C74: 520 | D74: =SUM(D75:D78) -> 0 | E74: 0 | F74: 0 | G74: 0 | H74: 0 | I74: 0 | J74: 0
A75: Капітальні трансферти підприємствам (установам, організаціям) | B75: 3210 | C75: 530 | D75: 0 | E75: 0 | F75: 0 | G75: 0 | H75: 0 | I75: 0 | J75: 0
A76: Капітальні трансферти органам державного управління інших рівнів | B76: 3220 | C76: 540 | D76: 0 | E76: 0 | F76: 0 | G76: 0 | H76: 0 | I76: 0 | J76: 0
A77: Капітальні трансферти урядам іноземних держав та міжнародним організаціям | B77: 3230 | C77: 550 | D77: 0 | E77: 0 | F77: 0 | G77: 0 | H77: 0 | I77: 0 | J77: 0
A78: Капітальні трансферти населенню | B78: 3240 | C78: 560 | D78: 0 | E78: 0 | F78: 0 | G78: 0 | H78: 0 | I78: 0 | J78: 0
A79: Внутрішнє кредитування | B79: 4100 | C79: 570 | D79: =SUM(D80) -> 0 | E79: 0 | F79: 0 | G79: 0 | H79: 0 | I79: 0 | J79: 0
A80: Надання внутрішніх кредитів | B80: 4110 | C80: 580 | D80: =SUM(D81:D83) -> 0 | E80: 0 | F80: 0 | G80: 0 | H80: 0 | I80: 0 | J80: 0
A81: Надання кредитів органам державного управління інших рівнів | B81: 4111 | C81: 590 | D81: 0 | E81: 0 | F81: 0 | G81: 0 | H81: 0 | I81: 0 | J81: 0
A82: Надання кредитів підприємствам, установам, організаціям | B82: 4112 | C82: 600 | D82: 0 | E82: 0 | F82: 0 | G82: 0 | H82: 0 | I82: 0 | J82: 0
A83: Надання інших внутрішніх кредитів | B83: 4113 | C83: 610 | D83: 0 | E83: 0 | F83: 0 | G83: 0 | H83: 0 | I83: 0 | J83: 0
A84: Зовнішнє кредитування | B84: 4200 | C84: 620 | D84: =D85 -> 0 | E84: 0 | F84: 0 | G84: 0 | H84: 0 | I84: 0 | J84: 0
A85: Надання зовнішніх кредитів | B85: 4210 | C85: 630 | D85: 0 | E85: 0 | F85: 0 | G85: 0 | H85: 0 | I85: 0 | J85: 0
A86: Інші видатки | B86: 5000 | C86: 640 | D86: X | E86: 0 | F86: X | G86: X | H86: X | I86: X | J86: X
A87: Нерозподілені видатки | B87: 9000 | C87: 650 | D87: 0 | E87: 0 | F87: 0 | G87: 0 | H87: 0 | I87: 0 | J87: 0
C88: 650
A100: 1 Заповнюється розпорядниками бюджетних коштів.
A101: =ЗАПОЛНИТЬ!F30 -> Керівник | G101: =ЗАПОЛНИТЬ!F26 -> Т.П. Петрук
D102: (підпис) | G102: (ініціали, прізвище)
A103: =ЗАПОЛНИТЬ!F31 -> Головний бухгалтер | G103: =ЗАПОЛНИТЬ!F28 -> В.В. Петрук
A104: =ЗАПОЛНИТЬ!C19 -> "12"січня 2018 року | D104: (підпис) | G104: (ініціали, прізвище)

Sheet Ф.2.14 (hidden)
G1: Додаток 1 до Порядку складання бюджетної звітності розпорядниками та одержувачами бюджетних коштів, звітності фондами загальнообов’язкового державного соціального і пенсійного страхування (пункт 1 розділу ІІ)
A4: ЗВІТ
A5: =IF(ЗАПОЛНИТЬ!$F$7=1,CONCATENATE(шапки!A2),CONCATENATE(шапки!A2,шапки!C2)) -> про надходження та використання коштів загального фонду (форма №2д, | G5: =IF(ЗАПОЛНИТЬ!$F$7=1,шапки!C2,шапки!D2) -> №2м) | H5: =IF(ЗАПОЛНИТЬ!$F$7=1,шапки!D2,"") -> 
A6: =CONCATENATE("за ",ЗАПОЛНИТЬ!$B$17," ",ЗАПОЛНИТЬ!$C$17) -> за 2017 р.
J7: коди
A9: Установа | B9: =ЗАПОЛНИТЬ!B3 -> Рафалівський НВК "ЗОШ Іст.-ДНЗ" | H9: за ЄДРПОУ | J9: =ЗАПОЛНИТЬ!B13 -> 25894582
A10: Територія | B10: =ЗАПОЛНИТЬ!B5 -> смт. Рафалівка | H10: за КОАТУУ | J10: =ЗАПОЛНИТЬ!B14 -> 5620855400
A11: Організаційно-правова форма господарювання | B11: =ЗАПОЛНИТЬ!D15 -> Комунальна організація (установа, заклад) | H11: за КОПФГ | J11: =ЗАПОЛНИТЬ!B15 -> 430
A12: Код та назва відомчої класифікації видатків та кредитування державного бюджету | D12: =ЗАПОЛНИТЬ!H9 -> 0 | E12: =IF(D12>0,VLOOKUP(D12,'ДовидникКВК(ГОС)'!A:B,2,FALSE),"") -> 
A13: Код та назва програмної класифікації видатків та кредитування державного бюджету | E13: =IF(D13>0,VLOOKUP(D13,ДовидникКПК!B:C,2,FALSE),"") -> 
A14: Код та назва типової відомчої класифікації видатків та кредитування місцевих бюджетів | D14: =ЗАПОЛНИТЬ!H10 -> 10 | E14: =ЗАПОЛНИТЬ!I10 -> Орган з питань освіти і науки
A15: Код та назва програмної класифікації видатків та кредитування місцевих бюджетів (код та назва Типової програмної класифікації видатків та кредитування місцевих бюджетів / Тимчасової класифікації видатків та кредитування для бюджетів місцевого самоврядування, які не застосовують програмно-цільового методу) | D15: - | E15: =VLOOKUP(RIGHT(D15,4),КПКВМБ!A:B,2,FALSE) -> -
A16: Періодичність: квартальна, річна
A17: Одиниця виміру: грн, коп.
A19: Показники | B19: КЕКВ та/або ККК | C19: Код рядка | D19: Затверджено на звітний рік | E19: Затверджено на звітний період (рік)1 | F19: Залишок на початок звітного року | G19: Надійшло коштів за звітний період (рік) | H19: Касові за звітний період (рік) | I19: Фактичні за звітний період (рік) | J19: Залишок на кінець звітного періоду (року)
A22: 1 | B22: 2 | C22: 3 | D22: 4 | E22: 5 | F22: 6 | G22: 7 | H22: 8 | I22: 9 | J22: 9
A23: Видатки та надання кредитів - усього | B23: Х | C23: 010 | D23: =D24+D59+D79+D84+D87 -> 0 | E23: =E26+E29+E32+E33+E37+E45+E46+E86+E54 -> 0 | F23: =F24+F59+F79+F84+F87 -> 0 | G23: =G24+G59+G79+G84+G87 -> 0 | H23: =H24+H59+H79+H84+H87 -> 0 | I23: =I24+I59+I79+I84+I87 -> 0 | J23: =F23+G23-H23 -> 0
A24: у тому числі: Поточні видатки | B24: 2000 | C24: 020 | D24: =D25+D30+D47+D50+D54+D58 -> 0 | E24: 0 | F24: 0 | G24: 0 | H24: 0 | I24: 0 | J24: =F24+G24-H24 -> 0
A25: Оплата праці і нарахування на заробітну плату | B25: 2100 | C25: 030 | D25: =D26+D29 -> 0 | E25: 0 | F25: =F26+F29 -> 0 | G25: =G26+G29 -> 0 | H25: =H26+H29 -> 0 | I25: =I26+I29 -> 0 | J25: 0
A26: Оплата праці | B26: 2110 | C26: 040 | D26: =SUM(D27:D28) -> 0 | E26: 0 | F26: 0 | G26: 0 | H26: 0 | I26: 0 | J26: 0
A27: Заробітна плата | B27: 2111 | C27: 050 | D27: 0 | E27: 0 | F27: 0 | G27: 0 | H27: 0 | I27: 0 | J27: 0
A28: Грошове забезпечення військовослужбовців | B28: 2112 | C28: 060 | D28: 0 | E28: 0 | F28: 0 | G28: 0 | H28: 0 | I28: 0 | J28: 0
A29: Нарахування на оплату праці | B29: 2120 | C29: 070 | D29: 0 | E29: 0 | F29: 0 | G29: 0 | H29: 0 | I29: 0 | J29: 0
A30: Використання товарів і послуг | B30: 2200 | C30: 080 | D30: =SUM(D31:D37)+D44 -> 0 | E30: 0 | F30: =SUM(F31:F37)+F44 -> 0 | G30: =SUM(G31:G37)+G44 -> 0 | H30: =SUM(H31:H37)+H44 -> 0 | I30: =SUM(I31:I37)+I44 -> 0 | J30: 0
A31: Предмети, матеріали, обладнання та інвентар | B31: 2210 | C31: 090 | D31: 0 | E31: 0 | F31: 0 | G31: 0 | H31: 0 | I31: 0 | J31: 0
A32: Медикаменти та перев’язувальні матеріали | B32: 2220 | C32: 100 | D32: 0 | E32: 0 | F32: 0 | G32: 0 | H32: 0 | I32: 0 | J32: 0
A33: Продукти харчування | B33: 2230 | C33: 110 | D33: 0 | E33: 0 | F33: 0 | G33: 0 | H33: 0 | I33: 0 | J33: 0
A34: Оплата послуг (крім комунальних) | B34: 2240 | C34: 120 | D34: 0 | E34: 0 | F34: 0 | G34: 0 | H34: 0 | I34: 0 | J34: 0
A35: Видатки на відрядження | B35: 2250 | C35: 130 | D35: 0 | E35: 0 | F35: 0 | G35: 0 | H35: 0 | I35: 0 | J35: 0
A36: Видатки та заходи спеціального призначення | B36: 2260 | C36: 140 | D36: 0 | E36: 0 | F36: 0 | G36: 0 | H36: 0 | I36: 0 | J36: 0
A37: Оплата комунальних послуг та енергоносіїв | B37: 2270 | C37: 150 | D37: =SUM(D38:D43) -> 0 | E37: 0 | F37: =SUM(F38:F43) -> 0 | G37: =SUM(G38:G43) -> 0 | H37: =SUM(H38:H43) -> 0 | I37: =SUM(I38:I43) -> 0 | J37: =F37+G37-H37 -> 0
A38: Оплата теплопостачання | B38: 2271 | C38: 160 | D38: 0 | E38: 0 | F38: 0 | G38: 0 | H38: 0 | I38: 0 | J38: 0
A39: Оплата водопостачання та водовідведення | B39: 2272 | C39: 170 | D39: 0 | E39: 0 | F39: 0 | G39: 0 | H39: 0 | I39: 0 | J39: 0
A40: Оплата електроенергії | B40: 2273 | C40: 180 | D40: 0 | E40: 0 | F40: 0 | G40: 0 | H40: 0 | I40: 0 | J40: 0
A41: Оплата природного газу | B41: 2274 | C41: 190 | D41: 0 | E41: 0 | F41: 0 | G41: 0 | H41: 0 | I41: 0 | J41: 0
A42: Оплата інших енергоносіїв | B42: 2275 | C42: 200 | D42: 0 | E42: 0 | F42: 0 | G42: 0 | H42: 0 | I42: 0 | J42: 0
A43: Оплата енергосервісу | B43: 2276 | C43: 210 | D43: 0 | E43: 0 | F43: 0 | G43: 0 | H43: 0 | I43: 0 | J43: =F43+G43-H43 -> 0
A44: Дослідження і розробки, окремі заходи по реалізації державних (регіональних) програм | B44: 2280 | C44: 220 | D44: =SUM(D45:D46) -> 0 | E44: 0 | F44: =SUM(F45:F46) -> 0 | G44: =SUM(G45:G46) -> 0 | H44: =SUM(H45:H46) -> 0 | I44: =SUM(I45:I46) -> 0 | J44: 0
A45: Дослідження і розробки, окремі заходи розвитку по реалізації державних (регіональних) програм | B45: 2281 | C45: 230 | D45: 0 | E45: 0 | F45: 0 | G45: 0 | H45: 0 | I45: 0 | J45: 0
A46: Окремі заходи по реалізації державних (регіональних) програм, не віднесені до заходів розвитку | B46: 2282 | C46: 240 | D46: 0 | E46: 0 | F46: 0 | G46: 0 | H46: 0 | I46: 0 | J46: 0
A47: Обслуговування боргових зобов’язань | B47: 2400 | C47: 250 | D47: =SUM(D48:D49) -> 0 | E47: 0 | F47: 0 | G47: 0 | H47: 0 | I47: 0 | J47: 0
A48: Обслуговування внутрішніх боргових зобов’язань | B48: 2410 | C48: 260 | D48: 0 | E48: 0 | F48: 0 | G48: 0 | H48: 0 | I48: 0 | J48: 0
A49: Обслуговування зовнішніх боргових зобов’язань | B49: 2420 | C49: 270 | D49: 0 | E49: 0 | F49: 0 | G49: 0 | H49: 0 | I49: 0 | J49: 0
A50: Поточні трансферти | B50: 2600 | C50: 280 | D50: =SUM(D51:D53) -> 0 | E50: 0 | F50: 0 | G50: 0 | H50: 0 | I50: 0 | J50: 0
A51: Субсидії та поточні трансферти підприємствам (установам, організаціям) | B51: 2610 | C51: 290 | D51: 0 | E51: 0 | F51: 0 | G51: 0 | H51: 0 | I51: 0 | J51: 0
A52: Поточні трансферти органам державного управління інших рівнів | B52: 2620 | C52: 300 | D52: 0 | E52: 0 | F52: 0 | G52: 0 | H52: 0 | I52: 0 | J52: 0
A53: Поточні трансферти урядам іноземних держав та міжнародним організаціям | B53: 2630 | C53: 310 | D53: 0 | E53: 0 | F53: 0 | G53: 0 | H53: 0 | I53: 0 | J53: 0
A54: Соціальне забезпечення | B54: 2700 | C54: 320 | D54: =SUM(D55:D57) -> 0 | E54: 0 | F54: 0 | G54: 0 | H54: 0 | I54: 0 | J54: 0
A55: Виплата пенсій і допомоги | B55: 2710 | C55: 330 | D55: 0 | E55: 0 | F55: 0 | G55: 0 | H55: 0 | I55: 0 | J55: 0
A56: Стипендії | B56: 2720 | C56: 340 | D56: 0 | E56: 0 | F56: 0 | G56: 0 | H56: 0 | I56: 0 | J56: 0
A57: Інші виплати населенню | B57: 2730 | C57: 350 | D57: 0 | E57: 0 | F57: 0 | G57: 0 | H57: 0 | I57: 0 | J57: 0
A58: Інші поточні видатки | B58: 2800 | C58: 360 | D58: 0 | E58: 0 | F58: 0 | G58: 0 | H58: 0 | I58: 0 | J58: 0
A59: Капітальні видатки | B59: 3000 | C59: 370 | D59: =D60+D74 -> 0 | E59: 0 | F59: 0 | G59: 0 | H59: 0 | I59: 0 | J59: 0
A60: Придбання основного капіталу | B60: 3100 | C60: 380 | D60: =D61+D62+D65+D68+D72+D73 -> 0 | E60: 0 | F60: 0 | G60: 0 | H60: 0 | I60: 0 | J60: 0
A61: Придбання обладнання і предметів довгострокового користування | B61: 3110 | C61: 390 | D61: 0 | E61: 0 | F61: 0 | G61: 0 | H61: 0 | I61: 0 | J61: 0
A62: Капітальне будівництво (придбання) | B62: 3120 | C62: 400 | D62: =SUM(D63:D64) -> 0 | E62: 0 | F62: 0 | G62: 0 | H62: 0 | I62: 0 | J62: 0
A63: Капітальне будівництво (придбання) житла | B63: 3121 | C63: 410 | D63: 0 | E63: 0 | F63: 0 | G63: 0 | H63: 0 | I63: 0 | J63: 0
A64: Капітальне будівництво (придбання) інших об’єктів | B64: 3122 | C64: 420 | D64: 0 | E64: 0 | F64: 0 | G64: 0 | H64: 0 | I64: 0 | J64: 0
A65: Капітальний ремонт | B65: 3130 | C65: 430 | D65: =SUM(D66:D67) -> 0 | E65: 0 | F65: 0 | G65: 0 | H65: 0 | I65: 0 | J65: 0
A66: Капітальний ремонт житлового фонду (приміщень) | B66: 3131 | C66: 440 | D66: 0 | E66: 0 | F66: 0 | G66: 0 | H66: 0 | I66: 0 | J66: 0
A67: Капітальний ремонт інших об’єктів | B67: 3132 | C67: 450 | D67: 0 | E67: 0 | F67: 0 | G67: 0 | H67: 0 | I67: 0 | J67: 0
A68: Реконструкція та реставрація | B68: 3140 | C68: 460 | D68: =SUM(D69:D71) -> 0 | E68: 0 | F68: 0 | G68: 0 | H68: 0 | I68: 0 | J68: 0
A69: Реконструкція житлового фонду (приміщень) | B69: 3141 | C69: 470 | D69: 0 | E69: 0 | F69: 0 | G69: 0 | H69: 0 | I69: 0 | J69: 0
A70: Реконструкція та реставрація інших об’єктів | B70: 3142 | C70: 480 | D70: 0 | E70: 0 | F70: 0 | G70: 0 | H70: 0 | I70: 0 | J70: 0
A71: Реставрація пам’яток культури, історії та архітектури | B71: 3143 | C71: 490 | D71: 0 | E71: 0 | F71: 0 | G71: 0 | H71: 0 | I71: 0 | J71: 0
A72: Створення державних запасів і резервів | B72: 3150 | C72: 500 | D72: 0 | E72: 0 | F72: 0 | G72: 0 | H72: 0 | I72: 0 | J72: 0
A73: Придбання землі та нематеріальних активів | B73: 3160 | C73: 510 | D73: 0 | E73: 0 | F73: 0 | G73: 0 | H73: 0 | I73: 0 | J73: 0
A74: Капітальні трансферти | B74: 3200 | C74: 520 | D74: =SUM(D75:D78) -> 0 | E74: 0 | F74: 0 | G74: 0 | H74: 0 | I74: 0 | J74: 0
A75: Капітальні трансферти підприємствам (установам, організаціям) | B75: 3210 | C75: 530 | D75: 0 | E75: 0 | F75: 0 | G75: 0 | H75: 0 | I75: 0 | J75: 0
A76: Капітальні трансферти органам державного управління інших рівнів | B76: 3220 | C76: 540 | D76: 0 | E76: 0 | F76: 0 | G76: 0 | H76: 0 | I76: 0 | J76: 0
A77: Капітальні трансферти урядам іноземних держав та міжнародним організаціям | B77: 3230 | C77: 550 | D77: 0 | E77: 0 | F77: 0 | G77: 0 | H77: 0 | I77: 0 | J77: 0
A78: Капітальні трансферти населенню | B78: 3240 | C78: 560 | D78: 0 | E78: 0 | F78: 0 | G78: 0 | H78: 0 | I78: 0 | J78: 0
A79: Внутрішнє кредитування | B79: 4100 | C79: 570 | D79: =SUM(D80) -> 0 | E79: 0 | F79: 0 | G79: 0 | H79: 0 | I79: 0 | J79: 0
A80: Надання внутрішніх кредитів | B80: 4110 | C80: 580 | D80: =SUM(D81:D83) -> 0 | E80: 0 | F80: 0 | G80: 0 | H80: 0 | I80: 0 | J80: 0
A81: Надання кредитів органам державного управління інших рівнів | B81: 4111 | C81: 590 | D81: 0 | E81: 0 | F81: 0 | G81: 0 | H81: 0 | I81: 0 | J81: 0
A82: Надання кредитів підприємствам, установам, організаціям | B82: 4112 | C82: 600 | D82: 0 | E82: 0 | F82: 0 | G82: 0 | H82: 0 | I82: 0 | J82: 0
A83: Надання інших внутрішніх кредитів | B83: 4113 | C83: 610 | D83: 0 | E83: 0 | F83: 0 | G83: 0 | H83: 0 | I83: 0 | J83: 0
A84: Зовнішнє кредитування | B84: 4200 | C84: 620 | D84: =D85 -> 0 | E84: 0 | F84: 0 | G84: 0 | H84: 0 | I84: 0 | J84: 0
A85: Надання зовнішніх кредитів | B85: 4210 | C85: 630 | D85: 0 | E85: 0 | F85: 0 | G85: 0 | H85: 0 | I85: 0 | J85: 0
A86: Інші видатки | B86: 5000 | C86: 640 | D86: X | E86: 0 | F86: X | G86: X | H86: X | I86: X | J86: X
A87: Нерозподілені видатки | B87: 9000 | C87: 650 | D87: 0 | E87: 0 | F87: 0 | G87: 0 | H87: 0 | I87: 0 | J87: 0
C88: 650
A100: 1 Заповнюється розпорядниками бюджетних коштів.
A101: =ЗАПОЛНИТЬ!F30 -> Керівник | G101: =ЗАПОЛНИТЬ!F26 -> Т.П. Петрук
D102: (підпис) | G102: (ініціали, прізвище)
A103: =ЗАПОЛНИТЬ!F31 -> Головний бухгалтер | G103: =ЗАПОЛНИТЬ!F28 -> В.В. Петрук
A104: =ЗАПОЛНИТЬ!C19 -> "12"січня 2018 року | D104: (підпис) | G104: (ініціали, прізвище)

Sheet Ф.2.15 (hidden)
G1: Додаток 1 до Порядку складання бюджетної звітності розпорядниками та одержувачами бюджетних коштів, звітності фондами загальнообов’язкового державного соціального і пенсійного страхування (пункт 1 розділу ІІ)
A4: ЗВІТ
A5: =IF(ЗАПОЛНИТЬ!$F$7=1,CONCATENATE(шапки!A2),CONCATENATE(шапки!A2,шапки!C2)) -> про надходження та використання коштів загального фонду (форма №2д, | G5: =IF(ЗАПОЛНИТЬ!$F$7=1,шапки!C2,шапки!D2) -> №2м) | H5: =IF(ЗАПОЛНИТЬ!$F$7=1,шапки!D2,"") -> 
A6: =CONCATENATE("за ",ЗАПОЛНИТЬ!$B$17," ",ЗАПОЛНИТЬ!$C$17) -> за 2017 р.
J7: коди
A9: Установа | B9: =ЗАПОЛНИТЬ!B3 -> Рафалівський НВК "ЗОШ Іст.-ДНЗ" | H9: за ЄДРПОУ | J9: =ЗАПОЛНИТЬ!B13 -> 25894582
A10: Територія | B10: =ЗАПОЛНИТЬ!B5 -> смт. Рафалівка | H10: за КОАТУУ | J10: =ЗАПОЛНИТЬ!B14 -> 5620855400
A11: Організаційно-правова форма господарювання | B11: =ЗАПОЛНИТЬ!D15 -> Комунальна організація (установа, заклад) | H11: за КОПФГ | J11: =ЗАПОЛНИТЬ!B15 -> 430
A12: Код та назва відомчої класифікації видатків та кредитування державного бюджету | D12: =ЗАПОЛНИТЬ!H9 -> 0 | E12: =IF(D12>0,VLOOKUP(D12,'ДовидникКВК(ГОС)'!A:B,2,FALSE),"") -> 
A13: Код та назва програмної класифікації видатків та кредитування державного бюджету | E13: =IF(D13>0,VLOOKUP(D13,ДовидникКПК!B:C,2,FALSE),"") -> 
A14: Код та назва типової відомчої класифікації видатків та кредитування місцевих бюджетів | D14: =ЗАПОЛНИТЬ!H10 -> 10 | E14: =ЗАПОЛНИТЬ!I10 -> Орган з питань освіти і науки
A15: Код та назва програмної класифікації видатків та кредитування місцевих бюджетів (код та назва Типової програмної класифікації видатків та кредитування місцевих бюджетів / Тимчасової класифікації видатків та кредитування для бюджетів місцевого самоврядування, які не застосовують програмно-цільового методу) | D15: - | E15: =VLOOKUP(RIGHT(D15,4),КПКВМБ!A:B,2,FALSE) -> -
A16: Періодичність: квартальна, річна
A17: Одиниця виміру: грн, коп.
A19: Показники | B19: КЕКВ та/або ККК | C19: Код рядка | D19: Затверджено на звітний рік | E19: Затверджено на звітний період (рік)1 | F19: Залишок на початок звітного року | G19: Надійшло коштів за звітний період (рік) | H19: Касові за звітний період (рік) | I19: Фактичні за звітний період (рік) | J19: Залишок на кінець звітного періоду (року)
A22: 1 | B22: 2 | C22: 3 | D22: 4 | E22: 5 | F22: 6 | G22: 7 | H22: 8 | I22: 9 | J22: 9
A23: Видатки та надання кредитів - усього | B23: Х | C23: 010 | D23: =D24+D59+D79+D84+D87 -> 0 | E23: =E26+E29+E32+E33+E37+E45+E46+E86+E54 -> 0 | F23: =F24+F59+F79+F84+F87 -> 0 | G23: =G24+G59+G79+G84+G87 -> 0 | H23: =H24+H59+H79+H84+H87 -> 0 | I23: =I24+I59+I79+I84+I87 -> 0 | J23: =F23+G23-H23 -> 0
A24: у тому числі: Поточні видатки | B24: 2000 | C24: 020 | D24: =D25+D30+D47+D50+D54+D58 -> 0 | E24: 0 | F24: 0 | G24: 0 | H24: 0 | I24: 0 | J24: =F24+G24-H24 -> 0
A25: Оплата праці і нарахування на заробітну плату | B25: 2100 | C25: 030 | D25: =D26+D29 -> 0 | E25: 0 | F25: =F26+F29 -> 0 | G25: =G26+G29 -> 0 | H25: =H26+H29 -> 0 | I25: =I26+I29 -> 0 | J25: 0
A26: Оплата праці | B26: 2110 | C26: 040 | D26: =SUM(D27:D28) -> 0 | E26: 0 | F26: 0 | G26: 0 | H26: 0 | I26: 0 | J26: 0
A27: Заробітна плата | B27: 2111 | C27: 050 | D27: 0 | E27: 0 | F27: 0 | G27: 0 | H27: 0 | I27: 0 | J27: 0
A28: Грошове забезпечення військовослужбовців | B28: 2112 | C28: 060 | D28: 0 | E28: 0 | F28: 0 | G28: 0 | H28: 0 | I28: 0 | J28: 0
A29: Нарахування на оплату праці | B29: 2120 | C29: 070 | D29: 0 | E29: 0 | F29: 0 | G29: 0 | H29: 0 | I29: 0 | J29: 0
A30: Використання товарів і послуг | B30: 2200 | C30: 080 | D30: =SUM(D31:D37)+D44 -> 0 | E30: 0 | F30: =SUM(F31:F37)+F44 -> 0 | G30: =SUM(G31:G37)+G44 -> 0 | H30: =SUM(H31:H37)+H44 -> 0 | I30: =SUM(I31:I37)+I44 -> 0 | J30: 0
A31: Предмети, матеріали, обладнання та інвентар | B31: 2210 | C31: 090 | D31: 0 | E31: 0 | F31: 0 | G31: 0 | H31: 0 | I31: 0 | J31: 0
A32: Медикаменти та перев’язувальні матеріали | B32: 2220 | C32: 100 | D32: 0 | E32: 0 | F32: 0 | G32: 0 | H32: 0 | I32: 0 | J32: 0
A33: Продукти харчування | B33: 2230 | C33: 110 | D33: 0 | E33: 0 | F33: 0 | G33: 0 | H33: 0 | I33: 0 | J33: 0
A34: Оплата послуг (крім комунальних) | B34: 2240 | C34: 120 | D34: 0 | E34: 0 | F34: 0 | G34: 0 | H34: 0 | I34: 0 | J34: 0
A35: Видатки на відрядження | B35: 2250 | C35: 130 | D35: 0 | E35: 0 | F35: 0 | G35: 0 | H35: 0 | I35: 0 | J35: 0
A36: Видатки та заходи спеціального призначення | B36: 2260 | C36: 140 | D36: 0 | E36: 0 | F36: 0 | G36: 0 | H36: 0 | I36: 0 | J36: 0
A37: Оплата комунальних послуг та енергоносіїв | B37: 2270 | C37: 150 | D37: =SUM(D38:D43) -> 0 | E37: 0 | F37: =SUM(F38:F43) -> 0 | G37: =SUM(G38:G43) -> 0 | H37: =SUM(H38:H43) -> 0 | I37: =SUM(I38:I43) -> 0 | J37: =F37+G37-H37 -> 0
A38: Оплата теплопостачання | B38: 2271 | C38: 160 | D38: 0 | E38: 0 | F38: 0 | G38: 0 | H38: 0 | I38: 0 | J38: 0
A39: Оплата водопостачання та водовідведення | B39: 2272 | C39: 170 | D39: 0 | E39: 0 | F39: 0 | G39: 0 | H39: 0 | I39: 0 | J39: 0
A40: Оплата електроенергії | B40: 2273 | C40: 180 | D40: 0 | E40: 0 | F40: 0 | G40: 0 | H40: 0 | I40: 0 | J40: 0
A41: Оплата природного газу | B41: 2274 | C41: 190 | D41: 0 | E41: 0 | F41: 0 | G41: 0 | H41: 0 | I41: 0 | J41: 0
A42: Оплата інших енергоносіїв | B42: 2275 | C42: 200 | D42: 0 | E42: 0 | F42: 0 | G42: 0 | H42: 0 | I42: 0 | J42: 0
A43: Оплата енергосервісу | B43: 2276 | C43: 210 | D43: 0 | E43: 0 | F43: 0 | G43: 0 | H43: 0 | I43: 0 | J43: =F43+G43-H43 -> 0
A44: Дослідження і розробки, окремі заходи по реалізації державних (регіональних) програм | B44: 2280 | C44: 220 | D44: =SUM(D45:D46) -> 0 | E44: 0 | F44: =SUM(F45:F46) -> 0 | G44: =SUM(G45:G46) -> 0 | H44: =SUM(H45:H46) -> 0 | I44: =SUM(I45:I46) -> 0 | J44: 0
A45: Дослідження і розробки, окремі заходи розвитку по реалізації державних (регіональних) програм | B45: 2281 | C45: 230 | D45: 0 | E45: 0 | F45: 0 | G45: 0 | H45: 0 | I45: 0 | J45: 0
A46: Окремі заходи по реалізації державних (регіональних) програм, не віднесені до заходів розвитку | B46: 2282 | C46: 240 | D46: 0 | E46: 0 | F46: 0 | G46: 0 | H46: 0 | I46: 0 | J46: 0
A47: Обслуговування боргових зобов’язань | B47: 2400 | C47: 250 | D47: =SUM(D48:D49) -> 0 | E47: 0 | F47: 0 | G47: 0 | H47: 0 | I47: 0 | J47: 0
A48: Обслуговування внутрішніх боргових зобов’язань | B48: 2410 | C48: 260 | D48: 0 | E48: 0 | F48: 0 | G48: 0 | H48: 0 | I48: 0 | J48: 0
A49: Обслуговування зовнішніх боргових зобов’язань | B49: 2420 | C49: 270 | D49: 0 | E49: 0 | F49: 0 | G49: 0 | H49: 0 | I49: 0 | J49: 0
A50: Поточні трансферти | B50: 2600 | C50: 280 | D50: =SUM(D51:D53) -> 0 | E50: 0 | F50: 0 | G50: 0 | H50: 0 | I50: 0 | J50: 0
A51: Субсидії та поточні трансферти підприємствам (установам, організаціям) | B51: 2610 | C51: 290 | D51: 0 | E51: 0 | F51: 0 | G51: 0 | H51: 0 | I51: 0 | J51: 0
A52: Поточні трансферти органам державного управління інших рівнів | B52: 2620 | C52: 300 | D52: 0 | E52: 0 | F52: 0 | G52: 0 | H52: 0 | I52: 0 | J52: 0
A53: Поточні трансферти урядам іноземних держав та міжнародним організаціям | B53: 2630 | C53: 310 | D53: 0 | E53: 0 | F53: 0 | G53: 0 | H53: 0 | I53: 0 | J53: 0
A54: Соціальне забезпечення | B54: 2700 | C54: 320 | D54: =SUM(D55:D57) -> 0 | E54: 0 | F54: 0 | G54: 0 | H54: 0 | I54: 0 | J54: 0
A55: Виплата пенсій і допомоги | B55: 2710 | C55: 330 | D55: 0 | E55: 0 | F55: 0 | G55: 0 | H55: 0 | I55: 0 | J55: 0
A56: Стипендії | B56: 2720 | C56: 340 | D56: 0 | E56: 0 | F56: 0 | G56: 0 | H56: 0 | I56: 0 | J56: 0
A57: Інші виплати населенню | B57: 2730 | C57: 350 | D57: 0 | E57: 0 | F57: 0 | G57: 0 | H57: 0 | I57: 0 | J57: 0
A58: Інші поточні видатки | B58: 2800 | C58: 360 | D58: 0 | E58: 0 | F58: 0 | G58: 0 | H58: 0 | I58: 0 | J58: 0
A59: Капітальні видатки | B59: 3000 | C59: 370 | D59: =D60+D74 -> 0 | E59: 0 | F59: 0 | G59: 0 | H59: 0 | I59: 0 | J59: 0
A60: Придбання основного капіталу | B60: 3100 | C60: 380 | D60: =D61+D62+D65+D68+D72+D73 -> 0 | E60: 0 | F60: 0 | G60: 0 | H60: 0 | I60: 0 | J60: 0
A61: Придбання обладнання і предметів довгострокового користування | B61: 3110 | C61: 390 | D61: 0 | E61: 0 | F61: 0 | G61: 0 | H61: 0 | I61: 0 | J61: 0
A62: Капітальне будівництво (придбання) | B62: 3120 | C62: 400 | D62: =SUM(D63:D64) -> 0 | E62: 0 | F62: 0 | G62: 0 | H62: 0 | I62: 0 | J62: 0
A63: Капітальне будівництво (придбання) житла | B63: 3121 | C63: 410 | D63: 0 | E63: 0 | F63: 0 | G63: 0 | H63: 0 | I63: 0 | J63: 0
A64: Капітальне будівництво (придбання) інших об’єктів | B64: 3122 | C64: 420 | D64: 0 | E64: 0 | F64: 0 | G64: 0 | H64: 0 | I64: 0 | J64: 0
A65: Капітальний ремонт | B65: 3130 | C65: 430 | D65: =SUM(D66:D67) -> 0 | E65: 0 | F65: 0 | G65: 0 | H65: 0 | I65: 0 | J65: 0
A66: Капітальний ремонт житлового фонду (приміщень) | B66: 3131 | C66: 440 | D66: 0 | E66: 0 | F66: 0 | G66: 0 | H66: 0 | I66: 0 | J66: 0
A67: Капітальний ремонт інших об’єктів | B67: 3132 | C67: 450 | D67: 0 | E67: 0 | F67: 0 | G67: 0 | H67: 0 | I67: 0 | J67: 0
A68: Реконструкція та реставрація | B68: 3140 | C68: 460 | D68: =SUM(D69:D71) -> 0 | E68: 0 | F68: 0 | G68: 0 | H68: 0 | I68: 0 | J68: 0
A69: Реконструкція житлового фонду (приміщень) | B69: 3141 | C69: 470 | D69: 0 | E69: 0 | F69: 0 | G69: 0 | H69: 0 | I69: 0 | J69: 0
A70: Реконструкція та реставрація інших об’єктів | B70: 3142 | C70: 480 | D70: 0 | E70: 0 | F70: 0 | G70: 0 | H70: 0 | I70: 0 | J70: 0
A71: Реставрація пам’яток культури, історії та архітектури | B71: 3143 | C71: 490 | D71: 0 | E71: 0 | F71: 0 | G71: 0 | H71: 0 | I71: 0 | J71: 0
A72: Створення державних запасів і резервів | B72: 3150 | C72: 500 | D72: 0 | E72: 0 | F72: 0 | G72: 0 | H72: 0 | I72: 0 | J72: 0
A73: Придбання землі та нематеріальних активів | B73: 3160 | C73: 510 | D73: 0 | E73: 0 | F73: 0 | G73: 0 | H73: 0 | I73: 0 | J73: 0
A74: Капітальні трансферти | B74: 3200 | C74: 520 | D74: =SUM(D75:D78) -> 0 | E74: 0 | F74: 0 | G74: 0 | H74: 0 | I74: 0 | J74: 0
A75: Капітальні трансферти підприємствам (установам, організаціям) | B75: 3210 | C75: 530 | D75: 0 | E75: 0 | F75: 0 | G75: 0 | H75: 0 | I75: 0 | J75: 0
A76: Капітальні трансферти органам державного управління інших рівнів | B76: 3220 | C76: 540 | D76: 0 | E76: 0 | F76: 0 | G76: 0 | H76: 0 | I76: 0 | J76: 0
A77: Капітальні трансферти урядам іноземних держав та міжнародним організаціям | B77: 3230 | C77: 550 | D77: 0 | E77: 0 | F77: 0 | G77: 0 | H77: 0 | I77: 0 | J77: 0
A78: Капітальні трансферти населенню | B78: 3240 | C78: 560 | D78: 0 | E78: 0 | F78: 0 | G78: 0 | H78: 0 | I78: 0 | J78: 0
A79: Внутрішнє кредитування | B79: 4100 | C79: 570 | D79: =SUM(D80) -> 0 | E79: 0 | F79: 0 | G79: 0 | H79: 0 | I79: 0 | J79: 0
A80: Надання внутрішніх кредитів | B80: 4110 | C80: 580 | D80: =SUM(D81:D83) -> 0 | E80: 0 | F80: 0 | G80: 0 | H80: 0 | I80: 0 | J80: 0
A81: Надання кредитів органам державного управління інших рівнів | B81: 4111 | C81: 590 | D81: 0 | E81: 0 | F81: 0 | G81: 0 | H81: 0 | I81: 0 | J81: 0
A82: Надання кредитів підприємствам, установам, організаціям | B82: 4112 | C82: 600 | D82: 0 | E82: 0 | F82: 0 | G82: 0 | H82: 0 | I82: 0 | J82: 0
A83: Надання інших внутрішніх кредитів | B83: 4113 | C83: 610 | D83: 0 | E83: 0 | F83: 0 | G83: 0 | H83: 0 | I83: 0 | J83: 0
A84: Зовнішнє кредитування | B84: 4200 | C84: 620 | D84: =D85 -> 0 | E84: 0 | F84: 0 | G84: 0 | H84: 0 | I84: 0 | J84: 0
A85: Надання зовнішніх кредитів | B85: 4210 | C85: 630 | D85: 0 | E85: 0 | F85: 0 | G85: 0 | H85: 0 | I85: 0 | J85: 0
A86: Інші видатки | B86: 5000 | C86: 640 | D86: X | E86: 0 | F86: X | G86: X | H86: X | I86: X | J86: X
A87: Нерозподілені видатки | B87: 9000 | C87: 650 | D87: 0 | E87: 0 | F87: 0 | G87: 0 | H87: 0 | I87: 0 | J87: 0
C88: 650
A100: 1 Заповнюється розпорядниками бюджетних коштів.
A101: =ЗАПОЛНИТЬ!F30 -> Керівник | G101: =ЗАПОЛНИТЬ!F26 -> Т.П. Петрук
D102: (підпис) | G102: (ініціали, прізвище)
A103: =ЗАПОЛНИТЬ!F31 -> Головний бухгалтер | G103: =ЗАПОЛНИТЬ!F28 -> В.В. Петрук
A104: =ЗАПОЛНИТЬ!C19 -> "12"січня 2018 року | D104: (підпис) | G104: (ініціали, прізвище)

Sheet Ф.2.16 (hidden)
G1: Додаток 1 до Порядку складання бюджетної звітності розпорядниками та одержувачами бюджетних коштів, звітності фондами загальнообов’язкового державного соціального і пенсійного страхування (пункт 1 розділу ІІ)
A4: ЗВІТ
A5: =IF(ЗАПОЛНИТЬ!$F$7=1,CONCATENATE(шапки!A2),CONCATENATE(шапки!A2,шапки!C2)) -> про надходження та використання коштів загального фонду (форма №2д, | G5: =IF(ЗАПОЛНИТЬ!$F$7=1,шапки!C2,шапки!D2) -> №2м) | H5: =IF(ЗАПОЛНИТЬ!$F$7=1,шапки!D2,"") -> 
A6: =CONCATENATE("за ",ЗАПОЛНИТЬ!$B$17," ",ЗАПОЛНИТЬ!$C$17) -> за 2017 р.
J7: коди
A9: Установа | B9: =ЗАПОЛНИТЬ!B3 -> Рафалівський НВК "ЗОШ Іст.-ДНЗ" | H9: за ЄДРПОУ | J9: =ЗАПОЛНИТЬ!B13 -> 25894582
A10: Територія | B10: =ЗАПОЛНИТЬ!B5 -> смт. Рафалівка | H10: за КОАТУУ | J10: =ЗАПОЛНИТЬ!B14 -> 5620855400
A11: Організаційно-правова форма господарювання | B11: =ЗАПОЛНИТЬ!D15 -> Комунальна організація (установа, заклад) | H11: за КОПФГ | J11: =ЗАПОЛНИТЬ!B15 -> 430
A12: Код та назва відомчої класифікації видатків та кредитування державного бюджету | D12: =ЗАПОЛНИТЬ!H9 -> 0 | E12: =IF(D12>0,VLOOKUP(D12,'ДовидникКВК(ГОС)'!A:B,2,FALSE),"") -> 
A13: Код та назва програмної класифікації видатків та кредитування державного бюджету | E13: =IF(D13>0,VLOOKUP(D13,ДовидникКПК!B:C,2,FALSE),"") -> 
A14: Код та назва типової відомчої класифікації видатків та кредитування місцевих бюджетів | D14: =ЗАПОЛНИТЬ!H10 -> 10 | E14: =ЗАПОЛНИТЬ!I10 -> Орган з питань освіти і науки
A15: Код та назва програмної класифікації видатків та кредитування місцевих бюджетів (код та назва Типової програмної класифікації видатків та кредитування місцевих бюджетів / Тимчасової класифікації видатків та кредитування для бюджетів місцевого самоврядування, які не застосовують програмно-цільового методу) | D15: - | E15: =VLOOKUP(RIGHT(D15,4),КПКВМБ!A:B,2,FALSE) -> -
A16: Періодичність: квартальна, річна
A17: Одиниця виміру: грн, коп.
A19: Показники | B19: КЕКВ та/або ККК | C19: Код рядка | D19: Затверджено на звітний рік | E19: Затверджено на звітний період (рік)1 | F19: Залишок на початок звітного року | G19: Надійшло коштів за звітний період (рік) | H19: Касові за звітний період (рік) | I19: Фактичні за звітний період (рік) | J19: Залишок на кінець звітного періоду (року)
A22: 1 | B22: 2 | C22: 3 | D22: 4 | E22: 5 | F22: 6 | G22: 7 | H22: 8 | I22: 9 | J22: 9
A23: Видатки та надання кредитів - усього | B23: Х | C23: 010 | D23: =D24+D59+D79+D84+D87 -> 0 | E23: =E26+E29+E32+E33+E37+E45+E46+E86+E54 -> 0 | F23: =F24+F59+F79+F84+F87 -> 0 | G23: =G24+G59+G79+G84+G87 -> 0 | H23: =H24+H59+H79+H84+H87 -> 0 | I23: =I24+I59+I79+I84+I87 -> 0 | J23: =F23+G23-H23 -> 0
A24: у тому числі: Поточні видатки | B24: 2000 | C24: 020 | D24: =D25+D30+D47+D50+D54+D58 -> 0 | E24: 0 | F24: 0 | G24: 0 | H24: 0 | I24: 0 | J24: =F24+G24-H24 -> 0
A25: Оплата праці і нарахування на заробітну плату | B25: 2100 | C25: 030 | D25: =D26+D29 -> 0 | E25: 0 | F25: =F26+F29 -> 0 | G25: =G26+G29 -> 0 | H25: =H26+H29 -> 0 | I25: =I26+I29 -> 0 | J25: 0
A26: Оплата праці | B26: 2110 | C26: 040 | D26: =SUM(D27:D28) -> 0 | E26: 0 | F26: 0 | G26: 0 | H26: 0 | I26: 0 | J26: 0
A27: Заробітна плата | B27: 2111 | C27: 050 | D27: 0 | E27: 0 | F27: 0 | G27: 0 | H27: 0 | I27: 0 | J27: 0
A28: Грошове забезпечення військовослужбовців | B28: 2112 | C28: 060 | D28: 0 | E28: 0 | F28: 0 | G28: 0 | H28: 0 | I28: 0 | J28: 0
A29: Нарахування на оплату праці | B29: 2120 | C29: 070 | D29: 0 | E29: 0 | F29: 0 | G29: 0 | H29: 0 | I29: 0 | J29: 0
A30: Використання товарів і послуг | B30: 2200 | C30: 080 | D30: =SUM(D31:D37)+D44 -> 0 | E30: 0 | F30: =SUM(F31:F37)+F44 -> 0 | G30: =SUM(G31:G37)+G44 -> 0 | H30: =SUM(H31:H37)+H44 -> 0 | I30: =SUM(I31:I37)+I44 -> 0 | J30: 0
A31: Предмети, матеріали, обладнання та інвентар | B31: 2210 | C31: 090 | D31: 0 | E31: 0 | F31: 0 | G31: 0 | H31: 0 | I31: 0 | J31: 0
A32: Медикаменти та перев’язувальні матеріали | B32: 2220 | C32: 100 | D32: 0 | E32: 0 | F32: 0 | G32: 0 | H32: 0 | I32: 0 | J32: 0
A33: Продукти харчування | B33: 2230 | C33: 110 | D33: 0 | E33: 0 | F33: 0 | G33: 0 | H33: 0 | I33: 0 | J33: 0
A34: Оплата послуг (крім комунальних) | B34: 2240 | C34: 120 | D34: 0 | E34: 0 | F34: 0 | G34: 0 | H34: 0 | I34: 0 | J34: 0
A35: Видатки на відрядження | B35: 2250 | C35: 130 | D35: 0 | E35: 0 | F35: 0 | G35: 0 | H35: 0 | I35: 0 | J35: 0
A36: Видатки та заходи спеціального призначення | B36: 2260 | C36: 140 | D36: 0 | E36: 0 | F36: 0 | G36: 0 | H36: 0 | I36: 0 | J36: 0
A37: Оплата комунальних послуг та енергоносіїв | B37: 2270 | C37: 150 | D37: =SUM(D38:D43) -> 0 | E37: 0 | F37: =SUM(F38:F43) -> 0 | G37: =SUM(G38:G43) -> 0 | H37: =SUM(H38:H43) -> 0 | I37: =SUM(I38:I43) -> 0 | J37: =F37+G37-H37 -> 0
A38: Оплата теплопостачання | B38: 2271 | C38: 160 | D38: 0 | E38: 0 | F38: 0 | G38: 0 | H38: 0 | I38: 0 | J38: 0
A39: Оплата водопостачання та водовідведення | B39: 2272 | C39: 170 | D39: 0 | E39: 0 | F39: 0 | G39: 0 | H39: 0 | I39: 0 | J39: 0
A40: Оплата електроенергії | B40: 2273 | C40: 180 | D40: 0 | E40: 0 | F40: 0 | G40: 0 | H40: 0 | I40: 0 | J40: 0
A41: Оплата природного газу | B41: 2274 | C41: 190 | D41: 0 | E41: 0 | F41: 0 | G41: 0 | H41: 0 | I41: 0 | J41: 0
A42: Оплата інших енергоносіїв | B42: 2275 | C42: 200 | D42: 0 | E42: 0 | F42: 0 | G42: 0 | H42: 0 | I42: 0 | J42: 0
A43: Оплата енергосервісу | B43: 2276 | C43: 210 | D43: 0 | E43: 0 | F43: 0 | G43: 0 | H43: 0 | I43: 0 | J43: =F43+G43-H43 -> 0
A44: Дослідження і розробки, окремі заходи по реалізації державних (регіональних) програм | B44: 2280 | C44: 220 | D44: =SUM(D45:D46) -> 0 | E44: 0 | F44: =SUM(F45:F46) -> 0 | G44: =SUM(G45:G46) -> 0 | H44: =SUM(H45:H46) -> 0 | I44: =SUM(I45:I46) -> 0 | J44: 0
A45: Дослідження і розробки, окремі заходи розвитку по реалізації державних (регіональних) програм | B45: 2281 | C45: 230 | D45: 0 | E45: 0 | F45: 0 | G45: 0 | H45: 0 | I45: 0 | J45: 0
A46: Окремі заходи по реалізації державних (регіональних) програм, не віднесені до заходів розвитку | B46: 2282 | C46: 240 | D46: 0 | E46: 0 | F46: 0 | G46: 0 | H46: 0 | I46: 0 | J46: 0
A47: Обслуговування боргових зобов’язань | B47: 2400 | C47: 250 | D47: =SUM(D48:D49) -> 0 | E47: 0 | F47: 0 | G47: 0 | H47: 0 | I47: 0 | J47: 0
A48: Обслуговування внутрішніх боргових зобов’язань | B48: 2410 | C48: 260 | D48: 0 | E48: 0 | F48: 0 | G48: 0 | H48: 0 | I48: 0 | J48: 0
A49: Обслуговування зовнішніх боргових зобов’язань | B49: 2420 | C49: 270 | D49: 0 | E49: 0 | F49: 0 | G49: 0 | H49: 0 | I49: 0 | J49: 0
A50: Поточні трансферти | B50: 2600 | C50: 280 | D50: =SUM(D51:D53) -> 0 | E50: 0 | F50: 0 | G50: 0 | H50: 0 | I50: 0 | J50: 0
A51: Субсидії та поточні трансферти підприємствам (установам, організаціям) | B51: 2610 | C51: 290 | D51: 0 | E51: 0 | F51: 0 | G51: 0 | H51: 0 | I51: 0 | J51: 0
A52: Поточні трансферти органам державного управління інших рівнів | B52: 2620 | C52: 300 | D52: 0 | E52: 0 | F52: 0 | G52: 0 | H52: 0 | I52: 0 | J52: 0
A53: Поточні трансферти урядам іноземних держав та міжнародним організаціям | B53: 2630 | C53: 310 | D53: 0 | E53: 0 | F53: 0 | G53: 0 | H53: 0 | I53: 0 | J53: 0
A54: Соціальне забезпечення | B54: 2700 | C54: 320 | D54: =SUM(D55:D57) -> 0 | E54: 0 | F54: 0 | G54: 0 | H54: 0 | I54: 0 | J54: 0
A55: Виплата пенсій і допомоги | B55: 2710 | C55: 330 | D55: 0 | E55: 0 | F55: 0 | G55: 0 | H55: 0 | I55: 0 | J55: 0
A56: Стипендії | B56: 2720 | C56: 340 | D56: 0 | E56: 0 | F56: 0 | G56: 0 | H56: 0 | I56: 0 | J56: 0
A57: Інші виплати населенню | B57: 2730 | C57: 350 | D57: 0 | E57: 0 | F57: 0 | G57: 0 | H57: 0 | I57: 0 | J57: 0
A58: Інші поточні видатки | B58: 2800 | C58: 360 | D58: 0 | E58: 0 | F58: 0 | G58: 0 | H58: 0 | I58: 0 | J58: 0
A59: Капітальні видатки | B59: 3000 | C59: 370 | D59: =D60+D74 -> 0 | E59: 0 | F59: 0 | G59: 0 | H59: 0 | I59: 0 | J59: 0
A60: Придбання основного капіталу | B60: 3100 | C60: 380 | D60: =D61+D62+D65+D68+D72+D73 -> 0 | E60: 0 | F60: 0 | G60: 0 | H60: 0 | I60: 0 | J60: 0
A61: Придбання обладнання і предметів довгострокового користування | B61: 3110 | C61: 390 | D61: 0 | E61: 0 | F61: 0 | G61: 0 | H61: 0 | I61: 0 | J61: 0
A62: Капітальне будівництво (придбання) | B62: 3120 | C62: 400 | D62: =SUM(D63:D64) -> 0 | E62: 0 | F62: 0 | G62: 0 | H62: 0 | I62: 0 | J62: 0
A63: Капітальне будівництво (придбання) житла | B63: 3121 | C63: 410 | D63: 0 | E63: 0 | F63: 0 | G63: 0 | H63: 0 | I63: 0 | J63: 0
A64: Капітальне будівництво (придбання) інших об’єктів | B64: 3122 | C64: 420 | D64: 0 | E64: 0 | F64: 0 | G64: 0 | H64: 0 | I64: 0 | J64: 0
A65: Капітальний ремонт | B65: 3130 | C65: 430 | D65: =SUM(D66:D67) -> 0 | E65: 0 | F65: 0 | G65: 0 | H65: 0 | I65: 0 | J65: 0
A66: Капітальний ремонт житлового фонду (приміщень) | B66: 3131 | C66: 440 | D66: 0 | E66: 0 | F66: 0 | G66: 0 | H66: 0 | I66: 0 | J66: 0
A67: Капітальний ремонт інших об’єктів | B67: 3132 | C67: 450 | D67: 0 | E67: 0 | F67: 0 | G67: 0 | H67: 0 | I67: 0 | J67: 0
A68: Реконструкція та реставрація | B68: 3140 | C68: 460 | D68: =SUM(D69:D71) -> 0 | E68: 0 | F68: 0 | G68: 0 | H68: 0 | I68: 0 | J68: 0
A69: Реконструкція житлового фонду (приміщень) | B69: 3141 | C69: 470 | D69: 0 | E69: 0 | F69: 0 | G69: 0 | H69: 0 | I69: 0 | J69: 0
A70: Реконструкція та реставрація інших об’єктів | B70: 3142 | C70: 480 | D70: 0 | E70: 0 | F70: 0 | G70: 0 | H70: 0 | I70: 0 | J70: 0
A71: Реставрація пам’яток культури, історії та архітектури | B71: 3143 | C71: 490 | D71: 0 | E71: 0 | F71: 0 | G71: 0 | H71: 0 | I71: 0 | J71: 0
A72: Створення державних запасів і резервів | B72: 3150 | C72: 500 | D72: 0 | E72: 0 | F72: 0 | G72: 0 | H72: 0 | I72: 0 | J72: 0
A73: Придбання землі та нематеріальних активів | B73: 3160 | C73: 510 | D73: 0 | E73: 0 | F73: 0 | G73: 0 | H73: 0 | I73: 0 | J73: 0
A74: Капітальні трансферти | B74: 3200 | C74: 520 | D74: =SUM(D75:D78) -> 0 | E74: 0 | F74: 0 | G74: 0 | H74: 0 | I74: 0 | J74: 0
A75: Капітальні трансферти підприємствам (установам, організаціям) | B75: 3210 | C75: 530 | D75: 0 | E75: 0 | F75: 0 | G75: 0 | H75: 0 | I75: 0 | J75: 0
A76: Капітальні трансферти органам державного управління інших рівнів | B76: 3220 | C76: 540 | D76: 0 | E76: 0 | F76: 0 | G76: 0 | H76: 0 | I76: 0 | J76: 0
A77: Капітальні трансферти урядам іноземних держав та міжнародним організаціям | B77: 3230 | C77: 550 | D77: 0 | E77: 0 | F77: 0 | G77: 0 | H77: 0 | I77: 0 | J77: 0
A78: Капітальні трансферти населенню | B78: 3240 | C78: 560 | D78: 0 | E78: 0 | F78: 0 | G78: 0 | H78: 0 | I78: 0 | J78: 0
A79: Внутрішнє кредитування | B79: 4100 | C79: 570 | D79: =SUM(D80) -> 0 | E79: 0 | F79: 0 | G79: 0 | H79: 0 | I79: 0 | J79: 0
A80: Надання внутрішніх кредитів | B80: 4110 | C80: 580 | D80: =SUM(D81:D83) -> 0 | E80: 0 | F80: 0 | G80: 0 | H80: 0 | I80: 0 | J80: 0
A81: Надання кредитів органам державного управління інших рівнів | B81: 4111 | C81: 590 | D81: 0 | E81: 0 | F81: 0 | G81: 0 | H81: 0 | I81: 0 | J81: 0
A82: Надання кредитів підприємствам, установам, організаціям | B82: 4112 | C82: 600 | D82: 0 | E82: 0 | F82: 0 | G82: 0 | H82: 0 | I82: 0 | J82: 0
A83: Надання інших внутрішніх кредитів | B83: 4113 | C83: 610 | D83: 0 | E83: 0 | F83: 0 | G83: 0 | H83: 0 | I83: 0 | J83: 0
A84: Зовнішнє кредитування | B84: 4200 | C84: 620 | D84: =D85 -> 0 | E84: 0 | F84: 0 | G84: 0 | H84: 0 | I84: 0 | J84: 0
A85: Надання зовнішніх кредитів | B85: 4210 | C85: 630 | D85: 0 | E85: 0 | F85: 0 | G85: 0 | H85: 0 | I85: 0 | J85: 0
A86: Інші видатки | B86: 5000 | C86: 640 | D86: X | E86: 0 | F86: X | G86: X | H86: X | I86: X | J86: X
A87: Нерозподілені видатки | B87: 9000 | C87: 650 | D87: 0 | E87: 0 | F87: 0 | G87: 0 | H87: 0 | I87: 0 | J87: 0
C88: 650
A100: 1 Заповнюється розпорядниками бюджетних коштів.
A101: =ЗАПОЛНИТЬ!F30 -> Керівник | G101: =ЗАПОЛНИТЬ!F26 -> Т.П. Петрук
D102: (підпис) | G102: (ініціали, прізвище)
A103: =ЗАПОЛНИТЬ!F31 -> Головний бухгалтер | G103: =ЗАПОЛНИТЬ!F28 -> В.В. Петрук
A104: =ЗАПОЛНИТЬ!C19 -> "12"січня 2018 року | D104: (підпис) | G104: (ініціали, прізвище)

Sheet Ф.2.17 (hidden)
G1: Додаток 1 до Порядку складання бюджетної звітності розпорядниками та одержувачами бюджетних коштів, звітності фондами загальнообов’язкового державного соціального і пенсійного страхування (пункт 1 розділу ІІ)
A4: ЗВІТ
A5: =IF(ЗАПОЛНИТЬ!$F$7=1,CONCATENATE(шапки!A2),CONCATENATE(шапки!A2,шапки!C2)) -> про надходження та використання коштів загального фонду (форма №2д, | G5: =IF(ЗАПОЛНИТЬ!$F$7=1,шапки!C2,шапки!D2) -> №2м) | H5: =IF(ЗАПОЛНИТЬ!$F$7=1,шапки!D2,"") -> 
A6: =CONCATENATE("за ",ЗАПОЛНИТЬ!$B$17," ",ЗАПОЛНИТЬ!$C$17) -> за 2017 р.
J7: коди
A9: Установа | B9: =ЗАПОЛНИТЬ!B3 -> Рафалівський НВК "ЗОШ Іст.-ДНЗ" | H9: за ЄДРПОУ | J9: =ЗАПОЛНИТЬ!B13 -> 25894582
A10: Територія | B10: =ЗАПОЛНИТЬ!B5 -> смт. Рафалівка | H10: за КОАТУУ | J10: =ЗАПОЛНИТЬ!B14 -> 5620855400
A11: Організаційно-правова форма господарювання | B11: =ЗАПОЛНИТЬ!D15 -> Комунальна організація (установа, заклад) | H11: за КОПФГ | J11: =ЗАПОЛНИТЬ!B15 -> 430
A12: Код та назва відомчої класифікації видатків та кредитування державного бюджету | D12: =ЗАПОЛНИТЬ!H9 -> 0 | E12: =IF(D12>0,VLOOKUP(D12,'ДовидникКВК(ГОС)'!A:B,2,FALSE),"") -> 
A13: Код та назва програмної класифікації видатків та кредитування державного бюджету | E13: =IF(D13>0,VLOOKUP(D13,ДовидникКПК!B:C,2,FALSE),"") -> 
A14: Код та назва типової відомчої класифікації видатків та кредитування місцевих бюджетів | D14: =ЗАПОЛНИТЬ!H10 -> 10 | E14: =ЗАПОЛНИТЬ!I10 -> Орган з питань освіти і науки
A15: Код та назва програмної класифікації видатків та кредитування місцевих бюджетів (код та назва Типової програмної класифікації видатків та кредитування місцевих бюджетів / Тимчасової класифікації видатків та кредитування для бюджетів місцевого самоврядування, які не застосовують програмно-цільового методу) | D15: - | E15: =VLOOKUP(RIGHT(D15,4),КПКВМБ!A:B,2,FALSE) -> -
A16: Періодичність: квартальна, річна
A17: Одиниця виміру: грн, коп.
A19: Показники | B19: КЕКВ та/або ККК | C19: Код рядка | D19: Затверджено на звітний рік | E19: Затверджено на звітний період (рік)1 | F19: Залишок на початок звітного року | G19: Надійшло коштів за звітний період (рік) | H19: Касові за звітний період (рік) | I19: Фактичні за звітний період (рік) | J19: Залишок на кінець звітного періоду (року)
A22: 1 | B22: 2 | C22: 3 | D22: 4 | E22: 5 | F22: 6 | G22: 7 | H22: 8 | I22: 9 | J22: 9
A23: Видатки та надання кредитів - усього | B23: Х | C23: 010 | D23: =D24+D59+D79+D84+D87 -> 0 | E23: =E26+E29+E32+E33+E37+E45+E46+E86+E54 -> 0 | F23: =F24+F59+F79+F84+F87 -> 0 | G23: =G24+G59+G79+G84+G87 -> 0 | H23: =H24+H59+H79+H84+H87 -> 0 | I23: =I24+I59+I79+I84+I87 -> 0 | J23: =F23+G23-H23 -> 0
A24: у тому числі: Поточні видатки | B24: 2000 | C24: 020 | D24: =D25+D30+D47+D50+D54+D58 -> 0 | E24: 0 | F24: 0 | G24: 0 | H24: 0 | I24: 0 | J24: =F24+G24-H24 -> 0
A25: Оплата праці і нарахування на заробітну плату | B25: 2100 | C25: 030 | D25: =D26+D29 -> 0 | E25: 0 | F25: =F26+F29 -> 0 | G25: =G26+G29 -> 0 | H25: =H26+H29 -> 0 | I25: =I26+I29 -> 0 | J25: 0
A26: Оплата праці | B26: 2110 | C26: 040 | D26: =SUM(D27:D28) -> 0 | E26: 0 | F26: 0 | G26: 0 | H26: 0 | I26: 0 | J26: 0
A27: Заробітна плата | B27: 2111 | C27: 050 | D27: 0 | E27: 0 | F27: 0 | G27: 0 | H27: 0 | I27: 0 | J27: 0
A28: Грошове забезпечення військовослужбовців | B28: 2112 | C28: 060 | D28: 0 | E28: 0 | F28: 0 | G28: 0 | H28: 0 | I28: 0 | J28: 0
A29: Нарахування на оплату праці | B29: 2120 | C29: 070 | D29: 0 | E29: 0 | F29: 0 | G29: 0 | H29: 0 | I29: 0 | J29: 0
A30: Використання товарів і послуг | B30: 2200 | C30: 080 | D30: =SUM(D31:D37)+D44 -> 0 | E30: 0 | F30: =SUM(F31:F37)+F44 -> 0 | G30: =SUM(G31:G37)+G44 -> 0 | H30: =SUM(H31:H37)+H44 -> 0 | I30: =SUM(I31:I37)+I44 -> 0 | J30: 0
A31: Предмети, матеріали, обладнання та інвентар | B31: 2210 | C31: 090 | D31: 0 | E31: 0 | F31: 0 | G31: 0 | H31: 0 | I31: 0 | J31: 0
A32: Медикаменти та перев’язувальні матеріали | B32: 2220 | C32: 100 | D32: 0 | E32: 0 | F32: 0 | G32: 0 | H32: 0 | I32: 0 | J32: 0
A33: Продукти харчування | B33: 2230 | C33: 110 | D33: 0 | E33: 0 | F33: 0 | G33: 0 | H33: 0 | I33: 0 | J33: 0
A34: Оплата послуг (крім комунальних) | B34: 2240 | C34: 120 | D34: 0 | E34: 0 | F34: 0 | G34: 0 | H34: 0 | I34: 0 | J34: 0
A35: Видатки на відрядження | B35: 2250 | C35: 130 | D35: 0 | E35: 0 | F35: 0 | G35: 0 | H35: 0 | I35: 0 | J35: 0
A36: Видатки та заходи спеціального призначення | B36: 2260 | C36: 140 | D36: 0 | E36: 0 | F36: 0 | G36: 0 | H36: 0 | I36: 0 | J36: 0
A37: Оплата комунальних послуг та енергоносіїв | B37: 2270 | C37: 150 | D37: =SUM(D38:D43) -> 0 | E37: 0 | F37: =SUM(F38:F43) -> 0 | G37: =SUM(G38:G43) -> 0 | H37: =SUM(H38:H43) -> 0 | I37: =SUM(I38:I43) -> 0 | J37: =F37+G37-H37 -> 0
A38: Оплата теплопостачання | B38: 2271 | C38: 160 | D38: 0 | E38: 0 | F38: 0 | G38: 0 | H38: 0 | I38: 0 | J38: 0
A39: Оплата водопостачання та водовідведення | B39: 2272 | C39: 170 | D39: 0 | E39: 0 | F39: 0 | G39: 0 | H39: 0 | I39: 0 | J39: 0
A40: Оплата електроенергії | B40: 2273 | C40: 180 | D40: 0 | E40: 0 | F40: 0 | G40: 0 | H40: 0 | I40: 0 | J40: 0
A41: Оплата природного газу | B41: 2274 | C41: 190 | D41: 0 | E41: 0 | F41: 0 | G41: 0 | H41: 0 | I41: 0 | J41: 0
A42: Оплата інших енергоносіїв | B42: 2275 | C42: 200 | D42: 0 | E42: 0 | F42: 0 | G42: 0 | H42: 0 | I42: 0 | J42: 0
A43: Оплата енергосервісу | B43: 2276 | C43: 210 | D43: 0 | E43: 0 | F43: 0 | G43: 0 | H43: 0 | I43: 0 | J43: =F43+G43-H43 -> 0
A44: Дослідження і розробки, окремі заходи по реалізації державних (регіональних) програм | B44: 2280 | C44: 220 | D44: =SUM(D45:D46) -> 0 | E44: 0 | F44: =SUM(F45:F46) -> 0 | G44: =SUM(G45:G46) -> 0 | H44: =SUM(H45:H46) -> 0 | I44: =SUM(I45:I46) -> 0 | J44: 0
A45: Дослідження і розробки, окремі заходи розвитку по реалізації державних (регіональних) програм | B45: 2281 | C45: 230 | D45: 0 | E45: 0 | F45: 0 | G45: 0 | H45: 0 | I45: 0 | J45: 0
A46: Окремі заходи по реалізації державних (регіональних) програм, не віднесені до заходів розвитку | B46: 2282 | C46: 240 | D46: 0 | E46: 0 | F46: 0 | G46: 0 | H46: 0 | I46: 0 | J46: 0
A47: Обслуговування боргових зобов’язань | B47: 2400 | C47: 250 | D47: =SUM(D48:D49) -> 0 | E47: 0 | F47: 0 | G47: 0 | H47: 0 | I47: 0 | J47: 0
A48: Обслуговування внутрішніх боргових зобов’язань | B48: 2410 | C48: 260 | D48: 0 | E48: 0 | F48: 0 | G48: 0 | H48: 0 | I48: 0 | J48: 0
A49: Обслуговування зовнішніх боргових зобов’язань | B49: 2420 | C49: 270 | D49: 0 | E49: 0 | F49: 0 | G49: 0 | H49: 0 | I49: 0 | J49: 0
A50: Поточні трансферти | B50: 2600 | C50: 280 | D50: =SUM(D51:D53) -> 0 | E50: 0 | F50: 0 | G50: 0 | H50: 0 | I50: 0 | J50: 0
A51: Субсидії та поточні трансферти підприємствам (установам, організаціям) | B51: 2610 | C51: 290 | D51: 0 | E51: 0 | F51: 0 | G51: 0 | H51: 0 | I51: 0 | J51: 0
A52: Поточні трансферти органам державного управління інших рівнів | B52: 2620 | C52: 300 | D52: 0 | E52: 0 | F52: 0 | G52: 0 | H52: 0 | I52: 0 | J52: 0
A53: Поточні трансферти урядам іноземних держав та міжнародним організаціям | B53: 2630 | C53: 310 | D53: 0 | E53: 0 | F53: 0 | G53: 0 | H53: 0 | I53: 0 | J53: 0
A54: Соціальне забезпечення | B54: 2700 | C54: 320 | D54: =SUM(D55:D57) -> 0 | E54: 0 | F54: 0 | G54: 0 | H54: 0 | I54: 0 | J54: 0
A55: Виплата пенсій і допомоги | B55: 2710 | C55: 330 | D55: 0 | E55: 0 | F55: 0 | G55: 0 | H55: 0 | I55: 0 | J55: 0
A56: Стипендії | B56: 2720 | C56: 340 | D56: 0 | E56: 0 | F56: 0 | G56: 0 | H56: 0 | I56: 0 | J56: 0
A57: Інші виплати населенню | B57: 2730 | C57: 350 | D57: 0 | E57: 0 | F57: 0 | G57: 0 | H57: 0 | I57: 0 | J57: 0
A58: Інші поточні видатки | B58: 2800 | C58: 360 | D58: 0 | E58: 0 | F58: 0 | G58: 0 | H58: 0 | I58: 0 | J58: 0
A59: Капітальні видатки | B59: 3000 | C59: 370 | D59: =D60+D74 -> 0 | E59: 0 | F59: 0 | G59: 0 | H59: 0 | I59: 0 | J59: 0
A60: Придбання основного капіталу | B60: 3100 | C60: 380 | D60: =D61+D62+D65+D68+D72+D73 -> 0 | E60: 0 | F60: 0 | G60: 0 | H60: 0 | I60: 0 | J60: 0
A61: Придбання обладнання і предметів довгострокового користування | B61: 3110 | C61: 390 | D61: 0 | E61: 0 | F61: 0 | G61: 0 | H61: 0 | I61: 0 | J61: 0
A62: Капітальне будівництво (придбання) | B62: 3120 | C62: 400 | D62: =SUM(D63:D64) -> 0 | E62: 0 | F62: 0 | G62: 0 | H62: 0 | I62: 0 | J62: 0
A63: Капітальне будівництво (придбання) житла | B63: 3121 | C63: 410 | D63: 0 | E63: 0 | F63: 0 | G63: 0 | H63: 0 | I63: 0 | J63: 0
A64: Капітальне будівництво (придбання) інших об’єктів | B64: 3122 | C64: 420 | D64: 0 | E64: 0 | F64: 0 | G64: 0 | H64: 0 | I64: 0 | J64: 0
A65: Капітальний ремонт | B65: 3130 | C65: 430 | D65: =SUM(D66:D67) -> 0 | E65: 0 | F65: 0 | G65: 0 | H65: 0 | I65: 0 | J65: 0
A66: Капітальний ремонт житлового фонду (приміщень) | B66: 3131 | C66: 440 | D66: 0 | E66: 0 | F66: 0 | G66: 0 | H66: 0 | I66: 0 | J66: 0
A67: Капітальний ремонт інших об’єктів | B67: 3132 | C67: 450 | D67: 0 | E67: 0 | F67: 0 | G67: 0 | H67: 0 | I67: 0 | J67: 0
A68: Реконструкція та реставрація | B68: 3140 | C68: 460 | D68: =SUM(D69:D71) -> 0 | E68: 0 | F68: 0 | G68: 0 | H68: 0 | I68: 0 | J68: 0
A69: Реконструкція житлового фонду (приміщень) | B69: 3141 | C69: 470 | D69: 0 | E69: 0 | F69: 0 | G69: 0 | H69: 0 | I69: 0 | J69: 0
A70: Реконструкція та реставрація інших об’єктів | B70: 3142 | C70: 480 | D70: 0 | E70: 0 | F70: 0 | G70: 0 | H70: 0 | I70: 0 | J70: 0
A71: Реставрація пам’яток культури, історії та архітектури | B71: 3143 | C71: 490 | D71: 0 | E71: 0 | F71: 0 | G71: 0 | H71: 0 | I71: 0 | J71: 0
A72: Створення державних запасів і резервів | B72: 3150 | C72: 500 | D72: 0 | E72: 0 | F72: 0 | G72: 0 | H72: 0 | I72: 0 | J72: 0
A73: Придбання землі та нематеріальних активів | B73: 3160 | C73: 510 | D73: 0 | E73: 0 | F73: 0 | G73: 0 | H73: 0 | I73: 0 | J73: 0
A74: Капітальні трансферти | B74: 3200 | C74: 520 | D74: =SUM(D75:D78) -> 0 | E74: 0 | F74: 0 | G74: 0 | H74: 0 | I74: 0 | J74: 0
A75: Капітальні трансферти підприємствам (установам, організаціям) | B75: 3210 | C75: 530 | D75: 0 | E75: 0 | F75: 0 | G75: 0 | H75: 0 | I75: 0 | J75: 0
A76: Капітальні трансферти органам державного управління інших рівнів | B76: 3220 | C76: 540 | D76: 0 | E76: 0 | F76: 0 | G76: 0 | H76: 0 | I76: 0 | J76: 0
A77: Капітальні трансферти урядам іноземних держав та міжнародним організаціям | B77: 3230 | C77: 550 | D77: 0 | E77: 0 | F77: 0 | G77: 0 | H77: 0 | I77: 0 | J77: 0
A78: Капітальні трансферти населенню | B78: 3240 | C78: 560 | D78: 0 | E78: 0 | F78: 0 | G78: 0 | H78: 0 | I78: 0 | J78: 0
A79: Внутрішнє кредитування | B79: 4100 | C79: 570 | D79: =SUM(D80) -> 0 | E79: 0 | F79: 0 | G79: 0 | H79: 0 | I79: 0 | J79: 0
A80: Надання внутрішніх кредитів | B80: 4110 | C80: 580 | D80: =SUM(D81:D83) -> 0 | E80: 0 | F80: 0 | G80: 0 | H80: 0 | I80: 0 | J80: 0
A81: Надання кредитів органам державного управління інших рівнів | B81: 4111 | C81: 590 | D81: 0 | E81: 0 | F81: 0 | G81: 0 | H81: 0 | I81: 0 | J81: 0
A82: Надання кредитів підприємствам, установам, організаціям | B82: 4112 | C82: 600 | D82: 0 | E82: 0 | F82: 0 | G82: 0 | H82: 0 | I82: 0 | J82: 0
A83: Надання інших внутрішніх кредитів | B83: 4113 | C83: 610 | D83: 0 | E83: 0 | F83: 0 | G83: 0 | H83: 0 | I83: 0 | J83: 0
A84: Зовнішнє кредитування | B84: 4200 | C84: 620 | D84: =D85 -> 0 | E84: 0 | F84: 0 | G84: 0 | H84: 0 | I84: 0 | J84: 0
A85: Надання зовнішніх кредитів | B85: 4210 | C85: 630 | D85: 0 | E85: 0 | F85: 0 | G85: 0 | H85: 0 | I85: 0 | J85: 0
A86: Інші видатки | B86: 5000 | C86: 640 | D86: X | E86: 0 | F86: X | G86: X | H86: X | I86: X | J86: X
A87: Нерозподілені видатки | B87: 9000 | C87: 650 | D87: 0 | E87: 0 | F87: 0 | G87: 0 | H87: 0 | I87: 0 | J87: 0
C88: 650
A100: 1 Заповнюється розпорядниками бюджетних коштів.
A101: =ЗАПОЛНИТЬ!F30 -> Керівник | G101: =ЗАПОЛНИТЬ!F26 -> Т.П. Петрук
D102: (підпис) | G102: (ініціали, прізвище)
A103: =ЗАПОЛНИТЬ!F31 -> Головний бухгалтер | G103: =ЗАПОЛНИТЬ!F28 -> В.В. Петрук
A104: =ЗАПОЛНИТЬ!C19 -> "12"січня 2018 року | D104: (підпис) | G104: (ініціали, прізвище)

Sheet Ф.2.18 (hidden)
G1: Додаток 1 до Порядку складання бюджетної звітності розпорядниками та одержувачами бюджетних коштів, звітності фондами загальнообов’язкового державного соціального і пенсійного страхування (пункт 1 розділу ІІ)
A4: ЗВІТ
A5: =IF(ЗАПОЛНИТЬ!$F$7=1,CONCATENATE(шапки!A2),CONCATENATE(шапки!A2,шапки!C2)) -> про надходження та використання коштів загального фонду (форма №2д, | G5: =IF(ЗАПОЛНИТЬ!$F$7=1,шапки!C2,шапки!D2) -> №2м) | H5: =IF(ЗАПОЛНИТЬ!$F$7=1,шапки!D2,"") -> 
A6: =CONCATENATE("за ",ЗАПОЛНИТЬ!$B$17," ",ЗАПОЛНИТЬ!$C$17) -> за 2017 р.
J7: коди
A9: Установа | B9: =ЗАПОЛНИТЬ!B3 -> Рафалівський НВК "ЗОШ Іст.-ДНЗ" | H9: за ЄДРПОУ | J9: =ЗАПОЛНИТЬ!B13 -> 25894582
A10: Територія | B10: =ЗАПОЛНИТЬ!B5 -> смт. Рафалівка | H10: за КОАТУУ | J10: =ЗАПОЛНИТЬ!B14 -> 5620855400
A11: Організаційно-правова форма господарювання | B11: =ЗАПОЛНИТЬ!D15 -> Комунальна організація (установа, заклад) | H11: за КОПФГ | J11: =ЗАПОЛНИТЬ!B15 -> 430
A12: Код та назва відомчої класифікації видатків та кредитування державного бюджету | D12: =ЗАПОЛНИТЬ!H9 -> 0 | E12: =IF(D12>0,VLOOKUP(D12,'ДовидникКВК(ГОС)'!A:B,2,FALSE),"") -> 
A13: Код та назва програмної класифікації видатків та кредитування державного бюджету | E13: =IF(D13>0,VLOOKUP(D13,ДовидникКПК!B:C,2,FALSE),"") -> 
A14: Код та назва типової відомчої класифікації видатків та кредитування місцевих бюджетів | D14: =ЗАПОЛНИТЬ!H10 -> 10 | E14: =ЗАПОЛНИТЬ!I10 -> Орган з питань освіти і науки
A15: Код та назва програмної класифікації видатків та кредитування місцевих бюджетів (код та назва Типової програмної класифікації видатків та кредитування місцевих бюджетів / Тимчасової класифікації видатків та кредитування для бюджетів місцевого самоврядування, які не застосовують програмно-цільового методу) | D15: - | E15: =VLOOKUP(RIGHT(D15,4),КПКВМБ!A:B,2,FALSE) -> -
A16: Періодичність: квартальна, річна
A17: Одиниця виміру: грн, коп.
A19: Показники | B19: КЕКВ та/або ККК | C19: Код рядка | D19: Затверджено на звітний рік | E19: Затверджено на звітний період (рік)1 | F19: Залишок на початок звітного року | G19: Надійшло коштів за звітний період (рік) | H19: Касові за звітний період (рік) | I19: Фактичні за звітний період (рік) | J19: Залишок на кінець звітного періоду (року)
A22: 1 | B22: 2 | C22: 3 | D22: 4 | E22: 5 | F22: 6 | G22: 7 | H22: 8 | I22: 9 | J22: 9
A23: Видатки та надання кредитів - усього | B23: Х | C23: 010 | D23: =D24+D59+D79+D84+D87 -> 0 | E23: =E26+E29+E32+E33+E37+E45+E46+E86+E54 -> 0 | F23: =F24+F59+F79+F84+F87 -> 0 | G23: =G24+G59+G79+G84+G87 -> 0 | H23: =H24+H59+H79+H84+H87 -> 0 | I23: =I24+I59+I79+I84+I87 -> 0 | J23: =F23+G23-H23 -> 0
A24: у тому числі: Поточні видатки | B24: 2000 | C24: 020 | D24: =D25+D30+D47+D50+D54+D58 -> 0 | E24: 0 | F24: 0 | G24: 0 | H24: 0 | I24: 0 | J24: =F24+G24-H24 -> 0
A25: Оплата праці і нарахування на заробітну плату | B25: 2100 | C25: 030 | D25: =D26+D29 -> 0 | E25: 0 | F25: =F26+F29 -> 0 | G25: =G26+G29 -> 0 | H25: =H26+H29 -> 0 | I25: =I26+I29 -> 0 | J25: 0
A26: Оплата праці | B26: 2110 | C26: 040 | D26: =SUM(D27:D28) -> 0 | E26: 0 | F26: 0 | G26: 0 | H26: 0 | I26: 0 | J26: 0
A27: Заробітна плата | B27: 2111 | C27: 050 | D27: 0 | E27: 0 | F27: 0 | G27: 0 | H27: 0 | I27: 0 | J27: 0
A28: Грошове забезпечення військовослужбовців | B28: 2112 | C28: 060 | D28: 0 | E28: 0 | F28: 0 | G28: 0 | H28: 0 | I28: 0 | J28: 0
A29: Нарахування на оплату праці | B29: 2120 | C29: 070 | D29: 0 | E29: 0 | F29: 0 | G29: 0 | H29: 0 | I29: 0 | J29: 0
A30: Використання товарів і послуг | B30: 2200 | C30: 080 | D30: =SUM(D31:D37)+D44 -> 0 | E30: 0 | F30: =SUM(F31:F37)+F44 -> 0 | G30: =SUM(G31:G37)+G44 -> 0 | H30: =SUM(H31:H37)+H44 -> 0 | I30: =SUM(I31:I37)+I44 -> 0 | J30: 0
A31: Предмети, матеріали, обладнання та інвентар | B31: 2210 | C31: 090 | D31: 0 | E31: 0 | F31: 0 | G31: 0 | H31: 0 | I31: 0 | J31: 0
A32: Медикаменти та перев’язувальні матеріали | B32: 2220 | C32: 100 | D32: 0 | E32: 0 | F32: 0 | G32: 0 | H32: 0 | I32: 0 | J32: 0
A33: Продукти харчування | B33: 2230 | C33: 110 | D33: 0 | E33: 0 | F33: 0 | G33: 0 | H33: 0 | I33: 0 | J33: 0
A34: Оплата послуг (крім комунальних) | B34: 2240 | C34: 120 | D34: 0 | E34: 0 | F34: 0 | G34: 0 | H34: 0 | I34: 0 | J34: 0
A35: Видатки на відрядження | B35: 2250 | C35: 130 | D35: 0 | E35: 0 | F35: 0 | G35: 0 | H35: 0 | I35: 0 | J35: 0
A36: Видатки та заходи спеціального призначення | B36: 2260 | C36: 140 | D36: 0 | E36: 0 | F36: 0 | G36: 0 | H36: 0 | I36: 0 | J36: 0
A37: Оплата комунальних послуг та енергоносіїв | B37: 2270 | C37: 150 | D37: =SUM(D38:D43) -> 0 | E37: 0 | F37: =SUM(F38:F43) -> 0 | G37: =SUM(G38:G43) -> 0 | H37: =SUM(H38:H43) -> 0 | I37: =SUM(I38:I43) -> 0 | J37: =F37+G37-H37 -> 0
A38: Оплата теплопостачання | B38: 2271 | C38: 160 | D38: 0 | E38: 0 | F38: 0 | G38: 0 | H38: 0 | I38: 0 | J38: 0
A39: Оплата водопостачання та водовідведення | B39: 2272 | C39: 170 | D39: 0 | E39: 0 | F39: 0 | G39: 0 | H39: 0 | I39: 0 | J39: 0
A40: Оплата електроенергії | B40: 2273 | C40: 180 | D40: 0 | E40: 0 | F40: 0 | G40: 0 | H40: 0 | I40: 0 | J40: 0
A41: Оплата природного газу | B41: 2274 | C41: 190 | D41: 0 | E41: 0 | F41: 0 | G41: 0 | H41: 0 | I41: 0 | J41: 0
A42: Оплата інших енергоносіїв | B42: 2275 | C42: 200 | D42: 0 | E42: 0 | F42: 0 | G42: 0 | H42: 0 | I42: 0 | J42: 0
A43: Оплата енергосервісу | B43: 2276 | C43: 210 | D43: 0 | E43: 0 | F43: 0 | G43: 0 | H43: 0 | I43: 0 | J43: =F43+G43-H43 -> 0
A44: Дослідження і розробки, окремі заходи по реалізації державних (регіональних) програм | B44: 2280 | C44: 220 | D44: =SUM(D45:D46) -> 0 | E44: 0 | F44: =SUM(F45:F46) -> 0 | G44: =SUM(G45:G46) -> 0 | H44: =SUM(H45:H46) -> 0 | I44: =SUM(I45:I46) -> 0 | J44: 0
A45: Дослідження і розробки, окремі заходи розвитку по реалізації державних (регіональних) програм | B45: 2281 | C45: 230 | D45: 0 | E45: 0 | F45: 0 | G45: 0 | H45: 0 | I45: 0 | J45: 0
A46: Окремі заходи по реалізації державних (регіональних) програм, не віднесені до заходів розвитку | B46: 2282 | C46: 240 | D46: 0 | E46: 0 | F46: 0 | G46: 0 | H46: 0 | I46: 0 | J46: 0
A47: Обслуговування боргових зобов’язань | B47: 2400 | C47: 250 | D47: =SUM(D48:D49) -> 0 | E47: 0 | F47: 0 | G47: 0 | H47: 0 | I47: 0 | J47: 0
A48: Обслуговування внутрішніх боргових зобов’язань | B48: 2410 | C48: 260 | D48: 0 | E48: 0 | F48: 0 | G48: 0 | H48: 0 | I48: 0 | J48: 0
A49: Обслуговування зовнішніх боргових зобов’язань | B49: 2420 | C49: 270 | D49: 0 | E49: 0 | F49: 0 | G49: 0 | H49: 0 | I49: 0 | J49: 0
A50: Поточні трансферти | B50: 2600 | C50: 280 | D50: =SUM(D51:D53) -> 0 | E50: 0 | F50: 0 | G50: 0 | H50: 0 | I50: 0 | J50: 0
A51: Субсидії та поточні трансферти підприємствам (установам, організаціям) | B51: 2610 | C51: 290 | D51: 0 | E51: 0 | F51: 0 | G51: 0 | H51: 0 | I51: 0 | J51: 0
A52: Поточні трансферти органам державного управління інших рівнів | B52: 2620 | C52: 300 | D52: 0 | E52: 0 | F52: 0 | G52: 0 | H52: 0 | I52: 0 | J52: 0
A53: Поточні трансферти урядам іноземних держав та міжнародним організаціям | B53: 2630 | C53: 310 | D53: 0 | E53: 0 | F53: 0 | G53: 0 | H53: 0 | I53: 0 | J53: 0
A54: Соціальне забезпечення | B54: 2700 | C54: 320 | D54: =SUM(D55:D57) -> 0 | E54: 0 | F54: 0 | G54: 0 | H54: 0 | I54: 0 | J54: 0
A55: Виплата пенсій і допомоги | B55: 2710 | C55: 330 | D55: 0 | E55: 0 | F55: 0 | G55: 0 | H55: 0 | I55: 0 | J55: 0
A56: Стипендії | B56: 2720 | C56: 340 | D56: 0 | E56: 0 | F56: 0 | G56: 0 | H56: 0 | I56: 0 | J56: 0
A57: Інші виплати населенню | B57: 2730 | C57: 350 | D57: 0 | E57: 0 | F57: 0 | G57: 0 | H57: 0 | I57: 0 | J57: 0
A58: Інші поточні видатки | B58: 2800 | C58: 360 | D58: 0 | E58: 0 | F58: 0 | G58: 0 | H58: 0 | I58: 0 | J58: 0
A59: Капітальні видатки | B59: 3000 | C59: 370 | D59: =D60+D74 -> 0 | E59: 0 | F59: 0 | G59: 0 | H59: 0 | I59: 0 | J59: 0
A60: Придбання основного капіталу | B60: 3100 | C60: 380 | D60: =D61+D62+D65+D68+D72+D73 -> 0 | E60: 0 | F60: 0 | G60: 0 | H60: 0 | I60: 0 | J60: 0
A61: Придбання обладнання і предметів довгострокового користування | B61: 3110 | C61: 390 | D61: 0 | E61: 0 | F61: 0 | G61: 0 | H61: 0 | I61: 0 | J61: 0
A62: Капітальне будівництво (придбання) | B62: 3120 | C62: 400 | D62: =SUM(D63:D64) -> 0 | E62: 0 | F62: 0 | G62: 0 | H62: 0 | I62: 0 | J62: 0
A63: Капітальне будівництво (придбання) житла | B63: 3121 | C63: 410 | D63: 0 | E63: 0 | F63: 0 | G63: 0 | H63: 0 | I63: 0 | J63: 0
A64: Капітальне будівництво (придбання) інших об’єктів | B64: 3122 | C64: 420 | D64: 0 | E64: 0 | F64: 0 | G64: 0 | H64: 0 | I64: 0 | J64: 0
A65: Капітальний ремонт | B65: 3130 | C65: 430 | D65: =SUM(D66:D67) -> 0 | E65: 0 | F65: 0 | G65: 0 | H65: 0 | I65: 0 | J65: 0
A66: Капітальний ремонт житлового фонду (приміщень) | B66: 3131 | C66: 440 | D66: 0 | E66: 0 | F66: 0 | G66: 0 | H66: 0 | I66: 0 | J66: 0
A67: Капітальний ремонт інших об’єктів | B67: 3132 | C67: 450 | D67: 0 | E67: 0 | F67: 0 | G67: 0 | H67: 0 | I67: 0 | J67: 0
A68: Реконструкція та реставрація | B68: 3140 | C68: 460 | D68: =SUM(D69:D71) -> 0 | E68: 0 | F68: 0 | G68: 0 | H68: 0 | I68: 0 | J68: 0
A69: Реконструкція житлового фонду (приміщень) | B69: 3141 | C69: 470 | D69: 0 | E69: 0 | F69: 0 | G69: 0 | H69: 0 | I69: 0 | J69: 0
A70: Реконструкція та реставрація інших об’єктів | B70: 3142 | C70: 480 | D70: 0 | E70: 0 | F70: 0 | G70: 0 | H70: 0 | I70: 0 | J70: 0
A71: Реставрація пам’яток культури, історії та архітектури | B71: 3143 | C71: 490 | D71: 0 | E71: 0 | F71: 0 | G71: 0 | H71: 0 | I71: 0 | J71: 0
A72: Створення державних запасів і резервів | B72: 3150 | C72: 500 | D72: 0 | E72: 0 | F72: 0 | G72: 0 | H72: 0 | I72: 0 | J72: 0
A73: Придбання землі та нематеріальних активів | B73: 3160 | C73: 510 | D73: 0 | E73: 0 | F73: 0 | G73: 0 | H73: 0 | I73: 0 | J73: 0
A74: Капітальні трансферти | B74: 3200 | C74: 520 | D74: =SUM(D75:D78) -> 0 | E74: 0 | F74: 0 | G74: 0 | H74: 0 | I74: 0 | J74: 0
A75: Капітальні трансферти підприємствам (установам, організаціям) | B75: 3210 | C75: 530 | D75: 0 | E75: 0 | F75: 0 | G75: 0 | H75: 0 | I75: 0 | J75: 0
A76: Капітальні трансферти органам державного управління інших рівнів | B76: 3220 | C76: 540 | D76: 0 | E76: 0 | F76: 0 | G76: 0 | H76: 0 | I76: 0 | J76: 0
A77: Капітальні трансферти урядам іноземних держав та міжнародним організаціям | B77: 3230 | C77: 550 | D77: 0 | E77: 0 | F77: 0 | G77: 0 | H77: 0 | I77: 0 | J77: 0
A78: Капітальні трансферти населенню | B78: 3240 | C78: 560 | D78: 0 | E78: 0 | F78: 0 | G78: 0 | H78: 0 | I78: 0 | J78: 0
A79: Внутрішнє кредитування | B79: 4100 | C79: 570 | D79: =SUM(D80) -> 0 | E79: 0 | F79: 0 | G79: 0 | H79: 0 | I79: 0 | J79: 0
A80: Надання внутрішніх кредитів | B80: 4110 | C80: 580 | D80: =SUM(D81:D83) -> 0 | E80: 0 | F80: 0 | G80: 0 | H80: 0 | I80: 0 | J80: 0
A81: Надання кредитів органам державного управління інших рівнів | B81: 4111 | C81: 590 | D81: 0 | E81: 0 | F81: 0 | G81: 0 | H81: 0 | I81: 0 | J81: 0
A82: Надання кредитів підприємствам, установам, організаціям | B82: 4112 | C82: 600 | D82: 0 | E82: 0 | F82: 0 | G82: 0 | H82: 0 | I82: 0 | J82: 0
A83: Надання інших внутрішніх кредитів | B83: 4113 | C83: 610 | D83: 0 | E83: 0 | F83: 0 | G83: 0 | H83: 0 | I83: 0 | J83: 0
A84: Зовнішнє кредитування | B84: 4200 | C84: 620 | D84: =D85 -> 0 | E84: 0 | F84: 0 | G84: 0 | H84: 0 | I84: 0 | J84: 0
A85: Надання зовнішніх кредитів | B85: 4210 | C85: 630 | D85: 0 | E85: 0 | F85: 0 | G85: 0 | H85: 0 | I85: 0 | J85: 0
A86: Інші видатки | B86: 5000 | C86: 640 | D86: X | E86: 0 | F86: X | G86: X | H86: X | I86: X | J86: X
A87: Нерозподілені видатки | B87: 9000 | C87: 650 | D87: 0 | E87: 0 | F87: 0 | G87: 0 | H87: 0 | I87: 0 | J87: 0
C88: 650
A100: 1 Заповнюється розпорядниками бюджетних коштів.
A101: =ЗАПОЛНИТЬ!F30 -> Керівник | G101: =ЗАПОЛНИТЬ!F26 -> Т.П. Петрук
D102: (підпис) | G102: (ініціали, прізвище)
A103: =ЗАПОЛНИТЬ!F31 -> Головний бухгалтер | G103: =ЗАПОЛНИТЬ!F28 -> В.В. Петрук
A104: =ЗАПОЛНИТЬ!C19 -> "12"січня 2018 року | D104: (підпис) | G104: (ініціали, прізвище)

Sheet Ф.2.19 (hidden)
G1: Додаток 1 до Порядку складання бюджетної звітності розпорядниками та одержувачами бюджетних коштів, звітності фондами загальнообов’язкового державного соціального і пенсійного страхування (пункт 1 розділу ІІ)
A4: ЗВІТ
